Workbook

Sheet KEY
A2: KEY
B3: CWM | C3: Cloth Washing Machines
B4: Dry | C4: Drying Machines | H4: 1 | I4: 2 | J4: 3 | K4: 4 | L4: 5 | M4: 6 | N4: 7 | O4: 8 | P4: 9 | Q4: 10 | R4: 11 | S4: 12 | T4: 13 | U4: 14 | V4: 15 | W4: 16 | X4: 17 | Y4: 18 | Z4: 19 | AA4: 20 | AB4: 21 | AC4: 22 | AD4: 23 | AE4: 24
B5: DWM | C5: Dish Washing Machines | G5: Original Load_WD | H5: 20.85 | I5: 4.266666667 | J5: 0.06666666667 | K5: 0 | L5: 0 | M5: 0 | N5: 24.38333333 | O5: 61.71666667 | P5: 52.86666667 | Q5: 45.08333333 | R5: 62.3 | S5: 75.23333333 | T5: 60.43333333 | U5: 53.13333333 | V5: 68.58333333 | W5: 61.45 | X5: 61.73333333 | Y5: 82.16666667 | Z5: 103.4666667 | AA5: 108.3833333 | AB5: 74.63333333 | AC5: 108.9666667 | AD5: 81.28333333 | AE5: 46.11666667
D6: CWM_WD Model | G6: Shifted Load_WD | H6: 20.84888889 | I6: 4.260555556 | J6: 0.06861111111 | K6: 0 | L6: 0 | M6: 0 | N6: 24.37601852 | O6: 61.72388889 | P6: 52.87101852 | Q6: 45.08796296 | R6: 62.30805556 | S6: 75.23046296 | T6: 60.43824074 | U6: 53.13148148 | V6: 68.58203704 | W6: 61.45342593 | X6: 61.73194444 | Y6: 82.16814815 | Z6: 72.26777778 | AA6: 93.45731481 | AB6: 108.4992593 | AC6: 118.4402778 | AD6: 84.06203704 | AE6: 46.11574074
D8: Number of households | E8: 1000 | G8: Difference | H8: =H5-H6 -> 0.001111111111 | I8: 0.006111111111 | J8: -0.001944444444 | K8: 0 | L8: 0 | M8: 0 | N8: 0.007314814815 | O8: -0.007222222222 | P8: -0.004351851852 | Q8: -0.00462962963 | R8: -0.008055555556 | S8: 0.00287037037 | T8: -0.004907407408 | U8: 0.001851851852 | V8: 0.001296296296 | W8: -0.003425925926 | X8: 0.001388888889 | Y8: -0.001481481482 | Z8: 31.19888889 | AA8: 14.92601852 | AB8: -33.86592593 | AC8: -9.473611111 | AD8: -2.778703704 | AE8: 0.0009259259258
E9: Ti | F9: Tf | H9: 1 | I9: 2 | J9: 3 | K9: 4 | L9: 5 | M9: 6 | N9: 7 | O9: 8 | P9: 9 | Q9: 10 | R9: 11 | S9: 12 | T9: 13 | U9: 14 | V9: 15 | W9: 16 | X9: 17 | Y9: 18 | Z9: 19 | AA9: 20 | AB9: 21 | AC9: 22 | AD9: 23 | AE9: 24
D10: Shift From (1 to 1440) | E10: 1100 | F10: 1130 | G10: Flexibility Potential | H10: =IF(H8>0,H8,0) -> 0.001111111111 | I10: =IF(I8>0,I8,0) -> 0.006111111111 | J10: 0 | K10: 0 | L10: 0 | M10: 0 | N10: 0.007314814815 | O10: 0 | P10: 0 | Q10: 0 | R10: 0 | S10: 0.00287037037 | T10: 0 | U10: 0.001851851852 | V10: 0.001296296296 | W10: 0 | X10: 0.001388888889 | Y10: 0 | Z10: 31.19888889 | AA10: 14.92601852 | AB10: 0 | AC10: 0 | AD10: 0 | AE10: 0.0009259259258
D11: Shift To (1 to 1440) | E11: 1200 | F11: 1230 | G11: Rebound Effect | H11: =-1*IF(H8<0,H8,0) -> 0 | I11: =-1*IF(I8<0,I8,0) -> 0 | J11: 0.001944444444 | K11: 0 | L11: 0 | M11: 0 | N11: 0 | O11: 0.007222222222 | P11: 0.004351851852 | Q11: 0.00462962963 | R11: 0.008055555556 | S11: 0 | T11: 0.004907407408 | U11: 0 | V11: 0 | W11: 0.003425925926 | X11: 0 | Y11: 0.001481481482 | Z11: 0 | AA11: 0 | AB11: 33.86592593 | AC11: 9.473611111 | AD11: 2.778703704 | AE11: 0
A13: Steps
B14: 1 | C14: Insert number of households
B15: 2 | C15: Insert shift_from range initial (Ti) and final miniute (Tf)*
B16: 3 | C16: Insert shift_To range initial (Ti) and final miniute (Tf)*
B17: 4 | C17: Press 'Original Load' button
B18: 5 | C18: Press 'Shifted Load' button
B19: 6 | C19: Observe flexibility potential and its effect
B22: * | C22: number of minutes 'shifted_from' shall be equal to 'shifted_to'
B23: Ti | C23: initial minute number of the period
B24: Tf | C24: final minute number of the period
D43: Resulted Shifting
D44: All activities beteen | E44: =TIME(0,E10,0) -> 18:20:00 | F44: =TIME(0,F10,0) -> 18:50:00
D45: Shifted to | E45: =TIME(0,E11,0) -> 20:00:00 | F45: =TIME(0,F11,0) -> 20:30:00

Sheet Average power consumption
B2: Minutes | C2: CWM (kW) | D2: Dry (kW) | E2: DWM (kW)
B3: 1 | C3: 0.048 | D3: 0.219 | E3: 0.007
B4: 2 | C4: 0.296 | D4: 1.69 | E4: 0.158
B5: 3 | C5: 1.817 | D5: 1.941 | E5: 0.522
B6: 4 | C6: 2.041 | D6: 1.847 | E6: 0.809
B7: 5 | C7: 2.053 | D7: 1.722 | E7: 0.889
B8: 6 | C8: 2.04 | D8: 1.668 | E8: 1.469
B9: 7 | C9: 1.958 | D9: 1.718 | E9: 1.836
B10: 8 | C10: 1.924 | D10: 1.652 | E10: 1.828
B11: 9 | C11: 1.855 | D11: 1.572 | E11: 1.776
B12: 10 | C12: 1.729 | D12: 1.434 | E12: 1.787
B13: 11 | C13: 1.592 | D13: 1.543 | E13: 1.745
B14: 12 | C14: 1.46 | D14: 1.532 | E14: 1.652
B15: 13 | C15: 1.362 | D15: 1.421 | E15: 1.485
B16: 14 | C16: 1.234 | D16: 1.317 | E16: 1.435
B17: 15 | C17: 1.07 | D17: 1.357 | E17: 1.456
B18: 16 | C18: 0.951 | D18: 1.354 | E18: 1.357
B19: 17 | C19: 0.886 | D19: 1.274 | E19: 1.216
B20: 18 | C20: 0.841 | D20: 1.2 | E20: 1.102
B21: 19 | C21: 0.8 | D21: 1.156 | E21: 1.099
B22: 20 | C22: 0.725 | D22: 1.175 | E22: 1.152
B23: 21 | C23: 0.724 | D23: 1.099 | E23: 1.109
B24: 22 | C24: 0.678 | D24: 1.06 | E24: 1.112
B25: 23 | C25: 0.627 | D25: 1.046 | E25: 1.082
B26: 24 | C26: 0.586 | D26: 1.085 | E26: 0.941
B27: 25 | C27: 0.586 | D27: 1.081 | E27: 0.789
B28: 26 | C28: 0.578 | D28: 1.008 | E28: 0.682
B29: 27 | C29: 0.543 | D29: 1.088 | E29: 0.666
B30: 28 | C30: 0.52 | D30: 1.027 | E30: 0.748
B31: 29 | C31: 0.518 | D31: 0.978 | E31: 0.687
B32: 30 | C32: 0.475 | D32: 1.007 | E32: 0.639
B33: 31 | C33: 0.413 | D33: 0.988 | E33: 0.641
B34: 32 | C34: 0.398 | D34: 1.01 | E34: 0.662
B35: 33 | C35: 0.364 | D35: 1.005 | E35: 0.587
B36: 34 | C36: 0.321 | D36: 0.951 | E36: 0.507
B37: 35 | C37: 0.287 | D37: 0.963 | E37: 0.465
B38: 36 | C38: 0.268 | D38: 0.974 | E38: 0.435
B39: 37 | C39: 0.243 | D39: 0.875 | E39: 0.385
B40: 38 | C40: 0.227 | D40: 0.782 | E40: 0.368
B41: 39 | C41: 0.203 | D41: 0.913 | E41: 0.336
B42: 40 | C42: 0.179 | D42: 0.792 | E42: 0.31
B43: 41 | C43: 0.162 | D43: 0.855 | E43: 0.291
B44: 42 | C44: 0.16 | D44: 0.757 | E44: 0.33
B45: 43 | C45: 0.16 | D45: 0.796 | E45: 0.363
B46: 44 | C46: 0.16 | D46: 0.775 | E46: 0.413
B47: 45 | C47: 0.155 | D47: 0.803 | E47: 0.449
B48: 46 | C48: 0.163 | D48: 0.755 | E48: 0.486
B49: 47 | C49: 0.158 | D49: 0.76 | E49: 0.509
B50: 48 | C50: 0.146 | D50: 0.717 | E50: 0.512
B51: 49 | C51: 0.146 | D51: 0.704 | E51: 0.501
B52: 50 | C52: 0.129 | D52: 0.701 | E52: 0.457
B53: 51 | C53: 0.129 | D53: 0.74 | E53: 0.392
B54: 52 | C54: 0.14 | D54: 0.646 | E54: 0.388
B55: 53 | C55: 0.129 | D55: 0.671 | E55: 0.445
B56: 54 | C56: 0.119 | D56: 0.653 | E56: 0.539
B57: 55 | C57: 0.124 | D57: 0.649 | E57: 0.635
B58: 56 | C58: 0.135 | D58: 0.665 | E58: 0.662
B59: 57 | C59: 0.139 | D59: 0.603 | E59: 0.659
B60: 58 | C60: 0.136 | D60: 0.638 | E60: 0.696
B61: 59 | C61: 0.134 | D61: 0.595 | E61: 0.697
B62: 60 | C62: 0.145 | D62: 0.633 | E62: 0.712
B63: 61 | C63: 0.141 | D63: 0.497 | E63: 0.79
B64: 62 | C64: 0.149 | D64: 0.515 | E64: 0.803
B65: 63 | C65: 0.15 | D65: 0.576 | E65: 0.78
B66: 64 | C66: 0.143 | D66: 0.516 | E66: 0.731
B67: 65 | C67: 0.145 | D67: 0.486 | E67: 0.699
B68: 66 | C68: 0.147 | D68: 0.538 | E68: 0.634
B69: 67 | C69: 0.147 | D69: 0.498 | E69: 0.6
B70: 68 | C70: 0.133 | D70: 0.452 | E70: 0.584
B71: 69 | C71: 0.12 | D71: 0.497 | E71: 0.573
B72: 70 | C72: 0.125 | D72: 0.412 | E72: 0.584
B73: 71 | C73: 0.139 | D73: 0.445 | E73: 0.582
B74: 72 | C74: 0.134 | D74: 0.437 | E74: 0.563
B75: 73 | C75: 0.134 | D75: 0.394 | E75: 0.522
B76: 74 | C76: 0.13 | D76: 0.414 | E76: 0.5
B77: 75 | C77: 0.141 | D77: 0.42 | E77: 0.502
B78: 76 | C78: 0.144 | D78: 0.327 | E78: 0.455
B79: 77 | C79: 0.139 | D79: 0.319 | E79: 0.416
B80: 78 | C80: 0.132 | D80: 0.336 | E80: 0.429
B81: 79 | C81: 0.139 | D81: 0.331 | E81: 0.385
B82: 80 | C82: 0.131 | D82: 0.33 | E82: 0.321
B83: 81 | C83: 0.125 | D83: 0.345 | E83: 0.322
B84: 82 | C84: 0.149 | D84: 0.354 | E84: 0.293
B85: 83 | C85: 0.16 | D85: 0.278 | E85: 0.284
B86: 84 | C86: 0.152 | D86: 0.267 | E86: 0.269
B87: 85 | C87: 0.147 | D87: 0.327 | E87: 0.249
B88: 86 | C88: 0.129 | D88: 0.326 | E88: 0.234
B89: 87 | C89: 0.14 | D89: 0.351 | E89: 0.249
B90: 88 | C90: 0.122 | D90: 0.362 | E90: 0.259
B91: 89 | C91: 0.121 | D91: 0.358 | E91: 0.246
B92: 90 | C92: 0.124 | D92: 0.289 | E92: 0.272
B93: 91 | C93: 0.111 | D93: 0.29 | E93: 0.272
B94: 92 | C94: 0.111 | D94: 0.297 | E94: 0.234
B95: 93 | C95: 0.119 | D95: 0.285 | E95: 0.196
B96: 94 | C96: 0.125 | D96: 0.3 | E96: 0.19
B97: 95 | C97: 0.147 | D97: 0.24 | E97: 0.186
B98: 96 | C98: 0.158 | D98: 0.273 | E98: 0.193
B99: 97 | C99: 0.152 | D99: 0.246 | E99: 0.182
B100: 98 | C100: 0.157 | D100: 0.261 | E100: 0.169
B101: 99 | C101: 0.159 | D101: 0.262 | E101: 0.169
B102: 100 | C102: 0.153 | D102: 0.225 | E102: 0.168
B103: 101 | C103: 0.155 | D103: 0.217
B104: 102 | C104: 0.15 | D104: 0.258
B105: 103 | C105: 0.147 | D105: 0.263
B106: 104 | C106: 0.144 | D106: 0.229
B107: 105 | C107: 0.15 | D107: 0.271
B108: 106 | C108: 0.15 | D108: 0.241
B109: 107 | C109: 0.152 | D109: 0.285
B110: 108 | C110: 0.157 | D110: 0.261
B111: 109 | C111: 0.159 | D111: 0.276
B112: 110 | C112: 0.153 | D112: 0.276
B113: 111 | C113: 0.155 | D113: 0.281
B114: 112 | C114: 0.15 | D114: 0.287
B115: 113 | C115: 0.147 | D115: 0.222
B116: 114 | C116: 0.144 | D116: 0.212
B117: 115 | C117: 0.15 | D117: 0.213
B118: 116 | C118: 0.15 | D118: 0.175
B119: 117 | C119: 0.147 | D119: 0.208
B120: 118 | C120: 0.144 | D120: 0.189
B121: 119 | C121: 0.15 | D121: 0.217
B122: 120 | C122: 0.15 | D122: 0.168

Sheet Probability of start
A1: 1 | B1: 2 | C1: 3 | D1: 4 | E1: 5 | F1: 6 | G1: 7 | H1: 8 | I1: 9 | J1: 10 | K1: 11 | L1: 12 | M1: 13 | N1: 14 | O1: 15 | P1: 16 | Q1: 17 | R1: 18 | S1: 19 | T1: 20 | U1: 21 | V1: 22 | W1: 23 | X1: 24 | Y1: 25 | Z1: 26 | AA1: 27 | AB1: 28 | AC1: 29 | AD1: 30 | AE1: 31 | AF1: 32 | AG1: 33 | AH1: 34 | AI1: 35 | AJ1: 36 | AK1: 37 | AL1: 38 | AM1: 39 | AN1: 40 | AO1: 41 | AP1: 42 | AQ1: 43 | AR1: 44 | AS1: 45 | AT1: 46 | AU1: 47 | AV1: 48 | AW1: 49 | AX1: 50 | AY1: 51 | AZ1: 52 | BA1: 53 | BB1: 54 | BC1: 55 | BD1: 56 | BE1: 57 | BF1: 58 | BG1: 59 | BH1: 60 | BI1: 61 | BJ1: 62 | BK1: 63 | BL1: 64 | BM1: 65 | BN1: 66 | BO1: 67 | BP1: 68 | BQ1: 69 | BR1: 70 | BS1: 71 | BT1: 72 | BU1: 73 | BV1: 74 | BW1: 75 | BX1: 76 | BY1: 77 | BZ1: 78 | CA1: 79 | CB1: 80 | CC1: 81 | CD1: 82 | CE1: 83 | CF1: 84 | CG1: 85 | CH1: 86 | CI1: 87 | CJ1: 88 | CK1: 89 | CL1: 90 | CM1: 91 | CN1: 92 | CO1: 93 | CP1: 94 | CQ1: 95 | CR1: 96 | CS1: 97 | CT1: 98 | CU1: 99 | CV1: 100 | CW1: 101 | CX1: 102 | CY1: 103 | CZ1: 104 | DA1: 105 | DB1: 106 | DC1: 107 | DD1: 108 | DE1: 109 | DF1: 110 | DG1: 111 | DH1: 112 | DI1: 113 | DJ1: 114 | DK1: 115 | DL1: 116 | DM1: 117 | DN1: 118 | DO1: 119 | DP1: 120 | DQ1: 121 | DR1: 122 | DS1: 123 | DT1: 124 | DU1: 125 | DV1: 126 | DW1: 127 | DX1: 128 | DY1: 129 | DZ1: 130 | EA1: 131 | EB1: 132 | EC1: 133 | ED1: 134 | EE1: 135 | EF1: 136 | EG1: 137 | EH1: 138 | EI1: 139 | EJ1: 140 | EK1: 141 | EL1: 142 | EM1: 143
B2: Time of the day (hr) | C2: Cloth Washing Machine | E2: Dryer | G2: Dish Washing Machine | L2: Cloth Washing Machine | N2: Dryer | P2: Dish Washing Machine
C3: WD | D3: WE | E3: WD | F3: WE | G3: WD | H3: WE | L3: WD | M3: WE | N3: WD | O3: WE | P3: WD | Q3: WE | U3: 1 | V3: 2 | W3: 3 | X3: 4 | Y3: 5 | Z3: 6 | AA3: 7 | AB3: 8 | AC3: 9 | AD3: 10 | AE3: 11 | AF3: 12 | AG3: 13 | AH3: 14 | AI3: 15 | AJ3: 16 | AK3: 17 | AL3: 18 | AM3: 19 | AN3: 20 | AO3: 21 | AP3: 22 | AQ3: 23 | AR3: 24 | AS3: 25 | AT3: 26 | AU3: 27 | AV3: 28 | AW3: 29 | AX3: 30 | AY3: 31 | AZ3: 32 | BA3: 33 | BB3: 34 | BC3: 35 | BD3: 36 | BE3: 37 | BF3: 38 | BG3: 39 | BH3: 40 | BI3: 41 | BJ3: 42 | BK3: 43 | BL3: 44 | BM3: 45 | BN3: 46 | BO3: 47 | BP3: 48 | BQ3: 49 | BR3: 50 | BS3: 51 | BT3: 52 | BU3: 53 | BV3: 54 | BW3: 55 | BX3: 56 | BY3: 57 | BZ3: 58 | CA3: 59 | CB3: 60 | CC3: 61 | CD3: 62 | CE3: 63 | CF3: 64 | CG3: 65 | CH3: 66 | CI3: 67 | CJ3: 68 | CK3: 69 | CL3: 70 | CM3: 71 | CN3: 72 | CO3: 73 | CP3: 74 | CQ3: 75 | CR3: 76 | CS3: 77 | CT3: 78 | CU3: 79 | CV3: 80 | CW3: 81 | CX3: 82 | CY3: 83 | CZ3: 84 | DA3: 85 | DB3: 86 | DC3: 87 | DD3: 88 | DE3: 89 | DF3: 90 | DG3: 91 | DH3: 92 | DI3: 93 | DJ3: 94 | DK3: 95 | DL3: 96 | DM3: 97 | DN3: 98 | DO3: 99 | DP3: 100 | DQ3: 101 | DR3: 102 | DS3: 103 | DT3: 104 | DU3: 105 | DV3: 106 | DW3: 107 | DX3: 108 | DY3: 109 | DZ3: 110 | EA3: 111 | EB3: 112 | EC3: 113 | ED3: 114 | EE3: 115 | EF3: 116 | EG3: 117 | EH3: 118 | EI3: 119 | EJ3: 120 | EM3: 1 | EN3: 2 | EO3: 3 | EP3: 4 | EQ3: 5 | ER3: 6 | ES3: 7 | ET3: 8 | EU3: 9 | EV3: 10 | EW3: 11 | EX3: 12 | EY3: 13 | EZ3: 14 | FA3: 15 | FB3: 16 | FC3: 17 | FD3: 18 | FE3: 19 | FF3: 20 | FG3: 21 | FH3: 22 | FI3: 23 | FJ3: 24 | FK3: 25 | FL3: 26 | FM3: 27 | FN3: 28 | FO3: 29 | FP3: 30 | FQ3: 31 | FR3: 32 | FS3: 33 | FT3: 34 | FU3: 35 | FV3: 36 | FW3: 37 | FX3: 38 | FY3: 39 | FZ3: 40 | GA3: 41 | GB3: 42 | GC3: 43 | GD3: 44 | GE3: 45 | GF3: 46 | GG3: 47 | GH3: 48 | GI3: 49 | GJ3: 50 | GK3: 51 | GL3: 52 | GM3: 53 | GN3: 54 | GO3: 55 | GP3: 56 | GQ3: 57 | GR3: 58 | GS3: 59 | GT3: 60 | GU3: 61 | GV3: 62 | GW3: 63 | GX3: 64 | GY3: 65 | GZ3: 66 | HA3: 67 | HB3: 68 | HC3: 69 | HD3: 70 | HE3: 71 | HF3: 72 | HG3: 73 | HH3: 74 | HI3: 75 | HJ3: 76 | HK3: 77 | HL3: 78 | HM3: 79 | HN3: 80 | HO3: 81 | HP3: 82 | HQ3: 83 | HR3: 84 | HS3: 85 | HT3: 86 | HU3: 87 | HV3: 88 | HW3: 89 | HX3: 90 | HY3: 91 | HZ3: 92 | IA3: 93 | IB3: 94 | IC3: 95 | ID3: 96 | IE3: 97 | IF3: 98 | IG3: 99 | IH3: 100 | II3: 101 | IJ3: 102 | IK3: 103 | IL3: 104 | IM3: 105 | IN3: 106 | IO3: 107 | IP3: 108 | IQ3: 109 | IR3: 110 | IS3: 111 | IT3: 112 | IU3: 113 | IV3: 114 | IW3: 115 | IX3: 116 | IY3: 117 | IZ3: 118 | JA3: 119 | JB3: 120 | JC3: 121 | JD3: 122 | JE3: 123 | JF3: 124 | JG3: 125 | JH3: 126 | JI3: 127 | JJ3: 128 | JK3: 129 | JL3: 130 | JM3: 131 | JN3: 132 | JO3: 133 | JP3: 134 | JQ3: 135 | JR3: 136 | JS3: 137 | JT3: 138 | JU3: 139 | JV3: 140 | JW3: 141 | JX3: 142 | JY3: 143 | JZ3: 144 | KA3: 145 | KB3: 146 | KC3: 147 | KD3: 148 | KE3: 149 | KF3: 150 | KG3: 151 | KH3: 152 | KI3: 153 | KJ3: 154 | KK3: 155 | KL3: 156 | KM3: 157 | KN3: 158 | KO3: 159 | KP3: 160 | KQ3: 161 | KR3: 162 | KS3: 163 | KT3: 164 | KU3: 165 | KV3: 166 | KW3: 167 | KX3: 168 | KY3: 169 | KZ3: 170 | LA3: 171 | LB3: 172 | LC3: 173 | LD3: 174 | LE3: 175 | LF3: 176 | LG3: 177 | LH3: 178 | LI3: 179 | LJ3: 180 | LK3: 181 | LL3: 182 | LM3: 183 | LN3: 184 | LO3: 185 | LP3: 186 | LQ3: 187 | LR3: 188 | LS3: 189 | LT3: 190 | LU3: 191 | LV3: 192 | LW3: 193 | LX3: 194 | LY3: 195 | LZ3: 196 | MA3: 197 | MB3: 198 | MC3: 199 | MD3: 200 | ME3: 201 | MF3: 202 | MG3: 203 | MH3: 204 | MI3: 205 | MJ3: 206 | MK3: 207 | ML3: 208 | MM3: 209 | MN3: 210 | MO3: 211 | MP3: 212 | MQ3: 213 | MR3: 214 | MS3: 215 | MT3: 216 | MU3: 217 | MV3: 218 | MW3: 219 | MX3: 220 | MY3: 221 | MZ3: 222 | NA3: 223 | NB3: 224 | NC3: 225 | ND3: 226 | NE3: 227 | NF3: 228 | NG3: 229 | NH3: 230 | NI3: 231 | NJ3: 232 | NK3: 233 | NL3: 234 | NM3: 235 | NN3: 236 | NO3: 237 | NP3: 238 | NQ3: 239 | NR3: 240 | NS3: 241 | NT3: 242 | NU3: 243 | NV3: 244 | NW3: 245 | NX3: 246 | NY3: 247 | NZ3: 248 | OA3: 249 | OB3: 250 | OC3: 251 | OD3: 252 | OE3: 253 | OF3: 254 | OG3: 255 | OH3: 256 | OI3: 257 | OJ3: 258 | OK3: 259 | OL3: 260 | OM3: 261 | ON3: 262 | OO3: 263 | OP3: 264 | OQ3: 265 | OR3: 266 | OS3: 267 | OT3: 268 | OU3: 269 | OV3: 270 | OW3: 271 | OX3: 272 | OY3: 273 | OZ3: 274 | PA3: 275 | PB3: 276 | PC3: 277 | PD3: 278 | PE3: 279 | PF3: 280 | PG3: 281 | PH3: 282 | PI3: 283 | PJ3: 284 | PK3: 285 | PL3: 286 | PM3: 287 | PN3: 288 | PO3: 289 | PP3: 290 | PQ3: 291 | PR3: 292 | PS3: 293 | PT3: 294 | PU3: 295 | PV3: 296 | PW3: 297 | PX3: 298 | PY3: 299 | PZ3: 300 | QA3: 301 | QB3: 302 | QC3: 303 | QD3: 304 | QE3: 305 | QF3: 306 | QG3: 307 | QH3: 308 | QI3: 309 | QJ3: 310 | QK3: 311 | QL3: 312 | QM3: 313 | QN3: 314 | QO3: 315 | QP3: 316 | QQ3: 317 | QR3: 318 | QS3: 319 | QT3: 320 | QU3: 321 | QV3: 322 | QW3: 323 | QX3: 324 | QY3: 325 | QZ3: 326 | RA3: 327 | RB3: 328 | RC3: 329 | RD3: 330 | RE3: 331 | RF3: 332 | RG3: 333 | RH3: 334 | RI3: 335 | RJ3: 336 | RK3: 337 | RL3: 338 | RM3: 339 | RN3: 340 | RO3: 341 | RP3: 342 | RQ3: 343 | RR3: 344 | RS3: 345 | RT3: 346 | RU3: 347 | RV3: 348 | RW3: 349 | RX3: 350 | RY3: 351 | RZ3: 352 | SA3: 353 | SB3: 354 | SC3: 355 | SD3: 356 | SE3: 357 | SF3: 358 | SG3: 359 | SH3: 360 | SI3: 361 | SJ3: 362 | SK3: 363 | SL3: 364 | SM3: 365 | SN3: 366 | SO3: 367 | SP3: 368 | SQ3: 369 | SR3: 370 | SS3: 371 | ST3: 372 | SU3: 373 | SV3: 374 | SW3: 375 | SX3: 376 | SY3: 377 | SZ3: 378 | TA3: 379 | TB3: 380 | TC3: 381 | TD3: 382 | TE3: 383 | TF3: 384 | TG3: 385 | TH3: 386 | TI3: 387 | TJ3: 388 | TK3: 389 | TL3: 390 | TM3: 391 | TN3: 392 | TO3: 393 | TP3: 394 | TQ3: 395 | TR3: 396 | TS3: 397 | TT3: 398 | TU3: 399 | TV3: 400 | TW3: 401 | TX3: 402 | TY3: 403 | TZ3: 404 | UA3: 405 | UB3: 406 | UC3: 407 | UD3: 408 | UE3: 409 | UF3: 410 | UG3: 411 | UH3: 412 | UI3: 413 | UJ3: 414 | UK3: 415 | UL3: 416 | UM3: 417 | UN3: 418 | UO3: 419 | UP3: 420 | UQ3: 421 | UR3: 422 | US3: 423 | UT3: 424 | UU3: 425 | UV3: 426 | UW3: 427 | UX3: 428 | UY3: 429 | UZ3: 430 | VA3: 431 | VB3: 432 | VC3: 433 | VD3: 434 | VE3: 435 | VF3: 436 | VG3: 437 | VH3: 438 | VI3: 439 | VJ3: 440 | VK3: 441 | VL3: 442 | VM3: 443 | VN3: 444 | VO3: 445 | VP3: 446 | VQ3: 447 | VR3: 448 | VS3: 449 | VT3: 450 | VU3: 451 | VV3: 452 | VW3: 453 | VX3: 454 | VY3: 455 | VZ3: 456 | WA3: 457 | WB3: 458 | WC3: 459 | WD3: 460 | WE3: 461 | WF3: 462 | WG3: 463 | WH3: 464 | WI3: 465 | WJ3: 466 | WK3: 467 | WL3: 468 | WM3: 469 | WN3: 470 | WO3: 471 | WP3: 472 | WQ3: 473 | WR3: 474 | WS3: 475 | WT3: 476 | WU3: 477 | WV3: 478 | WW3: 479 | WX3: 480 | WY3: 481 | WZ3: 482 | XA3: 483 | XB3: 484 | XC3: 485 | XD3: 486 | XE3: 487 | XF3: 488 | XG3: 489 | XH3: 490 | XI3: 491 | XJ3: 492 | XK3: 493 | XL3: 494 | XM3: 495 | XN3: 496 | XO3: 497 | XP3: 498 | XQ3: 499 | XR3: 500 | XS3: 501 | XT3: 502 | XU3: 503 | XV3: 504 | XW3: 505 | XX3: 506 | XY3: 507 | XZ3: 508 | YA3: 509 | YB3: 510 | YC3: 511 | YD3: 512 | YE3: 513 | YF3: 514 | YG3: 515 | YH3: 516 | YI3: 517 | YJ3: 518 | YK3: 519 | YL3: 520 | YM3: 521 | YN3: 522 | YO3: 523 | YP3: 524 | YQ3: 525 | YR3: 526 | YS3: 527 | YT3: 528 | YU3: 529 | YV3: 530 | YW3: 531 | YX3: 532 | YY3: 533 | YZ3: 534 | ZA3: 535 | ZB3: 536 | ZC3: 537 | ZD3: 538 | ZE3: 539 | ZF3: 540 | ZG3: 541 | ZH3: 542 | ZI3: 543 | ZJ3: 544 | ZK3: 545 | ZL3: 546 | ZM3: 547 | ZN3: 548 | ZO3: 549 | ZP3: 550 | ZQ3: 551 | ZR3: 552 | ZS3: 553 | ZT3: 554 | ZU3: 555 | ZV3: 556 | ZW3: 557 | ZX3: 558 | ZY3: 559 | ZZ3: 560 | AAA3: 561 | AAB3: 562 | AAC3: 563 | AAD3: 564 | AAE3: 565 | AAF3: 566 | AAG3: 567 | AAH3: 568 | AAI3: 569 | AAJ3: 570 | AAK3: 571 | AAL3: 572 | AAM3: 573 | AAN3: 574 | AAO3: 575 | AAP3: 576 | AAQ3: 577 | AAR3: 578 | AAS3: 579 | AAT3: 580 | AAU3: 581 | AAV3: 582 | AAW3: 583 | AAX3: 584 | AAY3: 585 | AAZ3: 586 | ABA3: 587 | ABB3: 588 | ABC3: 589 | ABD3: 590 | ABE3: 591 | ABF3: 592 | ABG3: 593 | ABH3: 594 | ABI3: 595 | ABJ3: 596 | ABK3: 597 | ABL3: 598 | ABM3: 599 | ABN3: 600 | ABO3: 601 | ABP3: 602 | ABQ3: 603 | ABR3: 604 | ABS3: 605 | ABT3: 606 | ABU3: 607 | ABV3: 608 | ABW3: 609 | ABX3: 610 | ABY3: 611 | ABZ3: 612 | ACA3: 613 | ACB3: 614 | ACC3: 615 | ACD3: 616 | ACE3: 617 | ACF3: 618 | ACG3: 619 | ACH3: 620 | ACI3: 621 | ACJ3: 622 | ACK3: 623 | ACL3: 624 | ACM3: 625 | ACN3: 626 | ACO3: 627 | ACP3: 628 | ACQ3: 629 | ACR3: 630 | ACS3: 631 | ACT3: 632 | ACU3: 633 | ACV3: 634 | ACW3: 635 | ACX3: 636 | ACY3: 637 | ACZ3: 638 | ADA3: 639 | ADB3: 640 | ADC3: 641 | ADD3: 642 | ADE3: 643 | ADF3: 644 | ADG3: 645 | ADH3: 646 | ADI3: 647 | ADJ3: 648 | ADK3: 649 | ADL3: 650 | ADM3: 651 | ADN3: 652 | ADO3: 653 | ADP3: 654 | ADQ3: 655 | ADR3: 656 | ADS3: 657 | ADT3: 658 | ADU3: 659 | ADV3: 660 | ADW3: 661 | ADX3: 662 | ADY3: 663 | ADZ3: 664 | AEA3: 665 | AEB3: 666 | AEC3: 667 | AED3: 668 | AEE3: 669 | AEF3: 670 | AEG3: 671 | AEH3: 672 | AEI3: 673 | AEJ3: 674 | AEK3: 675 | AEL3: 676 | AEM3: 677 | AEN3: 678 | AEO3: 679 | AEP3: 680 | AEQ3: 681 | AER3: 682 | AES3: 683 | AET3: 684 | AEU3: 685 | AEV3: 686 | AEW3: 687 | AEX3: 688 | AEY3: 689 | AEZ3: 690 | AFA3: 691 | AFB3: 692 | AFC3: 693 | AFD3: 694 | AFE3: 695 | AFF3: 696 | AFG3: 697 | AFH3: 698 | AFI3: 699 | AFJ3: 700 | AFK3: 701 | AFL3: 702 | AFM3: 703 | AFN3: 704 | AFO3: 705 | AFP3: 706 | AFQ3: 707 | AFR3: 708 | AFS3: 709 | AFT3: 710 | AFU3: 711 | AFV3: 712 | AFW3: 713 | AFX3: 714 | AFY3: 715 | AFZ3: 716 | AGA3: 717 | AGB3: 718 | AGC3: 719 | AGD3: 720 | AGE3: 721 | AGF3: 722 | AGG3: 723 | AGH3: 724 | AGI3: 725 | AGJ3: 726 | AGK3: 727 | AGL3: 728 | AGM3: 729 | AGN3: 730 | AGO3: 731 | AGP3: 732 | AGQ3: 733 | AGR3: 734 | AGS3: 735 | AGT3: 736 | AGU3: 737 | AGV3: 738 | AGW3: 739 | AGX3: 740 | AGY3: 741 | AGZ3: 742 | AHA3: 743 | AHB3: 744 | AHC3: 745 | AHD3: 746 | AHE3: 747 | AHF3: 748 | AHG3: 749 | AHH3: 750 | AHI3: 751 | AHJ3: 752 | AHK3: 753 | AHL3: 754 | AHM3: 755 | AHN3: 756 | AHO3: 757 | AHP3: 758 | AHQ3: 759 | AHR3: 760 | AHS3: 761 | AHT3: 762 | AHU3: 763 | AHV3: 764 | AHW3: 765 | AHX3: 766 | AHY3: 767 | AHZ3: 768 | AIA3: 769 | AIB3: 770 | AIC3: 771 | AID3: 772 | AIE3: 773 | AIF3: 774 | AIG3: 775 | AIH3: 776 | AII3: 777 | AIJ3: 778 | AIK3: 779 | AIL3: 780 | AIM3: 781 | AIN3: 782 | AIO3: 783 | AIP3: 784 | AIQ3: 785 | AIR3: 786 | AIS3: 787 | AIT3: 788 | AIU3: 789 | AIV3: 790 | AIW3: 791 | AIX3: 792 | AIY3: 793 | AIZ3: 794 | AJA3: 795 | AJB3: 796 | AJC3: 797 | AJD3: 798 | AJE3: 799 | AJF3: 800 | AJG3: 801 | AJH3: 802 | AJI3: 803 | AJJ3: 804 | AJK3: 805 | AJL3: 806 | AJM3: 807 | AJN3: 808 | AJO3: 809 | AJP3: 810 | AJQ3: 811 | AJR3: 812 | AJS3: 813 | AJT3: 814 | AJU3: 815 | AJV3: 816 | AJW3: 817 | AJX3: 818 | AJY3: 819 | AJZ3: 820 | AKA3: 821 | AKB3: 822 | AKC3: 823 | AKD3: 824 | AKE3: 825 | AKF3: 826 | AKG3: 827 | AKH3: 828 | AKI3: 829 | AKJ3: 830 | AKK3: 831 | AKL3: 832 | AKM3: 833 | AKN3: 834 | AKO3: 835 | AKP3: 836 | AKQ3: 837 | AKR3: 838 | AKS3: 839 | AKT3: 840 | AKU3: 841 | AKV3: 842 | AKW3: 843 | AKX3: 844 | AKY3: 845 | AKZ3: 846 | ALA3: 847 | ALB3: 848 | ALC3: 849 | ALD3: 850 | ALE3: 851 | ALF3: 852 | ALG3: 853 | ALH3: 854 | ALI3: 855 | ALJ3: 856 | ALK3: 857 | ALL3: 858 | ALM3: 859 | ALN3: 860 | ALO3: 861 | ALP3: 862 | ALQ3: 863 | ALR3: 864 | ALS3: 865 | ALT3: 866 | ALU3: 867 | ALV3: 868 | ALW3: 869 | ALX3: 870 | ALY3: 871 | ALZ3: 872 | AMA3: 873 | AMB3: 874 | AMC3: 875 | AMD3: 876 | AME3: 877 | AMF3: 878 | AMG3: 879 | AMH3: 880 | AMI3: 881 | AMJ3: 882 | AMK3: 883 | AML3: 884 | AMM3: 885 | AMN3: 886 | AMO3: 887 | AMP3: 888 | AMQ3: 889 | AMR3: 890 | AMS3: 891 | AMT3: 892 | AMU3: 893 | AMV3: 894 | AMW3: 895 | AMX3: 896 | AMY3: 897 | AMZ3: 898 | ANA3: 899 | ANB3: 900 | ANC3: 901 | AND3: 902 | ANE3: 903 | ANF3: 904 | ANG3: 905 | ANH3: 906 | ANI3: 907 | ANJ3: 908 | ANK3: 909 | ANL3: 910 | ANM3: 911 | ANN3: 912 | ANO3: 913 | ANP3: 914 | ANQ3: 915 | ANR3: 916 | ANS3: 917 | ANT3: 918 | ANU3: 919 | ANV3: 920 | ANW3: 921 | ANX3: 922 | ANY3: 923 | ANZ3: 924 | AOA3: 925 | AOB3: 926 | AOC3: 927 | AOD3: 928 | AOE3: 929 | AOF3: 930 | AOG3: 931 | AOH3: 932 | AOI3: 933 | AOJ3: 934 | AOK3: 935 | AOL3: 936 | AOM3: 937 | AON3: 938 | AOO3: 939 | AOP3: 940 | AOQ3: 941 | AOR3: 942 | AOS3: 943 | AOT3: 944 | AOU3: 945 | AOV3: 946 | AOW3: 947 | AOX3: 948 | AOY3: 949 | AOZ3: 950 | APA3: 951 | APB3: 952 | APC3: 953 | APD3: 954 | APE3: 955 | APF3: 956 | APG3: 957 | APH3: 958 | API3: 959 | APJ3: 960 | APK3: 961 | APL3: 962 | APM3: 963 | APN3: 964 | APO3: 965 | APP3: 966 | APQ3: 967 | APR3: 968 | APS3: 969 | APT3: 970 | APU3: 971 | APV3: 972 | APW3: 973 | APX3: 974 | APY3: 975 | APZ3: 976 | AQA3: 977 | AQB3: 978 | AQC3: 979 | AQD3: 980 | AQE3: 981 | AQF3: 982 | AQG3: 983 | AQH3: 984 | AQI3: 985 | AQJ3: 986 | AQK3: 987 | AQL3: 988 | AQM3: 989 | AQN3: 990 | AQO3: 991 | AQP3: 992 | AQQ3: 993 | AQR3: 994 | AQS3: 995 | AQT3: 996 | AQU3: 997 | AQV3: 998 | AQW3: 999 | AQX3: 1000 | AQY3: 1001 | AQZ3: 1002 | ARA3: 1003 | ARB3: 1004 | ARC3: 1005 | ARD3: 1006 | ARE3: 1007 | ARF3: 1008 | ARG3: 1009 | ARH3: 1010 | ARI3: 1011 | ARJ3: 1012 | ARK3: 1013 | ARL3: 1014 | ARM3: 1015 | ARN3: 1016 | ARO3: 1017 | ARP3: 1018 | ARQ3: 1019 | ARR3: 1020 | ARS3: 1021 | ART3: 1022 | ARU3: 1023 | ARV3: 1024 | ARW3: 1025 | ARX3: 1026 | ARY3: 1027 | ARZ3: 1028 | ASA3: 1029 | ASB3: 1030 | ASC3: 1031 | ASD3: 1032 | ASE3: 1033 | ASF3: 1034 | ASG3: 1035 | ASH3: 1036 | ASI3: 1037 | ASJ3: 1038 | ASK3: 1039 | ASL3: 1040 | ASM3: 1041 | ASN3: 1042 | ASO3: 1043 | ASP3: 1044 | ASQ3: 1045 | ASR3: 1046 | ASS3: 1047 | AST3: 1048 | ASU3: 1049 | ASV3: 1050 | ASW3: 1051 | ASX3: 1052 | ASY3: 1053 | ASZ3: 1054 | ATA3: 1055 | ATB3: 1056 | ATC3: 1057 | ATD3: 1058 | ATE3: 1059 | ATF3: 1060 | ATG3: 1061 | ATH3: 1062 | ATI3: 1063 | ATJ3: 1064 | ATK3: 1065 | ATL3: 1066 | ATM3: 1067 | ATN3: 1068 | ATO3: 1069 | ATP3: 1070 | ATQ3: 1071 | ATR3: 1072 | ATS3: 1073 | ATT3: 1074 | ATU3: 1075 | ATV3: 1076 | ATW3: 1077 | ATX3: 1078 | ATY3: 1079 | ATZ3: 1080 | AUA3: 1081 | AUB3: 1082 | AUC3: 1083 | AUD3: 1084 | AUE3: 1085 | AUF3: 1086 | AUG3: 1087 | AUH3: 1088 | AUI3: 1089 | AUJ3: 1090 | AUK3: 1091 | AUL3: 1092 | AUM3: 1093 | AUN3: 1094 | AUO3: 1095 | AUP3: 1096 | AUQ3: 1097 | AUR3: 1098 | AUS3: 1099 | AUT3: 1100 | AUU3: 1101 | AUV3: 1102 | AUW3: 1103 | AUX3: 1104 | AUY3: 1105 | AUZ3: 1106 | AVA3: 1107 | AVB3: 1108 | AVC3: 1109 | AVD3: 1110 | AVE3: 1111 | AVF3: 1112 | AVG3: 1113 | AVH3: 1114 | AVI3: 1115 | AVJ3: 1116 | AVK3: 1117 | AVL3: 1118 | AVM3: 1119 | AVN3: 1120 | AVO3: 1121 | AVP3: 1122 | AVQ3: 1123 | AVR3: 1124 | AVS3: 1125 | AVT3: 1126 | AVU3: 1127 | AVV3: 1128 | AVW3: 1129 | AVX3: 1130 | AVY3: 1131 | AVZ3: 1132 | AWA3: 1133 | AWB3: 1134 | AWC3: 1135 | AWD3: 1136 | AWE3: 1137 | AWF3: 1138 | AWG3: 1139 | AWH3: 1140 | AWI3: 1141 | AWJ3: 1142 | AWK3: 1143 | AWL3: 1144 | AWM3: 1145 | AWN3: 1146 | AWO3: 1147 | AWP3: 1148 | AWQ3: 1149 | AWR3: 1150 | AWS3: 1151 | AWT3: 1152 | AWU3: 1153 | AWV3: 1154 | AWW3: 1155 | AWX3: 1156 | AWY3: 1157 | AWZ3: 1158 | AXA3: 1159 | AXB3: 1160 | AXC3: 1161 | AXD3: 1162 | AXE3: 1163 | AXF3: 1164 | AXG3: 1165 | AXH3: 1166 | AXI3: 1167 | AXJ3: 1168 | AXK3: 1169 | AXL3: 1170 | AXM3: 1171 | AXN3: 1172 | AXO3: 1173 | AXP3: 1174 | AXQ3: 1175 | AXR3: 1176 | AXS3: 1177 | AXT3: 1178 | AXU3: 1179 | AXV3: 1180 | AXW3: 1181 | AXX3: 1182 | AXY3: 1183 | AXZ3: 1184 | AYA3: 1185 | AYB3: 1186 | AYC3: 1187 | AYD3: 1188 | AYE3: 1189 | AYF3: 1190 | AYG3: 1191 | AYH3: 1192 | AYI3: 1193 | AYJ3: 1194 | AYK3: 1195 | AYL3: 1196 | AYM3: 1197 | AYN3: 1198 | AYO3: 1199 | AYP3: 1200 | AYQ3: 1201 | AYR3: 1202 | AYS3: 1203 | AYT3: 1204 | AYU3: 1205 | AYV3: 1206 | AYW3: 1207 | AYX3: 1208 | AYY3: 1209 | AYZ3: 1210 | AZA3: 1211 | AZB3: 1212 | AZC3: 1213 | AZD3: 1214 | AZE3: 1215 | AZF3: 1216 | AZG3: 1217 | AZH3: 1218 | AZI3: 1219 | AZJ3: 1220 | AZK3: 1221 | AZL3: 1222 | AZM3: 1223 | AZN3: 1224 | AZO3: 1225 | AZP3: 1226 | AZQ3: 1227 | AZR3: 1228 | AZS3: 1229 | AZT3: 1230 | AZU3: 1231 | AZV3: 1232 | AZW3: 1233 | AZX3: 1234 | AZY3: 1235 | AZZ3: 1236 | BAA3: 1237 | BAB3: 1238 | BAC3: 1239 | BAD3: 1240 | BAE3: 1241 | BAF3: 1242 | BAG3: 1243 | BAH3: 1244 | BAI3: 1245 | BAJ3: 1246 | BAK3: 1247 | BAL3: 1248 | BAM3: 1249 | BAN3: 1250 | BAO3: 1251 | BAP3: 1252 | BAQ3: 1253 | BAR3: 1254 | BAS3: 1255 | BAT3: 1256 | BAU3: 1257 | BAV3: 1258 | BAW3: 1259 | BAX3: 1260 | BAY3: 1261 | BAZ3: 1262 | BBA3: 1263 | BBB3: 1264 | BBC3: 1265 | BBD3: 1266 | BBE3: 1267 | BBF3: 1268 | BBG3: 1269 | BBH3: 1270 | BBI3: 1271 | BBJ3: 1272 | BBK3: 1273 | BBL3: 1274 | BBM3: 1275 | BBN3: 1276 | BBO3: 1277 | BBP3: 1278 | BBQ3: 1279 | BBR3: 1280 | BBS3: 1281 | BBT3: 1282 | BBU3: 1283 | BBV3: 1284 | BBW3: 1285 | BBX3: 1286 | BBY3: 1287 | BBZ3: 1288 | BCA3: 1289 | BCB3: 1290 | BCC3: 1291 | BCD3: 1292 | BCE3: 1293 | BCF3: 1294 | BCG3: 1295 | BCH3: 1296 | BCI3: 1297 | BCJ3: 1298 | BCK3: 1299 | BCL3: 1300 | BCM3: 1301 | BCN3: 1302 | BCO3: 1303 | BCP3: 1304 | BCQ3: 1305 | BCR3: 1306 | BCS3: 1307 | BCT3: 1308 | BCU3: 1309 | BCV3: 1310 | BCW3: 1311 | BCX3: 1312 | BCY3: 1313 | BCZ3: 1314 | BDA3: 1315 | BDB3: 1316 | BDC3: 1317 | BDD3: 1318 | BDE3: 1319 | BDF3: 1320 | BDG3: 1321 | BDH3: 1322 | BDI3: 1323 | BDJ3: 1324 | BDK3: 1325 | BDL3: 1326 | BDM3: 1327 | BDN3: 1328 | BDO3: 1329 | BDP3: 1330 | BDQ3: 1331 | BDR3: 1332 | BDS3: 1333 | BDT3: 1334 | BDU3: 1335 | BDV3: 1336 | BDW3: 1337 | BDX3: 1338 | BDY3: 1339 | BDZ3: 1340 | BEA3: 1341 | BEB3: 1342 | BEC3: 1343 | BED3: 1344 | BEE3: 1345 | BEF3: 1346 | BEG3: 1347 | BEH3: 1348 | BEI3: 1349 | BEJ3: 1350 | BEK3: 1351 | BEL3: 1352 | BEM3: 1353 | BEN3: 1354 | BEO3: 1355 | BEP3: 1356 | BEQ3: 1357 | BER3: 1358 | BES3: 1359 | BET3: 1360 | BEU3: 1361 | BEV3: 1362 | BEW3: 1363 | BEX3: 1364 | BEY3: 1365 | BEZ3: 1366 | BFA3: 1367 | BFB3: 1368 | BFC3: 1369 | BFD3: 1370 | BFE3: 1371 | BFF3: 1372 | BFG3: 1373 | BFH3: 1374 | BFI3: 1375 | BFJ3: 1376 | BFK3: 1377 | BFL3: 1378 | BFM3: 1379 | BFN3: 1380 | BFO3: 1381 | BFP3: 1382 | BFQ3: 1383 | BFR3: 1384 | BFS3: 1385 | BFT3: 1386 | BFU3: 1387 | BFV3: 1388 | BFW3: 1389 | BFX3: 1390 | BFY3: 1391 | BFZ3: 1392 | BGA3: 1393 | BGB3: 1394 | BGC3: 1395 | BGD3: 1396 | BGE3: 1397 | BGF3: 1398 | BGG3: 1399 | BGH3: 1400 | BGI3: 1401 | BGJ3: 1402 | BGK3: 1403 | BGL3: 1404 | BGM3: 1405 | BGN3: 1406 | BGO3: 1407 | BGP3: 1408 | BGQ3: 1409 | BGR3: 1410 | BGS3: 1411 | BGT3: 1412 | BGU3: 1413 | BGV3: 1414 | BGW3: 1415 | BGX3: 1416 | BGY3: 1417 | BGZ3: 1418 | BHA3: 1419 | BHB3: 1420 | BHC3: 1421 | BHD3: 1422 | BHE3: 1423 | BHF3: 1424 | BHG3: 1425 | BHH3: 1426 | BHI3: 1427 | BHJ3: 1428 | BHK3: 1429 | BHL3: 1430 | BHM3: 1431 | BHN3: 1432 | BHO3: 1433 | BHP3: 1434 | BHQ3: 1435 | BHR3: 1436 | BHS3: 1437 | BHT3: 1438 | BHU3: 1439 | BHV3: 1440
B4: 00:00:00 | C4: 0.011 | D4: 0.008 | E4: 0.06 | F4: 0.026 | G4: 0.073 | H4: 0.056 | K4: 1 | L4: =KEY!$E$8*Original!B4 -> 5.555555556 | M4: 0 | N4: 0.0101010101 | P4: 0.005291005291 | T4: 1 | U4: =TRANSPOSE('Average power consumption'!$C$3:$C$122)*L4 -> 0.2666666667 | V4: 1.644444444 | W4: 10.09444444 | X4: 11.33888889 | Y4: 11.40555556 | Z4: 11.33333333 | AA4: 10.87777778 | AB4: 10.68888889 | AC4: 10.30555556 | AD4: 9.605555556 | AE4: 8.844444444 | AF4: 8.111111111 | AG4: 7.566666667 | AH4: 6.855555556 | AI4: 5.944444444 | AJ4: 5.283333333 | AK4: 4.922222222 | AL4: 4.672222222 | AM4: 4.444444444 | AN4: 4.027777778 | AO4: 4.022222222 | AP4: 3.766666667 | AQ4: 3.483333333 | AR4: 3.255555556 | AS4: 3.255555556 | AT4: 3.211111111 | AU4: 3.016666667 | AV4: 2.888888889 | AW4: 2.877777778 | AX4: 2.638888889 | AY4: 2.294444444 | AZ4: 2.211111111 | BA4: 2.022222222 | BB4: 1.783333333 | BC4: 1.594444444 | BD4: 1.488888889 | BE4: 1.35 | BF4: 1.261111111 | BG4: 1.127777778 | BH4: 0.9944444444 | BI4: 0.9 | BJ4: 0.8888888889 | BK4: 0.8888888889 | BL4: 0.8888888889 | BM4: 0.8611111111 | BN4: 0.9055555556 | BO4: 0.8777777778 | BP4: 0.8111111111 | BQ4: 0.8111111111 | BR4: 0.7166666667 | BS4: 0.7166666667 | BT4: 0.7777777778 | BU4: 0.7166666667 | BV4: 0.6611111111 | BW4: 0.6888888889 | BX4: 0.75 | BY4: 0.7722222222 | BZ4: 0.7555555556 | CA4: 0.7444444444 | CB4: 0.8055555556 | CC4: 0.7833333333 | CD4: 0.8277777778 | CE4: 0.8333333333 | CF4: 0.7944444444 | CG4: 0.8055555556 | CH4: 0.8166666667 | CI4: 0.8166666667 | CJ4: 0.7388888889 | CK4: 0.6666666667 | CL4: 0.6944444444 | CM4: 0.7722222222 | CN4: 0.7444444444 | CO4: 0.7444444444 | CP4: 0.7222222222 | CQ4: 0.7833333333 | CR4: 0.8 | CS4: 0.7722222222 | CT4: 0.7333333333 | CU4: 0.7722222222 | CV4: 0.7277777778 | CW4: 0.6944444444 | CX4: 0.8277777778 | CY4: 0.8888888889 | CZ4: 0.8444444444 | DA4: 0.8166666667 | DB4: 0.7166666667 | DC4: 0.7777777778 | DD4: 0.6777777778 | DE4: 0.6722222222 | DF4: 0.6888888889 | DG4: 0.6166666667 | DH4: 0.6166666667 | DI4: 0.6611111111 | DJ4: 0.6944444444 | DK4: 0.8166666667 | DL4: 0.8777777778 | DM4: 0.8444444444 | DN4: 0.8722222222 | DO4: 0.8833333333 | DP4: 0.85 | DQ4: 0.8611111111 | DR4: 0.8333333333 | DS4: 0.8166666667 | DT4: 0.8 | DU4: 0.8333333333 | DV4: 0.8333333333 | DW4: 0.8444444444 | DX4: 0.8722222222 | DY4: 0.8833333333 | DZ4: 0.85 | EA4: 0.8611111111 | EB4: 0.8333333333 | EC4: 0.8166666667 | ED4: 0.8 | EE4: 0.8333333333 | EF4: 0.8333333333 | EG4: 0.8166666667 | EH4: 0.8 | EI4: 0.8333333333 | EJ4: 0.8333333333 | EM4: 0.2666666667 | EN4: 1.644444444 | EO4: 10.09444444 | EP4: 11.33888889 | EQ4: 11.40555556 | ER4: 11.33333333 | ES4: 10.87777778 | ET4: 10.68888889 | EU4: 10.30555556 | EV4: 9.605555556 | EW4: 8.844444444 | EX4: 8.111111111 | EY4: 7.566666667 | EZ4: 6.855555556 | FA4: 5.944444444 | FB4: 5.283333333 | FC4: 4.922222222 | FD4: 4.672222222 | FE4: 4.444444444 | FF4: 4.027777778 | FG4: 4.022222222 | FH4: 3.766666667 | FI4: 3.483333333 | FJ4: 3.255555556 | FK4: 3.255555556 | FL4: 3.211111111 | FM4: 3.016666667 | FN4: 2.888888889 | FO4: 2.877777778 | FP4: 2.638888889 | FQ4: 2.294444444 | FR4: 2.211111111 | FS4: 2.022222222 | FT4: 1.783333333 | FU4: 1.594444444 | FV4: 1.488888889 | FW4: 1.35 | FX4: 1.261111111 | FY4: 1.127777778 | FZ4: 0.9944444444 | GA4: 0.9 | GB4: 0.8888888889 | GC4: 0.8888888889 | GD4: 0.8888888889 | GE4: 0.8611111111 | GF4: 0.9055555556 | GG4: 0.8777777778 | GH4: 0.8111111111 | GI4: 0.8111111111 | GJ4: 0.7166666667 | GK4: 0.7166666667 | GL4: 0.7777777778 | GM4: 0.7166666667 | GN4: 0.6611111111 | GO4: 0.6888888889 | GP4: 0.75 | GQ4: 0.7722222222 | GR4: 0.7555555556 | GS4: 0.7444444444 | GT4: 0.8055555556 | GU4: 0.7833333333 | GV4: 0.8277777778 | GW4: 0.8333333333 | GX4: 0.7944444444 | GY4: 0.8055555556 | GZ4: 0.8166666667 | HA4: 0.8166666667 | HB4: 0.7388888889 | HC4: 0.6666666667 | HD4: 0.6944444444 | HE4: 0.7722222222 | HF4: 0.7444444444 | HG4: 0.7444444444 | HH4: 0.7222222222 | HI4: 0.7833333333 | HJ4: 0.8 | HK4: 0.7722222222 | HL4: 0.7333333333 | HM4: 0.7722222222 | HN4: 0.7277777778 | HO4: 0.6944444444 | HP4: 0.8277777778 | HQ4: 0.8888888889 | HR4: 0.8444444444 | HS4: 0.8166666667 | HT4: 0.7166666667 | HU4: 0.7777777778 | HV4: 0.6777777778 | HW4: 0.6722222222 | HX4: 0.6888888889 | HY4: 0.6166666667 | HZ4: 0.6166666667 | IA4: 0.6611111111 | IB4: 0.6944444444 | IC4: 0.8166666667 | ID4: 0.8777777778 | IE4: 0.8444444444 | IF4: 0.8722222222 | IG4: 0.8833333333 | IH4: 0.85 | II4: 0.8611111111 | IJ4: 0.8333333333 | IK4: 0.8166666667 | IL4: 0.8 | IM4: 0.8333333333 | IN4: 0.8333333333 | IO4: 0.8444444444 | IP4: 0.8722222222 | IQ4: 0.8833333333 | IR4: 0.85 | IS4: 0.8611111111 | IT4: 0.8333333333 | IU4: 0.8166666667 | IV4: 0.8 | IW4: 0.8333333333 | IX4: 0.8333333333 | IY4: 0.8166666667 | IZ4: 0.8 | JA4: 0.8333333333 | JB4: 0.8333333333
B5: 01:00:00 | C5: 0 | D5: 0 | E5: 0 | F5: 0.013 | G5: 0 | H5: 0 | K5: 2 | L5: =KEY!$E$8*Original!B5 -> 0 | M5: 0 | N5: 0.005050505051 | P5: 0.01058201058 | T5: 2 | U5: =TRANSPOSE('Average power consumption'!$C$3:$C$122)*L5 -> 0 | V5: 0 | W5: 0 | X5: 0 | Y5: 0 | Z5: 0 | AA5: 0 | AB5: 0 | AC5: 0 | AD5: 0 | AE5: 0 | AF5: 0 | AG5: 0 | AH5: 0 | AI5: 0 | AJ5: 0 | AK5: 0 | AL5: 0 | AM5: 0 | AN5: 0 | AO5: 0 | AP5: 0 | AQ5: 0 | AR5: 0 | AS5: 0 | AT5: 0 | AU5: 0 | AV5: 0 | AW5: 0 | AX5: 0 | AY5: 0 | AZ5: 0 | BA5: 0 | BB5: 0 | BC5: 0 | BD5: 0 | BE5: 0 | BF5: 0 | BG5: 0 | BH5: 0 | BI5: 0 | BJ5: 0 | BK5: 0 | BL5: 0 | BM5: 0 | BN5: 0 | BO5: 0 | BP5: 0 | BQ5: 0 | BR5: 0 | BS5: 0 | BT5: 0 | BU5: 0 | BV5: 0 | BW5: 0 | BX5: 0 | BY5: 0 | BZ5: 0 | CA5: 0 | CB5: 0 | CC5: 0 | CD5: 0 | CE5: 0 | CF5: 0 | CG5: 0 | CH5: 0 | CI5: 0 | CJ5: 0 | CK5: 0 | CL5: 0 | CM5: 0 | CN5: 0 | CO5: 0 | CP5: 0 | CQ5: 0 | CR5: 0 | CS5: 0 | CT5: 0 | CU5: 0 | CV5: 0 | CW5: 0 | CX5: 0 | CY5: 0 | CZ5: 0 | DA5: 0 | DB5: 0 | DC5: 0 | DD5: 0 | DE5: 0 | DF5: 0 | DG5: 0 | DH5: 0 | DI5: 0 | DJ5: 0 | DK5: 0 | DL5: 0 | DM5: 0 | DN5: 0 | DO5: 0 | DP5: 0 | DQ5: 0 | DR5: 0 | DS5: 0 | DT5: 0 | DU5: 0 | DV5: 0 | DW5: 0 | DX5: 0 | DY5: 0 | DZ5: 0 | EA5: 0 | EB5: 0 | EC5: 0 | ED5: 0 | EE5: 0 | EF5: 0 | EG5: 0 | EH5: 0 | EI5: 0 | EJ5: 0 | EN5: 0 | EO5: 0 | EP5: 0 | EQ5: 0 | ER5: 0 | ES5: 0 | ET5: 0 | EU5: 0 | EV5: 0 | EW5: 0 | EX5: 0 | EY5: 0 | EZ5: 0 | FA5: 0 | FB5: 0 | FC5: 0 | FD5: 0 | FE5: 0 | FF5: 0 | FG5: 0 | FH5: 0 | FI5: 0 | FJ5: 0 | FK5: 0 | FL5: 0 | FM5: 0 | FN5: 0 | FO5: 0 | FP5: 0 | FQ5: 0 | FR5: 0 | FS5: 0 | FT5: 0 | FU5: 0 | FV5: 0 | FW5: 0 | FX5: 0 | FY5: 0 | FZ5: 0 | GA5: 0 | GB5: 0 | GC5: 0 | GD5: 0 | GE5: 0 | GF5: 0 | GG5: 0 | GH5: 0 | GI5: 0 | GJ5: 0 | GK5: 0 | GL5: 0 | GM5: 0 | GN5: 0 | GO5: 0 | GP5: 0 | GQ5: 0 | GR5: 0 | GS5: 0 | GT5: 0 | GU5: 0 | GV5: 0 | GW5: 0 | GX5: 0 | GY5: 0 | GZ5: 0 | HA5: 0 | HB5: 0 | HC5: 0 | HD5: 0 | HE5: 0 | HF5: 0 | HG5: 0 | HH5: 0 | HI5: 0 | HJ5: 0 | HK5: 0 | HL5: 0 | HM5: 0 | HN5: 0 | HO5: 0 | HP5: 0 | HQ5: 0 | HR5: 0 | HS5: 0 | HT5: 0 | HU5: 0 | HV5: 0 | HW5: 0 | HX5: 0 | HY5: 0 | HZ5: 0 | IA5: 0 | IB5: 0 | IC5: 0 | ID5: 0 | IE5: 0 | IF5: 0 | IG5: 0 | IH5: 0 | II5: 0 | IJ5: 0 | IK5: 0 | IL5: 0 | IM5: 0 | IN5: 0 | IO5: 0 | IP5: 0 | IQ5: 0 | IR5: 0 | IS5: 0 | IT5: 0 | IU5: 0 | IV5: 0 | IW5: 0 | IX5: 0 | IY5: 0 | IZ5: 0 | JA5: 0 | JB5: 0 | JC5: 0
B6: 02:00:00 | C6: 0 | D6: 0 | E6: 0 | F6: 0 | G6: 0 | H6: 0 | K6: 3 | L6: =KEY!$E$8*Original!B6 -> 0 | M6: 0 | N6: 0.005050505051 | P6: 0 | T6: 3 | U6: =TRANSPOSE('Average power consumption'!$C$3:$C$122)*L6 -> 0 | V6: 0 | W6: 0 | X6: 0 | Y6: 0 | Z6: 0 | AA6: 0 | AB6: 0 | AC6: 0 | AD6: 0 | AE6: 0 | AF6: 0 | AG6: 0 | AH6: 0 | AI6: 0 | AJ6: 0 | AK6: 0 | AL6: 0 | AM6: 0 | AN6: 0 | AO6: 0 | AP6: 0 | AQ6: 0 | AR6: 0 | AS6: 0 | AT6: 0 | AU6: 0 | AV6: 0 | AW6: 0 | AX6: 0 | AY6: 0 | AZ6: 0 | BA6: 0 | BB6: 0 | BC6: 0 | BD6: 0 | BE6: 0 | BF6: 0 | BG6: 0 | BH6: 0 | BI6: 0 | BJ6: 0 | BK6: 0 | BL6: 0 | BM6: 0 | BN6: 0 | BO6: 0 | BP6: 0 | BQ6: 0 | BR6: 0 | BS6: 0 | BT6: 0 | BU6: 0 | BV6: 0 | BW6: 0 | BX6: 0 | BY6: 0 | BZ6: 0 | CA6: 0 | CB6: 0 | CC6: 0 | CD6: 0 | CE6: 0 | CF6: 0 | CG6: 0 | CH6: 0 | CI6: 0 | CJ6: 0 | CK6: 0 | CL6: 0 | CM6: 0 | CN6: 0 | CO6: 0 | CP6: 0 | CQ6: 0 | CR6: 0 | CS6: 0 | CT6: 0 | CU6: 0 | CV6: 0 | CW6: 0 | CX6: 0 | CY6: 0 | CZ6: 0 | DA6: 0 | DB6: 0 | DC6: 0 | DD6: 0 | DE6: 0 | DF6: 0 | DG6: 0 | DH6: 0 | DI6: 0 | DJ6: 0 | DK6: 0 | DL6: 0 | DM6: 0 | DN6: 0 | DO6: 0 | DP6: 0 | DQ6: 0 | DR6: 0 | DS6: 0 | DT6: 0 | DU6: 0 | DV6: 0 | DW6: 0 | DX6: 0 | DY6: 0 | DZ6: 0 | EA6: 0 | EB6: 0 | EC6: 0 | ED6: 0 | EE6: 0 | EF6: 0 | EG6: 0 | EH6: 0 | EI6: 0 | EJ6: 0 | EO6: 0 | EP6: 0 | EQ6: 0 | ER6: 0 | ES6: 0 | ET6: 0 | EU6: 0 | EV6: 0 | EW6: 0 | EX6: 0 | EY6: 0 | EZ6: 0 | FA6: 0 | FB6: 0 | FC6: 0 | FD6: 0 | FE6: 0 | FF6: 0 | FG6: 0 | FH6: 0 | FI6: 0 | FJ6: 0 | FK6: 0 | FL6: 0 | FM6: 0 | FN6: 0 | FO6: 0 | FP6: 0 | FQ6: 0 | FR6: 0 | FS6: 0 | FT6: 0 | FU6: 0 | FV6: 0 | FW6: 0 | FX6: 0 | FY6: 0 | FZ6: 0 | GA6: 0 | GB6: 0 | GC6: 0 | GD6: 0 | GE6: 0 | GF6: 0 | GG6: 0 | GH6: 0 | GI6: 0 | GJ6: 0 | GK6: 0 | GL6: 0 | GM6: 0 | GN6: 0 | GO6: 0 | GP6: 0 | GQ6: 0 | GR6: 0 | GS6: 0 | GT6: 0 | GU6: 0 | GV6: 0 | GW6: 0 | GX6: 0 | GY6: 0 | GZ6: 0 | HA6: 0 | HB6: 0 | HC6: 0 | HD6: 0 | HE6: 0 | HF6: 0 | HG6: 0 | HH6: 0 | HI6: 0 | HJ6: 0 | HK6: 0 | HL6: 0 | HM6: 0 | HN6: 0 | HO6: 0 | HP6: 0 | HQ6: 0 | HR6: 0 | HS6: 0 | HT6: 0 | HU6: 0 | HV6: 0 | HW6: 0 | HX6: 0 | HY6: 0 | HZ6: 0 | IA6: 0 | IB6: 0 | IC6: 0 | ID6: 0 | IE6: 0 | IF6: 0 | IG6: 0 | IH6: 0 | II6: 0 | IJ6: 0 | IK6: 0 | IL6: 0 | IM6: 0 | IN6: 0 | IO6: 0 | IP6: 0 | IQ6: 0 | IR6: 0 | IS6: 0 | IT6: 0 | IU6: 0 | IV6: 0 | IW6: 0 | IX6: 0 | IY6: 0 | IZ6: 0 | JA6: 0 | JB6: 0 | JC6: 0 | JD6: 0
B7: 03:00:00 | C7: 0 | D7: 0 | E7: 0 | F7: 0.013 | G7: 0.004 | H7: 0 | K7: 4 | L7: =KEY!$E$8*Original!B7 -> 0 | M7: 0 | N7: 0 | P7: 0.005291005291 | T7: 4 | U7: =TRANSPOSE('Average power consumption'!$C$3:$C$122)*L7 -> 0 | V7: 0 | W7: 0 | X7: 0 | Y7: 0 | Z7: 0 | AA7: 0 | AB7: 0 | AC7: 0 | AD7: 0 | AE7: 0 | AF7: 0 | AG7: 0 | AH7: 0 | AI7: 0 | AJ7: 0 | AK7: 0 | AL7: 0 | AM7: 0 | AN7: 0 | AO7: 0 | AP7: 0 | AQ7: 0 | AR7: 0 | AS7: 0 | AT7: 0 | AU7: 0 | AV7: 0 | AW7: 0 | AX7: 0 | AY7: 0 | AZ7: 0 | BA7: 0 | BB7: 0 | BC7: 0 | BD7: 0 | BE7: 0 | BF7: 0 | BG7: 0 | BH7: 0 | BI7: 0 | BJ7: 0 | BK7: 0 | BL7: 0 | BM7: 0 | BN7: 0 | BO7: 0 | BP7: 0 | BQ7: 0 | BR7: 0 | BS7: 0 | BT7: 0 | BU7: 0 | BV7: 0 | BW7: 0 | BX7: 0 | BY7: 0 | BZ7: 0 | CA7: 0 | CB7: 0 | CC7: 0 | CD7: 0 | CE7: 0 | CF7: 0 | CG7: 0 | CH7: 0 | CI7: 0 | CJ7: 0 | CK7: 0 | CL7: 0 | CM7: 0 | CN7: 0 | CO7: 0 | CP7: 0 | CQ7: 0 | CR7: 0 | CS7: 0 | CT7: 0 | CU7: 0 | CV7: 0 | CW7: 0 | CX7: 0 | CY7: 0 | CZ7: 0 | DA7: 0 | DB7: 0 | DC7: 0 | DD7: 0 | DE7: 0 | DF7: 0 | DG7: 0 | DH7: 0 | DI7: 0 | DJ7: 0 | DK7: 0 | DL7: 0 | DM7: 0 | DN7: 0 | DO7: 0 | DP7: 0 | DQ7: 0 | DR7: 0 | DS7: 0 | DT7: 0 | DU7: 0 | DV7: 0 | DW7: 0 | DX7: 0 | DY7: 0 | DZ7: 0 | EA7: 0 | EB7: 0 | EC7: 0 | ED7: 0 | EE7: 0 | EF7: 0 | EG7: 0 | EH7: 0 | EI7: 0 | EJ7: 0 | EP7: 0 | EQ7: 0 | ER7: 0 | ES7: 0 | ET7: 0 | EU7: 0 | EV7: 0 | EW7: 0 | EX7: 0 | EY7: 0 | EZ7: 0 | FA7: 0 | FB7: 0 | FC7: 0 | FD7: 0 | FE7: 0 | FF7: 0 | FG7: 0 | FH7: 0 | FI7: 0 | FJ7: 0 | FK7: 0 | FL7: 0 | FM7: 0 | FN7: 0 | FO7: 0 | FP7: 0 | FQ7: 0 | FR7: 0 | FS7: 0 | FT7: 0 | FU7: 0 | FV7: 0 | FW7: 0 | FX7: 0 | FY7: 0 | FZ7: 0 | GA7: 0 | GB7: 0 | GC7: 0 | GD7: 0 | GE7: 0 | GF7: 0 | GG7: 0 | GH7: 0 | GI7: 0 | GJ7: 0 | GK7: 0 | GL7: 0 | GM7: 0 | GN7: 0 | GO7: 0 | GP7: 0 | GQ7: 0 | GR7: 0 | GS7: 0 | GT7: 0 | GU7: 0 | GV7: 0 | GW7: 0 | GX7: 0 | GY7: 0 | GZ7: 0 | HA7: 0 | HB7: 0 | HC7: 0 | HD7: 0 | HE7: 0 | HF7: 0 | HG7: 0 | HH7: 0 | HI7: 0 | HJ7: 0 | HK7: 0 | HL7: 0 | HM7: 0 | HN7: 0 | HO7: 0 | HP7: 0 | HQ7: 0 | HR7: 0 | HS7: 0 | HT7: 0 | HU7: 0 | HV7: 0 | HW7: 0 | HX7: 0 | HY7: 0 | HZ7: 0 | IA7: 0 | IB7: 0 | IC7: 0 | ID7: 0 | IE7: 0 | IF7: 0 | IG7: 0 | IH7: 0 | II7: 0 | IJ7: 0 | IK7: 0 | IL7: 0 | IM7: 0 | IN7: 0 | IO7: 0 | IP7: 0 | IQ7: 0 | IR7: 0 | IS7: 0 | IT7: 0 | IU7: 0 | IV7: 0 | IW7: 0 | IX7: 0 | IY7: 0 | IZ7: 0 | JA7: 0 | JB7: 0 | JC7: 0 | JD7: 0 | JE7: 0
B8: 04:00:00 | C8: 0 | D8: 0 | E8: 0 | F8: 0 | G8: 0 | H8: 0 | K8: 5 | L8: =KEY!$E$8*Original!B8 -> 0 | M8: 0 | N8: 0.005050505051 | P8: 0 | T8: 5 | U8: =TRANSPOSE('Average power consumption'!$C$3:$C$122)*L8 -> 0 | V8: 0 | W8: 0 | X8: 0 | Y8: 0 | Z8: 0 | AA8: 0 | AB8: 0 | AC8: 0 | AD8: 0 | AE8: 0 | AF8: 0 | AG8: 0 | AH8: 0 | AI8: 0 | AJ8: 0 | AK8: 0 | AL8: 0 | AM8: 0 | AN8: 0 | AO8: 0 | AP8: 0 | AQ8: 0 | AR8: 0 | AS8: 0 | AT8: 0 | AU8: 0 | AV8: 0 | AW8: 0 | AX8: 0 | AY8: 0 | AZ8: 0 | BA8: 0 | BB8: 0 | BC8: 0 | BD8: 0 | BE8: 0 | BF8: 0 | BG8: 0 | BH8: 0 | BI8: 0 | BJ8: 0 | BK8: 0 | BL8: 0 | BM8: 0 | BN8: 0 | BO8: 0 | BP8: 0 | BQ8: 0 | BR8: 0 | BS8: 0 | BT8: 0 | BU8: 0 | BV8: 0 | BW8: 0 | BX8: 0 | BY8: 0 | BZ8: 0 | CA8: 0 | CB8: 0 | CC8: 0 | CD8: 0 | CE8: 0 | CF8: 0 | CG8: 0 | CH8: 0 | CI8: 0 | CJ8: 0 | CK8: 0 | CL8: 0 | CM8: 0 | CN8: 0 | CO8: 0 | CP8: 0 | CQ8: 0 | CR8: 0 | CS8: 0 | CT8: 0 | CU8: 0 | CV8: 0 | CW8: 0 | CX8: 0 | CY8: 0 | CZ8: 0 | DA8: 0 | DB8: 0 | DC8: 0 | DD8: 0 | DE8: 0 | DF8: 0 | DG8: 0 | DH8: 0 | DI8: 0 | DJ8: 0 | DK8: 0 | DL8: 0 | DM8: 0 | DN8: 0 | DO8: 0 | DP8: 0 | DQ8: 0 | DR8: 0 | DS8: 0 | DT8: 0 | DU8: 0 | DV8: 0 | DW8: 0 | DX8: 0 | DY8: 0 | DZ8: 0 | EA8: 0 | EB8: 0 | EC8: 0 | ED8: 0 | EE8: 0 | EF8: 0 | EG8: 0 | EH8: 0 | EI8: 0 | EJ8: 0 | EQ8: 0 | ER8: 0 | ES8: 0 | ET8: 0 | EU8: 0 | EV8: 0 | EW8: 0 | EX8: 0 | EY8: 0 | EZ8: 0 | FA8: 0 | FB8: 0 | FC8: 0 | FD8: 0 | FE8: 0 | FF8: 0 | FG8: 0 | FH8: 0 | FI8: 0 | FJ8: 0 | FK8: 0 | FL8: 0 | FM8: 0 | FN8: 0 | FO8: 0 | FP8: 0 | FQ8: 0 | FR8: 0 | FS8: 0 | FT8: 0 | FU8: 0 | FV8: 0 | FW8: 0 | FX8: 0 | FY8: 0 | FZ8: 0 | GA8: 0 | GB8: 0 | GC8: 0 | GD8: 0 | GE8: 0 | GF8: 0 | GG8: 0 | GH8: 0 | GI8: 0 | GJ8: 0 | GK8: 0 | GL8: 0 | GM8: 0 | GN8: 0 | GO8: 0 | GP8: 0 | GQ8: 0 | GR8: 0 | GS8: 0 | GT8: 0 | GU8: 0 | GV8: 0 | GW8: 0 | GX8: 0 | GY8: 0 | GZ8: 0 | HA8: 0 | HB8: 0 | HC8: 0 | HD8: 0 | HE8: 0 | HF8: 0 | HG8: 0 | HH8: 0 | HI8: 0 | HJ8: 0 | HK8: 0 | HL8: 0 | HM8: 0 | HN8: 0 | HO8: 0 | HP8: 0 | HQ8: 0 | HR8: 0 | HS8: 0 | HT8: 0 | HU8: 0 | HV8: 0 | HW8: 0 | HX8: 0 | HY8: 0 | HZ8: 0 | IA8: 0 | IB8: 0 | IC8: 0 | ID8: 0 | IE8: 0 | IF8: 0 | IG8: 0 | IH8: 0 | II8: 0 | IJ8: 0 | IK8: 0 | IL8: 0 | IM8: 0 | IN8: 0 | IO8: 0 | IP8: 0 | IQ8: 0 | IR8: 0 | IS8: 0 | IT8: 0 | IU8: 0 | IV8: 0 | IW8: 0 | IX8: 0 | IY8: 0 | IZ8: 0 | JA8: 0 | JB8: 0 | JC8: 0 | JD8: 0 | JE8: 0 | JF8: 0
B9: 05:00:00 | C9: 0 | D9: 0.008 | E9: 0.007 | F9: 0.026 | G9: 0 | H9: 0 | K9: 6 | L9: =KEY!$E$8*Original!B9 -> 5.555555556 | M9: 0 | N9: 0 | P9: 0 | T9: 6 | U9: =TRANSPOSE('Average power consumption'!$C$3:$C$122)*L9 -> 0.2666666667 | V9: 1.644444444 | W9: 10.09444444 | X9: 11.33888889 | Y9: 11.40555556 | Z9: 11.33333333 | AA9: 10.87777778 | AB9: 10.68888889 | AC9: 10.30555556 | AD9: 9.605555556 | AE9: 8.844444444 | AF9: 8.111111111 | AG9: 7.566666667 | AH9: 6.855555556 | AI9: 5.944444444 | AJ9: 5.283333333 | AK9: 4.922222222 | AL9: 4.672222222 | AM9: 4.444444444 | AN9: 4.027777778 | AO9: 4.022222222 | AP9: 3.766666667 | AQ9: 3.483333333 | AR9: 3.255555556 | AS9: 3.255555556 | AT9: 3.211111111 | AU9: 3.016666667 | AV9: 2.888888889 | AW9: 2.877777778 | AX9: 2.638888889 | AY9: 2.294444444 | AZ9: 2.211111111 | BA9: 2.022222222 | BB9: 1.783333333 | BC9: 1.594444444 | BD9: 1.488888889 | BE9: 1.35 | BF9: 1.261111111 | BG9: 1.127777778 | BH9: 0.9944444444 | BI9: 0.9 | BJ9: 0.8888888889 | BK9: 0.8888888889 | BL9: 0.8888888889 | BM9: 0.8611111111 | BN9: 0.9055555556 | BO9: 0.8777777778 | BP9: 0.8111111111 | BQ9: 0.8111111111 | BR9: 0.7166666667 | BS9: 0.7166666667 | BT9: 0.7777777778 | BU9: 0.7166666667 | BV9: 0.6611111111 | BW9: 0.6888888889 | BX9: 0.75 | BY9: 0.7722222222 | BZ9: 0.7555555556 | CA9: 0.7444444444 | CB9: 0.8055555556 | CC9: 0.7833333333 | CD9: 0.8277777778 | CE9: 0.8333333333 | CF9: 0.7944444444 | CG9: 0.8055555556 | CH9: 0.8166666667 | CI9: 0.8166666667 | CJ9: 0.7388888889 | CK9: 0.6666666667 | CL9: 0.6944444444 | CM9: 0.7722222222 | CN9: 0.7444444444 | CO9: 0.7444444444 | CP9: 0.7222222222 | CQ9: 0.7833333333 | CR9: 0.8 | CS9: 0.7722222222 | CT9: 0.7333333333 | CU9: 0.7722222222 | CV9: 0.7277777778 | CW9: 0.6944444444 | CX9: 0.8277777778 | CY9: 0.8888888889 | CZ9: 0.8444444444 | DA9: 0.8166666667 | DB9: 0.7166666667 | DC9: 0.7777777778 | DD9: 0.6777777778 | DE9: 0.6722222222 | DF9: 0.6888888889 | DG9: 0.6166666667 | DH9: 0.6166666667 | DI9: 0.6611111111 | DJ9: 0.6944444444 | DK9: 0.8166666667 | DL9: 0.8777777778 | DM9: 0.8444444444 | DN9: 0.8722222222 | DO9: 0.8833333333 | DP9: 0.85 | DQ9: 0.8611111111 | DR9: 0.8333333333 | DS9: 0.8166666667 | DT9: 0.8 | DU9: 0.8333333333 | DV9: 0.8333333333 | DW9: 0.8444444444 | DX9: 0.8722222222 | DY9: 0.8833333333 | DZ9: 0.85 | EA9: 0.8611111111 | EB9: 0.8333333333 | EC9: 0.8166666667 | ED9: 0.8 | EE9: 0.8333333333 | EF9: 0.8333333333 | EG9: 0.8166666667 | EH9: 0.8 | EI9: 0.8333333333 | EJ9: 0.8333333333 | ER9: 0.2666666667 | ES9: 1.644444444 | ET9: 10.09444444 | EU9: 11.33888889 | EV9: 11.40555556 | EW9: 11.33333333 | EX9: 10.87777778 | EY9: 10.68888889 | EZ9: 10.30555556 | FA9: 9.605555556 | FB9: 8.844444444 | FC9: 8.111111111 | FD9: 7.566666667 | FE9: 6.855555556 | FF9: 5.944444444 | FG9: 5.283333333 | FH9: 4.922222222 | FI9: 4.672222222 | FJ9: 4.444444444 | FK9: 4.027777778 | FL9: 4.022222222 | FM9: 3.766666667 | FN9: 3.483333333 | FO9: 3.255555556 | FP9: 3.255555556 | FQ9: 3.211111111 | FR9: 3.016666667 | FS9: 2.888888889 | FT9: 2.877777778 | FU9: 2.638888889 | FV9: 2.294444444 | FW9: 2.211111111 | FX9: 2.022222222 | FY9: 1.783333333 | FZ9: 1.594444444 | GA9: 1.488888889 | GB9: 1.35 | GC9: 1.261111111 | GD9: 1.127777778 | GE9: 0.9944444444 | GF9: 0.9 | GG9: 0.8888888889 | GH9: 0.8888888889 | GI9: 0.8888888889 | GJ9: 0.8611111111 | GK9: 0.9055555556 | GL9: 0.8777777778 | GM9: 0.8111111111 | GN9: 0.8111111111 | GO9: 0.7166666667 | GP9: 0.7166666667 | GQ9: 0.7777777778 | GR9: 0.7166666667 | GS9: 0.6611111111 | GT9: 0.6888888889 | GU9: 0.75 | GV9: 0.7722222222 | GW9: 0.7555555556 | GX9: 0.7444444444 | GY9: 0.8055555556 | GZ9: 0.7833333333 | HA9: 0.8277777778 | HB9: 0.8333333333 | HC9: 0.7944444444 | HD9: 0.8055555556 | HE9: 0.8166666667 | HF9: 0.8166666667 | HG9: 0.7388888889 | HH9: 0.6666666667 | HI9: 0.6944444444 | HJ9: 0.7722222222 | HK9: 0.7444444444 | HL9: 0.7444444444 | HM9: 0.7222222222 | HN9: 0.7833333333 | HO9: 0.8 | HP9: 0.7722222222 | HQ9: 0.7333333333 | HR9: 0.7722222222 | HS9: 0.7277777778 | HT9: 0.6944444444 | HU9: 0.8277777778 | HV9: 0.8888888889 | HW9: 0.8444444444 | HX9: 0.8166666667 | HY9: 0.7166666667 | HZ9: 0.7777777778 | IA9: 0.6777777778 | IB9: 0.6722222222 | IC9: 0.6888888889 | ID9: 0.6166666667 | IE9: 0.6166666667 | IF9: 0.6611111111 | IG9: 0.6944444444 | IH9: 0.8166666667 | II9: 0.8777777778 | IJ9: 0.8444444444 | IK9: 0.8722222222 | IL9: 0.8833333333 | IM9: 0.85 | IN9: 0.8611111111 | IO9: 0.8333333333 | IP9: 0.8166666667 | IQ9: 0.8 | IR9: 0.8333333333 | IS9: 0.8333333333 | IT9: 0.8444444444 | IU9: 0.8722222222 | IV9: 0.8833333333 | IW9: 0.85 | IX9: 0.8611111111 | IY9: 0.8333333333 | IZ9: 0.8166666667 | JA9: 0.8 | JB9: 0.8333333333 | JC9: 0.8333333333 | JD9: 0.8166666667 | JE9: 0.8 | JF9: 0.8333333333 | JG9: 0.8333333333
B10: 06:00:00 | C10: 0.035 | D10: 0 | E10: 0.013 | F10: 0 | G10: 0.004 | H10: 0 | K10: 7 | L10: =KEY!$E$8*Original!B10 -> 0 | M10: 0 | N10: 0 | P10: 0 | T10: 7 | U10: =TRANSPOSE('Average power consumption'!$C$3:$C$122)*L10 -> 0 | V10: 0 | W10: 0 | X10: 0 | Y10: 0 | Z10: 0 | AA10: 0 | AB10: 0 | AC10: 0 | AD10: 0 | AE10: 0 | AF10: 0 | AG10: 0 | AH10: 0 | AI10: 0 | AJ10: 0 | AK10: 0 | AL10: 0 | AM10: 0 | AN10: 0 | AO10: 0 | AP10: 0 | AQ10: 0 | AR10: 0 | AS10: 0 | AT10: 0 | AU10: 0 | AV10: 0 | AW10: 0 | AX10: 0 | AY10: 0 | AZ10: 0 | BA10: 0 | BB10: 0 | BC10: 0 | BD10: 0 | BE10: 0 | BF10: 0 | BG10: 0 | BH10: 0 | BI10: 0 | BJ10: 0 | BK10: 0 | BL10: 0 | BM10: 0 | BN10: 0 | BO10: 0 | BP10: 0 | BQ10: 0 | BR10: 0 | BS10: 0 | BT10: 0 | BU10: 0 | BV10: 0 | BW10: 0 | BX10: 0 | BY10: 0 | BZ10: 0 | CA10: 0 | CB10: 0 | CC10: 0 | CD10: 0 | CE10: 0 | CF10: 0 | CG10: 0 | CH10: 0 | CI10: 0 | CJ10: 0 | CK10: 0 | CL10: 0 | CM10: 0 | CN10: 0 | CO10: 0 | CP10: 0 | CQ10: 0 | CR10: 0 | CS10: 0 | CT10: 0 | CU10: 0 | CV10: 0 | CW10: 0 | CX10: 0 | CY10: 0 | CZ10: 0 | DA10: 0 | DB10: 0 | DC10: 0 | DD10: 0 | DE10: 0 | DF10: 0 | DG10: 0 | DH10: 0 | DI10: 0 | DJ10: 0 | DK10: 0 | DL10: 0 | DM10: 0 | DN10: 0 | DO10: 0 | DP10: 0 | DQ10: 0 | DR10: 0 | DS10: 0 | DT10: 0 | DU10: 0 | DV10: 0 | DW10: 0 | DX10: 0 | DY10: 0 | DZ10: 0 | EA10: 0 | EB10: 0 | EC10: 0 | ED10: 0 | EE10: 0 | EF10: 0 | EG10: 0 | EH10: 0 | EI10: 0 | EJ10: 0 | ES10: 0 | ET10: 0 | EU10: 0 | EV10: 0 | EW10: 0 | EX10: 0 | EY10: 0 | EZ10: 0 | FA10: 0 | FB10: 0 | FC10: 0 | FD10: 0 | FE10: 0 | FF10: 0 | FG10: 0 | FH10: 0 | FI10: 0 | FJ10: 0 | FK10: 0 | FL10: 0 | FM10: 0 | FN10: 0 | FO10: 0 | FP10: 0 | FQ10: 0 | FR10: 0 | FS10: 0 | FT10: 0 | FU10: 0 | FV10: 0 | FW10: 0 | FX10: 0 | FY10: 0 | FZ10: 0 | GA10: 0 | GB10: 0 | GC10: 0 | GD10: 0 | GE10: 0 | GF10: 0 | GG10: 0 | GH10: 0 | GI10: 0 | GJ10: 0 | GK10: 0 | GL10: 0 | GM10: 0 | GN10: 0 | GO10: 0 | GP10: 0 | GQ10: 0 | GR10: 0 | GS10: 0 | GT10: 0 | GU10: 0 | GV10: 0 | GW10: 0 | GX10: 0 | GY10: 0 | GZ10: 0 | HA10: 0 | HB10: 0 | HC10: 0 | HD10: 0 | HE10: 0 | HF10: 0 | HG10: 0 | HH10: 0 | HI10: 0 | HJ10: 0 | HK10: 0 | HL10: 0 | HM10: 0 | HN10: 0 | HO10: 0 | HP10: 0 | HQ10: 0 | HR10: 0 | HS10: 0 | HT10: 0 | HU10: 0 | HV10: 0 | HW10: 0 | HX10: 0 | HY10: 0 | HZ10: 0 | IA10: 0 | IB10: 0 | IC10: 0 | ID10: 0 | IE10: 0 | IF10: 0 | IG10: 0 | IH10: 0 | II10: 0 | IJ10: 0 | IK10: 0 | IL10: 0 | IM10: 0 | IN10: 0 | IO10: 0 | IP10: 0 | IQ10: 0 | IR10: 0 | IS10: 0 | IT10: 0 | IU10: 0 | IV10: 0 | IW10: 0 | IX10: 0 | IY10: 0 | IZ10: 0 | JA10: 0 | JB10: 0 | JC10: 0 | JD10: 0 | JE10: 0 | JF10: 0 | JG10: 0 | JH10: 0
B11: 07:00:00 | C11: 0.06 | D11: 0.031 | E11: 0.026 | F11: 0 | G11: 0.021 | H11: 0 | K11: 8 | L11: =KEY!$E$8*Original!B11 -> 0 | M11: 0 | N11: 0 | P11: 0 | T11: 8 | U11: =TRANSPOSE('Average power consumption'!$C$3:$C$122)*L11 -> 0 | V11: 0 | W11: 0 | X11: 0 | Y11: 0 | Z11: 0 | AA11: 0 | AB11: 0 | AC11: 0 | AD11: 0 | AE11: 0 | AF11: 0 | AG11: 0 | AH11: 0 | AI11: 0 | AJ11: 0 | AK11: 0 | AL11: 0 | AM11: 0 | AN11: 0 | AO11: 0 | AP11: 0 | AQ11: 0 | AR11: 0 | AS11: 0 | AT11: 0 | AU11: 0 | AV11: 0 | AW11: 0 | AX11: 0 | AY11: 0 | AZ11: 0 | BA11: 0 | BB11: 0 | BC11: 0 | BD11: 0 | BE11: 0 | BF11: 0 | BG11: 0 | BH11: 0 | BI11: 0 | BJ11: 0 | BK11: 0 | BL11: 0 | BM11: 0 | BN11: 0 | BO11: 0 | BP11: 0 | BQ11: 0 | BR11: 0 | BS11: 0 | BT11: 0 | BU11: 0 | BV11: 0 | BW11: 0 | BX11: 0 | BY11: 0 | BZ11: 0 | CA11: 0 | CB11: 0 | CC11: 0 | CD11: 0 | CE11: 0 | CF11: 0 | CG11: 0 | CH11: 0 | CI11: 0 | CJ11: 0 | CK11: 0 | CL11: 0 | CM11: 0 | CN11: 0 | CO11: 0 | CP11: 0 | CQ11: 0 | CR11: 0 | CS11: 0 | CT11: 0 | CU11: 0 | CV11: 0 | CW11: 0 | CX11: 0 | CY11: 0 | CZ11: 0 | DA11: 0 | DB11: 0 | DC11: 0 | DD11: 0 | DE11: 0 | DF11: 0 | DG11: 0 | DH11: 0 | DI11: 0 | DJ11: 0 | DK11: 0 | DL11: 0 | DM11: 0 | DN11: 0 | DO11: 0 | DP11: 0 | DQ11: 0 | DR11: 0 | DS11: 0 | DT11: 0 | DU11: 0 | DV11: 0 | DW11: 0 | DX11: 0 | DY11: 0 | DZ11: 0 | EA11: 0 | EB11: 0 | EC11: 0 | ED11: 0 | EE11: 0 | EF11: 0 | EG11: 0 | EH11: 0 | EI11: 0 | EJ11: 0 | ET11: 0 | EU11: 0 | EV11: 0 | EW11: 0 | EX11: 0 | EY11: 0 | EZ11: 0 | FA11: 0 | FB11: 0 | FC11: 0 | FD11: 0 | FE11: 0 | FF11: 0 | FG11: 0 | FH11: 0 | FI11: 0 | FJ11: 0 | FK11: 0 | FL11: 0 | FM11: 0 | FN11: 0 | FO11: 0 | FP11: 0 | FQ11: 0 | FR11: 0 | FS11: 0 | FT11: 0 | FU11: 0 | FV11: 0 | FW11: 0 | FX11: 0 | FY11: 0 | FZ11: 0 | GA11: 0 | GB11: 0 | GC11: 0 | GD11: 0 | GE11: 0 | GF11: 0 | GG11: 0 | GH11: 0 | GI11: 0 | GJ11: 0 | GK11: 0 | GL11: 0 | GM11: 0 | GN11: 0 | GO11: 0 | GP11: 0 | GQ11: 0 | GR11: 0 | GS11: 0 | GT11: 0 | GU11: 0 | GV11: 0 | GW11: 0 | GX11: 0 | GY11: 0 | GZ11: 0 | HA11: 0 | HB11: 0 | HC11: 0 | HD11: 0 | HE11: 0 | HF11: 0 | HG11: 0 | HH11: 0 | HI11: 0 | HJ11: 0 | HK11: 0 | HL11: 0 | HM11: 0 | HN11: 0 | HO11: 0 | HP11: 0 | HQ11: 0 | HR11: 0 | HS11: 0 | HT11: 0 | HU11: 0 | HV11: 0 | HW11: 0 | HX11: 0 | HY11: 0 | HZ11: 0 | IA11: 0 | IB11: 0 | IC11: 0 | ID11: 0 | IE11: 0 | IF11: 0 | IG11: 0 | IH11: 0 | II11: 0 | IJ11: 0 | IK11: 0 | IL11: 0 | IM11: 0 | IN11: 0 | IO11: 0 | IP11: 0 | IQ11: 0 | IR11: 0 | IS11: 0 | IT11: 0 | IU11: 0 | IV11: 0 | IW11: 0 | IX11: 0 | IY11: 0 | IZ11: 0 | JA11: 0 | JB11: 0 | JC11: 0 | JD11: 0 | JE11: 0 | JF11: 0 | JG11: 0 | JH11: 0 | JI11: 0
B12: 08:00:00 | C12: 0.039 | D12: 0.046 | E12: 0.007 | F12: 0 | G12: 0.03 | H12: 0.019 | K12: 9 | L12: =KEY!$E$8*Original!B12 -> 0 | M12: 0 | N12: 0 | P12: 0 | T12: 9 | U12: =TRANSPOSE('Average power consumption'!$C$3:$C$122)*L12 -> 0 | V12: 0 | W12: 0 | X12: 0 | Y12: 0 | Z12: 0 | AA12: 0 | AB12: 0 | AC12: 0 | AD12: 0 | AE12: 0 | AF12: 0 | AG12: 0 | AH12: 0 | AI12: 0 | AJ12: 0 | AK12: 0 | AL12: 0 | AM12: 0 | AN12: 0 | AO12: 0 | AP12: 0 | AQ12: 0 | AR12: 0 | AS12: 0 | AT12: 0 | AU12: 0 | AV12: 0 | AW12: 0 | AX12: 0 | AY12: 0 | AZ12: 0 | BA12: 0 | BB12: 0 | BC12: 0 | BD12: 0 | BE12: 0 | BF12: 0 | BG12: 0 | BH12: 0 | BI12: 0 | BJ12: 0 | BK12: 0 | BL12: 0 | BM12: 0 | BN12: 0 | BO12: 0 | BP12: 0 | BQ12: 0 | BR12: 0 | BS12: 0 | BT12: 0 | BU12: 0 | BV12: 0 | BW12: 0 | BX12: 0 | BY12: 0 | BZ12: 0 | CA12: 0 | CB12: 0 | CC12: 0 | CD12: 0 | CE12: 0 | CF12: 0 | CG12: 0 | CH12: 0 | CI12: 0 | CJ12: 0 | CK12: 0 | CL12: 0 | CM12: 0 | CN12: 0 | CO12: 0 | CP12: 0 | CQ12: 0 | CR12: 0 | CS12: 0 | CT12: 0 | CU12: 0 | CV12: 0 | CW12: 0 | CX12: 0 | CY12: 0 | CZ12: 0 | DA12: 0 | DB12: 0 | DC12: 0 | DD12: 0 | DE12: 0 | DF12: 0 | DG12: 0 | DH12: 0 | DI12: 0 | DJ12: 0 | DK12: 0 | DL12: 0 | DM12: 0 | DN12: 0 | DO12: 0 | DP12: 0 | DQ12: 0 | DR12: 0 | DS12: 0 | DT12: 0 | DU12: 0 | DV12: 0 | DW12: 0 | DX12: 0 | DY12: 0 | DZ12: 0 | EA12: 0 | EB12: 0 | EC12: 0 | ED12: 0 | EE12: 0 | EF12: 0 | EG12: 0 | EH12: 0 | EI12: 0 | EJ12: 0 | EU12: 0 | EV12: 0 | EW12: 0 | EX12: 0 | EY12: 0 | EZ12: 0 | FA12: 0 | FB12: 0 | FC12: 0 | FD12: 0 | FE12: 0 | FF12: 0 | FG12: 0 | FH12: 0 | FI12: 0 | FJ12: 0 | FK12: 0 | FL12: 0 | FM12: 0 | FN12: 0 | FO12: 0 | FP12: 0 | FQ12: 0 | FR12: 0 | FS12: 0 | FT12: 0 | FU12: 0 | FV12: 0 | FW12: 0 | FX12: 0 | FY12: 0 | FZ12: 0 | GA12: 0 | GB12: 0 | GC12: 0 | GD12: 0 | GE12: 0 | GF12: 0 | GG12: 0 | GH12: 0 | GI12: 0 | GJ12: 0 | GK12: 0 | GL12: 0 | GM12: 0 | GN12: 0 | GO12: 0 | GP12: 0 | GQ12: 0 | GR12: 0 | GS12: 0 | GT12: 0 | GU12: 0 | GV12: 0 | GW12: 0 | GX12: 0 | GY12: 0 | GZ12: 0 | HA12: 0 | HB12: 0 | HC12: 0 | HD12: 0 | HE12: 0 | HF12: 0 | HG12: 0 | HH12: 0 | HI12: 0 | HJ12: 0 | HK12: 0 | HL12: 0 | HM12: 0 | HN12: 0 | HO12: 0 | HP12: 0 | HQ12: 0 | HR12: 0 | HS12: 0 | HT12: 0 | HU12: 0 | HV12: 0 | HW12: 0 | HX12: 0 | HY12: 0 | HZ12: 0 | IA12: 0 | IB12: 0 | IC12: 0 | ID12: 0 | IE12: 0 | IF12: 0 | IG12: 0 | IH12: 0 | II12: 0 | IJ12: 0 | IK12: 0 | IL12: 0 | IM12: 0 | IN12: 0 | IO12: 0 | IP12: 0 | IQ12: 0 | IR12: 0 | IS12: 0 | IT12: 0 | IU12: 0 | IV12: 0 | IW12: 0 | IX12: 0 | IY12: 0 | IZ12: 0 | JA12: 0 | JB12: 0 | JC12: 0 | JD12: 0 | JE12: 0 | JF12: 0 | JG12: 0 | JH12: 0 | JI12: 0 | JJ12: 0
B13: 09:00:00 | C13: 0.039 | D13: 0.046 | E13: 0.033 | F13: 0 | G13: 0.026 | H13: 0.019 | K13: 10 | L13: =KEY!$E$8*Original!B13 -> 0 | M13: 0 | N13: 0 | P13: 0 | T13: 10 | U13: =TRANSPOSE('Average power consumption'!$C$3:$C$122)*L13 -> 0 | V13: 0 | W13: 0 | X13: 0 | Y13: 0 | Z13: 0 | AA13: 0 | AB13: 0 | AC13: 0 | AD13: 0 | AE13: 0 | AF13: 0 | AG13: 0 | AH13: 0 | AI13: 0 | AJ13: 0 | AK13: 0 | AL13: 0 | AM13: 0 | AN13: 0 | AO13: 0 | AP13: 0 | AQ13: 0 | AR13: 0 | AS13: 0 | AT13: 0 | AU13: 0 | AV13: 0 | AW13: 0 | AX13: 0 | AY13: 0 | AZ13: 0 | BA13: 0 | BB13: 0 | BC13: 0 | BD13: 0 | BE13: 0 | BF13: 0 | BG13: 0 | BH13: 0 | BI13: 0 | BJ13: 0 | BK13: 0 | BL13: 0 | BM13: 0 | BN13: 0 | BO13: 0 | BP13: 0 | BQ13: 0 | BR13: 0 | BS13: 0 | BT13: 0 | BU13: 0 | BV13: 0 | BW13: 0 | BX13: 0 | BY13: 0 | BZ13: 0 | CA13: 0 | CB13: 0 | CC13: 0 | CD13: 0 | CE13: 0 | CF13: 0 | CG13: 0 | CH13: 0 | CI13: 0 | CJ13: 0 | CK13: 0 | CL13: 0 | CM13: 0 | CN13: 0 | CO13: 0 | CP13: 0 | CQ13: 0 | CR13: 0 | CS13: 0 | CT13: 0 | CU13: 0 | CV13: 0 | CW13: 0 | CX13: 0 | CY13: 0 | CZ13: 0 | DA13: 0 | DB13: 0 | DC13: 0 | DD13: 0 | DE13: 0 | DF13: 0 | DG13: 0 | DH13: 0 | DI13: 0 | DJ13: 0 | DK13: 0 | DL13: 0 | DM13: 0 | DN13: 0 | DO13: 0 | DP13: 0 | DQ13: 0 | DR13: 0 | DS13: 0 | DT13: 0 | DU13: 0 | DV13: 0 | DW13: 0 | DX13: 0 | DY13: 0 | DZ13: 0 | EA13: 0 | EB13: 0 | EC13: 0 | ED13: 0 | EE13: 0 | EF13: 0 | EG13: 0 | EH13: 0 | EI13: 0 | EJ13: 0 | EV13: 0 | EW13: 0 | EX13: 0 | EY13: 0 | EZ13: 0 | FA13: 0 | FB13: 0 | FC13: 0 | FD13: 0 | FE13: 0 | FF13: 0 | FG13: 0 | FH13: 0 | FI13: 0 | FJ13: 0 | FK13: 0 | FL13: 0 | FM13: 0 | FN13: 0 | FO13: 0 | FP13: 0 | FQ13: 0 | FR13: 0 | FS13: 0 | FT13: 0 | FU13: 0 | FV13: 0 | FW13: 0 | FX13: 0 | FY13: 0 | FZ13: 0 | GA13: 0 | GB13: 0 | GC13: 0 | GD13: 0 | GE13: 0 | GF13: 0 | GG13: 0 | GH13: 0 | GI13: 0 | GJ13: 0 | GK13: 0 | GL13: 0 | GM13: 0 | GN13: 0 | GO13: 0 | GP13: 0 | GQ13: 0 | GR13: 0 | GS13: 0 | GT13: 0 | GU13: 0 | GV13: 0 | GW13: 0 | GX13: 0 | GY13: 0 | GZ13: 0 | HA13: 0 | HB13: 0 | HC13: 0 | HD13: 0 | HE13: 0 | HF13: 0 | HG13: 0 | HH13: 0 | HI13: 0 | HJ13: 0 | HK13: 0 | HL13: 0 | HM13: 0 | HN13: 0 | HO13: 0 | HP13: 0 | HQ13: 0 | HR13: 0 | HS13: 0 | HT13: 0 | HU13: 0 | HV13: 0 | HW13: 0 | HX13: 0 | HY13: 0 | HZ13: 0 | IA13: 0 | IB13: 0 | IC13: 0 | ID13: 0 | IE13: 0 | IF13: 0 | IG13: 0 | IH13: 0 | II13: 0 | IJ13: 0 | IK13: 0 | IL13: 0 | IM13: 0 | IN13: 0 | IO13: 0 | IP13: 0 | IQ13: 0 | IR13: 0 | IS13: 0 | IT13: 0 | IU13: 0 | IV13: 0 | IW13: 0 | IX13: 0 | IY13: 0 | IZ13: 0 | JA13: 0 | JB13: 0 | JC13: 0 | JD13: 0 | JE13: 0 | JF13: 0 | JG13: 0 | JH13: 0 | JI13: 0 | JJ13: 0 | JK13: 0
B14: 10:00:00 | C14: 0.053 | D14: 0.076 | E14: 0.033 | F14: 0.013 | G14: 0.034 | H14: 0.102 | K14: 11 | L14: =KEY!$E$8*Original!B14 -> 0 | M14: 0.01298701299 | N14: 0 | P14: 0.005291005291 | T14: 11 | U14: =TRANSPOSE('Average power consumption'!$C$3:$C$122)*L14 -> 0 | V14: 0 | W14: 0 | X14: 0 | Y14: 0 | Z14: 0 | AA14: 0 | AB14: 0 | AC14: 0 | AD14: 0 | AE14: 0 | AF14: 0 | AG14: 0 | AH14: 0 | AI14: 0 | AJ14: 0 | AK14: 0 | AL14: 0 | AM14: 0 | AN14: 0 | AO14: 0 | AP14: 0 | AQ14: 0 | AR14: 0 | AS14: 0 | AT14: 0 | AU14: 0 | AV14: 0 | AW14: 0 | AX14: 0 | AY14: 0 | AZ14: 0 | BA14: 0 | BB14: 0 | BC14: 0 | BD14: 0 | BE14: 0 | BF14: 0 | BG14: 0 | BH14: 0 | BI14: 0 | BJ14: 0 | BK14: 0 | BL14: 0 | BM14: 0 | BN14: 0 | BO14: 0 | BP14: 0 | BQ14: 0 | BR14: 0 | BS14: 0 | BT14: 0 | BU14: 0 | BV14: 0 | BW14: 0 | BX14: 0 | BY14: 0 | BZ14: 0 | CA14: 0 | CB14: 0 | CC14: 0 | CD14: 0 | CE14: 0 | CF14: 0 | CG14: 0 | CH14: 0 | CI14: 0 | CJ14: 0 | CK14: 0 | CL14: 0 | CM14: 0 | CN14: 0 | CO14: 0 | CP14: 0 | CQ14: 0 | CR14: 0 | CS14: 0 | CT14: 0 | CU14: 0 | CV14: 0 | CW14: 0 | CX14: 0 | CY14: 0 | CZ14: 0 | DA14: 0 | DB14: 0 | DC14: 0 | DD14: 0 | DE14: 0 | DF14: 0 | DG14: 0 | DH14: 0 | DI14: 0 | DJ14: 0 | DK14: 0 | DL14: 0 | DM14: 0 | DN14: 0 | DO14: 0 | DP14: 0 | DQ14: 0 | DR14: 0 | DS14: 0 | DT14: 0 | DU14: 0 | DV14: 0 | DW14: 0 | DX14: 0 | DY14: 0 | DZ14: 0 | EA14: 0 | EB14: 0 | EC14: 0 | ED14: 0 | EE14: 0 | EF14: 0 | EG14: 0 | EH14: 0 | EI14: 0 | EJ14: 0 | EW14: 0 | EX14: 0 | EY14: 0 | EZ14: 0 | FA14: 0 | FB14: 0 | FC14: 0 | FD14: 0 | FE14: 0 | FF14: 0 | FG14: 0 | FH14: 0 | FI14: 0 | FJ14: 0 | FK14: 0 | FL14: 0 | FM14: 0 | FN14: 0 | FO14: 0 | FP14: 0 | FQ14: 0 | FR14: 0 | FS14: 0 | FT14: 0 | FU14: 0 | FV14: 0 | FW14: 0 | FX14: 0 | FY14: 0 | FZ14: 0 | GA14: 0 | GB14: 0 | GC14: 0 | GD14: 0 | GE14: 0 | GF14: 0 | GG14: 0 | GH14: 0 | GI14: 0 | GJ14: 0 | GK14: 0 | GL14: 0 | GM14: 0 | GN14: 0 | GO14: 0 | GP14: 0 | GQ14: 0 | GR14: 0 | GS14: 0 | GT14: 0 | GU14: 0 | GV14: 0 | GW14: 0 | GX14: 0 | GY14: 0 | GZ14: 0 | HA14: 0 | HB14: 0 | HC14: 0 | HD14: 0 | HE14: 0 | HF14: 0 | HG14: 0 | HH14: 0 | HI14: 0 | HJ14: 0 | HK14: 0 | HL14: 0 | HM14: 0 | HN14: 0 | HO14: 0 | HP14: 0 | HQ14: 0 | HR14: 0 | HS14: 0 | HT14: 0 | HU14: 0 | HV14: 0 | HW14: 0 | HX14: 0 | HY14: 0 | HZ14: 0 | IA14: 0 | IB14: 0 | IC14: 0 | ID14: 0 | IE14: 0 | IF14: 0 | IG14: 0 | IH14: 0 | II14: 0 | IJ14: 0 | IK14: 0 | IL14: 0 | IM14: 0 | IN14: 0 | IO14: 0 | IP14: 0 | IQ14: 0 | IR14: 0 | IS14: 0 | IT14: 0 | IU14: 0 | IV14: 0 | IW14: 0 | IX14: 0 | IY14: 0 | IZ14: 0 | JA14: 0 | JB14: 0 | JC14: 0 | JD14: 0 | JE14: 0 | JF14: 0 | JG14: 0 | JH14: 0 | JI14: 0 | JJ14: 0 | JK14: 0 | JL14: 0
B15: 11:00:00 | C15: 0.06 | D15: 0.099 | E15: 0.073 | F15: 0.077 | G15: 0.021 | H15: 0.037 | K15: 12 | L15: =KEY!$E$8*Original!B15 -> 0 | M15: 0 | N15: 0 | P15: 0.005291005291 | T15: 12 | U15: =TRANSPOSE('Average power consumption'!$C$3:$C$122)*L15 -> 0 | V15: 0 | W15: 0 | X15: 0 | Y15: 0 | Z15: 0 | AA15: 0 | AB15: 0 | AC15: 0 | AD15: 0 | AE15: 0 | AF15: 0 | AG15: 0 | AH15: 0 | AI15: 0 | AJ15: 0 | AK15: 0 | AL15: 0 | AM15: 0 | AN15: 0 | AO15: 0 | AP15: 0 | AQ15: 0 | AR15: 0 | AS15: 0 | AT15: 0 | AU15: 0 | AV15: 0 | AW15: 0 | AX15: 0 | AY15: 0 | AZ15: 0 | BA15: 0 | BB15: 0 | BC15: 0 | BD15: 0 | BE15: 0 | BF15: 0 | BG15: 0 | BH15: 0 | BI15: 0 | BJ15: 0 | BK15: 0 | BL15: 0 | BM15: 0 | BN15: 0 | BO15: 0 | BP15: 0 | BQ15: 0 | BR15: 0 | BS15: 0 | BT15: 0 | BU15: 0 | BV15: 0 | BW15: 0 | BX15: 0 | BY15: 0 | BZ15: 0 | CA15: 0 | CB15: 0 | CC15: 0 | CD15: 0 | CE15: 0 | CF15: 0 | CG15: 0 | CH15: 0 | CI15: 0 | CJ15: 0 | CK15: 0 | CL15: 0 | CM15: 0 | CN15: 0 | CO15: 0 | CP15: 0 | CQ15: 0 | CR15: 0 | CS15: 0 | CT15: 0 | CU15: 0 | CV15: 0 | CW15: 0 | CX15: 0 | CY15: 0 | CZ15: 0 | DA15: 0 | DB15: 0 | DC15: 0 | DD15: 0 | DE15: 0 | DF15: 0 | DG15: 0 | DH15: 0 | DI15: 0 | DJ15: 0 | DK15: 0 | DL15: 0 | DM15: 0 | DN15: 0 | DO15: 0 | DP15: 0 | DQ15: 0 | DR15: 0 | DS15: 0 | DT15: 0 | DU15: 0 | DV15: 0 | DW15: 0 | DX15: 0 | DY15: 0 | DZ15: 0 | EA15: 0 | EB15: 0 | EC15: 0 | ED15: 0 | EE15: 0 | EF15: 0 | EG15: 0 | EH15: 0 | EI15: 0 | EJ15: 0 | EX15: 0 | EY15: 0 | EZ15: 0 | FA15: 0 | FB15: 0 | FC15: 0 | FD15: 0 | FE15: 0 | FF15: 0 | FG15: 0 | FH15: 0 | FI15: 0 | FJ15: 0 | FK15: 0 | FL15: 0 | FM15: 0 | FN15: 0 | FO15: 0 | FP15: 0 | FQ15: 0 | FR15: 0 | FS15: 0 | FT15: 0 | FU15: 0 | FV15: 0 | FW15: 0 | FX15: 0 | FY15: 0 | FZ15: 0 | GA15: 0 | GB15: 0 | GC15: 0 | GD15: 0 | GE15: 0 | GF15: 0 | GG15: 0 | GH15: 0 | GI15: 0 | GJ15: 0 | GK15: 0 | GL15: 0 | GM15: 0 | GN15: 0 | GO15: 0 | GP15: 0 | GQ15: 0 | GR15: 0 | GS15: 0 | GT15: 0 | GU15: 0 | GV15: 0 | GW15: 0 | GX15: 0 | GY15: 0 | GZ15: 0 | HA15: 0 | HB15: 0 | HC15: 0 | HD15: 0 | HE15: 0 | HF15: 0 | HG15: 0 | HH15: 0 | HI15: 0 | HJ15: 0 | HK15: 0 | HL15: 0 | HM15: 0 | HN15: 0 | HO15: 0 | HP15: 0 | HQ15: 0 | HR15: 0 | HS15: 0 | HT15: 0 | HU15: 0 | HV15: 0 | HW15: 0 | HX15: 0 | HY15: 0 | HZ15: 0 | IA15: 0 | IB15: 0 | IC15: 0 | ID15: 0 | IE15: 0 | IF15: 0 | IG15: 0 | IH15: 0 | II15: 0 | IJ15: 0 | IK15: 0 | IL15: 0 | IM15: 0 | IN15: 0 | IO15: 0 | IP15: 0 | IQ15: 0 | IR15: 0 | IS15: 0 | IT15: 0 | IU15: 0 | IV15: 0 | IW15: 0 | IX15: 0 | IY15: 0 | IZ15: 0 | JA15: 0 | JB15: 0 | JC15: 0 | JD15: 0 | JE15: 0 | JF15: 0 | JG15: 0 | JH15: 0 | JI15: 0 | JJ15: 0 | JK15: 0 | JL15: 0 | JM15: 0
B16: 12:00:00 | C16: 0.043 | D16: 0.069 | E16: 0.06 | F16: 0.038 | G16: 0.026 | H16: 0.065 | K16: 13 | L16: =KEY!$E$8*Original!B16 -> 0 | M16: 0 | N16: 0.005050505051 | P16: 0 | T16: 13 | U16: =TRANSPOSE('Average power consumption'!$C$3:$C$122)*L16 -> 0 | V16: 0 | W16: 0 | X16: 0 | Y16: 0 | Z16: 0 | AA16: 0 | AB16: 0 | AC16: 0 | AD16: 0 | AE16: 0 | AF16: 0 | AG16: 0 | AH16: 0 | AI16: 0 | AJ16: 0 | AK16: 0 | AL16: 0 | AM16: 0 | AN16: 0 | AO16: 0 | AP16: 0 | AQ16: 0 | AR16: 0 | AS16: 0 | AT16: 0 | AU16: 0 | AV16: 0 | AW16: 0 | AX16: 0 | AY16: 0 | AZ16: 0 | BA16: 0 | BB16: 0 | BC16: 0 | BD16: 0 | BE16: 0 | BF16: 0 | BG16: 0 | BH16: 0 | BI16: 0 | BJ16: 0 | BK16: 0 | BL16: 0 | BM16: 0 | BN16: 0 | BO16: 0 | BP16: 0 | BQ16: 0 | BR16: 0 | BS16: 0 | BT16: 0 | BU16: 0 | BV16: 0 | BW16: 0 | BX16: 0 | BY16: 0 | BZ16: 0 | CA16: 0 | CB16: 0 | CC16: 0 | CD16: 0 | CE16: 0 | CF16: 0 | CG16: 0 | CH16: 0 | CI16: 0 | CJ16: 0 | CK16: 0 | CL16: 0 | CM16: 0 | CN16: 0 | CO16: 0 | CP16: 0 | CQ16: 0 | CR16: 0 | CS16: 0 | CT16: 0 | CU16: 0 | CV16: 0 | CW16: 0 | CX16: 0 | CY16: 0 | CZ16: 0 | DA16: 0 | DB16: 0 | DC16: 0 | DD16: 0 | DE16: 0 | DF16: 0 | DG16: 0 | DH16: 0 | DI16: 0 | DJ16: 0 | DK16: 0 | DL16: 0 | DM16: 0 | DN16: 0 | DO16: 0 | DP16: 0 | DQ16: 0 | DR16: 0 | DS16: 0 | DT16: 0 | DU16: 0 | DV16: 0 | DW16: 0 | DX16: 0 | DY16: 0 | DZ16: 0 | EA16: 0 | EB16: 0 | EC16: 0 | ED16: 0 | EE16: 0 | EF16: 0 | EG16: 0 | EH16: 0 | EI16: 0 | EJ16: 0 | EY16: 0 | EZ16: 0 | FA16: 0 | FB16: 0 | FC16: 0 | FD16: 0 | FE16: 0 | FF16: 0 | FG16: 0 | FH16: 0 | FI16: 0 | FJ16: 0 | FK16: 0 | FL16: 0 | FM16: 0 | FN16: 0 | FO16: 0 | FP16: 0 | FQ16: 0 | FR16: 0 | FS16: 0 | FT16: 0 | FU16: 0 | FV16: 0 | FW16: 0 | FX16: 0 | FY16: 0 | FZ16: 0 | GA16: 0 | GB16: 0 | GC16: 0 | GD16: 0 | GE16: 0 | GF16: 0 | GG16: 0 | GH16: 0 | GI16: 0 | GJ16: 0 | GK16: 0 | GL16: 0 | GM16: 0 | GN16: 0 | GO16: 0 | GP16: 0 | GQ16: 0 | GR16: 0 | GS16: 0 | GT16: 0 | GU16: 0 | GV16: 0 | GW16: 0 | GX16: 0 | GY16: 0 | GZ16: 0 | HA16: 0 | HB16: 0 | HC16: 0 | HD16: 0 | HE16: 0 | HF16: 0 | HG16: 0 | HH16: 0 | HI16: 0 | HJ16: 0 | HK16: 0 | HL16: 0 | HM16: 0 | HN16: 0 | HO16: 0 | HP16: 0 | HQ16: 0 | HR16: 0 | HS16: 0 | HT16: 0 | HU16: 0 | HV16: 0 | HW16: 0 | HX16: 0 | HY16: 0 | HZ16: 0 | IA16: 0 | IB16: 0 | IC16: 0 | ID16: 0 | IE16: 0 | IF16: 0 | IG16: 0 | IH16: 0 | II16: 0 | IJ16: 0 | IK16: 0 | IL16: 0 | IM16: 0 | IN16: 0 | IO16: 0 | IP16: 0 | IQ16: 0 | IR16: 0 | IS16: 0 | IT16: 0 | IU16: 0 | IV16: 0 | IW16: 0 | IX16: 0 | IY16: 0 | IZ16: 0 | JA16: 0 | JB16: 0 | JC16: 0 | JD16: 0 | JE16: 0 | JF16: 0 | JG16: 0 | JH16: 0 | JI16: 0 | JJ16: 0 | JK16: 0 | JL16: 0 | JM16: 0 | JN16: 0
B17: 13:00:00 | C17: 0.039 | D17: 0.069 | E17: 0.046 | F17: 0.103 | G17: 0.03 | H17: 0.074 | K17: 14 | L17: =KEY!$E$8*Original!B17 -> 0 | M17: 0 | N17: 0.005050505051 | P17: 0 | T17: 14 | U17: =TRANSPOSE('Average power consumption'!$C$3:$C$122)*L17 -> 0 | V17: 0 | W17: 0 | X17: 0 | Y17: 0 | Z17: 0 | AA17: 0 | AB17: 0 | AC17: 0 | AD17: 0 | AE17: 0 | AF17: 0 | AG17: 0 | AH17: 0 | AI17: 0 | AJ17: 0 | AK17: 0 | AL17: 0 | AM17: 0 | AN17: 0 | AO17: 0 | AP17: 0 | AQ17: 0 | AR17: 0 | AS17: 0 | AT17: 0 | AU17: 0 | AV17: 0 | AW17: 0 | AX17: 0 | AY17: 0 | AZ17: 0 | BA17: 0 | BB17: 0 | BC17: 0 | BD17: 0 | BE17: 0 | BF17: 0 | BG17: 0 | BH17: 0 | BI17: 0 | BJ17: 0 | BK17: 0 | BL17: 0 | BM17: 0 | BN17: 0 | BO17: 0 | BP17: 0 | BQ17: 0 | BR17: 0 | BS17: 0 | BT17: 0 | BU17: 0 | BV17: 0 | BW17: 0 | BX17: 0 | BY17: 0 | BZ17: 0 | CA17: 0 | CB17: 0 | CC17: 0 | CD17: 0 | CE17: 0 | CF17: 0 | CG17: 0 | CH17: 0 | CI17: 0 | CJ17: 0 | CK17: 0 | CL17: 0 | CM17: 0 | CN17: 0 | CO17: 0 | CP17: 0 | CQ17: 0 | CR17: 0 | CS17: 0 | CT17: 0 | CU17: 0 | CV17: 0 | CW17: 0 | CX17: 0 | CY17: 0 | CZ17: 0 | DA17: 0 | DB17: 0 | DC17: 0 | DD17: 0 | DE17: 0 | DF17: 0 | DG17: 0 | DH17: 0 | DI17: 0 | DJ17: 0 | DK17: 0 | DL17: 0 | DM17: 0 | DN17: 0 | DO17: 0 | DP17: 0 | DQ17: 0 | DR17: 0 | DS17: 0 | DT17: 0 | DU17: 0 | DV17: 0 | DW17: 0 | DX17: 0 | DY17: 0 | DZ17: 0 | EA17: 0 | EB17: 0 | EC17: 0 | ED17: 0 | EE17: 0 | EF17: 0 | EG17: 0 | EH17: 0 | EI17: 0 | EJ17: 0 | EZ17: 0 | FA17: 0 | FB17: 0 | FC17: 0 | FD17: 0 | FE17: 0 | FF17: 0 | FG17: 0 | FH17: 0 | FI17: 0 | FJ17: 0 | FK17: 0 | FL17: 0 | FM17: 0 | FN17: 0 | FO17: 0 | FP17: 0 | FQ17: 0 | FR17: 0 | FS17: 0 | FT17: 0 | FU17: 0 | FV17: 0 | FW17: 0 | FX17: 0 | FY17: 0 | FZ17: 0 | GA17: 0 | GB17: 0 | GC17: 0 | GD17: 0 | GE17: 0 | GF17: 0 | GG17: 0 | GH17: 0 | GI17: 0 | GJ17: 0 | GK17: 0 | GL17: 0 | GM17: 0 | GN17: 0 | GO17: 0 | GP17: 0 | GQ17: 0 | GR17: 0 | GS17: 0 | GT17: 0 | GU17: 0 | GV17: 0 | GW17: 0 | GX17: 0 | GY17: 0 | GZ17: 0 | HA17: 0 | HB17: 0 | HC17: 0 | HD17: 0 | HE17: 0 | HF17: 0 | HG17: 0 | HH17: 0 | HI17: 0 | HJ17: 0 | HK17: 0 | HL17: 0 | HM17: 0 | HN17: 0 | HO17: 0 | HP17: 0 | HQ17: 0 | HR17: 0 | HS17: 0 | HT17: 0 | HU17: 0 | HV17: 0 | HW17: 0 | HX17: 0 | HY17: 0 | HZ17: 0 | IA17: 0 | IB17: 0 | IC17: 0 | ID17: 0 | IE17: 0 | IF17: 0 | IG17: 0 | IH17: 0 | II17: 0 | IJ17: 0 | IK17: 0 | IL17: 0 | IM17: 0 | IN17: 0 | IO17: 0 | IP17: 0 | IQ17: 0 | IR17: 0 | IS17: 0 | IT17: 0 | IU17: 0 | IV17: 0 | IW17: 0 | IX17: 0 | IY17: 0 | IZ17: 0 | JA17: 0 | JB17: 0 | JC17: 0 | JD17: 0 | JE17: 0 | JF17: 0 | JG17: 0 | JH17: 0 | JI17: 0 | JJ17: 0 | JK17: 0 | JL17: 0 | JM17: 0 | JN17: 0 | JO17: 0
B18: 14:00:00 | C18: 0.053 | D18: 0.061 | E18: 0.073 | F18: 0.051 | G18: 0.03 | H18: 0.019 | K18: 15 | L18: =KEY!$E$8*Original!B18 -> 0 | M18: 0 | N18: 0 | P18: 0 | T18: 15 | U18: =TRANSPOSE('Average power consumption'!$C$3:$C$122)*L18 -> 0 | V18: 0 | W18: 0 | X18: 0 | Y18: 0 | Z18: 0 | AA18: 0 | AB18: 0 | AC18: 0 | AD18: 0 | AE18: 0 | AF18: 0 | AG18: 0 | AH18: 0 | AI18: 0 | AJ18: 0 | AK18: 0 | AL18: 0 | AM18: 0 | AN18: 0 | AO18: 0 | AP18: 0 | AQ18: 0 | AR18: 0 | AS18: 0 | AT18: 0 | AU18: 0 | AV18: 0 | AW18: 0 | AX18: 0 | AY18: 0 | AZ18: 0 | BA18: 0 | BB18: 0 | BC18: 0 | BD18: 0 | BE18: 0 | BF18: 0 | BG18: 0 | BH18: 0 | BI18: 0 | BJ18: 0 | BK18: 0 | BL18: 0 | BM18: 0 | BN18: 0 | BO18: 0 | BP18: 0 | BQ18: 0 | BR18: 0 | BS18: 0 | BT18: 0 | BU18: 0 | BV18: 0 | BW18: 0 | BX18: 0 | BY18: 0 | BZ18: 0 | CA18: 0 | CB18: 0 | CC18: 0 | CD18: 0 | CE18: 0 | CF18: 0 | CG18: 0 | CH18: 0 | CI18: 0 | CJ18: 0 | CK18: 0 | CL18: 0 | CM18: 0 | CN18: 0 | CO18: 0 | CP18: 0 | CQ18: 0 | CR18: 0 | CS18: 0 | CT18: 0 | CU18: 0 | CV18: 0 | CW18: 0 | CX18: 0 | CY18: 0 | CZ18: 0 | DA18: 0 | DB18: 0 | DC18: 0 | DD18: 0 | DE18: 0 | DF18: 0 | DG18: 0 | DH18: 0 | DI18: 0 | DJ18: 0 | DK18: 0 | DL18: 0 | DM18: 0 | DN18: 0 | DO18: 0 | DP18: 0 | DQ18: 0 | DR18: 0 | DS18: 0 | DT18: 0 | DU18: 0 | DV18: 0 | DW18: 0 | DX18: 0 | DY18: 0 | DZ18: 0 | EA18: 0 | EB18: 0 | EC18: 0 | ED18: 0 | EE18: 0 | EF18: 0 | EG18: 0 | EH18: 0 | EI18: 0 | EJ18: 0 | FA18: 0 | FB18: 0 | FC18: 0 | FD18: 0 | FE18: 0 | FF18: 0 | FG18: 0 | FH18: 0 | FI18: 0 | FJ18: 0 | FK18: 0 | FL18: 0 | FM18: 0 | FN18: 0 | FO18: 0 | FP18: 0 | FQ18: 0 | FR18: 0 | FS18: 0 | FT18: 0 | FU18: 0 | FV18: 0 | FW18: 0 | FX18: 0 | FY18: 0 | FZ18: 0 | GA18: 0 | GB18: 0 | GC18: 0 | GD18: 0 | GE18: 0 | GF18: 0 | GG18: 0 | GH18: 0 | GI18: 0 | GJ18: 0 | GK18: 0 | GL18: 0 | GM18: 0 | GN18: 0 | GO18: 0 | GP18: 0 | GQ18: 0 | GR18: 0 | GS18: 0 | GT18: 0 | GU18: 0 | GV18: 0 | GW18: 0 | GX18: 0 | GY18: 0 | GZ18: 0 | HA18: 0 | HB18: 0 | HC18: 0 | HD18: 0 | HE18: 0 | HF18: 0 | HG18: 0 | HH18: 0 | HI18: 0 | HJ18: 0 | HK18: 0 | HL18: 0 | HM18: 0 | HN18: 0 | HO18: 0 | HP18: 0 | HQ18: 0 | HR18: 0 | HS18: 0 | HT18: 0 | HU18: 0 | HV18: 0 | HW18: 0 | HX18: 0 | HY18: 0 | HZ18: 0 | IA18: 0 | IB18: 0 | IC18: 0 | ID18: 0 | IE18: 0 | IF18: 0 | IG18: 0 | IH18: 0 | II18: 0 | IJ18: 0 | IK18: 0 | IL18: 0 | IM18: 0 | IN18: 0 | IO18: 0 | IP18: 0 | IQ18: 0 | IR18: 0 | IS18: 0 | IT18: 0 | IU18: 0 | IV18: 0 | IW18: 0 | IX18: 0 | IY18: 0 | IZ18: 0 | JA18: 0 | JB18: 0 | JC18: 0 | JD18: 0 | JE18: 0 | JF18: 0 | JG18: 0 | JH18: 0 | JI18: 0 | JJ18: 0 | JK18: 0 | JL18: 0 | JM18: 0 | JN18: 0 | JO18: 0 | JP18: 0
B19: 15:00:00 | C19: 0.05 | D19: 0.069 | E19: 0.06 | F19: 0.103 | G19: 0.047 | H19: 0.056 | K19: 16 | L19: =KEY!$E$8*Original!B19 -> 0 | M19: 0 | N19: 0 | P19: 0.005291005291 | T19: 16 | U19: =TRANSPOSE('Average power consumption'!$C$3:$C$122)*L19 -> 0 | V19: 0 | W19: 0 | X19: 0 | Y19: 0 | Z19: 0 | AA19: 0 | AB19: 0 | AC19: 0 | AD19: 0 | AE19: 0 | AF19: 0 | AG19: 0 | AH19: 0 | AI19: 0 | AJ19: 0 | AK19: 0 | AL19: 0 | AM19: 0 | AN19: 0 | AO19: 0 | AP19: 0 | AQ19: 0 | AR19: 0 | AS19: 0 | AT19: 0 | AU19: 0 | AV19: 0 | AW19: 0 | AX19: 0 | AY19: 0 | AZ19: 0 | BA19: 0 | BB19: 0 | BC19: 0 | BD19: 0 | BE19: 0 | BF19: 0 | BG19: 0 | BH19: 0 | BI19: 0 | BJ19: 0 | BK19: 0 | BL19: 0 | BM19: 0 | BN19: 0 | BO19: 0 | BP19: 0 | BQ19: 0 | BR19: 0 | BS19: 0 | BT19: 0 | BU19: 0 | BV19: 0 | BW19: 0 | BX19: 0 | BY19: 0 | BZ19: 0 | CA19: 0 | CB19: 0 | CC19: 0 | CD19: 0 | CE19: 0 | CF19: 0 | CG19: 0 | CH19: 0 | CI19: 0 | CJ19: 0 | CK19: 0 | CL19: 0 | CM19: 0 | CN19: 0 | CO19: 0 | CP19: 0 | CQ19: 0 | CR19: 0 | CS19: 0 | CT19: 0 | CU19: 0 | CV19: 0 | CW19: 0 | CX19: 0 | CY19: 0 | CZ19: 0 | DA19: 0 | DB19: 0 | DC19: 0 | DD19: 0 | DE19: 0 | DF19: 0 | DG19: 0 | DH19: 0 | DI19: 0 | DJ19: 0 | DK19: 0 | DL19: 0 | DM19: 0 | DN19: 0 | DO19: 0 | DP19: 0 | DQ19: 0 | DR19: 0 | DS19: 0 | DT19: 0 | DU19: 0 | DV19: 0 | DW19: 0 | DX19: 0 | DY19: 0 | DZ19: 0 | EA19: 0 | EB19: 0 | EC19: 0 | ED19: 0 | EE19: 0 | EF19: 0 | EG19: 0 | EH19: 0 | EI19: 0 | EJ19: 0 | FB19: 0 | FC19: 0 | FD19: 0 | FE19: 0 | FF19: 0 | FG19: 0 | FH19: 0 | FI19: 0 | FJ19: 0 | FK19: 0 | FL19: 0 | FM19: 0 | FN19: 0 | FO19: 0 | FP19: 0 | FQ19: 0 | FR19: 0 | FS19: 0 | FT19: 0 | FU19: 0 | FV19: 0 | FW19: 0 | FX19: 0 | FY19: 0 | FZ19: 0 | GA19: 0 | GB19: 0 | GC19: 0 | GD19: 0 | GE19: 0 | GF19: 0 | GG19: 0 | GH19: 0 | GI19: 0 | GJ19: 0 | GK19: 0 | GL19: 0 | GM19: 0 | GN19: 0 | GO19: 0 | GP19: 0 | GQ19: 0 | GR19: 0 | GS19: 0 | GT19: 0 | GU19: 0 | GV19: 0 | GW19: 0 | GX19: 0 | GY19: 0 | GZ19: 0 | HA19: 0 | HB19: 0 | HC19: 0 | HD19: 0 | HE19: 0 | HF19: 0 | HG19: 0 | HH19: 0 | HI19: 0 | HJ19: 0 | HK19: 0 | HL19: 0 | HM19: 0 | HN19: 0 | HO19: 0 | HP19: 0 | HQ19: 0 | HR19: 0 | HS19: 0 | HT19: 0 | HU19: 0 | HV19: 0 | HW19: 0 | HX19: 0 | HY19: 0 | HZ19: 0 | IA19: 0 | IB19: 0 | IC19: 0 | ID19: 0 | IE19: 0 | IF19: 0 | IG19: 0 | IH19: 0 | II19: 0 | IJ19: 0 | IK19: 0 | IL19: 0 | IM19: 0 | IN19: 0 | IO19: 0 | IP19: 0 | IQ19: 0 | IR19: 0 | IS19: 0 | IT19: 0 | IU19: 0 | IV19: 0 | IW19: 0 | IX19: 0 | IY19: 0 | IZ19: 0 | JA19: 0 | JB19: 0 | JC19: 0 | JD19: 0 | JE19: 0 | JF19: 0 | JG19: 0 | JH19: 0 | JI19: 0 | JJ19: 0 | JK19: 0 | JL19: 0 | JM19: 0 | JN19: 0 | JO19: 0 | JP19: 0 | JQ19: 0
B20: 16:00:00 | C20: 0.064 | D20: 0.076 | E20: 0.026 | F20: 0.128 | G20: 0.052 | H20: 0.046 | K20: 17 | L20: =KEY!$E$8*Original!B20 -> 0 | M20: 0 | N20: 0.005050505051 | P20: 0.005291005291 | T20: 17 | U20: =TRANSPOSE('Average power consumption'!$C$3:$C$122)*L20 -> 0 | V20: 0 | W20: 0 | X20: 0 | Y20: 0 | Z20: 0 | AA20: 0 | AB20: 0 | AC20: 0 | AD20: 0 | AE20: 0 | AF20: 0 | AG20: 0 | AH20: 0 | AI20: 0 | AJ20: 0 | AK20: 0 | AL20: 0 | AM20: 0 | AN20: 0 | AO20: 0 | AP20: 0 | AQ20: 0 | AR20: 0 | AS20: 0 | AT20: 0 | AU20: 0 | AV20: 0 | AW20: 0 | AX20: 0 | AY20: 0 | AZ20: 0 | BA20: 0 | BB20: 0 | BC20: 0 | BD20: 0 | BE20: 0 | BF20: 0 | BG20: 0 | BH20: 0 | BI20: 0 | BJ20: 0 | BK20: 0 | BL20: 0 | BM20: 0 | BN20: 0 | BO20: 0 | BP20: 0 | BQ20: 0 | BR20: 0 | BS20: 0 | BT20: 0 | BU20: 0 | BV20: 0 | BW20: 0 | BX20: 0 | BY20: 0 | BZ20: 0 | CA20: 0 | CB20: 0 | CC20: 0 | CD20: 0 | CE20: 0 | CF20: 0 | CG20: 0 | CH20: 0 | CI20: 0 | CJ20: 0 | CK20: 0 | CL20: 0 | CM20: 0 | CN20: 0 | CO20: 0 | CP20: 0 | CQ20: 0 | CR20: 0 | CS20: 0 | CT20: 0 | CU20: 0 | CV20: 0 | CW20: 0 | CX20: 0 | CY20: 0 | CZ20: 0 | DA20: 0 | DB20: 0 | DC20: 0 | DD20: 0 | DE20: 0 | DF20: 0 | DG20: 0 | DH20: 0 | DI20: 0 | DJ20: 0 | DK20: 0 | DL20: 0 | DM20: 0 | DN20: 0 | DO20: 0 | DP20: 0 | DQ20: 0 | DR20: 0 | DS20: 0 | DT20: 0 | DU20: 0 | DV20: 0 | DW20: 0 | DX20: 0 | DY20: 0 | DZ20: 0 | EA20: 0 | EB20: 0 | EC20: 0 | ED20: 0 | EE20: 0 | EF20: 0 | EG20: 0 | EH20: 0 | EI20: 0 | EJ20: 0 | FC20: 0 | FD20: 0 | FE20: 0 | FF20: 0 | FG20: 0 | FH20: 0 | FI20: 0 | FJ20: 0 | FK20: 0 | FL20: 0 | FM20: 0 | FN20: 0 | FO20: 0 | FP20: 0 | FQ20: 0 | FR20: 0 | FS20: 0 | FT20: 0 | FU20: 0 | FV20: 0 | FW20: 0 | FX20: 0 | FY20: 0 | FZ20: 0 | GA20: 0 | GB20: 0 | GC20: 0 | GD20: 0 | GE20: 0 | GF20: 0 | GG20: 0 | GH20: 0 | GI20: 0 | GJ20: 0 | GK20: 0 | GL20: 0 | GM20: 0 | GN20: 0 | GO20: 0 | GP20: 0 | GQ20: 0 | GR20: 0 | GS20: 0 | GT20: 0 | GU20: 0 | GV20: 0 | GW20: 0 | GX20: 0 | GY20: 0 | GZ20: 0 | HA20: 0 | HB20: 0 | HC20: 0 | HD20: 0 | HE20: 0 | HF20: 0 | HG20: 0 | HH20: 0 | HI20: 0 | HJ20: 0 | HK20: 0 | HL20: 0 | HM20: 0 | HN20: 0 | HO20: 0 | HP20: 0 | HQ20: 0 | HR20: 0 | HS20: 0 | HT20: 0 | HU20: 0 | HV20: 0 | HW20: 0 | HX20: 0 | HY20: 0 | HZ20: 0 | IA20: 0 | IB20: 0 | IC20: 0 | ID20: 0 | IE20: 0 | IF20: 0 | IG20: 0 | IH20: 0 | II20: 0 | IJ20: 0 | IK20: 0 | IL20: 0 | IM20: 0 | IN20: 0 | IO20: 0 | IP20: 0 | IQ20: 0 | IR20: 0 | IS20: 0 | IT20: 0 | IU20: 0 | IV20: 0 | IW20: 0 | IX20: 0 | IY20: 0 | IZ20: 0 | JA20: 0 | JB20: 0 | JC20: 0 | JD20: 0 | JE20: 0 | JF20: 0 | JG20: 0 | JH20: 0 | JI20: 0 | JJ20: 0 | JK20: 0 | JL20: 0 | JM20: 0 | JN20: 0 | JO20: 0 | JP20: 0 | JQ20: 0 | JR20: 0
B21: 17:00:00 | C21: 0.071 | D21: 0.069 | E21: 0.04 | F21: 0.077 | G21: 0.163 | H21: 0.056 | K21: 18 | L21: =KEY!$E$8*Original!B21 -> 0 | M21: 0 | N21: 0 | P21: 0 | T21: 18 | U21: =TRANSPOSE('Average power consumption'!$C$3:$C$122)*L21 -> 0 | V21: 0 | W21: 0 | X21: 0 | Y21: 0 | Z21: 0 | AA21: 0 | AB21: 0 | AC21: 0 | AD21: 0 | AE21: 0 | AF21: 0 | AG21: 0 | AH21: 0 | AI21: 0 | AJ21: 0 | AK21: 0 | AL21: 0 | AM21: 0 | AN21: 0 | AO21: 0 | AP21: 0 | AQ21: 0 | AR21: 0 | AS21: 0 | AT21: 0 | AU21: 0 | AV21: 0 | AW21: 0 | AX21: 0 | AY21: 0 | AZ21: 0 | BA21: 0 | BB21: 0 | BC21: 0 | BD21: 0 | BE21: 0 | BF21: 0 | BG21: 0 | BH21: 0 | BI21: 0 | BJ21: 0 | BK21: 0 | BL21: 0 | BM21: 0 | BN21: 0 | BO21: 0 | BP21: 0 | BQ21: 0 | BR21: 0 | BS21: 0 | BT21: 0 | BU21: 0 | BV21: 0 | BW21: 0 | BX21: 0 | BY21: 0 | BZ21: 0 | CA21: 0 | CB21: 0 | CC21: 0 | CD21: 0 | CE21: 0 | CF21: 0 | CG21: 0 | CH21: 0 | CI21: 0 | CJ21: 0 | CK21: 0 | CL21: 0 | CM21: 0 | CN21: 0 | CO21: 0 | CP21: 0 | CQ21: 0 | CR21: 0 | CS21: 0 | CT21: 0 | CU21: 0 | CV21: 0 | CW21: 0 | CX21: 0 | CY21: 0 | CZ21: 0 | DA21: 0 | DB21: 0 | DC21: 0 | DD21: 0 | DE21: 0 | DF21: 0 | DG21: 0 | DH21: 0 | DI21: 0 | DJ21: 0 | DK21: 0 | DL21: 0 | DM21: 0 | DN21: 0 | DO21: 0 | DP21: 0 | DQ21: 0 | DR21: 0 | DS21: 0 | DT21: 0 | DU21: 0 | DV21: 0 | DW21: 0 | DX21: 0 | DY21: 0 | DZ21: 0 | EA21: 0 | EB21: 0 | EC21: 0 | ED21: 0 | EE21: 0 | EF21: 0 | EG21: 0 | EH21: 0 | EI21: 0 | EJ21: 0 | FD21: 0 | FE21: 0 | FF21: 0 | FG21: 0 | FH21: 0 | FI21: 0 | FJ21: 0 | FK21: 0 | FL21: 0 | FM21: 0 | FN21: 0 | FO21: 0 | FP21: 0 | FQ21: 0 | FR21: 0 | FS21: 0 | FT21: 0 | FU21: 0 | FV21: 0 | FW21: 0 | FX21: 0 | FY21: 0 | FZ21: 0 | GA21: 0 | GB21: 0 | GC21: 0 | GD21: 0 | GE21: 0 | GF21: 0 | GG21: 0 | GH21: 0 | GI21: 0 | GJ21: 0 | GK21: 0 | GL21: 0 | GM21: 0 | GN21: 0 | GO21: 0 | GP21: 0 | GQ21: 0 | GR21: 0 | GS21: 0 | GT21: 0 | GU21: 0 | GV21: 0 | GW21: 0 | GX21: 0 | GY21: 0 | GZ21: 0 | HA21: 0 | HB21: 0 | HC21: 0 | HD21: 0 | HE21: 0 | HF21: 0 | HG21: 0 | HH21: 0 | HI21: 0 | HJ21: 0 | HK21: 0 | HL21: 0 | HM21: 0 | HN21: 0 | HO21: 0 | HP21: 0 | HQ21: 0 | HR21: 0 | HS21: 0 | HT21: 0 | HU21: 0 | HV21: 0 | HW21: 0 | HX21: 0 | HY21: 0 | HZ21: 0 | IA21: 0 | IB21: 0 | IC21: 0 | ID21: 0 | IE21: 0 | IF21: 0 | IG21: 0 | IH21: 0 | II21: 0 | IJ21: 0 | IK21: 0 | IL21: 0 | IM21: 0 | IN21: 0 | IO21: 0 | IP21: 0 | IQ21: 0 | IR21: 0 | IS21: 0 | IT21: 0 | IU21: 0 | IV21: 0 | IW21: 0 | IX21: 0 | IY21: 0 | IZ21: 0 | JA21: 0 | JB21: 0 | JC21: 0 | JD21: 0 | JE21: 0 | JF21: 0 | JG21: 0 | JH21: 0 | JI21: 0 | JJ21: 0 | JK21: 0 | JL21: 0 | JM21: 0 | JN21: 0 | JO21: 0 | JP21: 0 | JQ21: 0 | JR21: 0 | JS21: 0
B22: 18:00:00 | C22: 0.099 | D22: 0.038 | E22: 0.04 | F22: 0.09 | G22: 0.112 | H22: 0.074 | K22: 19 | L22: =KEY!$E$8*Original!B22 -> 0 | M22: 0 | N22: 0 | P22: 0 | T22: 19 | U22: =TRANSPOSE('Average power consumption'!$C$3:$C$122)*L22 -> 0 | V22: 0 | W22: 0 | X22: 0 | Y22: 0 | Z22: 0 | AA22: 0 | AB22: 0 | AC22: 0 | AD22: 0 | AE22: 0 | AF22: 0 | AG22: 0 | AH22: 0 | AI22: 0 | AJ22: 0 | AK22: 0 | AL22: 0 | AM22: 0 | AN22: 0 | AO22: 0 | AP22: 0 | AQ22: 0 | AR22: 0 | AS22: 0 | AT22: 0 | AU22: 0 | AV22: 0 | AW22: 0 | AX22: 0 | AY22: 0 | AZ22: 0 | BA22: 0 | BB22: 0 | BC22: 0 | BD22: 0 | BE22: 0 | BF22: 0 | BG22: 0 | BH22: 0 | BI22: 0 | BJ22: 0 | BK22: 0 | BL22: 0 | BM22: 0 | BN22: 0 | BO22: 0 | BP22: 0 | BQ22: 0 | BR22: 0 | BS22: 0 | BT22: 0 | BU22: 0 | BV22: 0 | BW22: 0 | BX22: 0 | BY22: 0 | BZ22: 0 | CA22: 0 | CB22: 0 | CC22: 0 | CD22: 0 | CE22: 0 | CF22: 0 | CG22: 0 | CH22: 0 | CI22: 0 | CJ22: 0 | CK22: 0 | CL22: 0 | CM22: 0 | CN22: 0 | CO22: 0 | CP22: 0 | CQ22: 0 | CR22: 0 | CS22: 0 | CT22: 0 | CU22: 0 | CV22: 0 | CW22: 0 | CX22: 0 | CY22: 0 | CZ22: 0 | DA22: 0 | DB22: 0 | DC22: 0 | DD22: 0 | DE22: 0 | DF22: 0 | DG22: 0 | DH22: 0 | DI22: 0 | DJ22: 0 | DK22: 0 | DL22: 0 | DM22: 0 | DN22: 0 | DO22: 0 | DP22: 0 | DQ22: 0 | DR22: 0 | DS22: 0 | DT22: 0 | DU22: 0 | DV22: 0 | DW22: 0 | DX22: 0 | DY22: 0 | DZ22: 0 | EA22: 0 | EB22: 0 | EC22: 0 | ED22: 0 | EE22: 0 | EF22: 0 | EG22: 0 | EH22: 0 | EI22: 0 | EJ22: 0 | FE22: 0 | FF22: 0 | FG22: 0 | FH22: 0 | FI22: 0 | FJ22: 0 | FK22: 0 | FL22: 0 | FM22: 0 | FN22: 0 | FO22: 0 | FP22: 0 | FQ22: 0 | FR22: 0 | FS22: 0 | FT22: 0 | FU22: 0 | FV22: 0 | FW22: 0 | FX22: 0 | FY22: 0 | FZ22: 0 | GA22: 0 | GB22: 0 | GC22: 0 | GD22: 0 | GE22: 0 | GF22: 0 | GG22: 0 | GH22: 0 | GI22: 0 | GJ22: 0 | GK22: 0 | GL22: 0 | GM22: 0 | GN22: 0 | GO22: 0 | GP22: 0 | GQ22: 0 | GR22: 0 | GS22: 0 | GT22: 0 | GU22: 0 | GV22: 0 | GW22: 0 | GX22: 0 | GY22: 0 | GZ22: 0 | HA22: 0 | HB22: 0 | HC22: 0 | HD22: 0 | HE22: 0 | HF22: 0 | HG22: 0 | HH22: 0 | HI22: 0 | HJ22: 0 | HK22: 0 | HL22: 0 | HM22: 0 | HN22: 0 | HO22: 0 | HP22: 0 | HQ22: 0 | HR22: 0 | HS22: 0 | HT22: 0 | HU22: 0 | HV22: 0 | HW22: 0 | HX22: 0 | HY22: 0 | HZ22: 0 | IA22: 0 | IB22: 0 | IC22: 0 | ID22: 0 | IE22: 0 | IF22: 0 | IG22: 0 | IH22: 0 | II22: 0 | IJ22: 0 | IK22: 0 | IL22: 0 | IM22: 0 | IN22: 0 | IO22: 0 | IP22: 0 | IQ22: 0 | IR22: 0 | IS22: 0 | IT22: 0 | IU22: 0 | IV22: 0 | IW22: 0 | IX22: 0 | IY22: 0 | IZ22: 0 | JA22: 0 | JB22: 0 | JC22: 0 | JD22: 0 | JE22: 0 | JF22: 0 | JG22: 0 | JH22: 0 | JI22: 0 | JJ22: 0 | JK22: 0 | JL22: 0 | JM22: 0 | JN22: 0 | JO22: 0 | JP22: 0 | JQ22: 0 | JR22: 0 | JS22: 0 | JT22: 0
B23: 19:00:00 | C23: 0.092 | D23: 0.092 | E23: 0.06 | F23: 0.064 | G23: 0.094 | H23: 0.074 | K23: 20 | L23: =KEY!$E$8*Original!B23 -> 0 | M23: 0 | N23: 0 | P23: 0 | T23: 20 | U23: =TRANSPOSE('Average power consumption'!$C$3:$C$122)*L23 -> 0 | V23: 0 | W23: 0 | X23: 0 | Y23: 0 | Z23: 0 | AA23: 0 | AB23: 0 | AC23: 0 | AD23: 0 | AE23: 0 | AF23: 0 | AG23: 0 | AH23: 0 | AI23: 0 | AJ23: 0 | AK23: 0 | AL23: 0 | AM23: 0 | AN23: 0 | AO23: 0 | AP23: 0 | AQ23: 0 | AR23: 0 | AS23: 0 | AT23: 0 | AU23: 0 | AV23: 0 | AW23: 0 | AX23: 0 | AY23: 0 | AZ23: 0 | BA23: 0 | BB23: 0 | BC23: 0 | BD23: 0 | BE23: 0 | BF23: 0 | BG23: 0 | BH23: 0 | BI23: 0 | BJ23: 0 | BK23: 0 | BL23: 0 | BM23: 0 | BN23: 0 | BO23: 0 | BP23: 0 | BQ23: 0 | BR23: 0 | BS23: 0 | BT23: 0 | BU23: 0 | BV23: 0 | BW23: 0 | BX23: 0 | BY23: 0 | BZ23: 0 | CA23: 0 | CB23: 0 | CC23: 0 | CD23: 0 | CE23: 0 | CF23: 0 | CG23: 0 | CH23: 0 | CI23: 0 | CJ23: 0 | CK23: 0 | CL23: 0 | CM23: 0 | CN23: 0 | CO23: 0 | CP23: 0 | CQ23: 0 | CR23: 0 | CS23: 0 | CT23: 0 | CU23: 0 | CV23: 0 | CW23: 0 | CX23: 0 | CY23: 0 | CZ23: 0 | DA23: 0 | DB23: 0 | DC23: 0 | DD23: 0 | DE23: 0 | DF23: 0 | DG23: 0 | DH23: 0 | DI23: 0 | DJ23: 0 | DK23: 0 | DL23: 0 | DM23: 0 | DN23: 0 | DO23: 0 | DP23: 0 | DQ23: 0 | DR23: 0 | DS23: 0 | DT23: 0 | DU23: 0 | DV23: 0 | DW23: 0 | DX23: 0 | DY23: 0 | DZ23: 0 | EA23: 0 | EB23: 0 | EC23: 0 | ED23: 0 | EE23: 0 | EF23: 0 | EG23: 0 | EH23: 0 | EI23: 0 | EJ23: 0 | FF23: 0 | FG23: 0 | FH23: 0 | FI23: 0 | FJ23: 0 | FK23: 0 | FL23: 0 | FM23: 0 | FN23: 0 | FO23: 0 | FP23: 0 | FQ23: 0 | FR23: 0 | FS23: 0 | FT23: 0 | FU23: 0 | FV23: 0 | FW23: 0 | FX23: 0 | FY23: 0 | FZ23: 0 | GA23: 0 | GB23: 0 | GC23: 0 | GD23: 0 | GE23: 0 | GF23: 0 | GG23: 0 | GH23: 0 | GI23: 0 | GJ23: 0 | GK23: 0 | GL23: 0 | GM23: 0 | GN23: 0 | GO23: 0 | GP23: 0 | GQ23: 0 | GR23: 0 | GS23: 0 | GT23: 0 | GU23: 0 | GV23: 0 | GW23: 0 | GX23: 0 | GY23: 0 | GZ23: 0 | HA23: 0 | HB23: 0 | HC23: 0 | HD23: 0 | HE23: 0 | HF23: 0 | HG23: 0 | HH23: 0 | HI23: 0 | HJ23: 0 | HK23: 0 | HL23: 0 | HM23: 0 | HN23: 0 | HO23: 0 | HP23: 0 | HQ23: 0 | HR23: 0 | HS23: 0 | HT23: 0 | HU23: 0 | HV23: 0 | HW23: 0 | HX23: 0 | HY23: 0 | HZ23: 0 | IA23: 0 | IB23: 0 | IC23: 0 | ID23: 0 | IE23: 0 | IF23: 0 | IG23: 0 | IH23: 0 | II23: 0 | IJ23: 0 | IK23: 0 | IL23: 0 | IM23: 0 | IN23: 0 | IO23: 0 | IP23: 0 | IQ23: 0 | IR23: 0 | IS23: 0 | IT23: 0 | IU23: 0 | IV23: 0 | IW23: 0 | IX23: 0 | IY23: 0 | IZ23: 0 | JA23: 0 | JB23: 0 | JC23: 0 | JD23: 0 | JE23: 0 | JF23: 0 | JG23: 0 | JH23: 0 | JI23: 0 | JJ23: 0 | JK23: 0 | JL23: 0 | JM23: 0 | JN23: 0 | JO23: 0 | JP23: 0 | JQ23: 0 | JR23: 0 | JS23: 0 | JT23: 0 | JU23: 0
B24: 20:00:00 | C24: 0.067 | D24: 0.069 | E24: 0.139 | F24: 0.026 | G24: 0.069 | H24: 0.157 | K24: 21 | L24: =KEY!$E$8*Original!B24 -> 0 | M24: 0 | N24: 0 | P24: 0 | T24: 21 | U24: =TRANSPOSE('Average power consumption'!$C$3:$C$122)*L24 -> 0 | V24: 0 | W24: 0 | X24: 0 | Y24: 0 | Z24: 0 | AA24: 0 | AB24: 0 | AC24: 0 | AD24: 0 | AE24: 0 | AF24: 0 | AG24: 0 | AH24: 0 | AI24: 0 | AJ24: 0 | AK24: 0 | AL24: 0 | AM24: 0 | AN24: 0 | AO24: 0 | AP24: 0 | AQ24: 0 | AR24: 0 | AS24: 0 | AT24: 0 | AU24: 0 | AV24: 0 | AW24: 0 | AX24: 0 | AY24: 0 | AZ24: 0 | BA24: 0 | BB24: 0 | BC24: 0 | BD24: 0 | BE24: 0 | BF24: 0 | BG24: 0 | BH24: 0 | BI24: 0 | BJ24: 0 | BK24: 0 | BL24: 0 | BM24: 0 | BN24: 0 | BO24: 0 | BP24: 0 | BQ24: 0 | BR24: 0 | BS24: 0 | BT24: 0 | BU24: 0 | BV24: 0 | BW24: 0 | BX24: 0 | BY24: 0 | BZ24: 0 | CA24: 0 | CB24: 0 | CC24: 0 | CD24: 0 | CE24: 0 | CF24: 0 | CG24: 0 | CH24: 0 | CI24: 0 | CJ24: 0 | CK24: 0 | CL24: 0 | CM24: 0 | CN24: 0 | CO24: 0 | CP24: 0 | CQ24: 0 | CR24: 0 | CS24: 0 | CT24: 0 | CU24: 0 | CV24: 0 | CW24: 0 | CX24: 0 | CY24: 0 | CZ24: 0 | DA24: 0 | DB24: 0 | DC24: 0 | DD24: 0 | DE24: 0 | DF24: 0 | DG24: 0 | DH24: 0 | DI24: 0 | DJ24: 0 | DK24: 0 | DL24: 0 | DM24: 0 | DN24: 0 | DO24: 0 | DP24: 0 | DQ24: 0 | DR24: 0 | DS24: 0 | DT24: 0 | DU24: 0 | DV24: 0 | DW24: 0 | DX24: 0 | DY24: 0 | DZ24: 0 | EA24: 0 | EB24: 0 | EC24: 0 | ED24: 0 | EE24: 0 | EF24: 0 | EG24: 0 | EH24: 0 | EI24: 0 | EJ24: 0 | FG24: 0 | FH24: 0 | FI24: 0 | FJ24: 0 | FK24: 0 | FL24: 0 | FM24: 0 | FN24: 0 | FO24: 0 | FP24: 0 | FQ24: 0 | FR24: 0 | FS24: 0 | FT24: 0 | FU24: 0 | FV24: 0 | FW24: 0 | FX24: 0 | FY24: 0 | FZ24: 0 | GA24: 0 | GB24: 0 | GC24: 0 | GD24: 0 | GE24: 0 | GF24: 0 | GG24: 0 | GH24: 0 | GI24: 0 | GJ24: 0 | GK24: 0 | GL24: 0 | GM24: 0 | GN24: 0 | GO24: 0 | GP24: 0 | GQ24: 0 | GR24: 0 | GS24: 0 | GT24: 0 | GU24: 0 | GV24: 0 | GW24: 0 | GX24: 0 | GY24: 0 | GZ24: 0 | HA24: 0 | HB24: 0 | HC24: 0 | HD24: 0 | HE24: 0 | HF24: 0 | HG24: 0 | HH24: 0 | HI24: 0 | HJ24: 0 | HK24: 0 | HL24: 0 | HM24: 0 | HN24: 0 | HO24: 0 | HP24: 0 | HQ24: 0 | HR24: 0 | HS24: 0 | HT24: 0 | HU24: 0 | HV24: 0 | HW24: 0 | HX24: 0 | HY24: 0 | HZ24: 0 | IA24: 0 | IB24: 0 | IC24: 0 | ID24: 0 | IE24: 0 | IF24: 0 | IG24: 0 | IH24: 0 | II24: 0 | IJ24: 0 | IK24: 0 | IL24: 0 | IM24: 0 | IN24: 0 | IO24: 0 | IP24: 0 | IQ24: 0 | IR24: 0 | IS24: 0 | IT24: 0 | IU24: 0 | IV24: 0 | IW24: 0 | IX24: 0 | IY24: 0 | IZ24: 0 | JA24: 0 | JB24: 0 | JC24: 0 | JD24: 0 | JE24: 0 | JF24: 0 | JG24: 0 | JH24: 0 | JI24: 0 | JJ24: 0 | JK24: 0 | JL24: 0 | JM24: 0 | JN24: 0 | JO24: 0 | JP24: 0 | JQ24: 0 | JR24: 0 | JS24: 0 | JT24: 0 | JU24: 0 | JV24: 0
B25: 21:00:00 | C25: 0.06 | D25: 0.031 | E25: 0.079 | F25: 0.051 | G25: 0.069 | H25: 0.056 | K25: 22 | L25: =KEY!$E$8*Original!B25 -> 0 | M25: 0 | N25: 0 | P25: 0 | T25: 22 | U25: =TRANSPOSE('Average power consumption'!$C$3:$C$122)*L25 -> 0 | V25: 0 | W25: 0 | X25: 0 | Y25: 0 | Z25: 0 | AA25: 0 | AB25: 0 | AC25: 0 | AD25: 0 | AE25: 0 | AF25: 0 | AG25: 0 | AH25: 0 | AI25: 0 | AJ25: 0 | AK25: 0 | AL25: 0 | AM25: 0 | AN25: 0 | AO25: 0 | AP25: 0 | AQ25: 0 | AR25: 0 | AS25: 0 | AT25: 0 | AU25: 0 | AV25: 0 | AW25: 0 | AX25: 0 | AY25: 0 | AZ25: 0 | BA25: 0 | BB25: 0 | BC25: 0 | BD25: 0 | BE25: 0 | BF25: 0 | BG25: 0 | BH25: 0 | BI25: 0 | BJ25: 0 | BK25: 0 | BL25: 0 | BM25: 0 | BN25: 0 | BO25: 0 | BP25: 0 | BQ25: 0 | BR25: 0 | BS25: 0 | BT25: 0 | BU25: 0 | BV25: 0 | BW25: 0 | BX25: 0 | BY25: 0 | BZ25: 0 | CA25: 0 | CB25: 0 | CC25: 0 | CD25: 0 | CE25: 0 | CF25: 0 | CG25: 0 | CH25: 0 | CI25: 0 | CJ25: 0 | CK25: 0 | CL25: 0 | CM25: 0 | CN25: 0 | CO25: 0 | CP25: 0 | CQ25: 0 | CR25: 0 | CS25: 0 | CT25: 0 | CU25: 0 | CV25: 0 | CW25: 0 | CX25: 0 | CY25: 0 | CZ25: 0 | DA25: 0 | DB25: 0 | DC25: 0 | DD25: 0 | DE25: 0 | DF25: 0 | DG25: 0 | DH25: 0 | DI25: 0 | DJ25: 0 | DK25: 0 | DL25: 0 | DM25: 0 | DN25: 0 | DO25: 0 | DP25: 0 | DQ25: 0 | DR25: 0 | DS25: 0 | DT25: 0 | DU25: 0 | DV25: 0 | DW25: 0 | DX25: 0 | DY25: 0 | DZ25: 0 | EA25: 0 | EB25: 0 | EC25: 0 | ED25: 0 | EE25: 0 | EF25: 0 | EG25: 0 | EH25: 0 | EI25: 0 | EJ25: 0 | FH25: 0 | FI25: 0 | FJ25: 0 | FK25: 0 | FL25: 0 | FM25: 0 | FN25: 0 | FO25: 0 | FP25: 0 | FQ25: 0 | FR25: 0 | FS25: 0 | FT25: 0 | FU25: 0 | FV25: 0 | FW25: 0 | FX25: 0 | FY25: 0 | FZ25: 0 | GA25: 0 | GB25: 0 | GC25: 0 | GD25: 0 | GE25: 0 | GF25: 0 | GG25: 0 | GH25: 0 | GI25: 0 | GJ25: 0 | GK25: 0 | GL25: 0 | GM25: 0 | GN25: 0 | GO25: 0 | GP25: 0 | GQ25: 0 | GR25: 0 | GS25: 0 | GT25: 0 | GU25: 0 | GV25: 0 | GW25: 0 | GX25: 0 | GY25: 0 | GZ25: 0 | HA25: 0 | HB25: 0 | HC25: 0 | HD25: 0 | HE25: 0 | HF25: 0 | HG25: 0 | HH25: 0 | HI25: 0 | HJ25: 0 | HK25: 0 | HL25: 0 | HM25: 0 | HN25: 0 | HO25: 0 | HP25: 0 | HQ25: 0 | HR25: 0 | HS25: 0 | HT25: 0 | HU25: 0 | HV25: 0 | HW25: 0 | HX25: 0 | HY25: 0 | HZ25: 0 | IA25: 0 | IB25: 0 | IC25: 0 | ID25: 0 | IE25: 0 | IF25: 0 | IG25: 0 | IH25: 0 | II25: 0 | IJ25: 0 | IK25: 0 | IL25: 0 | IM25: 0 | IN25: 0 | IO25: 0 | IP25: 0 | IQ25: 0 | IR25: 0 | IS25: 0 | IT25: 0 | IU25: 0 | IV25: 0 | IW25: 0 | IX25: 0 | IY25: 0 | IZ25: 0 | JA25: 0 | JB25: 0 | JC25: 0 | JD25: 0 | JE25: 0 | JF25: 0 | JG25: 0 | JH25: 0 | JI25: 0 | JJ25: 0 | JK25: 0 | JL25: 0 | JM25: 0 | JN25: 0 | JO25: 0 | JP25: 0 | JQ25: 0 | JR25: 0 | JS25: 0 | JT25: 0 | JU25: 0 | JV25: 0 | JW25: 0
B26: 22:00:00 | C26: 0.039 | D26: 0.023 | E26: 0.079 | F26: 0.064 | G26: 0.069 | H26: 0.074 | K26: 23 | L26: =KEY!$E$8*Original!B26 -> 0 | M26: 0 | N26: 0 | P26: 0 | T26: 23 | U26: =TRANSPOSE('Average power consumption'!$C$3:$C$122)*L26 -> 0 | V26: 0 | W26: 0 | X26: 0 | Y26: 0 | Z26: 0 | AA26: 0 | AB26: 0 | AC26: 0 | AD26: 0 | AE26: 0 | AF26: 0 | AG26: 0 | AH26: 0 | AI26: 0 | AJ26: 0 | AK26: 0 | AL26: 0 | AM26: 0 | AN26: 0 | AO26: 0 | AP26: 0 | AQ26: 0 | AR26: 0 | AS26: 0 | AT26: 0 | AU26: 0 | AV26: 0 | AW26: 0 | AX26: 0 | AY26: 0 | AZ26: 0 | BA26: 0 | BB26: 0 | BC26: 0 | BD26: 0 | BE26: 0 | BF26: 0 | BG26: 0 | BH26: 0 | BI26: 0 | BJ26: 0 | BK26: 0 | BL26: 0 | BM26: 0 | BN26: 0 | BO26: 0 | BP26: 0 | BQ26: 0 | BR26: 0 | BS26: 0 | BT26: 0 | BU26: 0 | BV26: 0 | BW26: 0 | BX26: 0 | BY26: 0 | BZ26: 0 | CA26: 0 | CB26: 0 | CC26: 0 | CD26: 0 | CE26: 0 | CF26: 0 | CG26: 0 | CH26: 0 | CI26: 0 | CJ26: 0 | CK26: 0 | CL26: 0 | CM26: 0 | CN26: 0 | CO26: 0 | CP26: 0 | CQ26: 0 | CR26: 0 | CS26: 0 | CT26: 0 | CU26: 0 | CV26: 0 | CW26: 0 | CX26: 0 | CY26: 0 | CZ26: 0 | DA26: 0 | DB26: 0 | DC26: 0 | DD26: 0 | DE26: 0 | DF26: 0 | DG26: 0 | DH26: 0 | DI26: 0 | DJ26: 0 | DK26: 0 | DL26: 0 | DM26: 0 | DN26: 0 | DO26: 0 | DP26: 0 | DQ26: 0 | DR26: 0 | DS26: 0 | DT26: 0 | DU26: 0 | DV26: 0 | DW26: 0 | DX26: 0 | DY26: 0 | DZ26: 0 | EA26: 0 | EB26: 0 | EC26: 0 | ED26: 0 | EE26: 0 | EF26: 0 | EG26: 0 | EH26: 0 | EI26: 0 | EJ26: 0 | FI26: 0 | FJ26: 0 | FK26: 0 | FL26: 0 | FM26: 0 | FN26: 0 | FO26: 0 | FP26: 0 | FQ26: 0 | FR26: 0 | FS26: 0 | FT26: 0 | FU26: 0 | FV26: 0 | FW26: 0 | FX26: 0 | FY26: 0 | FZ26: 0 | GA26: 0 | GB26: 0 | GC26: 0 | GD26: 0 | GE26: 0 | GF26: 0 | GG26: 0 | GH26: 0 | GI26: 0 | GJ26: 0 | GK26: 0 | GL26: 0 | GM26: 0 | GN26: 0 | GO26: 0 | GP26: 0 | GQ26: 0 | GR26: 0 | GS26: 0 | GT26: 0 | GU26: 0 | GV26: 0 | GW26: 0 | GX26: 0 | GY26: 0 | GZ26: 0 | HA26: 0 | HB26: 0 | HC26: 0 | HD26: 0 | HE26: 0 | HF26: 0 | HG26: 0 | HH26: 0 | HI26: 0 | HJ26: 0 | HK26: 0 | HL26: 0 | HM26: 0 | HN26: 0 | HO26: 0 | HP26: 0 | HQ26: 0 | HR26: 0 | HS26: 0 | HT26: 0 | HU26: 0 | HV26: 0 | HW26: 0 | HX26: 0 | HY26: 0 | HZ26: 0 | IA26: 0 | IB26: 0 | IC26: 0 | ID26: 0 | IE26: 0 | IF26: 0 | IG26: 0 | IH26: 0 | II26: 0 | IJ26: 0 | IK26: 0 | IL26: 0 | IM26: 0 | IN26: 0 | IO26: 0 | IP26: 0 | IQ26: 0 | IR26: 0 | IS26: 0 | IT26: 0 | IU26: 0 | IV26: 0 | IW26: 0 | IX26: 0 | IY26: 0 | IZ26: 0 | JA26: 0 | JB26: 0 | JC26: 0 | JD26: 0 | JE26: 0 | JF26: 0 | JG26: 0 | JH26: 0 | JI26: 0 | JJ26: 0 | JK26: 0 | JL26: 0 | JM26: 0 | JN26: 0 | JO26: 0 | JP26: 0 | JQ26: 0 | JR26: 0 | JS26: 0 | JT26: 0 | JU26: 0 | JV26: 0 | JW26: 0 | JX26: 0
B27: 23:00:00 | C27: 0.025 | D27: 0.023 | E27: 0.046 | F27: 0.038 | G27: 0.026 | H27: 0.019 | K27: 24 | L27: =KEY!$E$8*Original!B27 -> 0 | M27: 0 | N27: 0 | P27: 0 | T27: 24 | U27: =TRANSPOSE('Average power consumption'!$C$3:$C$122)*L27 -> 0 | V27: 0 | W27: 0 | X27: 0 | Y27: 0 | Z27: 0 | AA27: 0 | AB27: 0 | AC27: 0 | AD27: 0 | AE27: 0 | AF27: 0 | AG27: 0 | AH27: 0 | AI27: 0 | AJ27: 0 | AK27: 0 | AL27: 0 | AM27: 0 | AN27: 0 | AO27: 0 | AP27: 0 | AQ27: 0 | AR27: 0 | AS27: 0 | AT27: 0 | AU27: 0 | AV27: 0 | AW27: 0 | AX27: 0 | AY27: 0 | AZ27: 0 | BA27: 0 | BB27: 0 | BC27: 0 | BD27: 0 | BE27: 0 | BF27: 0 | BG27: 0 | BH27: 0 | BI27: 0 | BJ27: 0 | BK27: 0 | BL27: 0 | BM27: 0 | BN27: 0 | BO27: 0 | BP27: 0 | BQ27: 0 | BR27: 0 | BS27: 0 | BT27: 0 | BU27: 0 | BV27: 0 | BW27: 0 | BX27: 0 | BY27: 0 | BZ27: 0 | CA27: 0 | CB27: 0 | CC27: 0 | CD27: 0 | CE27: 0 | CF27: 0 | CG27: 0 | CH27: 0 | CI27: 0 | CJ27: 0 | CK27: 0 | CL27: 0 | CM27: 0 | CN27: 0 | CO27: 0 | CP27: 0 | CQ27: 0 | CR27: 0 | CS27: 0 | CT27: 0 | CU27: 0 | CV27: 0 | CW27: 0 | CX27: 0 | CY27: 0 | CZ27: 0 | DA27: 0 | DB27: 0 | DC27: 0 | DD27: 0 | DE27: 0 | DF27: 0 | DG27: 0 | DH27: 0 | DI27: 0 | DJ27: 0 | DK27: 0 | DL27: 0 | DM27: 0 | DN27: 0 | DO27: 0 | DP27: 0 | DQ27: 0 | DR27: 0 | DS27: 0 | DT27: 0 | DU27: 0 | DV27: 0 | DW27: 0 | DX27: 0 | DY27: 0 | DZ27: 0 | EA27: 0 | EB27: 0 | EC27: 0 | ED27: 0 | EE27: 0 | EF27: 0 | EG27: 0 | EH27: 0 | EI27: 0 | EJ27: 0 | FJ27: 0 | FK27: 0 | FL27: 0 | FM27: 0 | FN27: 0 | FO27: 0 | FP27: 0 | FQ27: 0 | FR27: 0 | FS27: 0 | FT27: 0 | FU27: 0 | FV27: 0 | FW27: 0 | FX27: 0 | FY27: 0 | FZ27: 0 | GA27: 0 | GB27: 0 | GC27: 0 | GD27: 0 | GE27: 0 | GF27: 0 | GG27: 0 | GH27: 0 | GI27: 0 | GJ27: 0 | GK27: 0 | GL27: 0 | GM27: 0 | GN27: 0 | GO27: 0 | GP27: 0 | GQ27: 0 | GR27: 0 | GS27: 0 | GT27: 0 | GU27: 0 | GV27: 0 | GW27: 0 | GX27: 0 | GY27: 0 | GZ27: 0 | HA27: 0 | HB27: 0 | HC27: 0 | HD27: 0 | HE27: 0 | HF27: 0 | HG27: 0 | HH27: 0 | HI27: 0 | HJ27: 0 | HK27: 0 | HL27: 0 | HM27: 0 | HN27: 0 | HO27: 0 | HP27: 0 | HQ27: 0 | HR27: 0 | HS27: 0 | HT27: 0 | HU27: 0 | HV27: 0 | HW27: 0 | HX27: 0 | HY27: 0 | HZ27: 0 | IA27: 0 | IB27: 0 | IC27: 0 | ID27: 0 | IE27: 0 | IF27: 0 | IG27: 0 | IH27: 0 | II27: 0 | IJ27: 0 | IK27: 0 | IL27: 0 | IM27: 0 | IN27: 0 | IO27: 0 | IP27: 0 | IQ27: 0 | IR27: 0 | IS27: 0 | IT27: 0 | IU27: 0 | IV27: 0 | IW27: 0 | IX27: 0 | IY27: 0 | IZ27: 0 | JA27: 0 | JB27: 0 | JC27: 0 | JD27: 0 | JE27: 0 | JF27: 0 | JG27: 0 | JH27: 0 | JI27: 0 | JJ27: 0 | JK27: 0 | JL27: 0 | JM27: 0 | JN27: 0 | JO27: 0 | JP27: 0 | JQ27: 0 | JR27: 0 | JS27: 0 | JT27: 0 | JU27: 0 | JV27: 0 | JW27: 0 | JX27: 0 | JY27: 0
K28: 25 | L28: =KEY!$E$8*Original!B28 -> 0 | M28: 0 | N28: 0 | P28: 0 | T28: 25 | U28: =TRANSPOSE('Average power consumption'!$C$3:$C$122)*L28 -> 0 | V28: 0 | W28: 0 | X28: 0 | Y28: 0 | Z28: 0 | AA28: 0 | AB28: 0 | AC28: 0 | AD28: 0 | AE28: 0 | AF28: 0 | AG28: 0 | AH28: 0 | AI28: 0 | AJ28: 0 | AK28: 0 | AL28: 0 | AM28: 0 | AN28: 0 | AO28: 0 | AP28: 0 | AQ28: 0 | AR28: 0 | AS28: 0 | AT28: 0 | AU28: 0 | AV28: 0 | AW28: 0 | AX28: 0 | AY28: 0 | AZ28: 0 | BA28: 0 | BB28: 0 | BC28: 0 | BD28: 0 | BE28: 0 | BF28: 0 | BG28: 0 | BH28: 0 | BI28: 0 | BJ28: 0 | BK28: 0 | BL28: 0 | BM28: 0 | BN28: 0 | BO28: 0 | BP28: 0 | BQ28: 0 | BR28: 0 | BS28: 0 | BT28: 0 | BU28: 0 | BV28: 0 | BW28: 0 | BX28: 0 | BY28: 0 | BZ28: 0 | CA28: 0 | CB28: 0 | CC28: 0 | CD28: 0 | CE28: 0 | CF28: 0 | CG28: 0 | CH28: 0 | CI28: 0 | CJ28: 0 | CK28: 0 | CL28: 0 | CM28: 0 | CN28: 0 | CO28: 0 | CP28: 0 | CQ28: 0 | CR28: 0 | CS28: 0 | CT28: 0 | CU28: 0 | CV28: 0 | CW28: 0 | CX28: 0 | CY28: 0 | CZ28: 0 | DA28: 0 | DB28: 0 | DC28: 0 | DD28: 0 | DE28: 0 | DF28: 0 | DG28: 0 | DH28: 0 | DI28: 0 | DJ28: 0 | DK28: 0 | DL28: 0 | DM28: 0 | DN28: 0 | DO28: 0 | DP28: 0 | DQ28: 0 | DR28: 0 | DS28: 0 | DT28: 0 | DU28: 0 | DV28: 0 | DW28: 0 | DX28: 0 | DY28: 0 | DZ28: 0 | EA28: 0 | EB28: 0 | EC28: 0 | ED28: 0 | EE28: 0 | EF28: 0 | EG28: 0 | EH28: 0 | EI28: 0 | EJ28: 0 | FK28: 0 | FL28: 0 | FM28: 0 | FN28: 0 | FO28: 0 | FP28: 0 | FQ28: 0 | FR28: 0 | FS28: 0 | FT28: 0 | FU28: 0 | FV28: 0 | FW28: 0 | FX28: 0 | FY28: 0 | FZ28: 0 | GA28: 0 | GB28: 0 | GC28: 0 | GD28: 0 | GE28: 0 | GF28: 0 | GG28: 0 | GH28: 0 | GI28: 0 | GJ28: 0 | GK28: 0 | GL28: 0 | GM28: 0 | GN28: 0 | GO28: 0 | GP28: 0 | GQ28: 0 | GR28: 0 | GS28: 0 | GT28: 0 | GU28: 0 | GV28: 0 | GW28: 0 | GX28: 0 | GY28: 0 | GZ28: 0 | HA28: 0 | HB28: 0 | HC28: 0 | HD28: 0 | HE28: 0 | HF28: 0 | HG28: 0 | HH28: 0 | HI28: 0 | HJ28: 0 | HK28: 0 | HL28: 0 | HM28: 0 | HN28: 0 | HO28: 0 | HP28: 0 | HQ28: 0 | HR28: 0 | HS28: 0 | HT28: 0 | HU28: 0 | HV28: 0 | HW28: 0 | HX28: 0 | HY28: 0 | HZ28: 0 | IA28: 0 | IB28: 0 | IC28: 0 | ID28: 0 | IE28: 0 | IF28: 0 | IG28: 0 | IH28: 0 | II28: 0 | IJ28: 0 | IK28: 0 | IL28: 0 | IM28: 0 | IN28: 0 | IO28: 0 | IP28: 0 | IQ28: 0 | IR28: 0 | IS28: 0 | IT28: 0 | IU28: 0 | IV28: 0 | IW28: 0 | IX28: 0 | IY28: 0 | IZ28: 0 | JA28: 0 | JB28: 0 | JC28: 0 | JD28: 0 | JE28: 0 | JF28: 0 | JG28: 0 | JH28: 0 | JI28: 0 | JJ28: 0 | JK28: 0 | JL28: 0 | JM28: 0 | JN28: 0 | JO28: 0 | JP28: 0 | JQ28: 0 | JR28: 0 | JS28: 0 | JT28: 0 | JU28: 0 | JV28: 0 | JW28: 0 | JX28: 0 | JY28: 0 | JZ28: 0
K29: 26 | L29: =KEY!$E$8*Original!B29 -> 0 | M29: 0 | N29: 0 | P29: 0 | T29: 26 | U29: =TRANSPOSE('Average power consumption'!$C$3:$C$122)*L29 -> 0 | V29: 0 | W29: 0 | X29: 0 | Y29: 0 | Z29: 0 | AA29: 0 | AB29: 0 | AC29: 0 | AD29: 0 | AE29: 0 | AF29: 0 | AG29: 0 | AH29: 0 | AI29: 0 | AJ29: 0 | AK29: 0 | AL29: 0 | AM29: 0 | AN29: 0 | AO29: 0 | AP29: 0 | AQ29: 0 | AR29: 0 | AS29: 0 | AT29: 0 | AU29: 0 | AV29: 0 | AW29: 0 | AX29: 0 | AY29: 0 | AZ29: 0 | BA29: 0 | BB29: 0 | BC29: 0 | BD29: 0 | BE29: 0 | BF29: 0 | BG29: 0 | BH29: 0 | BI29: 0 | BJ29: 0 | BK29: 0 | BL29: 0 | BM29: 0 | BN29: 0 | BO29: 0 | BP29: 0 | BQ29: 0 | BR29: 0 | BS29: 0 | BT29: 0 | BU29: 0 | BV29: 0 | BW29: 0 | BX29: 0 | BY29: 0 | BZ29: 0 | CA29: 0 | CB29: 0 | CC29: 0 | CD29: 0 | CE29: 0 | CF29: 0 | CG29: 0 | CH29: 0 | CI29: 0 | CJ29: 0 | CK29: 0 | CL29: 0 | CM29: 0 | CN29: 0 | CO29: 0 | CP29: 0 | CQ29: 0 | CR29: 0 | CS29: 0 | CT29: 0 | CU29: 0 | CV29: 0 | CW29: 0 | CX29: 0 | CY29: 0 | CZ29: 0 | DA29: 0 | DB29: 0 | DC29: 0 | DD29: 0 | DE29: 0 | DF29: 0 | DG29: 0 | DH29: 0 | DI29: 0 | DJ29: 0 | DK29: 0 | DL29: 0 | DM29: 0 | DN29: 0 | DO29: 0 | DP29: 0 | DQ29: 0 | DR29: 0 | DS29: 0 | DT29: 0 | DU29: 0 | DV29: 0 | DW29: 0 | DX29: 0 | DY29: 0 | DZ29: 0 | EA29: 0 | EB29: 0 | EC29: 0 | ED29: 0 | EE29: 0 | EF29: 0 | EG29: 0 | EH29: 0 | EI29: 0 | EJ29: 0 | FL29: 0 | FM29: 0 | FN29: 0 | FO29: 0 | FP29: 0 | FQ29: 0 | FR29: 0 | FS29: 0 | FT29: 0 | FU29: 0 | FV29: 0 | FW29: 0 | FX29: 0 | FY29: 0 | FZ29: 0 | GA29: 0 | GB29: 0 | GC29: 0 | GD29: 0 | GE29: 0 | GF29: 0 | GG29: 0 | GH29: 0 | GI29: 0 | GJ29: 0 | GK29: 0 | GL29: 0 | GM29: 0 | GN29: 0 | GO29: 0 | GP29: 0 | GQ29: 0 | GR29: 0 | GS29: 0 | GT29: 0 | GU29: 0 | GV29: 0 | GW29: 0 | GX29: 0 | GY29: 0 | GZ29: 0 | HA29: 0 | HB29: 0 | HC29: 0 | HD29: 0 | HE29: 0 | HF29: 0 | HG29: 0 | HH29: 0 | HI29: 0 | HJ29: 0 | HK29: 0 | HL29: 0 | HM29: 0 | HN29: 0 | HO29: 0 | HP29: 0 | HQ29: 0 | HR29: 0 | HS29: 0 | HT29: 0 | HU29: 0 | HV29: 0 | HW29: 0 | HX29: 0 | HY29: 0 | HZ29: 0 | IA29: 0 | IB29: 0 | IC29: 0 | ID29: 0 | IE29: 0 | IF29: 0 | IG29: 0 | IH29: 0 | II29: 0 | IJ29: 0 | IK29: 0 | IL29: 0 | IM29: 0 | IN29: 0 | IO29: 0 | IP29: 0 | IQ29: 0 | IR29: 0 | IS29: 0 | IT29: 0 | IU29: 0 | IV29: 0 | IW29: 0 | IX29: 0 | IY29: 0 | IZ29: 0 | JA29: 0 | JB29: 0 | JC29: 0 | JD29: 0 | JE29: 0 | JF29: 0 | JG29: 0 | JH29: 0 | JI29: 0 | JJ29: 0 | JK29: 0 | JL29: 0 | JM29: 0 | JN29: 0 | JO29: 0 | JP29: 0 | JQ29: 0 | JR29: 0 | JS29: 0 | JT29: 0 | JU29: 0 | JV29: 0 | JW29: 0 | JX29: 0 | JY29: 0 | JZ29: 0 | KA29: 0
K30: 27 | L30: =KEY!$E$8*Original!B30 -> 0 | M30: 0 | N30: 0 | P30: 0 | T30: 27 | U30: =TRANSPOSE('Average power consumption'!$C$3:$C$122)*L30 -> 0 | V30: 0 | W30: 0 | X30: 0 | Y30: 0 | Z30: 0 | AA30: 0 | AB30: 0 | AC30: 0 | AD30: 0 | AE30: 0 | AF30: 0 | AG30: 0 | AH30: 0 | AI30: 0 | AJ30: 0 | AK30: 0 | AL30: 0 | AM30: 0 | AN30: 0 | AO30: 0 | AP30: 0 | AQ30: 0 | AR30: 0 | AS30: 0 | AT30: 0 | AU30: 0 | AV30: 0 | AW30: 0 | AX30: 0 | AY30: 0 | AZ30: 0 | BA30: 0 | BB30: 0 | BC30: 0 | BD30: 0 | BE30: 0 | BF30: 0 | BG30: 0 | BH30: 0 | BI30: 0 | BJ30: 0 | BK30: 0 | BL30: 0 | BM30: 0 | BN30: 0 | BO30: 0 | BP30: 0 | BQ30: 0 | BR30: 0 | BS30: 0 | BT30: 0 | BU30: 0 | BV30: 0 | BW30: 0 | BX30: 0 | BY30: 0 | BZ30: 0 | CA30: 0 | CB30: 0 | CC30: 0 | CD30: 0 | CE30: 0 | CF30: 0 | CG30: 0 | CH30: 0 | CI30: 0 | CJ30: 0 | CK30: 0 | CL30: 0 | CM30: 0 | CN30: 0 | CO30: 0 | CP30: 0 | CQ30: 0 | CR30: 0 | CS30: 0 | CT30: 0 | CU30: 0 | CV30: 0 | CW30: 0 | CX30: 0 | CY30: 0 | CZ30: 0 | DA30: 0 | DB30: 0 | DC30: 0 | DD30: 0 | DE30: 0 | DF30: 0 | DG30: 0 | DH30: 0 | DI30: 0 | DJ30: 0 | DK30: 0 | DL30: 0 | DM30: 0 | DN30: 0 | DO30: 0 | DP30: 0 | DQ30: 0 | DR30: 0 | DS30: 0 | DT30: 0 | DU30: 0 | DV30: 0 | DW30: 0 | DX30: 0 | DY30: 0 | DZ30: 0 | EA30: 0 | EB30: 0 | EC30: 0 | ED30: 0 | EE30: 0 | EF30: 0 | EG30: 0 | EH30: 0 | EI30: 0 | EJ30: 0 | FM30: 0 | FN30: 0 | FO30: 0 | FP30: 0 | FQ30: 0 | FR30: 0 | FS30: 0 | FT30: 0 | FU30: 0 | FV30: 0 | FW30: 0 | FX30: 0 | FY30: 0 | FZ30: 0 | GA30: 0 | GB30: 0 | GC30: 0 | GD30: 0 | GE30: 0 | GF30: 0 | GG30: 0 | GH30: 0 | GI30: 0 | GJ30: 0 | GK30: 0 | GL30: 0 | GM30: 0 | GN30: 0 | GO30: 0 | GP30: 0 | GQ30: 0 | GR30: 0 | GS30: 0 | GT30: 0 | GU30: 0 | GV30: 0 | GW30: 0 | GX30: 0 | GY30: 0 | GZ30: 0 | HA30: 0 | HB30: 0 | HC30: 0 | HD30: 0 | HE30: 0 | HF30: 0 | HG30: 0 | HH30: 0 | HI30: 0 | HJ30: 0 | HK30: 0 | HL30: 0 | HM30: 0 | HN30: 0 | HO30: 0 | HP30: 0 | HQ30: 0 | HR30: 0 | HS30: 0 | HT30: 0 | HU30: 0 | HV30: 0 | HW30: 0 | HX30: 0 | HY30: 0 | HZ30: 0 | IA30: 0 | IB30: 0 | IC30: 0 | ID30: 0 | IE30: 0 | IF30: 0 | IG30: 0 | IH30: 0 | II30: 0 | IJ30: 0 | IK30: 0 | IL30: 0 | IM30: 0 | IN30: 0 | IO30: 0 | IP30: 0 | IQ30: 0 | IR30: 0 | IS30: 0 | IT30: 0 | IU30: 0 | IV30: 0 | IW30: 0 | IX30: 0 | IY30: 0 | IZ30: 0 | JA30: 0 | JB30: 0 | JC30: 0 | JD30: 0 | JE30: 0 | JF30: 0 | JG30: 0 | JH30: 0 | JI30: 0 | JJ30: 0 | JK30: 0 | JL30: 0 | JM30: 0 | JN30: 0 | JO30: 0 | JP30: 0 | JQ30: 0 | JR30: 0 | JS30: 0 | JT30: 0 | JU30: 0 | JV30: 0 | JW30: 0 | JX30: 0 | JY30: 0 | JZ30: 0 | KA30: 0 | KB30: 0
K31: 28 | L31: =KEY!$E$8*Original!B31 -> 0 | M31: 0 | N31: 0 | P31: 0 | T31: 28 | U31: =TRANSPOSE('Average power consumption'!$C$3:$C$122)*L31 -> 0 | V31: 0 | W31: 0 | X31: 0 | Y31: 0 | Z31: 0 | AA31: 0 | AB31: 0 | AC31: 0 | AD31: 0 | AE31: 0 | AF31: 0 | AG31: 0 | AH31: 0 | AI31: 0 | AJ31: 0 | AK31: 0 | AL31: 0 | AM31: 0 | AN31: 0 | AO31: 0 | AP31: 0 | AQ31: 0 | AR31: 0 | AS31: 0 | AT31: 0 | AU31: 0 | AV31: 0 | AW31: 0 | AX31: 0 | AY31: 0 | AZ31: 0 | BA31: 0 | BB31: 0 | BC31: 0 | BD31: 0 | BE31: 0 | BF31: 0 | BG31: 0 | BH31: 0 | BI31: 0 | BJ31: 0 | BK31: 0 | BL31: 0 | BM31: 0 | BN31: 0 | BO31: 0 | BP31: 0 | BQ31: 0 | BR31: 0 | BS31: 0 | BT31: 0 | BU31: 0 | BV31: 0 | BW31: 0 | BX31: 0 | BY31: 0 | BZ31: 0 | CA31: 0 | CB31: 0 | CC31: 0 | CD31: 0 | CE31: 0 | CF31: 0 | CG31: 0 | CH31: 0 | CI31: 0 | CJ31: 0 | CK31: 0 | CL31: 0 | CM31: 0 | CN31: 0 | CO31: 0 | CP31: 0 | CQ31: 0 | CR31: 0 | CS31: 0 | CT31: 0 | CU31: 0 | CV31: 0 | CW31: 0 | CX31: 0 | CY31: 0 | CZ31: 0 | DA31: 0 | DB31: 0 | DC31: 0 | DD31: 0 | DE31: 0 | DF31: 0 | DG31: 0 | DH31: 0 | DI31: 0 | DJ31: 0 | DK31: 0 | DL31: 0 | DM31: 0 | DN31: 0 | DO31: 0 | DP31: 0 | DQ31: 0 | DR31: 0 | DS31: 0 | DT31: 0 | DU31: 0 | DV31: 0 | DW31: 0 | DX31: 0 | DY31: 0 | DZ31: 0 | EA31: 0 | EB31: 0 | EC31: 0 | ED31: 0 | EE31: 0 | EF31: 0 | EG31: 0 | EH31: 0 | EI31: 0 | EJ31: 0 | FN31: 0 | FO31: 0 | FP31: 0 | FQ31: 0 | FR31: 0 | FS31: 0 | FT31: 0 | FU31: 0 | FV31: 0 | FW31: 0 | FX31: 0 | FY31: 0 | FZ31: 0 | GA31: 0 | GB31: 0 | GC31: 0 | GD31: 0 | GE31: 0 | GF31: 0 | GG31: 0 | GH31: 0 | GI31: 0 | GJ31: 0 | GK31: 0 | GL31: 0 | GM31: 0 | GN31: 0 | GO31: 0 | GP31: 0 | GQ31: 0 | GR31: 0 | GS31: 0 | GT31: 0 | GU31: 0 | GV31: 0 | GW31: 0 | GX31: 0 | GY31: 0 | GZ31: 0 | HA31: 0 | HB31: 0 | HC31: 0 | HD31: 0 | HE31: 0 | HF31: 0 | HG31: 0 | HH31: 0 | HI31: 0 | HJ31: 0 | HK31: 0 | HL31: 0 | HM31: 0 | HN31: 0 | HO31: 0 | HP31: 0 | HQ31: 0 | HR31: 0 | HS31: 0 | HT31: 0 | HU31: 0 | HV31: 0 | HW31: 0 | HX31: 0 | HY31: 0 | HZ31: 0 | IA31: 0 | IB31: 0 | IC31: 0 | ID31: 0 | IE31: 0 | IF31: 0 | IG31: 0 | IH31: 0 | II31: 0 | IJ31: 0 | IK31: 0 | IL31: 0 | IM31: 0 | IN31: 0 | IO31: 0 | IP31: 0 | IQ31: 0 | IR31: 0 | IS31: 0 | IT31: 0 | IU31: 0 | IV31: 0 | IW31: 0 | IX31: 0 | IY31: 0 | IZ31: 0 | JA31: 0 | JB31: 0 | JC31: 0 | JD31: 0 | JE31: 0 | JF31: 0 | JG31: 0 | JH31: 0 | JI31: 0 | JJ31: 0 | JK31: 0 | JL31: 0 | JM31: 0 | JN31: 0 | JO31: 0 | JP31: 0 | JQ31: 0 | JR31: 0 | JS31: 0 | JT31: 0 | JU31: 0 | JV31: 0 | JW31: 0 | JX31: 0 | JY31: 0 | JZ31: 0 | KA31: 0 | KB31: 0 | KC31: 0
... 35 more rows

Sheet Probability of start_Shifted
A1: 1 | B1: 2 | C1: 3 | D1: 4 | E1: 5 | F1: 6 | G1: 7 | H1: 8 | I1: 9 | J1: 10 | K1: 11 | L1: 12 | M1: 13 | N1: 14 | O1: 15 | P1: 16 | Q1: 17 | R1: 18 | S1: 19 | T1: 20 | U1: 21 | V1: 22 | W1: 23 | X1: 24 | Y1: 25 | Z1: 26 | AA1: 27 | AB1: 28 | AC1: 29 | AD1: 30 | AE1: 31 | AF1: 32 | AG1: 33 | AH1: 34 | AI1: 35 | AJ1: 36 | AK1: 37 | AL1: 38 | AM1: 39 | AN1: 40 | AO1: 41 | AP1: 42 | AQ1: 43 | AR1: 44 | AS1: 45 | AT1: 46 | AU1: 47 | AV1: 48 | AW1: 49 | AX1: 50 | AY1: 51 | AZ1: 52 | BA1: 53 | BB1: 54 | BC1: 55 | BD1: 56 | BE1: 57 | BF1: 58 | BG1: 59 | BH1: 60 | BI1: 61 | BJ1: 62 | BK1: 63 | BL1: 64 | BM1: 65 | BN1: 66 | BO1: 67 | BP1: 68 | BQ1: 69 | BR1: 70 | BS1: 71 | BT1: 72 | BU1: 73 | BV1: 74 | BW1: 75 | BX1: 76 | BY1: 77 | BZ1: 78 | CA1: 79 | CB1: 80 | CC1: 81 | CD1: 82 | CE1: 83 | CF1: 84 | CG1: 85 | CH1: 86 | CI1: 87 | CJ1: 88 | CK1: 89 | CL1: 90 | CM1: 91 | CN1: 92 | CO1: 93 | CP1: 94 | CQ1: 95 | CR1: 96 | CS1: 97 | CT1: 98 | CU1: 99 | CV1: 100 | CW1: 101 | CX1: 102 | CY1: 103 | CZ1: 104 | DA1: 105 | DB1: 106 | DC1: 107 | DD1: 108 | DE1: 109 | DF1: 110 | DG1: 111 | DH1: 112 | DI1: 113 | DJ1: 114 | DK1: 115 | DL1: 116 | DM1: 117 | DN1: 118 | DO1: 119 | DP1: 120 | DQ1: 121 | DR1: 122 | DS1: 123 | DT1: 124 | DU1: 125 | DV1: 126 | DW1: 127 | DX1: 128 | DY1: 129 | DZ1: 130 | EA1: 131 | EB1: 132 | EC1: 133 | ED1: 134 | EE1: 135 | EF1: 136 | EG1: 137 | EH1: 138 | EI1: 139 | EJ1: 140 | EK1: 141 | EL1: 142 | EM1: 143
B2: Time of the day (hr) | C2: Cloth Washing Machine | E2: Dryer | G2: Dish Washing Machine | L2: Cloth Washing Machine | N2: Dryer | P2: Dish Washing Machine
C3: WD | D3: WE | E3: WD | F3: WE | G3: WD | H3: WE | L3: WD | M3: WE | N3: WD | O3: WE | P3: WD | Q3: WE | U3: 1 | V3: 2 | W3: 3 | X3: 4 | Y3: 5 | Z3: 6 | AA3: 7 | AB3: 8 | AC3: 9 | AD3: 10 | AE3: 11 | AF3: 12 | AG3: 13 | AH3: 14 | AI3: 15 | AJ3: 16 | AK3: 17 | AL3: 18 | AM3: 19 | AN3: 20 | AO3: 21 | AP3: 22 | AQ3: 23 | AR3: 24 | AS3: 25 | AT3: 26 | AU3: 27 | AV3: 28 | AW3: 29 | AX3: 30 | AY3: 31 | AZ3: 32 | BA3: 33 | BB3: 34 | BC3: 35 | BD3: 36 | BE3: 37 | BF3: 38 | BG3: 39 | BH3: 40 | BI3: 41 | BJ3: 42 | BK3: 43 | BL3: 44 | BM3: 45 | BN3: 46 | BO3: 47 | BP3: 48 | BQ3: 49 | BR3: 50 | BS3: 51 | BT3: 52 | BU3: 53 | BV3: 54 | BW3: 55 | BX3: 56 | BY3: 57 | BZ3: 58 | CA3: 59 | CB3: 60 | CC3: 61 | CD3: 62 | CE3: 63 | CF3: 64 | CG3: 65 | CH3: 66 | CI3: 67 | CJ3: 68 | CK3: 69 | CL3: 70 | CM3: 71 | CN3: 72 | CO3: 73 | CP3: 74 | CQ3: 75 | CR3: 76 | CS3: 77 | CT3: 78 | CU3: 79 | CV3: 80 | CW3: 81 | CX3: 82 | CY3: 83 | CZ3: 84 | DA3: 85 | DB3: 86 | DC3: 87 | DD3: 88 | DE3: 89 | DF3: 90 | DG3: 91 | DH3: 92 | DI3: 93 | DJ3: 94 | DK3: 95 | DL3: 96 | DM3: 97 | DN3: 98 | DO3: 99 | DP3: 100 | DQ3: 101 | DR3: 102 | DS3: 103 | DT3: 104 | DU3: 105 | DV3: 106 | DW3: 107 | DX3: 108 | DY3: 109 | DZ3: 110 | EA3: 111 | EB3: 112 | EC3: 113 | ED3: 114 | EE3: 115 | EF3: 116 | EG3: 117 | EH3: 118 | EI3: 119 | EJ3: 120 | EM3: 0 | EN3: 0 | EO3: 0 | EP3: 0 | EQ3: 0 | ER3: 0 | ES3: 0 | ET3: 0 | EU3: 0 | EV3: 0 | EW3: 0 | EX3: 0 | EY3: 0 | EZ3: 0 | FA3: 0 | FB3: 0 | FC3: 0 | FD3: 0 | FE3: 0 | FF3: 0 | FG3: 0 | FH3: 0 | FI3: 0 | FJ3: 0 | FK3: 0 | FL3: 0 | FM3: 0 | FN3: 0 | FO3: 0 | FP3: 0 | FQ3: 0 | FR3: 0 | FS3: 0 | FT3: 0 | FU3: 0 | FV3: 0 | FW3: 0 | FX3: 0 | FY3: 0 | FZ3: 0 | GA3: 0 | GB3: 0 | GC3: 0 | GD3: 0 | GE3: 0 | GF3: 0 | GG3: 0 | GH3: 0 | GI3: 0 | GJ3: 0 | GK3: 0 | GL3: 0 | GM3: 0 | GN3: 0 | GO3: 0 | GP3: 0 | GQ3: 0 | GR3: 0 | GS3: 0 | GT3: 0 | GU3: 0 | GV3: 0 | GW3: 0 | GX3: 0 | GY3: 0 | GZ3: 0 | HA3: 0 | HB3: 0 | HC3: 0 | HD3: 0 | HE3: 0 | HF3: 0 | HG3: 0 | HH3: 0 | HI3: 0 | HJ3: 0 | HK3: 0 | HL3: 0 | HM3: 0 | HN3: 0 | HO3: 0 | HP3: 0 | HQ3: 0 | HR3: 0 | HS3: 0 | HT3: 0 | HU3: 0 | HV3: 0 | HW3: 0 | HX3: 0 | HY3: 0 | HZ3: 0 | IA3: 0 | IB3: 0 | IC3: 0 | ID3: 0 | IE3: 0 | IF3: 0 | IG3: 0 | IH3: 0 | II3: 0 | IJ3: 0 | IK3: 0 | IL3: 0 | IM3: 0 | IN3: 0 | IO3: 0 | IP3: 0 | IQ3: 0 | IR3: 0 | IS3: 0 | IT3: 0 | IU3: 0 | IV3: 0 | IW3: 0 | IX3: 0 | IY3: 0 | IZ3: 0 | JA3: 0 | JB3: 0 | JC3: 0 | JD3: 0 | JE3: 0 | JF3: 0 | JG3: 0 | JH3: 0 | JI3: 0 | JJ3: 0 | JK3: 0 | JL3: 0 | JM3: 0 | JN3: 0 | JO3: 0 | JP3: 0 | JQ3: 0 | JR3: 0 | JS3: 0 | JT3: 0 | JU3: 0 | JV3: 0 | JW3: 0 | JX3: 0 | JY3: 0 | JZ3: 0 | KA3: 0 | KB3: 0 | KC3: 0 | KD3: 0 | KE3: 0 | KF3: 0 | KG3: 0 | KH3: 0 | KI3: 0 | KJ3: 0 | KK3: 0 | KL3: 0 | KM3: 0 | KN3: 0 | KO3: 0 | KP3: 0 | KQ3: 0 | KR3: 0 | KS3: 0 | KT3: 0 | KU3: 0 | KV3: 0 | KW3: 0 | KX3: 0 | KY3: 0 | KZ3: 0 | LA3: 0 | LB3: 0 | LC3: 0 | LD3: 0 | LE3: 0 | LF3: 0 | LG3: 0 | LH3: 0 | LI3: 0 | LJ3: 0 | LK3: 0 | LL3: 0 | LM3: 0 | LN3: 0 | LO3: 0 | LP3: 0 | LQ3: 0 | LR3: 0 | LS3: 0 | LT3: 0 | LU3: 0 | LV3: 0 | LW3: 0 | LX3: 0 | LY3: 0 | LZ3: 0 | MA3: 0 | MB3: 0 | MC3: 0 | MD3: 0 | ME3: 0 | MF3: 0 | MG3: 0 | MH3: 0 | MI3: 0 | MJ3: 0 | MK3: 0 | ML3: 0 | MM3: 0 | MN3: 0 | MO3: 0 | MP3: 0 | MQ3: 0 | MR3: 0 | MS3: 0 | MT3: 0 | MU3: 0 | MV3: 0 | MW3: 0 | MX3: 0 | MY3: 0 | MZ3: 0 | NA3: 0 | NB3: 0 | NC3: 0 | ND3: 0 | NE3: 0 | NF3: 0 | NG3: 0 | NH3: 0 | NI3: 0 | NJ3: 0 | NK3: 0 | NL3: 0 | NM3: 0 | NN3: 0 | NO3: 0 | NP3: 0 | NQ3: 0 | NR3: 0 | NS3: 0 | NT3: 0 | NU3: 0 | NV3: 0 | NW3: 0 | NX3: 0 | NY3: 0 | NZ3: 0 | OA3: 0 | OB3: 0 | OC3: 0 | OD3: 0 | OE3: 0 | OF3: 0 | OG3: 0 | OH3: 0 | OI3: 0 | OJ3: 0 | OK3: 0 | OL3: 0 | OM3: 0 | ON3: 0 | OO3: 0 | OP3: 0 | OQ3: 0 | OR3: 0 | OS3: 0 | OT3: 0 | OU3: 0 | OV3: 0 | OW3: 0 | OX3: 0 | OY3: 0 | OZ3: 0 | PA3: 0 | PB3: 0 | PC3: 0 | PD3: 0 | PE3: 0 | PF3: 0 | PG3: 0 | PH3: 0 | PI3: 0 | PJ3: 0 | PK3: 0 | PL3: 0 | PM3: 0 | PN3: 0 | PO3: 0 | PP3: 0 | PQ3: 0 | PR3: 0 | PS3: 0 | PT3: 0 | PU3: 0 | PV3: 0 | PW3: 0 | PX3: 0 | PY3: 0 | PZ3: 0 | QA3: 0 | QB3: 0 | QC3: 0 | QD3: 0 | QE3: 0 | QF3: 0 | QG3: 0 | QH3: 0 | QI3: 0 | QJ3: 0 | QK3: 0 | QL3: 0 | QM3: 0 | QN3: 0 | QO3: 0 | QP3: 0 | QQ3: 0 | QR3: 0 | QS3: 0 | QT3: 0 | QU3: 0 | QV3: 0 | QW3: 0 | QX3: 0 | QY3: 0 | QZ3: 0 | RA3: 0 | RB3: 0 | RC3: 0 | RD3: 0 | RE3: 0 | RF3: 0 | RG3: 0 | RH3: 0 | RI3: 0 | RJ3: 0 | RK3: 0 | RL3: 0 | RM3: 0 | RN3: 0 | RO3: 0 | RP3: 0 | RQ3: 0 | RR3: 0 | RS3: 0 | RT3: 0 | RU3: 0 | RV3: 0 | RW3: 0 | RX3: 0 | RY3: 0 | RZ3: 0 | SA3: 0 | SB3: 0 | SC3: 0 | SD3: 0 | SE3: 0 | SF3: 0 | SG3: 0 | SH3: 0 | SI3: 0 | SJ3: 0 | SK3: 0 | SL3: 0 | SM3: 0 | SN3: 0 | SO3: 0 | SP3: 0 | SQ3: 0 | SR3: 0 | SS3: 0 | ST3: 0 | SU3: 0 | SV3: 0 | SW3: 0 | SX3: 0 | SY3: 0 | SZ3: 0 | TA3: 0 | TB3: 0 | TC3: 0 | TD3: 0 | TE3: 0 | TF3: 0 | TG3: 0 | TH3: 0 | TI3: 0 | TJ3: 0 | TK3: 0 | TL3: 0 | TM3: 0 | TN3: 0 | TO3: 0 | TP3: 0 | TQ3: 0 | TR3: 0 | TS3: 0 | TT3: 0 | TU3: 0 | TV3: 0 | TW3: 0 | TX3: 0 | TY3: 0 | TZ3: 0 | UA3: 0 | UB3: 0 | UC3: 0 | UD3: 0 | UE3: 0 | UF3: 0 | UG3: 0 | UH3: 0 | UI3: 0 | UJ3: 0 | UK3: 0 | UL3: 0 | UM3: 0 | UN3: 0 | UO3: 0 | UP3: 0 | UQ3: 0 | UR3: 0 | US3: 0 | UT3: 0 | UU3: 0 | UV3: 0 | UW3: 0 | UX3: 0 | UY3: 0 | UZ3: 0 | VA3: 0 | VB3: 0 | VC3: 0 | VD3: 0 | VE3: 0 | VF3: 0 | VG3: 0 | VH3: 0 | VI3: 0 | VJ3: 0 | VK3: 0 | VL3: 0 | VM3: 0 | VN3: 0 | VO3: 0 | VP3: 0 | VQ3: 0 | VR3: 0 | VS3: 0 | VT3: 0 | VU3: 0 | VV3: 0 | VW3: 0 | VX3: 0 | VY3: 0 | VZ3: 0 | WA3: 0 | WB3: 0 | WC3: 0 | WD3: 0 | WE3: 0 | WF3: 0 | WG3: 0 | WH3: 0 | WI3: 0 | WJ3: 0 | WK3: 0 | WL3: 0 | WM3: 0 | WN3: 0 | WO3: 0 | WP3: 0 | WQ3: 0 | WR3: 0 | WS3: 0 | WT3: 0 | WU3: 0 | WV3: 0 | WW3: 0 | WX3: 0 | WY3: 0 | WZ3: 0 | XA3: 0 | XB3: 0 | XC3: 0 | XD3: 0 | XE3: 0 | XF3: 0 | XG3: 0 | XH3: 0 | XI3: 0 | XJ3: 0 | XK3: 0 | XL3: 0 | XM3: 0 | XN3: 0 | XO3: 0 | XP3: 0 | XQ3: 0 | XR3: 0 | XS3: 0 | XT3: 0 | XU3: 0 | XV3: 0 | XW3: 0 | XX3: 0 | XY3: 0 | XZ3: 0 | YA3: 0 | YB3: 0 | YC3: 0 | YD3: 0 | YE3: 0 | YF3: 0 | YG3: 0 | YH3: 0 | YI3: 0 | YJ3: 0 | YK3: 0 | YL3: 0 | YM3: 0 | YN3: 0 | YO3: 0 | YP3: 0 | YQ3: 0 | YR3: 0 | YS3: 0 | YT3: 0 | YU3: 0 | YV3: 0 | YW3: 0 | YX3: 0 | YY3: 0 | YZ3: 0 | ZA3: 0 | ZB3: 0 | ZC3: 0 | ZD3: 0 | ZE3: 0 | ZF3: 0 | ZG3: 0 | ZH3: 0 | ZI3: 0 | ZJ3: 0 | ZK3: 0 | ZL3: 0 | ZM3: 0 | ZN3: 0 | ZO3: 0 | ZP3: 0 | ZQ3: 0 | ZR3: 0 | ZS3: 0 | ZT3: 0 | ZU3: 0 | ZV3: 0 | ZW3: 0 | ZX3: 0 | ZY3: 0 | ZZ3: 0 | AAA3: 0 | AAB3: 0 | AAC3: 0 | AAD3: 0 | AAE3: 0 | AAF3: 0 | AAG3: 0 | AAH3: 0 | AAI3: 0 | AAJ3: 0 | AAK3: 0 | AAL3: 0 | AAM3: 0 | AAN3: 0 | AAO3: 0 | AAP3: 0 | AAQ3: 0 | AAR3: 0 | AAS3: 0 | AAT3: 0 | AAU3: 0 | AAV3: 0 | AAW3: 0 | AAX3: 0 | AAY3: 0 | AAZ3: 0 | ABA3: 0 | ABB3: 0 | ABC3: 0 | ABD3: 0 | ABE3: 0 | ABF3: 0 | ABG3: 0 | ABH3: 0 | ABI3: 0 | ABJ3: 0 | ABK3: 0 | ABL3: 0 | ABM3: 0 | ABN3: 0 | ABO3: 0 | ABP3: 0 | ABQ3: 0 | ABR3: 0 | ABS3: 0 | ABT3: 0 | ABU3: 0 | ABV3: 0 | ABW3: 0 | ABX3: 0 | ABY3: 0 | ABZ3: 0 | ACA3: 0 | ACB3: 0 | ACC3: 0 | ACD3: 0 | ACE3: 0 | ACF3: 0 | ACG3: 0 | ACH3: 0 | ACI3: 0 | ACJ3: 0 | ACK3: 0 | ACL3: 0 | ACM3: 0 | ACN3: 0 | ACO3: 0 | ACP3: 0 | ACQ3: 0 | ACR3: 0 | ACS3: 0 | ACT3: 0 | ACU3: 0 | ACV3: 0 | ACW3: 0 | ACX3: 0 | ACY3: 0 | ACZ3: 0 | ADA3: 0 | ADB3: 0 | ADC3: 0 | ADD3: 0 | ADE3: 0 | ADF3: 0 | ADG3: 0 | ADH3: 0 | ADI3: 0 | ADJ3: 0 | ADK3: 0 | ADL3: 0 | ADM3: 0 | ADN3: 0 | ADO3: 0 | ADP3: 0 | ADQ3: 0 | ADR3: 0 | ADS3: 0 | ADT3: 0 | ADU3: 0 | ADV3: 0 | ADW3: 0 | ADX3: 0 | ADY3: 0 | ADZ3: 0 | AEA3: 0 | AEB3: 0 | AEC3: 0 | AED3: 0 | AEE3: 0 | AEF3: 0 | AEG3: 0 | AEH3: 0 | AEI3: 0 | AEJ3: 0 | AEK3: 0 | AEL3: 0 | AEM3: 0 | AEN3: 0 | AEO3: 0 | AEP3: 0 | AEQ3: 0 | AER3: 0 | AES3: 0 | AET3: 0 | AEU3: 0 | AEV3: 0 | AEW3: 0 | AEX3: 0 | AEY3: 0 | AEZ3: 0 | AFA3: 0 | AFB3: 0 | AFC3: 0 | AFD3: 0 | AFE3: 0 | AFF3: 0 | AFG3: 0 | AFH3: 0 | AFI3: 0 | AFJ3: 0 | AFK3: 0 | AFL3: 0 | AFM3: 0 | AFN3: 0 | AFO3: 0 | AFP3: 0 | AFQ3: 0 | AFR3: 0 | AFS3: 0 | AFT3: 0 | AFU3: 0 | AFV3: 0 | AFW3: 0 | AFX3: 0 | AFY3: 0 | AFZ3: 0 | AGA3: 0 | AGB3: 0 | AGC3: 0 | AGD3: 0 | AGE3: 0 | AGF3: 0 | AGG3: 0 | AGH3: 0 | AGI3: 0 | AGJ3: 0 | AGK3: 0 | AGL3: 0 | AGM3: 0 | AGN3: 0 | AGO3: 0 | AGP3: 0 | AGQ3: 0 | AGR3: 0 | AGS3: 0 | AGT3: 0 | AGU3: 0 | AGV3: 0 | AGW3: 0 | AGX3: 0 | AGY3: 0 | AGZ3: 0 | AHA3: 0 | AHB3: 0 | AHC3: 0 | AHD3: 0 | AHE3: 0 | AHF3: 0 | AHG3: 0 | AHH3: 0 | AHI3: 0 | AHJ3: 0 | AHK3: 0 | AHL3: 0 | AHM3: 0 | AHN3: 0 | AHO3: 0 | AHP3: 0 | AHQ3: 0 | AHR3: 0 | AHS3: 0 | AHT3: 0 | AHU3: 0 | AHV3: 0 | AHW3: 0 | AHX3: 0 | AHY3: 0 | AHZ3: 0 | AIA3: 0 | AIB3: 0 | AIC3: 0 | AID3: 0 | AIE3: 0 | AIF3: 0 | AIG3: 0 | AIH3: 0 | AII3: 0 | AIJ3: 0 | AIK3: 0 | AIL3: 0 | AIM3: 0 | AIN3: 0 | AIO3: 0 | AIP3: 0 | AIQ3: 0 | AIR3: 0 | AIS3: 0 | AIT3: 0 | AIU3: 0 | AIV3: 0 | AIW3: 0 | AIX3: 0 | AIY3: 0 | AIZ3: 0 | AJA3: 0 | AJB3: 0 | AJC3: 0 | AJD3: 0 | AJE3: 0 | AJF3: 0 | AJG3: 0 | AJH3: 0 | AJI3: 0 | AJJ3: 0 | AJK3: 0 | AJL3: 0 | AJM3: 0 | AJN3: 0 | AJO3: 0 | AJP3: 0 | AJQ3: 0 | AJR3: 0 | AJS3: 0 | AJT3: 0 | AJU3: 0 | AJV3: 0 | AJW3: 0 | AJX3: 0 | AJY3: 0 | AJZ3: 0 | AKA3: 0 | AKB3: 0 | AKC3: 0 | AKD3: 0 | AKE3: 0 | AKF3: 0 | AKG3: 0 | AKH3: 0 | AKI3: 0 | AKJ3: 0 | AKK3: 0 | AKL3: 0 | AKM3: 0 | AKN3: 0 | AKO3: 0 | AKP3: 0 | AKQ3: 0 | AKR3: 0 | AKS3: 0 | AKT3: 0 | AKU3: 0 | AKV3: 0 | AKW3: 0 | AKX3: 0 | AKY3: 0 | AKZ3: 0 | ALA3: 0 | ALB3: 0 | ALC3: 0 | ALD3: 0 | ALE3: 0 | ALF3: 0 | ALG3: 0 | ALH3: 0 | ALI3: 0 | ALJ3: 0 | ALK3: 0 | ALL3: 0 | ALM3: 0 | ALN3: 0 | ALO3: 0 | ALP3: 0 | ALQ3: 0 | ALR3: 0 | ALS3: 0 | ALT3: 0 | ALU3: 0 | ALV3: 0 | ALW3: 0 | ALX3: 0 | ALY3: 0 | ALZ3: 0 | AMA3: 0 | AMB3: 0 | AMC3: 0 | AMD3: 0 | AME3: 0 | AMF3: 0 | AMG3: 0 | AMH3: 0 | AMI3: 0 | AMJ3: 0 | AMK3: 0 | AML3: 0 | AMM3: 0 | AMN3: 0 | AMO3: 0 | AMP3: 0 | AMQ3: 0 | AMR3: 0 | AMS3: 0 | AMT3: 0 | AMU3: 0 | AMV3: 0 | AMW3: 0 | AMX3: 0 | AMY3: 0 | AMZ3: 0 | ANA3: 0 | ANB3: 0 | ANC3: 0 | AND3: 0 | ANE3: 0 | ANF3: 0 | ANG3: 0 | ANH3: 0 | ANI3: 0 | ANJ3: 0 | ANK3: 0 | ANL3: 0 | ANM3: 0 | ANN3: 0 | ANO3: 0 | ANP3: 0 | ANQ3: 0 | ANR3: 0 | ANS3: 0 | ANT3: 0 | ANU3: 0 | ANV3: 0 | ANW3: 0 | ANX3: 0 | ANY3: 0 | ANZ3: 0 | AOA3: 0 | AOB3: 0 | AOC3: 0 | AOD3: 0 | AOE3: 0 | AOF3: 0 | AOG3: 0 | AOH3: 0 | AOI3: 0 | AOJ3: 0 | AOK3: 0 | AOL3: 0 | AOM3: 0 | AON3: 0 | AOO3: 0 | AOP3: 0 | AOQ3: 0 | AOR3: 0 | AOS3: 0 | AOT3: 0 | AOU3: 0 | AOV3: 0 | AOW3: 0 | AOX3: 0 | AOY3: 0 | AOZ3: 0 | APA3: 0 | APB3: 0 | APC3: 0 | APD3: 0 | APE3: 0 | APF3: 0 | APG3: 0 | APH3: 0 | API3: 0 | APJ3: 0 | APK3: 0 | APL3: 0 | APM3: 0 | APN3: 0 | APO3: 0 | APP3: 0 | APQ3: 0 | APR3: 0 | APS3: 0 | APT3: 0 | APU3: 0 | APV3: 0 | APW3: 0 | APX3: 0 | APY3: 0 | APZ3: 0 | AQA3: 0 | AQB3: 0 | AQC3: 0 | AQD3: 0 | AQE3: 0 | AQF3: 0 | AQG3: 0 | AQH3: 0 | AQI3: 0 | AQJ3: 0 | AQK3: 0 | AQL3: 0 | AQM3: 0 | AQN3: 0 | AQO3: 0 | AQP3: 0 | AQQ3: 0 | AQR3: 0 | AQS3: 0 | AQT3: 0 | AQU3: 0 | AQV3: 0 | AQW3: 0 | AQX3: 0 | AQY3: 0 | AQZ3: 0 | ARA3: 0 | ARB3: 0 | ARC3: 0 | ARD3: 0 | ARE3: 0 | ARF3: 0 | ARG3: 0 | ARH3: 0 | ARI3: 0 | ARJ3: 0 | ARK3: 0 | ARL3: 0 | ARM3: 0 | ARN3: 0 | ARO3: 0 | ARP3: 0 | ARQ3: 0 | ARR3: 0 | ARS3: 0 | ART3: 0 | ARU3: 0 | ARV3: 0 | ARW3: 0 | ARX3: 0 | ARY3: 0 | ARZ3: 0 | ASA3: 0 | ASB3: 0 | ASC3: 0 | ASD3: 0 | ASE3: 0 | ASF3: 0 | ASG3: 0 | ASH3: 0 | ASI3: 0 | ASJ3: 0 | ASK3: 0 | ASL3: 0 | ASM3: 0 | ASN3: 0 | ASO3: 0 | ASP3: 0 | ASQ3: 0 | ASR3: 0 | ASS3: 0 | AST3: 0 | ASU3: 0 | ASV3: 0 | ASW3: 0 | ASX3: 0 | ASY3: 0 | ASZ3: 0 | ATA3: 0 | ATB3: 0 | ATC3: 0 | ATD3: 0 | ATE3: 0 | ATF3: 0 | ATG3: 0 | ATH3: 0 | ATI3: 0 | ATJ3: 0 | ATK3: 0 | ATL3: 0 | ATM3: 0 | ATN3: 0 | ATO3: 0 | ATP3: 0 | ATQ3: 0 | ATR3: 0 | ATS3: 0 | ATT3: 0 | ATU3: 0 | ATV3: 0 | ATW3: 0 | ATX3: 0 | ATY3: 0 | ATZ3: 0 | AUA3: 0 | AUB3: 0 | AUC3: 0 | AUD3: 0 | AUE3: 0 | AUF3: 0 | AUG3: 0 | AUH3: 0 | AUI3: 0 | AUJ3: 0 | AUK3: 0 | AUL3: 0 | AUM3: 0 | AUN3: 0 | AUO3: 0 | AUP3: 0 | AUQ3: 0 | AUR3: 0 | AUS3: 0 | AUT3: 0 | AUU3: 0 | AUV3: 0 | AUW3: 0 | AUX3: 0 | AUY3: 0 | AUZ3: 0 | AVA3: 0 | AVB3: 0 | AVC3: 0 | AVD3: 0 | AVE3: 0 | AVF3: 0 | AVG3: 0 | AVH3: 0 | AVI3: 0 | AVJ3: 0 | AVK3: 0 | AVL3: 0 | AVM3: 0 | AVN3: 0 | AVO3: 0 | AVP3: 0 | AVQ3: 0 | AVR3: 0 | AVS3: 0 | AVT3: 0 | AVU3: 0 | AVV3: 0 | AVW3: 0 | AVX3: 0 | AVY3: 0 | AVZ3: 0 | AWA3: 0 | AWB3: 0 | AWC3: 0 | AWD3: 0 | AWE3: 0 | AWF3: 0 | AWG3: 0 | AWH3: 0 | AWI3: 0 | AWJ3: 0 | AWK3: 0 | AWL3: 0 | AWM3: 0 | AWN3: 0 | AWO3: 0 | AWP3: 0 | AWQ3: 0 | AWR3: 0 | AWS3: 0 | AWT3: 0 | AWU3: 0 | AWV3: 0 | AWW3: 0 | AWX3: 0 | AWY3: 0 | AWZ3: 0 | AXA3: 0 | AXB3: 0 | AXC3: 0 | AXD3: 0 | AXE3: 0 | AXF3: 0 | AXG3: 0 | AXH3: 0 | AXI3: 0 | AXJ3: 0 | AXK3: 0 | AXL3: 0 | AXM3: 0 | AXN3: 0 | AXO3: 0 | AXP3: 0 | AXQ3: 0 | AXR3: 0 | AXS3: 0 | AXT3: 0 | AXU3: 0 | AXV3: 0 | AXW3: 0 | AXX3: 0 | AXY3: 0 | AXZ3: 0 | AYA3: 0 | AYB3: 0 | AYC3: 0 | AYD3: 0 | AYE3: 0 | AYF3: 0 | AYG3: 0 | AYH3: 0 | AYI3: 0 | AYJ3: 0 | AYK3: 0 | AYL3: 0 | AYM3: 0 | AYN3: 0 | AYO3: 0 | AYP3: 0 | AYQ3: 0 | AYR3: 0 | AYS3: 0 | AYT3: 0 | AYU3: 0 | AYV3: 0 | AYW3: 0 | AYX3: 0 | AYY3: 0 | AYZ3: 0 | AZA3: 0 | AZB3: 0 | AZC3: 0 | AZD3: 0 | AZE3: 0 | AZF3: 0 | AZG3: 0 | AZH3: 0 | AZI3: 0 | AZJ3: 0 | AZK3: 0 | AZL3: 0 | AZM3: 0 | AZN3: 0 | AZO3: 0 | AZP3: 0 | AZQ3: 0 | AZR3: 0 | AZS3: 0 | AZT3: 0 | AZU3: 0 | AZV3: 0 | AZW3: 0 | AZX3: 0 | AZY3: 0 | AZZ3: 0 | BAA3: 0 | BAB3: 0 | BAC3: 0 | BAD3: 0 | BAE3: 0 | BAF3: 0 | BAG3: 0 | BAH3: 0 | BAI3: 0 | BAJ3: 0 | BAK3: 0 | BAL3: 0 | BAM3: 0 | BAN3: 0 | BAO3: 0 | BAP3: 0 | BAQ3: 0 | BAR3: 0 | BAS3: 0 | BAT3: 0 | BAU3: 0 | BAV3: 0 | BAW3: 0 | BAX3: 0 | BAY3: 0 | BAZ3: 0 | BBA3: 0 | BBB3: 0 | BBC3: 0 | BBD3: 0 | BBE3: 0 | BBF3: 0 | BBG3: 0 | BBH3: 0 | BBI3: 0 | BBJ3: 0 | BBK3: 0 | BBL3: 0 | BBM3: 0 | BBN3: 0 | BBO3: 0 | BBP3: 0 | BBQ3: 0 | BBR3: 0 | BBS3: 0 | BBT3: 0 | BBU3: 0 | BBV3: 0 | BBW3: 0 | BBX3: 0 | BBY3: 0 | BBZ3: 0 | BCA3: 0 | BCB3: 0 | BCC3: 0 | BCD3: 0 | BCE3: 0 | BCF3: 0 | BCG3: 0 | BCH3: 0 | BCI3: 0 | BCJ3: 0 | BCK3: 0 | BCL3: 0 | BCM3: 0 | BCN3: 0 | BCO3: 0 | BCP3: 0 | BCQ3: 0 | BCR3: 0 | BCS3: 0 | BCT3: 0 | BCU3: 0 | BCV3: 0 | BCW3: 0 | BCX3: 0 | BCY3: 0 | BCZ3: 0 | BDA3: 0 | BDB3: 0 | BDC3: 0 | BDD3: 0 | BDE3: 0 | BDF3: 0 | BDG3: 0 | BDH3: 0 | BDI3: 0 | BDJ3: 0 | BDK3: 0 | BDL3: 0 | BDM3: 0 | BDN3: 0 | BDO3: 0 | BDP3: 0 | BDQ3: 0 | BDR3: 0 | BDS3: 0 | BDT3: 0 | BDU3: 0 | BDV3: 0 | BDW3: 0 | BDX3: 0 | BDY3: 0 | BDZ3: 0 | BEA3: 0 | BEB3: 0 | BEC3: 0 | BED3: 0 | BEE3: 0 | BEF3: 0 | BEG3: 0 | BEH3: 0 | BEI3: 0 | BEJ3: 0 | BEK3: 0 | BEL3: 0 | BEM3: 0 | BEN3: 0 | BEO3: 0 | BEP3: 0 | BEQ3: 0 | BER3: 0 | BES3: 0 | BET3: 0 | BEU3: 0 | BEV3: 0 | BEW3: 0 | BEX3: 0 | BEY3: 0 | BEZ3: 0 | BFA3: 0 | BFB3: 0 | BFC3: 0 | BFD3: 0 | BFE3: 0 | BFF3: 0 | BFG3: 0 | BFH3: 0 | BFI3: 0 | BFJ3: 0 | BFK3: 0 | BFL3: 0 | BFM3: 0 | BFN3: 0 | BFO3: 0 | BFP3: 0 | BFQ3: 0 | BFR3: 0 | BFS3: 0 | BFT3: 0 | BFU3: 0 | BFV3: 0 | BFW3: 0 | BFX3: 0 | BFY3: 0 | BFZ3: 0 | BGA3: 0 | BGB3: 0 | BGC3: 0 | BGD3: 0 | BGE3: 0 | BGF3: 0 | BGG3: 0 | BGH3: 0 | BGI3: 0 | BGJ3: 0 | BGK3: 0 | BGL3: 0 | BGM3: 0 | BGN3: 0 | BGO3: 0 | BGP3: 0 | BGQ3: 0 | BGR3: 0 | BGS3: 0 | BGT3: 0 | BGU3: 0 | BGV3: 0 | BGW3: 0 | BGX3: 0 | BGY3: 0 | BGZ3: 0 | BHA3: 0 | BHB3: 0 | BHC3: 0 | BHD3: 0 | BHE3: 0 | BHF3: 0 | BHG3: 0 | BHH3: 0 | BHI3: 0 | BHJ3: 0 | BHK3: 0 | BHL3: 0 | BHM3: 0 | BHN3: 0 | BHO3: 0 | BHP3: 0 | BHQ3: 0 | BHR3: 0 | BHS3: 0 | BHT3: 0 | BHU3: 0 | BHV3: 0 | BHW3: 0 | BHX3: 0 | BHY3: 0 | BHZ3: 0 | BIA3: 0 | BIB3: 0 | BIC3: 0 | BID3: 0 | BIE3: 0 | BIF3: 0 | BIG3: 0 | BIH3: 0 | BII3: 0 | BIJ3: 0 | BIK3: 0 | BIL3: 0 | BIM3: 0 | BIN3: 0 | BIO3: 0 | BIP3: 0 | BIQ3: 0 | BIR3: 0 | BIS3: 0 | BIT3: 0 | BIU3: 0 | BIV3: 0 | BIW3: 0 | BIX3: 0 | BIY3: 0 | BIZ3: 0 | BJA3: 0 | BJB3: 0 | BJC3: 0 | BJD3: 0 | BJE3: 0 | BJF3: 0 | BJG3: 0 | BJH3: 0 | BJI3: 0 | BJJ3: 0 | BJK3: 0 | BJL3: 0 | BJM3: 0 | BJN3: 0 | BJO3: 0 | BJP3: 0 | BJQ3: 0 | BJR3: 0 | BJS3: 0 | BJT3: 0 | BJU3: 0 | BJV3: 0 | BJW3: 0 | BJX3: 0 | BJY3: 0 | BJZ3: 0 | BKA3: 0 | BKB3: 0 | BKC3: 0 | BKD3: 0 | BKE3: 0 | BKF3: 0 | BKG3: 0 | BKH3: 0 | BKI3: 0 | BKJ3: 0 | BKK3: 0 | BKL3: 0 | BKM3: 0 | BKN3: 0 | BKO3: 0 | BKP3: 0 | BKQ3: 0 | BKR3: 0 | BKS3: 0 | BKT3: 0 | BKU3: 0 | BKV3: 0 | BKW3: 0 | BKX3: 0 | BKY3: 0 | BKZ3: 0 | BLA3: 0 | BLB3: 0 | BLC3: 0 | BLD3: 0 | BLE3: 0 | BLF3: 0 | BLG3: 0 | BLH3: 0 | BLI3: 0 | BLJ3: 0 | BLK3: 0 | BLL3: 0 | BLM3: 0 | BLN3: 0 | BLO3: 0 | BLP3: 0 | BLQ3: 0 | BLR3: 0 | BLS3: 0 | BLT3: 0 | BLU3: 0 | BLV3: 0 | BLW3: 0 | BLX3: 0 | BLY3: 0 | BLZ3: 0 | BMA3: 0 | BMB3: 0 | BMC3: 0 | BMD3: 0 | BME3: 0 | BMF3: 0 | BMG3: 0 | BMH3: 0 | BMI3: 0 | BMJ3: 0 | BMK3: 0
B4: 00:00:00 | C4: 0.011 | D4: 0.008 | E4: 0.06 | F4: 0.026 | G4: 0.073 | H4: 0.056 | K4: 1 | L4: 5.555555556 | M4: 0 | N4: 0.0101010101 | P4: 0.005291005291 | T4: 1 | U4: =TRANSPOSE('Average power consumption'!$C$3:$C$122)*L4 -> 0.2666666667 | V4: 1.644444444 | W4: 10.09444444 | X4: 11.33888889 | Y4: 11.40555556 | Z4: 11.33333333 | AA4: 10.87777778 | AB4: 10.68888889 | AC4: 10.30555556 | AD4: 9.605555556 | AE4: 8.844444444 | AF4: 8.111111111 | AG4: 7.566666667 | AH4: 6.855555556 | AI4: 5.944444444 | AJ4: 5.283333333 | AK4: 4.922222222 | AL4: 4.672222222 | AM4: 4.444444444 | AN4: 4.027777778 | AO4: 4.022222222 | AP4: 3.766666667 | AQ4: 3.483333333 | AR4: 3.255555556 | AS4: 3.255555556 | AT4: 3.211111111 | AU4: 3.016666667 | AV4: 2.888888889 | AW4: 2.877777778 | AX4: 2.638888889 | AY4: 2.294444444 | AZ4: 2.211111111 | BA4: 2.022222222 | BB4: 1.783333333 | BC4: 1.594444444 | BD4: 1.488888889 | BE4: 1.35 | BF4: 1.261111111 | BG4: 1.127777778 | BH4: 0.9944444444 | BI4: 0.9 | BJ4: 0.8888888889 | BK4: 0.8888888889 | BL4: 0.8888888889 | BM4: 0.8611111111 | BN4: 0.9055555556 | BO4: 0.8777777778 | BP4: 0.8111111111 | BQ4: 0.8111111111 | BR4: 0.7166666667 | BS4: 0.7166666667 | BT4: 0.7777777778 | BU4: 0.7166666667 | BV4: 0.6611111111 | BW4: 0.6888888889 | BX4: 0.75 | BY4: 0.7722222222 | BZ4: 0.7555555556 | CA4: 0.7444444444 | CB4: 0.8055555556 | CC4: 0.7833333333 | CD4: 0.8277777778 | CE4: 0.8333333333 | CF4: 0.7944444444 | CG4: 0.8055555556 | CH4: 0.8166666667 | CI4: 0.8166666667 | CJ4: 0.7388888889 | CK4: 0.6666666667 | CL4: 0.6944444444 | CM4: 0.7722222222 | CN4: 0.7444444444 | CO4: 0.7444444444 | CP4: 0.7222222222 | CQ4: 0.7833333333 | CR4: 0.8 | CS4: 0.7722222222 | CT4: 0.7333333333 | CU4: 0.7722222222 | CV4: 0.7277777778 | CW4: 0.6944444444 | CX4: 0.8277777778 | CY4: 0.8888888889 | CZ4: 0.8444444444 | DA4: 0.8166666667 | DB4: 0.7166666667 | DC4: 0.7777777778 | DD4: 0.6777777778 | DE4: 0.6722222222 | DF4: 0.6888888889 | DG4: 0.6166666667 | DH4: 0.6166666667 | DI4: 0.6611111111 | DJ4: 0.6944444444 | DK4: 0.8166666667 | DL4: 0.8777777778 | DM4: 0.8444444444 | DN4: 0.8722222222 | DO4: 0.8833333333 | DP4: 0.85 | DQ4: 0.8611111111 | DR4: 0.8333333333 | DS4: 0.8166666667 | DT4: 0.8 | DU4: 0.8333333333 | DV4: 0.8333333333 | DW4: 0.8444444444 | DX4: 0.8722222222 | DY4: 0.8833333333 | DZ4: 0.85 | EA4: 0.8611111111 | EB4: 0.8333333333 | EC4: 0.8166666667 | ED4: 0.8 | EE4: 0.8333333333 | EF4: 0.8333333333 | EG4: 0.8166666667 | EH4: 0.8 | EI4: 0.8333333333 | EJ4: 0.8333333333 | EM4: 0.2666666667 | EN4: 1.644444444 | EO4: 10.09444444 | EP4: 11.33888889 | EQ4: 11.40555556 | ER4: 11.33333333 | ES4: 10.87777778 | ET4: 10.68888889 | EU4: 10.30555556 | EV4: 9.605555556 | EW4: 8.844444444 | EX4: 8.111111111 | EY4: 7.566666667 | EZ4: 6.855555556 | FA4: 5.944444444 | FB4: 5.283333333 | FC4: 4.922222222 | FD4: 4.672222222 | FE4: 4.444444444 | FF4: 4.027777778 | FG4: 4.022222222 | FH4: 3.766666667 | FI4: 3.483333333 | FJ4: 3.255555556 | FK4: 3.255555556 | FL4: 3.211111111 | FM4: 3.016666667 | FN4: 2.888888889 | FO4: 2.877777778 | FP4: 2.638888889 | FQ4: 2.294444444 | FR4: 2.211111111 | FS4: 2.022222222 | FT4: 1.783333333 | FU4: 1.594444444 | FV4: 1.488888889 | FW4: 1.35 | FX4: 1.261111111 | FY4: 1.127777778 | FZ4: 0.9944444444 | GA4: 0.9 | GB4: 0.8888888889 | GC4: 0.8888888889 | GD4: 0.8888888889 | GE4: 0.8611111111 | GF4: 0.9055555556 | GG4: 0.8777777778 | GH4: 0.8111111111 | GI4: 0.8111111111 | GJ4: 0.7166666667 | GK4: 0.7166666667 | GL4: 0.7777777778 | GM4: 0.7166666667 | GN4: 0.6611111111 | GO4: 0.6888888889 | GP4: 0.75 | GQ4: 0.7722222222 | GR4: 0.7555555556 | GS4: 0.7444444444 | GT4: 0.8055555556 | GU4: 0.7833333333 | GV4: 0.8277777778 | GW4: 0.8333333333 | GX4: 0.7944444444 | GY4: 0.8055555556 | GZ4: 0.8166666667 | HA4: 0.8166666667 | HB4: 0.7388888889 | HC4: 0.6666666667 | HD4: 0.6944444444 | HE4: 0.7722222222 | HF4: 0.7444444444 | HG4: 0.7444444444 | HH4: 0.7222222222 | HI4: 0.7833333333 | HJ4: 0.8 | HK4: 0.7722222222 | HL4: 0.7333333333 | HM4: 0.7722222222 | HN4: 0.7277777778 | HO4: 0.6944444444 | HP4: 0.8277777778 | HQ4: 0.8888888889 | HR4: 0.8444444444 | HS4: 0.8166666667 | HT4: 0.7166666667 | HU4: 0.7777777778 | HV4: 0.6777777778 | HW4: 0.6722222222 | HX4: 0.6888888889 | HY4: 0.6166666667 | HZ4: 0.6166666667 | IA4: 0.6611111111 | IB4: 0.6944444444 | IC4: 0.8166666667 | ID4: 0.8777777778 | IE4: 0.8444444444 | IF4: 0.8722222222 | IG4: 0.8833333333 | IH4: 0.85 | II4: 0.8611111111 | IJ4: 0.8333333333 | IK4: 0.8166666667 | IL4: 0.8 | IM4: 0.8333333333 | IN4: 0.8333333333 | IO4: 0.8444444444 | IP4: 0.8722222222 | IQ4: 0.8833333333 | IR4: 0.85 | IS4: 0.8611111111 | IT4: 0.8333333333 | IU4: 0.8166666667 | IV4: 0.8 | IW4: 0.8333333333 | IX4: 0.8333333333 | IY4: 0.8166666667 | IZ4: 0.8 | JA4: 0.8333333333 | JB4: 0.8333333333 | JC4: 0 | JD4: 0 | JE4: 0 | JF4: 0 | JG4: 0 | JH4: 0 | JI4: 0 | JJ4: 0 | JK4: 0 | JL4: 0 | JM4: 0 | JN4: 0 | JO4: 0 | JP4: 0 | JQ4: 0 | JR4: 0 | JS4: 0 | JT4: 0 | JU4: 0 | JV4: 0 | JW4: 0 | JX4: 0 | JY4: 0 | JZ4: 0 | KA4: 0 | KB4: 0 | KC4: 0 | KD4: 0 | KE4: 0 | KF4: 0 | KG4: 0 | KH4: 0 | KI4: 0 | KJ4: 0 | KK4: 0 | KL4: 0 | KM4: 0 | KN4: 0 | KO4: 0 | KP4: 0 | KQ4: 0 | KR4: 0 | KS4: 0 | KT4: 0 | KU4: 0 | KV4: 0 | KW4: 0 | KX4: 0 | KY4: 0 | KZ4: 0 | LA4: 0 | LB4: 0 | LC4: 0 | LD4: 0 | LE4: 0 | LF4: 0 | LG4: 0 | LH4: 0 | LI4: 0 | LJ4: 0 | LK4: 0 | LL4: 0 | LM4: 0 | LN4: 0 | LO4: 0 | LP4: 0 | LQ4: 0 | LR4: 0 | LS4: 0 | LT4: 0 | LU4: 0 | LV4: 0 | LW4: 0 | LX4: 0 | LY4: 0 | LZ4: 0 | MA4: 0 | MB4: 0 | MC4: 0 | MD4: 0 | ME4: 0 | MF4: 0 | MG4: 0 | MH4: 0 | MI4: 0 | MJ4: 0 | MK4: 0 | ML4: 0 | MM4: 0 | MN4: 0 | MO4: 0 | MP4: 0 | MQ4: 0 | MR4: 0 | MS4: 0 | MT4: 0 | MU4: 0 | MV4: 0 | MW4: 0 | MX4: 0 | MY4: 0 | MZ4: 0 | NA4: 0 | NB4: 0 | NC4: 0 | ND4: 0 | NE4: 0 | NF4: 0 | NG4: 0 | NH4: 0 | NI4: 0 | NJ4: 0 | NK4: 0 | NL4: 0 | NM4: 0 | NN4: 0 | NO4: 0 | NP4: 0 | NQ4: 0 | NR4: 0 | NS4: 0 | NT4: 0 | NU4: 0 | NV4: 0 | NW4: 0 | NX4: 0 | NY4: 0 | NZ4: 0 | OA4: 0 | OB4: 0 | OC4: 0 | OD4: 0 | OE4: 0 | OF4: 0 | OG4: 0 | OH4: 0 | OI4: 0 | OJ4: 0 | OK4: 0 | OL4: 0 | OM4: 0 | ON4: 0 | OO4: 0 | OP4: 0 | OQ4: 0 | OR4: 0 | OS4: 0 | OT4: 0 | OU4: 0 | OV4: 0 | OW4: 0 | OX4: 0 | OY4: 0 | OZ4: 0 | PA4: 0 | PB4: 0 | PC4: 0 | PD4: 0 | PE4: 0 | PF4: 0 | PG4: 0 | PH4: 0 | PI4: 0 | PJ4: 0 | PK4: 0 | PL4: 0 | PM4: 0 | PN4: 0 | PO4: 0 | PP4: 0 | PQ4: 0 | PR4: 0 | PS4: 0 | PT4: 0 | PU4: 0 | PV4: 0 | PW4: 0 | PX4: 0 | PY4: 0 | PZ4: 0 | QA4: 0 | QB4: 0 | QC4: 0 | QD4: 0 | QE4: 0 | QF4: 0 | QG4: 0 | QH4: 0 | QI4: 0 | QJ4: 0 | QK4: 0 | QL4: 0 | QM4: 0 | QN4: 0 | QO4: 0 | QP4: 0 | QQ4: 0 | QR4: 0 | QS4: 0 | QT4: 0 | QU4: 0 | QV4: 0 | QW4: 0 | QX4: 0 | QY4: 0 | QZ4: 0 | RA4: 0 | RB4: 0 | RC4: 0 | RD4: 0 | RE4: 0 | RF4: 0 | RG4: 0 | RH4: 0 | RI4: 0 | RJ4: 0 | RK4: 0 | RL4: 0 | RM4: 0 | RN4: 0 | RO4: 0 | RP4: 0 | RQ4: 0 | RR4: 0 | RS4: 0 | RT4: 0 | RU4: 0 | RV4: 0 | RW4: 0 | RX4: 0 | RY4: 0 | RZ4: 0 | SA4: 0 | SB4: 0 | SC4: 0 | SD4: 0 | SE4: 0 | SF4: 0 | SG4: 0 | SH4: 0 | SI4: 0 | SJ4: 0 | SK4: 0 | SL4: 0 | SM4: 0 | SN4: 0 | SO4: 0 | SP4: 0 | SQ4: 0 | SR4: 0 | SS4: 0 | ST4: 0 | SU4: 0 | SV4: 0 | SW4: 0 | SX4: 0 | SY4: 0 | SZ4: 0 | TA4: 0 | TB4: 0 | TC4: 0 | TD4: 0 | TE4: 0 | TF4: 0 | TG4: 0 | TH4: 0 | TI4: 0 | TJ4: 0 | TK4: 0 | TL4: 0 | TM4: 0 | TN4: 0 | TO4: 0 | TP4: 0 | TQ4: 0 | TR4: 0 | TS4: 0 | TT4: 0 | TU4: 0 | TV4: 0 | TW4: 0 | TX4: 0 | TY4: 0 | TZ4: 0 | UA4: 0 | UB4: 0 | UC4: 0 | UD4: 0 | UE4: 0 | UF4: 0 | UG4: 0 | UH4: 0 | UI4: 0 | UJ4: 0 | UK4: 0 | UL4: 0 | UM4: 0 | UN4: 0 | UO4: 0 | UP4: 0 | UQ4: 0 | UR4: 0 | US4: 0 | UT4: 0 | UU4: 0 | UV4: 0 | UW4: 0 | UX4: 0 | UY4: 0 | UZ4: 0 | VA4: 0 | VB4: 0 | VC4: 0 | VD4: 0 | VE4: 0 | VF4: 0 | VG4: 0 | VH4: 0 | VI4: 0 | VJ4: 0 | VK4: 0 | VL4: 0 | VM4: 0 | VN4: 0 | VO4: 0 | VP4: 0 | VQ4: 0 | VR4: 0 | VS4: 0 | VT4: 0 | VU4: 0 | VV4: 0 | VW4: 0 | VX4: 0 | VY4: 0 | VZ4: 0 | WA4: 0 | WB4: 0 | WC4: 0 | WD4: 0 | WE4: 0 | WF4: 0 | WG4: 0 | WH4: 0 | WI4: 0 | WJ4: 0 | WK4: 0 | WL4: 0 | WM4: 0 | WN4: 0 | WO4: 0 | WP4: 0 | WQ4: 0 | WR4: 0 | WS4: 0 | WT4: 0 | WU4: 0 | WV4: 0 | WW4: 0 | WX4: 0 | WY4: 0 | WZ4: 0 | XA4: 0 | XB4: 0 | XC4: 0 | XD4: 0 | XE4: 0 | XF4: 0 | XG4: 0 | XH4: 0 | XI4: 0 | XJ4: 0 | XK4: 0 | XL4: 0 | XM4: 0 | XN4: 0 | XO4: 0 | XP4: 0 | XQ4: 0 | XR4: 0 | XS4: 0 | XT4: 0 | XU4: 0 | XV4: 0 | XW4: 0 | XX4: 0 | XY4: 0 | XZ4: 0 | YA4: 0 | YB4: 0 | YC4: 0 | YD4: 0 | YE4: 0 | YF4: 0 | YG4: 0 | YH4: 0 | YI4: 0 | YJ4: 0 | YK4: 0 | YL4: 0 | YM4: 0 | YN4: 0 | YO4: 0 | YP4: 0 | YQ4: 0 | YR4: 0 | YS4: 0 | YT4: 0 | YU4: 0 | YV4: 0 | YW4: 0 | YX4: 0 | YY4: 0 | YZ4: 0 | ZA4: 0 | ZB4: 0 | ZC4: 0 | ZD4: 0 | ZE4: 0 | ZF4: 0 | ZG4: 0 | ZH4: 0 | ZI4: 0 | ZJ4: 0 | ZK4: 0 | ZL4: 0 | ZM4: 0 | ZN4: 0 | ZO4: 0 | ZP4: 0 | ZQ4: 0 | ZR4: 0 | ZS4: 0 | ZT4: 0 | ZU4: 0 | ZV4: 0 | ZW4: 0 | ZX4: 0 | ZY4: 0 | ZZ4: 0 | AAA4: 0 | AAB4: 0 | AAC4: 0 | AAD4: 0 | AAE4: 0 | AAF4: 0 | AAG4: 0 | AAH4: 0 | AAI4: 0 | AAJ4: 0 | AAK4: 0 | AAL4: 0 | AAM4: 0 | AAN4: 0 | AAO4: 0 | AAP4: 0 | AAQ4: 0 | AAR4: 0 | AAS4: 0 | AAT4: 0 | AAU4: 0 | AAV4: 0 | AAW4: 0 | AAX4: 0 | AAY4: 0 | AAZ4: 0 | ABA4: 0 | ABB4: 0 | ABC4: 0 | ABD4: 0 | ABE4: 0 | ABF4: 0 | ABG4: 0 | ABH4: 0 | ABI4: 0 | ABJ4: 0 | ABK4: 0 | ABL4: 0 | ABM4: 0 | ABN4: 0 | ABO4: 0 | ABP4: 0 | ABQ4: 0 | ABR4: 0 | ABS4: 0 | ABT4: 0 | ABU4: 0 | ABV4: 0 | ABW4: 0 | ABX4: 0 | ABY4: 0 | ABZ4: 0 | ACA4: 0 | ACB4: 0 | ACC4: 0 | ACD4: 0 | ACE4: 0 | ACF4: 0 | ACG4: 0 | ACH4: 0 | ACI4: 0 | ACJ4: 0 | ACK4: 0 | ACL4: 0 | ACM4: 0 | ACN4: 0 | ACO4: 0 | ACP4: 0 | ACQ4: 0 | ACR4: 0 | ACS4: 0 | ACT4: 0 | ACU4: 0 | ACV4: 0 | ACW4: 0 | ACX4: 0 | ACY4: 0 | ACZ4: 0 | ADA4: 0 | ADB4: 0 | ADC4: 0 | ADD4: 0 | ADE4: 0 | ADF4: 0 | ADG4: 0 | ADH4: 0 | ADI4: 0 | ADJ4: 0 | ADK4: 0 | ADL4: 0 | ADM4: 0 | ADN4: 0 | ADO4: 0 | ADP4: 0 | ADQ4: 0 | ADR4: 0 | ADS4: 0 | ADT4: 0 | ADU4: 0 | ADV4: 0 | ADW4: 0 | ADX4: 0 | ADY4: 0 | ADZ4: 0 | AEA4: 0 | AEB4: 0 | AEC4: 0 | AED4: 0 | AEE4: 0 | AEF4: 0 | AEG4: 0 | AEH4: 0 | AEI4: 0 | AEJ4: 0 | AEK4: 0 | AEL4: 0 | AEM4: 0 | AEN4: 0 | AEO4: 0 | AEP4: 0 | AEQ4: 0 | AER4: 0 | AES4: 0 | AET4: 0 | AEU4: 0 | AEV4: 0 | AEW4: 0 | AEX4: 0 | AEY4: 0 | AEZ4: 0 | AFA4: 0 | AFB4: 0 | AFC4: 0 | AFD4: 0 | AFE4: 0 | AFF4: 0 | AFG4: 0 | AFH4: 0 | AFI4: 0 | AFJ4: 0 | AFK4: 0 | AFL4: 0 | AFM4: 0 | AFN4: 0 | AFO4: 0 | AFP4: 0 | AFQ4: 0 | AFR4: 0 | AFS4: 0 | AFT4: 0 | AFU4: 0 | AFV4: 0 | AFW4: 0 | AFX4: 0 | AFY4: 0 | AFZ4: 0 | AGA4: 0 | AGB4: 0 | AGC4: 0 | AGD4: 0 | AGE4: 0 | AGF4: 0 | AGG4: 0 | AGH4: 0 | AGI4: 0 | AGJ4: 0 | AGK4: 0 | AGL4: 0 | AGM4: 0 | AGN4: 0 | AGO4: 0 | AGP4: 0 | AGQ4: 0 | AGR4: 0 | AGS4: 0 | AGT4: 0 | AGU4: 0 | AGV4: 0 | AGW4: 0 | AGX4: 0 | AGY4: 0 | AGZ4: 0 | AHA4: 0 | AHB4: 0 | AHC4: 0 | AHD4: 0 | AHE4: 0 | AHF4: 0 | AHG4: 0 | AHH4: 0 | AHI4: 0 | AHJ4: 0 | AHK4: 0 | AHL4: 0 | AHM4: 0 | AHN4: 0 | AHO4: 0 | AHP4: 0 | AHQ4: 0 | AHR4: 0 | AHS4: 0 | AHT4: 0 | AHU4: 0 | AHV4: 0 | AHW4: 0 | AHX4: 0 | AHY4: 0 | AHZ4: 0 | AIA4: 0 | AIB4: 0 | AIC4: 0 | AID4: 0 | AIE4: 0 | AIF4: 0 | AIG4: 0 | AIH4: 0 | AII4: 0 | AIJ4: 0 | AIK4: 0 | AIL4: 0 | AIM4: 0 | AIN4: 0 | AIO4: 0 | AIP4: 0 | AIQ4: 0 | AIR4: 0 | AIS4: 0 | AIT4: 0 | AIU4: 0 | AIV4: 0 | AIW4: 0 | AIX4: 0 | AIY4: 0 | AIZ4: 0 | AJA4: 0 | AJB4: 0 | AJC4: 0 | AJD4: 0 | AJE4: 0 | AJF4: 0 | AJG4: 0 | AJH4: 0 | AJI4: 0 | AJJ4: 0 | AJK4: 0 | AJL4: 0 | AJM4: 0 | AJN4: 0 | AJO4: 0 | AJP4: 0 | AJQ4: 0 | AJR4: 0 | AJS4: 0 | AJT4: 0 | AJU4: 0 | AJV4: 0 | AJW4: 0 | AJX4: 0 | AJY4: 0 | AJZ4: 0 | AKA4: 0 | AKB4: 0 | AKC4: 0 | AKD4: 0 | AKE4: 0 | AKF4: 0 | AKG4: 0 | AKH4: 0 | AKI4: 0 | AKJ4: 0 | AKK4: 0 | AKL4: 0 | AKM4: 0 | AKN4: 0 | AKO4: 0 | AKP4: 0 | AKQ4: 0 | AKR4: 0 | AKS4: 0 | AKT4: 0 | AKU4: 0 | AKV4: 0 | AKW4: 0 | AKX4: 0 | AKY4: 0 | AKZ4: 0 | ALA4: 0 | ALB4: 0 | ALC4: 0 | ALD4: 0 | ALE4: 0 | ALF4: 0 | ALG4: 0 | ALH4: 0 | ALI4: 0 | ALJ4: 0 | ALK4: 0 | ALL4: 0 | ALM4: 0 | ALN4: 0 | ALO4: 0 | ALP4: 0 | ALQ4: 0 | ALR4: 0 | ALS4: 0 | ALT4: 0 | ALU4: 0 | ALV4: 0 | ALW4: 0 | ALX4: 0 | ALY4: 0 | ALZ4: 0 | AMA4: 0 | AMB4: 0 | AMC4: 0 | AMD4: 0 | AME4: 0 | AMF4: 0 | AMG4: 0 | AMH4: 0 | AMI4: 0 | AMJ4: 0 | AMK4: 0 | AML4: 0 | AMM4: 0 | AMN4: 0 | AMO4: 0 | AMP4: 0 | AMQ4: 0 | AMR4: 0 | AMS4: 0 | AMT4: 0 | AMU4: 0 | AMV4: 0 | AMW4: 0 | AMX4: 0 | AMY4: 0 | AMZ4: 0 | ANA4: 0 | ANB4: 0 | ANC4: 0 | AND4: 0 | ANE4: 0 | ANF4: 0 | ANG4: 0 | ANH4: 0 | ANI4: 0 | ANJ4: 0 | ANK4: 0 | ANL4: 0 | ANM4: 0 | ANN4: 0 | ANO4: 0 | ANP4: 0 | ANQ4: 0 | ANR4: 0 | ANS4: 0 | ANT4: 0 | ANU4: 0 | ANV4: 0 | ANW4: 0 | ANX4: 0 | ANY4: 0 | ANZ4: 0 | AOA4: 0 | AOB4: 0 | AOC4: 0 | AOD4: 0 | AOE4: 0 | AOF4: 0 | AOG4: 0 | AOH4: 0 | AOI4: 0 | AOJ4: 0 | AOK4: 0 | AOL4: 0 | AOM4: 0 | AON4: 0 | AOO4: 0 | AOP4: 0 | AOQ4: 0 | AOR4: 0 | AOS4: 0 | AOT4: 0 | AOU4: 0 | AOV4: 0 | AOW4: 0 | AOX4: 0 | AOY4: 0 | AOZ4: 0 | APA4: 0 | APB4: 0 | APC4: 0 | APD4: 0 | APE4: 0 | APF4: 0 | APG4: 0 | APH4: 0 | API4: 0 | APJ4: 0 | APK4: 0 | APL4: 0 | APM4: 0 | APN4: 0 | APO4: 0 | APP4: 0 | APQ4: 0 | APR4: 0 | APS4: 0 | APT4: 0 | APU4: 0 | APV4: 0 | APW4: 0 | APX4: 0 | APY4: 0 | APZ4: 0 | AQA4: 0 | AQB4: 0 | AQC4: 0 | AQD4: 0 | AQE4: 0 | AQF4: 0 | AQG4: 0 | AQH4: 0 | AQI4: 0 | AQJ4: 0 | AQK4: 0 | AQL4: 0 | AQM4: 0 | AQN4: 0 | AQO4: 0 | AQP4: 0 | AQQ4: 0 | AQR4: 0 | AQS4: 0 | AQT4: 0 | AQU4: 0 | AQV4: 0 | AQW4: 0 | AQX4: 0 | AQY4: 0 | AQZ4: 0 | ARA4: 0 | ARB4: 0 | ARC4: 0 | ARD4: 0 | ARE4: 0 | ARF4: 0 | ARG4: 0 | ARH4: 0 | ARI4: 0 | ARJ4: 0 | ARK4: 0 | ARL4: 0 | ARM4: 0 | ARN4: 0 | ARO4: 0 | ARP4: 0 | ARQ4: 0 | ARR4: 0 | ARS4: 0 | ART4: 0 | ARU4: 0 | ARV4: 0 | ARW4: 0 | ARX4: 0 | ARY4: 0 | ARZ4: 0 | ASA4: 0 | ASB4: 0 | ASC4: 0 | ASD4: 0 | ASE4: 0 | ASF4: 0 | ASG4: 0 | ASH4: 0 | ASI4: 0 | ASJ4: 0 | ASK4: 0 | ASL4: 0 | ASM4: 0 | ASN4: 0 | ASO4: 0 | ASP4: 0 | ASQ4: 0 | ASR4: 0 | ASS4: 0 | AST4: 0 | ASU4: 0 | ASV4: 0 | ASW4: 0 | ASX4: 0 | ASY4: 0 | ASZ4: 0 | ATA4: 0 | ATB4: 0 | ATC4: 0 | ATD4: 0 | ATE4: 0 | ATF4: 0 | ATG4: 0 | ATH4: 0 | ATI4: 0 | ATJ4: 0 | ATK4: 0 | ATL4: 0 | ATM4: 0 | ATN4: 0 | ATO4: 0 | ATP4: 0 | ATQ4: 0 | ATR4: 0 | ATS4: 0 | ATT4: 0 | ATU4: 0 | ATV4: 0 | ATW4: 0 | ATX4: 0 | ATY4: 0 | ATZ4: 0 | AUA4: 0 | AUB4: 0 | AUC4: 0 | AUD4: 0 | AUE4: 0 | AUF4: 0 | AUG4: 0 | AUH4: 0 | AUI4: 0 | AUJ4: 0 | AUK4: 0 | AUL4: 0 | AUM4: 0 | AUN4: 0 | AUO4: 0 | AUP4: 0 | AUQ4: 0 | AUR4: 0 | AUS4: 0 | AUT4: 0 | AUU4: 0 | AUV4: 0 | AUW4: 0 | AUX4: 0 | AUY4: 0 | AUZ4: 0 | AVA4: 0 | AVB4: 0 | AVC4: 0 | AVD4: 0 | AVE4: 0 | AVF4: 0 | AVG4: 0 | AVH4: 0 | AVI4: 0 | AVJ4: 0 | AVK4: 0 | AVL4: 0 | AVM4: 0 | AVN4: 0 | AVO4: 0 | AVP4: 0 | AVQ4: 0 | AVR4: 0 | AVS4: 0 | AVT4: 0 | AVU4: 0 | AVV4: 0 | AVW4: 0 | AVX4: 0 | AVY4: 0 | AVZ4: 0 | AWA4: 0 | AWB4: 0 | AWC4: 0 | AWD4: 0 | AWE4: 0 | AWF4: 0 | AWG4: 0 | AWH4: 0 | AWI4: 0 | AWJ4: 0 | AWK4: 0 | AWL4: 0 | AWM4: 0 | AWN4: 0 | AWO4: 0 | AWP4: 0 | AWQ4: 0 | AWR4: 0 | AWS4: 0 | AWT4: 0 | AWU4: 0 | AWV4: 0 | AWW4: 0 | AWX4: 0 | AWY4: 0 | AWZ4: 0 | AXA4: 0 | AXB4: 0 | AXC4: 0 | AXD4: 0 | AXE4: 0 | AXF4: 0 | AXG4: 0 | AXH4: 0 | AXI4: 0 | AXJ4: 0 | AXK4: 0 | AXL4: 0 | AXM4: 0 | AXN4: 0 | AXO4: 0 | AXP4: 0 | AXQ4: 0 | AXR4: 0 | AXS4: 0 | AXT4: 0 | AXU4: 0 | AXV4: 0 | AXW4: 0 | AXX4: 0 | AXY4: 0 | AXZ4: 0 | AYA4: 0 | AYB4: 0 | AYC4: 0 | AYD4: 0 | AYE4: 0 | AYF4: 0 | AYG4: 0 | AYH4: 0 | AYI4: 0 | AYJ4: 0 | AYK4: 0 | AYL4: 0 | AYM4: 0 | AYN4: 0 | AYO4: 0 | AYP4: 0 | AYQ4: 0 | AYR4: 0 | AYS4: 0 | AYT4: 0 | AYU4: 0 | AYV4: 0 | AYW4: 0 | AYX4: 0 | AYY4: 0 | AYZ4: 0 | AZA4: 0 | AZB4: 0 | AZC4: 0 | AZD4: 0 | AZE4: 0 | AZF4: 0 | AZG4: 0 | AZH4: 0 | AZI4: 0 | AZJ4: 0 | AZK4: 0 | AZL4: 0 | AZM4: 0 | AZN4: 0 | AZO4: 0 | AZP4: 0 | AZQ4: 0 | AZR4: 0 | AZS4: 0 | AZT4: 0 | AZU4: 0 | AZV4: 0 | AZW4: 0 | AZX4: 0 | AZY4: 0 | AZZ4: 0 | BAA4: 0 | BAB4: 0 | BAC4: 0 | BAD4: 0 | BAE4: 0 | BAF4: 0 | BAG4: 0 | BAH4: 0 | BAI4: 0 | BAJ4: 0 | BAK4: 0 | BAL4: 0 | BAM4: 0 | BAN4: 0 | BAO4: 0 | BAP4: 0 | BAQ4: 0 | BAR4: 0 | BAS4: 0 | BAT4: 0 | BAU4: 0 | BAV4: 0 | BAW4: 0 | BAX4: 0 | BAY4: 0 | BAZ4: 0 | BBA4: 0 | BBB4: 0 | BBC4: 0 | BBD4: 0 | BBE4: 0 | BBF4: 0 | BBG4: 0 | BBH4: 0 | BBI4: 0 | BBJ4: 0 | BBK4: 0 | BBL4: 0 | BBM4: 0 | BBN4: 0 | BBO4: 0 | BBP4: 0 | BBQ4: 0 | BBR4: 0 | BBS4: 0 | BBT4: 0 | BBU4: 0 | BBV4: 0 | BBW4: 0 | BBX4: 0 | BBY4: 0 | BBZ4: 0 | BCA4: 0 | BCB4: 0 | BCC4: 0 | BCD4: 0 | BCE4: 0 | BCF4: 0 | BCG4: 0 | BCH4: 0 | BCI4: 0 | BCJ4: 0 | BCK4: 0 | BCL4: 0 | BCM4: 0 | BCN4: 0 | BCO4: 0 | BCP4: 0 | BCQ4: 0 | BCR4: 0 | BCS4: 0 | BCT4: 0 | BCU4: 0 | BCV4: 0 | BCW4: 0 | BCX4: 0 | BCY4: 0 | BCZ4: 0 | BDA4: 0 | BDB4: 0 | BDC4: 0 | BDD4: 0 | BDE4: 0 | BDF4: 0 | BDG4: 0 | BDH4: 0 | BDI4: 0 | BDJ4: 0 | BDK4: 0 | BDL4: 0 | BDM4: 0 | BDN4: 0 | BDO4: 0 | BDP4: 0 | BDQ4: 0 | BDR4: 0 | BDS4: 0 | BDT4: 0 | BDU4: 0 | BDV4: 0 | BDW4: 0 | BDX4: 0 | BDY4: 0 | BDZ4: 0 | BEA4: 0 | BEB4: 0 | BEC4: 0 | BED4: 0 | BEE4: 0 | BEF4: 0 | BEG4: 0 | BEH4: 0 | BEI4: 0 | BEJ4: 0 | BEK4: 0 | BEL4: 0 | BEM4: 0 | BEN4: 0 | BEO4: 0 | BEP4: 0 | BEQ4: 0 | BER4: 0 | BES4: 0 | BET4: 0 | BEU4: 0 | BEV4: 0 | BEW4: 0 | BEX4: 0 | BEY4: 0 | BEZ4: 0 | BFA4: 0 | BFB4: 0 | BFC4: 0 | BFD4: 0 | BFE4: 0 | BFF4: 0 | BFG4: 0 | BFH4: 0 | BFI4: 0 | BFJ4: 0 | BFK4: 0 | BFL4: 0 | BFM4: 0 | BFN4: 0 | BFO4: 0 | BFP4: 0 | BFQ4: 0 | BFR4: 0 | BFS4: 0 | BFT4: 0 | BFU4: 0 | BFV4: 0 | BFW4: 0 | BFX4: 0 | BFY4: 0 | BFZ4: 0 | BGA4: 0 | BGB4: 0 | BGC4: 0 | BGD4: 0 | BGE4: 0 | BGF4: 0 | BGG4: 0 | BGH4: 0 | BGI4: 0 | BGJ4: 0 | BGK4: 0 | BGL4: 0 | BGM4: 0 | BGN4: 0 | BGO4: 0 | BGP4: 0 | BGQ4: 0 | BGR4: 0 | BGS4: 0 | BGT4: 0 | BGU4: 0 | BGV4: 0 | BGW4: 0 | BGX4: 0 | BGY4: 0 | BGZ4: 0 | BHA4: 0 | BHB4: 0 | BHC4: 0 | BHD4: 0 | BHE4: 0 | BHF4: 0 | BHG4: 0 | BHH4: 0 | BHI4: 0 | BHJ4: 0 | BHK4: 0 | BHL4: 0 | BHM4: 0 | BHN4: 0 | BHO4: 0 | BHP4: 0 | BHQ4: 0 | BHR4: 0 | BHS4: 0 | BHT4: 0 | BHU4: 0 | BHV4: 0 | BHW4: 0 | BHX4: 0 | BHY4: 0 | BHZ4: 0 | BIA4: 0 | BIB4: 0 | BIC4: 0 | BID4: 0 | BIE4: 0 | BIF4: 0 | BIG4: 0 | BIH4: 0 | BII4: 0 | BIJ4: 0 | BIK4: 0 | BIL4: 0 | BIM4: 0 | BIN4: 0 | BIO4: 0 | BIP4: 0 | BIQ4: 0 | BIR4: 0 | BIS4: 0 | BIT4: 0 | BIU4: 0 | BIV4: 0 | BIW4: 0 | BIX4: 0 | BIY4: 0 | BIZ4: 0 | BJA4: 0 | BJB4: 0 | BJC4: 0 | BJD4: 0 | BJE4: 0 | BJF4: 0 | BJG4: 0 | BJH4: 0 | BJI4: 0 | BJJ4: 0 | BJK4: 0 | BJL4: 0 | BJM4: 0 | BJN4: 0 | BJO4: 0 | BJP4: 0 | BJQ4: 0 | BJR4: 0 | BJS4: 0 | BJT4: 0 | BJU4: 0 | BJV4: 0 | BJW4: 0 | BJX4: 0 | BJY4: 0 | BJZ4: 0 | BKA4: 0 | BKB4: 0 | BKC4: 0 | BKD4: 0 | BKE4: 0 | BKF4: 0 | BKG4: 0 | BKH4: 0 | BKI4: 0 | BKJ4: 0 | BKK4: 0 | BKL4: 0 | BKM4: 0 | BKN4: 0 | BKO4: 0 | BKP4: 0 | BKQ4: 0 | BKR4: 0 | BKS4: 0 | BKT4: 0 | BKU4: 0 | BKV4: 0 | BKW4: 0 | BKX4: 0 | BKY4: 0 | BKZ4: 0 | BLA4: 0 | BLB4: 0 | BLC4: 0 | BLD4: 0 | BLE4: 0 | BLF4: 0 | BLG4: 0 | BLH4: 0 | BLI4: 0 | BLJ4: 0 | BLK4: 0 | BLL4: 0 | BLM4: 0 | BLN4: 0 | BLO4: 0 | BLP4: 0 | BLQ4: 0 | BLR4: 0 | BLS4: 0 | BLT4: 0 | BLU4: 0 | BLV4: 0 | BLW4: 0 | BLX4: 0 | BLY4: 0 | BLZ4: 0 | BMA4: 0 | BMB4: 0 | BMC4: 0 | BMD4: 0 | BME4: 0 | BMF4: 0 | BMG4: 0 | BMH4: 0 | BMI4: 0 | BMJ4: 0 | BMK4: 0
B5: 01:00:00 | C5: 0 | D5: 0 | E5: 0 | F5: 0.013 | G5: 0 | H5: 0 | K5: 2 | L5: 0 | M5: 0 | N5: 0.005050505051 | P5: 0.01058201058 | T5: 2 | U5: =TRANSPOSE('Average power consumption'!$C$3:$C$122)*L5 -> 0 | V5: 0 | W5: 0 | X5: 0 | Y5: 0 | Z5: 0 | AA5: 0 | AB5: 0 | AC5: 0 | AD5: 0 | AE5: 0 | AF5: 0 | AG5: 0 | AH5: 0 | AI5: 0 | AJ5: 0 | AK5: 0 | AL5: 0 | AM5: 0 | AN5: 0 | AO5: 0 | AP5: 0 | AQ5: 0 | AR5: 0 | AS5: 0 | AT5: 0 | AU5: 0 | AV5: 0 | AW5: 0 | AX5: 0 | AY5: 0 | AZ5: 0 | BA5: 0 | BB5: 0 | BC5: 0 | BD5: 0 | BE5: 0 | BF5: 0 | BG5: 0 | BH5: 0 | BI5: 0 | BJ5: 0 | BK5: 0 | BL5: 0 | BM5: 0 | BN5: 0 | BO5: 0 | BP5: 0 | BQ5: 0 | BR5: 0 | BS5: 0 | BT5: 0 | BU5: 0 | BV5: 0 | BW5: 0 | BX5: 0 | BY5: 0 | BZ5: 0 | CA5: 0 | CB5: 0 | CC5: 0 | CD5: 0 | CE5: 0 | CF5: 0 | CG5: 0 | CH5: 0 | CI5: 0 | CJ5: 0 | CK5: 0 | CL5: 0 | CM5: 0 | CN5: 0 | CO5: 0 | CP5: 0 | CQ5: 0 | CR5: 0 | CS5: 0 | CT5: 0 | CU5: 0 | CV5: 0 | CW5: 0 | CX5: 0 | CY5: 0 | CZ5: 0 | DA5: 0 | DB5: 0 | DC5: 0 | DD5: 0 | DE5: 0 | DF5: 0 | DG5: 0 | DH5: 0 | DI5: 0 | DJ5: 0 | DK5: 0 | DL5: 0 | DM5: 0 | DN5: 0 | DO5: 0 | DP5: 0 | DQ5: 0 | DR5: 0 | DS5: 0 | DT5: 0 | DU5: 0 | DV5: 0 | DW5: 0 | DX5: 0 | DY5: 0 | DZ5: 0 | EA5: 0 | EB5: 0 | EC5: 0 | ED5: 0 | EE5: 0 | EF5: 0 | EG5: 0 | EH5: 0 | EI5: 0 | EJ5: 0 | EM5: 0 | EN5: 0 | EO5: 0 | EP5: 0 | EQ5: 0 | ER5: 0 | ES5: 0 | ET5: 0 | EU5: 0 | EV5: 0 | EW5: 0 | EX5: 0 | EY5: 0 | EZ5: 0 | FA5: 0 | FB5: 0 | FC5: 0 | FD5: 0 | FE5: 0 | FF5: 0 | FG5: 0 | FH5: 0 | FI5: 0 | FJ5: 0 | FK5: 0 | FL5: 0 | FM5: 0 | FN5: 0 | FO5: 0 | FP5: 0 | FQ5: 0 | FR5: 0 | FS5: 0 | FT5: 0 | FU5: 0 | FV5: 0 | FW5: 0 | FX5: 0 | FY5: 0 | FZ5: 0 | GA5: 0 | GB5: 0 | GC5: 0 | GD5: 0 | GE5: 0 | GF5: 0 | GG5: 0 | GH5: 0 | GI5: 0 | GJ5: 0 | GK5: 0 | GL5: 0 | GM5: 0 | GN5: 0 | GO5: 0 | GP5: 0 | GQ5: 0 | GR5: 0 | GS5: 0 | GT5: 0 | GU5: 0 | GV5: 0 | GW5: 0 | GX5: 0 | GY5: 0 | GZ5: 0 | HA5: 0 | HB5: 0 | HC5: 0 | HD5: 0 | HE5: 0 | HF5: 0 | HG5: 0 | HH5: 0 | HI5: 0 | HJ5: 0 | HK5: 0 | HL5: 0 | HM5: 0 | HN5: 0 | HO5: 0 | HP5: 0 | HQ5: 0 | HR5: 0 | HS5: 0 | HT5: 0 | HU5: 0 | HV5: 0 | HW5: 0 | HX5: 0 | HY5: 0 | HZ5: 0 | IA5: 0 | IB5: 0 | IC5: 0 | ID5: 0 | IE5: 0 | IF5: 0 | IG5: 0 | IH5: 0 | II5: 0 | IJ5: 0 | IK5: 0 | IL5: 0 | IM5: 0 | IN5: 0 | IO5: 0 | IP5: 0 | IQ5: 0 | IR5: 0 | IS5: 0 | IT5: 0 | IU5: 0 | IV5: 0 | IW5: 0 | IX5: 0 | IY5: 0 | IZ5: 0 | JA5: 0 | JB5: 0 | JC5: 0 | JD5: 0 | JE5: 0 | JF5: 0 | JG5: 0 | JH5: 0 | JI5: 0 | JJ5: 0 | JK5: 0 | JL5: 0 | JM5: 0 | JN5: 0 | JO5: 0 | JP5: 0 | JQ5: 0 | JR5: 0 | JS5: 0 | JT5: 0 | JU5: 0 | JV5: 0 | JW5: 0 | JX5: 0 | JY5: 0 | JZ5: 0 | KA5: 0 | KB5: 0 | KC5: 0 | KD5: 0 | KE5: 0 | KF5: 0 | KG5: 0 | KH5: 0 | KI5: 0 | KJ5: 0 | KK5: 0 | KL5: 0 | KM5: 0 | KN5: 0 | KO5: 0 | KP5: 0 | KQ5: 0 | KR5: 0 | KS5: 0 | KT5: 0 | KU5: 0 | KV5: 0 | KW5: 0 | KX5: 0 | KY5: 0 | KZ5: 0 | LA5: 0 | LB5: 0 | LC5: 0 | LD5: 0 | LE5: 0 | LF5: 0 | LG5: 0 | LH5: 0 | LI5: 0 | LJ5: 0 | LK5: 0 | LL5: 0 | LM5: 0 | LN5: 0 | LO5: 0 | LP5: 0 | LQ5: 0 | LR5: 0 | LS5: 0 | LT5: 0 | LU5: 0 | LV5: 0 | LW5: 0 | LX5: 0 | LY5: 0 | LZ5: 0 | MA5: 0 | MB5: 0 | MC5: 0 | MD5: 0 | ME5: 0 | MF5: 0 | MG5: 0 | MH5: 0 | MI5: 0 | MJ5: 0 | MK5: 0 | ML5: 0 | MM5: 0 | MN5: 0 | MO5: 0 | MP5: 0 | MQ5: 0 | MR5: 0 | MS5: 0 | MT5: 0 | MU5: 0 | MV5: 0 | MW5: 0 | MX5: 0 | MY5: 0 | MZ5: 0 | NA5: 0 | NB5: 0 | NC5: 0 | ND5: 0 | NE5: 0 | NF5: 0 | NG5: 0 | NH5: 0 | NI5: 0 | NJ5: 0 | NK5: 0 | NL5: 0 | NM5: 0 | NN5: 0 | NO5: 0 | NP5: 0 | NQ5: 0 | NR5: 0 | NS5: 0 | NT5: 0 | NU5: 0 | NV5: 0 | NW5: 0 | NX5: 0 | NY5: 0 | NZ5: 0 | OA5: 0 | OB5: 0 | OC5: 0 | OD5: 0 | OE5: 0 | OF5: 0 | OG5: 0 | OH5: 0 | OI5: 0 | OJ5: 0 | OK5: 0 | OL5: 0 | OM5: 0 | ON5: 0 | OO5: 0 | OP5: 0 | OQ5: 0 | OR5: 0 | OS5: 0 | OT5: 0 | OU5: 0 | OV5: 0 | OW5: 0 | OX5: 0 | OY5: 0 | OZ5: 0 | PA5: 0 | PB5: 0 | PC5: 0 | PD5: 0 | PE5: 0 | PF5: 0 | PG5: 0 | PH5: 0 | PI5: 0 | PJ5: 0 | PK5: 0 | PL5: 0 | PM5: 0 | PN5: 0 | PO5: 0 | PP5: 0 | PQ5: 0 | PR5: 0 | PS5: 0 | PT5: 0 | PU5: 0 | PV5: 0 | PW5: 0 | PX5: 0 | PY5: 0 | PZ5: 0 | QA5: 0 | QB5: 0 | QC5: 0 | QD5: 0 | QE5: 0 | QF5: 0 | QG5: 0 | QH5: 0 | QI5: 0 | QJ5: 0 | QK5: 0 | QL5: 0 | QM5: 0 | QN5: 0 | QO5: 0 | QP5: 0 | QQ5: 0 | QR5: 0 | QS5: 0 | QT5: 0 | QU5: 0 | QV5: 0 | QW5: 0 | QX5: 0 | QY5: 0 | QZ5: 0 | RA5: 0 | RB5: 0 | RC5: 0 | RD5: 0 | RE5: 0 | RF5: 0 | RG5: 0 | RH5: 0 | RI5: 0 | RJ5: 0 | RK5: 0 | RL5: 0 | RM5: 0 | RN5: 0 | RO5: 0 | RP5: 0 | RQ5: 0 | RR5: 0 | RS5: 0 | RT5: 0 | RU5: 0 | RV5: 0 | RW5: 0 | RX5: 0 | RY5: 0 | RZ5: 0 | SA5: 0 | SB5: 0 | SC5: 0 | SD5: 0 | SE5: 0 | SF5: 0 | SG5: 0 | SH5: 0 | SI5: 0 | SJ5: 0 | SK5: 0 | SL5: 0 | SM5: 0 | SN5: 0 | SO5: 0 | SP5: 0 | SQ5: 0 | SR5: 0 | SS5: 0 | ST5: 0 | SU5: 0 | SV5: 0 | SW5: 0 | SX5: 0 | SY5: 0 | SZ5: 0 | TA5: 0 | TB5: 0 | TC5: 0 | TD5: 0 | TE5: 0 | TF5: 0 | TG5: 0 | TH5: 0 | TI5: 0 | TJ5: 0 | TK5: 0 | TL5: 0 | TM5: 0 | TN5: 0 | TO5: 0 | TP5: 0 | TQ5: 0 | TR5: 0 | TS5: 0 | TT5: 0 | TU5: 0 | TV5: 0 | TW5: 0 | TX5: 0 | TY5: 0 | TZ5: 0 | UA5: 0 | UB5: 0 | UC5: 0 | UD5: 0 | UE5: 0 | UF5: 0 | UG5: 0 | UH5: 0 | UI5: 0 | UJ5: 0 | UK5: 0 | UL5: 0 | UM5: 0 | UN5: 0 | UO5: 0 | UP5: 0 | UQ5: 0 | UR5: 0 | US5: 0 | UT5: 0 | UU5: 0 | UV5: 0 | UW5: 0 | UX5: 0 | UY5: 0 | UZ5: 0 | VA5: 0 | VB5: 0 | VC5: 0 | VD5: 0 | VE5: 0 | VF5: 0 | VG5: 0 | VH5: 0 | VI5: 0 | VJ5: 0 | VK5: 0 | VL5: 0 | VM5: 0 | VN5: 0 | VO5: 0 | VP5: 0 | VQ5: 0 | VR5: 0 | VS5: 0 | VT5: 0 | VU5: 0 | VV5: 0 | VW5: 0 | VX5: 0 | VY5: 0 | VZ5: 0 | WA5: 0 | WB5: 0 | WC5: 0 | WD5: 0 | WE5: 0 | WF5: 0 | WG5: 0 | WH5: 0 | WI5: 0 | WJ5: 0 | WK5: 0 | WL5: 0 | WM5: 0 | WN5: 0 | WO5: 0 | WP5: 0 | WQ5: 0 | WR5: 0 | WS5: 0 | WT5: 0 | WU5: 0 | WV5: 0 | WW5: 0 | WX5: 0 | WY5: 0 | WZ5: 0 | XA5: 0 | XB5: 0 | XC5: 0 | XD5: 0 | XE5: 0 | XF5: 0 | XG5: 0 | XH5: 0 | XI5: 0 | XJ5: 0 | XK5: 0 | XL5: 0 | XM5: 0 | XN5: 0 | XO5: 0 | XP5: 0 | XQ5: 0 | XR5: 0 | XS5: 0 | XT5: 0 | XU5: 0 | XV5: 0 | XW5: 0 | XX5: 0 | XY5: 0 | XZ5: 0 | YA5: 0 | YB5: 0 | YC5: 0 | YD5: 0 | YE5: 0 | YF5: 0 | YG5: 0 | YH5: 0 | YI5: 0 | YJ5: 0 | YK5: 0 | YL5: 0 | YM5: 0 | YN5: 0 | YO5: 0 | YP5: 0 | YQ5: 0 | YR5: 0 | YS5: 0 | YT5: 0 | YU5: 0 | YV5: 0 | YW5: 0 | YX5: 0 | YY5: 0 | YZ5: 0 | ZA5: 0 | ZB5: 0 | ZC5: 0 | ZD5: 0 | ZE5: 0 | ZF5: 0 | ZG5: 0 | ZH5: 0 | ZI5: 0 | ZJ5: 0 | ZK5: 0 | ZL5: 0 | ZM5: 0 | ZN5: 0 | ZO5: 0 | ZP5: 0 | ZQ5: 0 | ZR5: 0 | ZS5: 0 | ZT5: 0 | ZU5: 0 | ZV5: 0 | ZW5: 0 | ZX5: 0 | ZY5: 0 | ZZ5: 0 | AAA5: 0 | AAB5: 0 | AAC5: 0 | AAD5: 0 | AAE5: 0 | AAF5: 0 | AAG5: 0 | AAH5: 0 | AAI5: 0 | AAJ5: 0 | AAK5: 0 | AAL5: 0 | AAM5: 0 | AAN5: 0 | AAO5: 0 | AAP5: 0 | AAQ5: 0 | AAR5: 0 | AAS5: 0 | AAT5: 0 | AAU5: 0 | AAV5: 0 | AAW5: 0 | AAX5: 0 | AAY5: 0 | AAZ5: 0 | ABA5: 0 | ABB5: 0 | ABC5: 0 | ABD5: 0 | ABE5: 0 | ABF5: 0 | ABG5: 0 | ABH5: 0 | ABI5: 0 | ABJ5: 0 | ABK5: 0 | ABL5: 0 | ABM5: 0 | ABN5: 0 | ABO5: 0 | ABP5: 0 | ABQ5: 0 | ABR5: 0 | ABS5: 0 | ABT5: 0 | ABU5: 0 | ABV5: 0 | ABW5: 0 | ABX5: 0 | ABY5: 0 | ABZ5: 0 | ACA5: 0 | ACB5: 0 | ACC5: 0 | ACD5: 0 | ACE5: 0 | ACF5: 0 | ACG5: 0 | ACH5: 0 | ACI5: 0 | ACJ5: 0 | ACK5: 0 | ACL5: 0 | ACM5: 0 | ACN5: 0 | ACO5: 0 | ACP5: 0 | ACQ5: 0 | ACR5: 0 | ACS5: 0 | ACT5: 0 | ACU5: 0 | ACV5: 0 | ACW5: 0 | ACX5: 0 | ACY5: 0 | ACZ5: 0 | ADA5: 0 | ADB5: 0 | ADC5: 0 | ADD5: 0 | ADE5: 0 | ADF5: 0 | ADG5: 0 | ADH5: 0 | ADI5: 0 | ADJ5: 0 | ADK5: 0 | ADL5: 0 | ADM5: 0 | ADN5: 0 | ADO5: 0 | ADP5: 0 | ADQ5: 0 | ADR5: 0 | ADS5: 0 | ADT5: 0 | ADU5: 0 | ADV5: 0 | ADW5: 0 | ADX5: 0 | ADY5: 0 | ADZ5: 0 | AEA5: 0 | AEB5: 0 | AEC5: 0 | AED5: 0 | AEE5: 0 | AEF5: 0 | AEG5: 0 | AEH5: 0 | AEI5: 0 | AEJ5: 0 | AEK5: 0 | AEL5: 0 | AEM5: 0 | AEN5: 0 | AEO5: 0 | AEP5: 0 | AEQ5: 0 | AER5: 0 | AES5: 0 | AET5: 0 | AEU5: 0 | AEV5: 0 | AEW5: 0 | AEX5: 0 | AEY5: 0 | AEZ5: 0 | AFA5: 0 | AFB5: 0 | AFC5: 0 | AFD5: 0 | AFE5: 0 | AFF5: 0 | AFG5: 0 | AFH5: 0 | AFI5: 0 | AFJ5: 0 | AFK5: 0 | AFL5: 0 | AFM5: 0 | AFN5: 0 | AFO5: 0 | AFP5: 0 | AFQ5: 0 | AFR5: 0 | AFS5: 0 | AFT5: 0 | AFU5: 0 | AFV5: 0 | AFW5: 0 | AFX5: 0 | AFY5: 0 | AFZ5: 0 | AGA5: 0 | AGB5: 0 | AGC5: 0 | AGD5: 0 | AGE5: 0 | AGF5: 0 | AGG5: 0 | AGH5: 0 | AGI5: 0 | AGJ5: 0 | AGK5: 0 | AGL5: 0 | AGM5: 0 | AGN5: 0 | AGO5: 0 | AGP5: 0 | AGQ5: 0 | AGR5: 0 | AGS5: 0 | AGT5: 0 | AGU5: 0 | AGV5: 0 | AGW5: 0 | AGX5: 0 | AGY5: 0 | AGZ5: 0 | AHA5: 0 | AHB5: 0 | AHC5: 0 | AHD5: 0 | AHE5: 0 | AHF5: 0 | AHG5: 0 | AHH5: 0 | AHI5: 0 | AHJ5: 0 | AHK5: 0 | AHL5: 0 | AHM5: 0 | AHN5: 0 | AHO5: 0 | AHP5: 0 | AHQ5: 0 | AHR5: 0 | AHS5: 0 | AHT5: 0 | AHU5: 0 | AHV5: 0 | AHW5: 0 | AHX5: 0 | AHY5: 0 | AHZ5: 0 | AIA5: 0 | AIB5: 0 | AIC5: 0 | AID5: 0 | AIE5: 0 | AIF5: 0 | AIG5: 0 | AIH5: 0 | AII5: 0 | AIJ5: 0 | AIK5: 0 | AIL5: 0 | AIM5: 0 | AIN5: 0 | AIO5: 0 | AIP5: 0 | AIQ5: 0 | AIR5: 0 | AIS5: 0 | AIT5: 0 | AIU5: 0 | AIV5: 0 | AIW5: 0 | AIX5: 0 | AIY5: 0 | AIZ5: 0 | AJA5: 0 | AJB5: 0 | AJC5: 0 | AJD5: 0 | AJE5: 0 | AJF5: 0 | AJG5: 0 | AJH5: 0 | AJI5: 0 | AJJ5: 0 | AJK5: 0 | AJL5: 0 | AJM5: 0 | AJN5: 0 | AJO5: 0 | AJP5: 0 | AJQ5: 0 | AJR5: 0 | AJS5: 0 | AJT5: 0 | AJU5: 0 | AJV5: 0 | AJW5: 0 | AJX5: 0 | AJY5: 0 | AJZ5: 0 | AKA5: 0 | AKB5: 0 | AKC5: 0 | AKD5: 0 | AKE5: 0 | AKF5: 0 | AKG5: 0 | AKH5: 0 | AKI5: 0 | AKJ5: 0 | AKK5: 0 | AKL5: 0 | AKM5: 0 | AKN5: 0 | AKO5: 0 | AKP5: 0 | AKQ5: 0 | AKR5: 0 | AKS5: 0 | AKT5: 0 | AKU5: 0 | AKV5: 0 | AKW5: 0 | AKX5: 0 | AKY5: 0 | AKZ5: 0 | ALA5: 0 | ALB5: 0 | ALC5: 0 | ALD5: 0 | ALE5: 0 | ALF5: 0 | ALG5: 0 | ALH5: 0 | ALI5: 0 | ALJ5: 0 | ALK5: 0 | ALL5: 0 | ALM5: 0 | ALN5: 0 | ALO5: 0 | ALP5: 0 | ALQ5: 0 | ALR5: 0 | ALS5: 0 | ALT5: 0 | ALU5: 0 | ALV5: 0 | ALW5: 0 | ALX5: 0 | ALY5: 0 | ALZ5: 0 | AMA5: 0 | AMB5: 0 | AMC5: 0 | AMD5: 0 | AME5: 0 | AMF5: 0 | AMG5: 0 | AMH5: 0 | AMI5: 0 | AMJ5: 0 | AMK5: 0 | AML5: 0 | AMM5: 0 | AMN5: 0 | AMO5: 0 | AMP5: 0 | AMQ5: 0 | AMR5: 0 | AMS5: 0 | AMT5: 0 | AMU5: 0 | AMV5: 0 | AMW5: 0 | AMX5: 0 | AMY5: 0 | AMZ5: 0 | ANA5: 0 | ANB5: 0 | ANC5: 0 | AND5: 0 | ANE5: 0 | ANF5: 0 | ANG5: 0 | ANH5: 0 | ANI5: 0 | ANJ5: 0 | ANK5: 0 | ANL5: 0 | ANM5: 0 | ANN5: 0 | ANO5: 0 | ANP5: 0 | ANQ5: 0 | ANR5: 0 | ANS5: 0 | ANT5: 0 | ANU5: 0 | ANV5: 0 | ANW5: 0 | ANX5: 0 | ANY5: 0 | ANZ5: 0 | AOA5: 0 | AOB5: 0 | AOC5: 0 | AOD5: 0 | AOE5: 0 | AOF5: 0 | AOG5: 0 | AOH5: 0 | AOI5: 0 | AOJ5: 0 | AOK5: 0 | AOL5: 0 | AOM5: 0 | AON5: 0 | AOO5: 0 | AOP5: 0 | AOQ5: 0 | AOR5: 0 | AOS5: 0 | AOT5: 0 | AOU5: 0 | AOV5: 0 | AOW5: 0 | AOX5: 0 | AOY5: 0 | AOZ5: 0 | APA5: 0 | APB5: 0 | APC5: 0 | APD5: 0 | APE5: 0 | APF5: 0 | APG5: 0 | APH5: 0 | API5: 0 | APJ5: 0 | APK5: 0 | APL5: 0 | APM5: 0 | APN5: 0 | APO5: 0 | APP5: 0 | APQ5: 0 | APR5: 0 | APS5: 0 | APT5: 0 | APU5: 0 | APV5: 0 | APW5: 0 | APX5: 0 | APY5: 0 | APZ5: 0 | AQA5: 0 | AQB5: 0 | AQC5: 0 | AQD5: 0 | AQE5: 0 | AQF5: 0 | AQG5: 0 | AQH5: 0 | AQI5: 0 | AQJ5: 0 | AQK5: 0 | AQL5: 0 | AQM5: 0 | AQN5: 0 | AQO5: 0 | AQP5: 0 | AQQ5: 0 | AQR5: 0 | AQS5: 0 | AQT5: 0 | AQU5: 0 | AQV5: 0 | AQW5: 0 | AQX5: 0 | AQY5: 0 | AQZ5: 0 | ARA5: 0 | ARB5: 0 | ARC5: 0 | ARD5: 0 | ARE5: 0 | ARF5: 0 | ARG5: 0 | ARH5: 0 | ARI5: 0 | ARJ5: 0 | ARK5: 0 | ARL5: 0 | ARM5: 0 | ARN5: 0 | ARO5: 0 | ARP5: 0 | ARQ5: 0 | ARR5: 0 | ARS5: 0 | ART5: 0 | ARU5: 0 | ARV5: 0 | ARW5: 0 | ARX5: 0 | ARY5: 0 | ARZ5: 0 | ASA5: 0 | ASB5: 0 | ASC5: 0 | ASD5: 0 | ASE5: 0 | ASF5: 0 | ASG5: 0 | ASH5: 0 | ASI5: 0 | ASJ5: 0 | ASK5: 0 | ASL5: 0 | ASM5: 0 | ASN5: 0 | ASO5: 0 | ASP5: 0 | ASQ5: 0 | ASR5: 0 | ASS5: 0 | AST5: 0 | ASU5: 0 | ASV5: 0 | ASW5: 0 | ASX5: 0 | ASY5: 0 | ASZ5: 0 | ATA5: 0 | ATB5: 0 | ATC5: 0 | ATD5: 0 | ATE5: 0 | ATF5: 0 | ATG5: 0 | ATH5: 0 | ATI5: 0 | ATJ5: 0 | ATK5: 0 | ATL5: 0 | ATM5: 0 | ATN5: 0 | ATO5: 0 | ATP5: 0 | ATQ5: 0 | ATR5: 0 | ATS5: 0 | ATT5: 0 | ATU5: 0 | ATV5: 0 | ATW5: 0 | ATX5: 0 | ATY5: 0 | ATZ5: 0 | AUA5: 0 | AUB5: 0 | AUC5: 0 | AUD5: 0 | AUE5: 0 | AUF5: 0 | AUG5: 0 | AUH5: 0 | AUI5: 0 | AUJ5: 0 | AUK5: 0 | AUL5: 0 | AUM5: 0 | AUN5: 0 | AUO5: 0 | AUP5: 0 | AUQ5: 0 | AUR5: 0 | AUS5: 0 | AUT5: 0 | AUU5: 0 | AUV5: 0 | AUW5: 0 | AUX5: 0 | AUY5: 0 | AUZ5: 0 | AVA5: 0 | AVB5: 0 | AVC5: 0 | AVD5: 0 | AVE5: 0 | AVF5: 0 | AVG5: 0 | AVH5: 0 | AVI5: 0 | AVJ5: 0 | AVK5: 0 | AVL5: 0 | AVM5: 0 | AVN5: 0 | AVO5: 0 | AVP5: 0 | AVQ5: 0 | AVR5: 0 | AVS5: 0 | AVT5: 0 | AVU5: 0 | AVV5: 0 | AVW5: 0 | AVX5: 0 | AVY5: 0 | AVZ5: 0 | AWA5: 0 | AWB5: 0 | AWC5: 0 | AWD5: 0 | AWE5: 0 | AWF5: 0 | AWG5: 0 | AWH5: 0 | AWI5: 0 | AWJ5: 0 | AWK5: 0 | AWL5: 0 | AWM5: 0 | AWN5: 0 | AWO5: 0 | AWP5: 0 | AWQ5: 0 | AWR5: 0 | AWS5: 0 | AWT5: 0 | AWU5: 0 | AWV5: 0 | AWW5: 0 | AWX5: 0 | AWY5: 0 | AWZ5: 0 | AXA5: 0 | AXB5: 0 | AXC5: 0 | AXD5: 0 | AXE5: 0 | AXF5: 0 | AXG5: 0 | AXH5: 0 | AXI5: 0 | AXJ5: 0 | AXK5: 0 | AXL5: 0 | AXM5: 0 | AXN5: 0 | AXO5: 0 | AXP5: 0 | AXQ5: 0 | AXR5: 0 | AXS5: 0 | AXT5: 0 | AXU5: 0 | AXV5: 0 | AXW5: 0 | AXX5: 0 | AXY5: 0 | AXZ5: 0 | AYA5: 0 | AYB5: 0 | AYC5: 0 | AYD5: 0 | AYE5: 0 | AYF5: 0 | AYG5: 0 | AYH5: 0 | AYI5: 0 | AYJ5: 0 | AYK5: 0 | AYL5: 0 | AYM5: 0 | AYN5: 0 | AYO5: 0 | AYP5: 0 | AYQ5: 0 | AYR5: 0 | AYS5: 0 | AYT5: 0 | AYU5: 0 | AYV5: 0 | AYW5: 0 | AYX5: 0 | AYY5: 0 | AYZ5: 0 | AZA5: 0 | AZB5: 0 | AZC5: 0 | AZD5: 0 | AZE5: 0 | AZF5: 0 | AZG5: 0 | AZH5: 0 | AZI5: 0 | AZJ5: 0 | AZK5: 0 | AZL5: 0 | AZM5: 0 | AZN5: 0 | AZO5: 0 | AZP5: 0 | AZQ5: 0 | AZR5: 0 | AZS5: 0 | AZT5: 0 | AZU5: 0 | AZV5: 0 | AZW5: 0 | AZX5: 0 | AZY5: 0 | AZZ5: 0 | BAA5: 0 | BAB5: 0 | BAC5: 0 | BAD5: 0 | BAE5: 0 | BAF5: 0 | BAG5: 0 | BAH5: 0 | BAI5: 0 | BAJ5: 0 | BAK5: 0 | BAL5: 0 | BAM5: 0 | BAN5: 0 | BAO5: 0 | BAP5: 0 | BAQ5: 0 | BAR5: 0 | BAS5: 0 | BAT5: 0 | BAU5: 0 | BAV5: 0 | BAW5: 0 | BAX5: 0 | BAY5: 0 | BAZ5: 0 | BBA5: 0 | BBB5: 0 | BBC5: 0 | BBD5: 0 | BBE5: 0 | BBF5: 0 | BBG5: 0 | BBH5: 0 | BBI5: 0 | BBJ5: 0 | BBK5: 0 | BBL5: 0 | BBM5: 0 | BBN5: 0 | BBO5: 0 | BBP5: 0 | BBQ5: 0 | BBR5: 0 | BBS5: 0 | BBT5: 0 | BBU5: 0 | BBV5: 0 | BBW5: 0 | BBX5: 0 | BBY5: 0 | BBZ5: 0 | BCA5: 0 | BCB5: 0 | BCC5: 0 | BCD5: 0 | BCE5: 0 | BCF5: 0 | BCG5: 0 | BCH5: 0 | BCI5: 0 | BCJ5: 0 | BCK5: 0 | BCL5: 0 | BCM5: 0 | BCN5: 0 | BCO5: 0 | BCP5: 0 | BCQ5: 0 | BCR5: 0 | BCS5: 0 | BCT5: 0 | BCU5: 0 | BCV5: 0 | BCW5: 0 | BCX5: 0 | BCY5: 0 | BCZ5: 0 | BDA5: 0 | BDB5: 0 | BDC5: 0 | BDD5: 0 | BDE5: 0 | BDF5: 0 | BDG5: 0 | BDH5: 0 | BDI5: 0 | BDJ5: 0 | BDK5: 0 | BDL5: 0 | BDM5: 0 | BDN5: 0 | BDO5: 0 | BDP5: 0 | BDQ5: 0 | BDR5: 0 | BDS5: 0 | BDT5: 0 | BDU5: 0 | BDV5: 0 | BDW5: 0 | BDX5: 0 | BDY5: 0 | BDZ5: 0 | BEA5: 0 | BEB5: 0 | BEC5: 0 | BED5: 0 | BEE5: 0 | BEF5: 0 | BEG5: 0 | BEH5: 0 | BEI5: 0 | BEJ5: 0 | BEK5: 0 | BEL5: 0 | BEM5: 0 | BEN5: 0 | BEO5: 0 | BEP5: 0 | BEQ5: 0 | BER5: 0 | BES5: 0 | BET5: 0 | BEU5: 0 | BEV5: 0 | BEW5: 0 | BEX5: 0 | BEY5: 0 | BEZ5: 0 | BFA5: 0 | BFB5: 0 | BFC5: 0 | BFD5: 0 | BFE5: 0 | BFF5: 0 | BFG5: 0 | BFH5: 0 | BFI5: 0 | BFJ5: 0 | BFK5: 0 | BFL5: 0 | BFM5: 0 | BFN5: 0 | BFO5: 0 | BFP5: 0 | BFQ5: 0 | BFR5: 0 | BFS5: 0 | BFT5: 0 | BFU5: 0 | BFV5: 0 | BFW5: 0 | BFX5: 0 | BFY5: 0 | BFZ5: 0 | BGA5: 0 | BGB5: 0 | BGC5: 0 | BGD5: 0 | BGE5: 0 | BGF5: 0 | BGG5: 0 | BGH5: 0 | BGI5: 0 | BGJ5: 0 | BGK5: 0 | BGL5: 0 | BGM5: 0 | BGN5: 0 | BGO5: 0 | BGP5: 0 | BGQ5: 0 | BGR5: 0 | BGS5: 0 | BGT5: 0 | BGU5: 0 | BGV5: 0 | BGW5: 0 | BGX5: 0 | BGY5: 0 | BGZ5: 0 | BHA5: 0 | BHB5: 0 | BHC5: 0 | BHD5: 0 | BHE5: 0 | BHF5: 0 | BHG5: 0 | BHH5: 0 | BHI5: 0 | BHJ5: 0 | BHK5: 0 | BHL5: 0 | BHM5: 0 | BHN5: 0 | BHO5: 0 | BHP5: 0 | BHQ5: 0 | BHR5: 0 | BHS5: 0 | BHT5: 0 | BHU5: 0 | BHV5: 0 | BHW5: 0 | BHX5: 0 | BHY5: 0 | BHZ5: 0 | BIA5: 0 | BIB5: 0 | BIC5: 0 | BID5: 0 | BIE5: 0 | BIF5: 0 | BIG5: 0 | BIH5: 0 | BII5: 0 | BIJ5: 0 | BIK5: 0 | BIL5: 0 | BIM5: 0 | BIN5: 0 | BIO5: 0 | BIP5: 0 | BIQ5: 0 | BIR5: 0 | BIS5: 0 | BIT5: 0 | BIU5: 0 | BIV5: 0 | BIW5: 0 | BIX5: 0 | BIY5: 0 | BIZ5: 0 | BJA5: 0 | BJB5: 0 | BJC5: 0 | BJD5: 0 | BJE5: 0 | BJF5: 0 | BJG5: 0 | BJH5: 0 | BJI5: 0 | BJJ5: 0 | BJK5: 0 | BJL5: 0 | BJM5: 0 | BJN5: 0 | BJO5: 0 | BJP5: 0 | BJQ5: 0 | BJR5: 0 | BJS5: 0 | BJT5: 0 | BJU5: 0 | BJV5: 0 | BJW5: 0 | BJX5: 0 | BJY5: 0 | BJZ5: 0 | BKA5: 0 | BKB5: 0 | BKC5: 0 | BKD5: 0 | BKE5: 0 | BKF5: 0 | BKG5: 0 | BKH5: 0 | BKI5: 0 | BKJ5: 0 | BKK5: 0 | BKL5: 0 | BKM5: 0 | BKN5: 0 | BKO5: 0 | BKP5: 0 | BKQ5: 0 | BKR5: 0 | BKS5: 0 | BKT5: 0 | BKU5: 0 | BKV5: 0 | BKW5: 0 | BKX5: 0 | BKY5: 0 | BKZ5: 0 | BLA5: 0 | BLB5: 0 | BLC5: 0 | BLD5: 0 | BLE5: 0 | BLF5: 0 | BLG5: 0 | BLH5: 0 | BLI5: 0 | BLJ5: 0 | BLK5: 0 | BLL5: 0 | BLM5: 0 | BLN5: 0 | BLO5: 0 | BLP5: 0 | BLQ5: 0 | BLR5: 0 | BLS5: 0 | BLT5: 0 | BLU5: 0 | BLV5: 0 | BLW5: 0 | BLX5: 0 | BLY5: 0 | BLZ5: 0 | BMA5: 0 | BMB5: 0 | BMC5: 0 | BMD5: 0 | BME5: 0 | BMF5: 0 | BMG5: 0 | BMH5: 0 | BMI5: 0 | BMJ5: 0 | BMK5: 0
B6: 02:00:00 | C6: 0 | D6: 0 | E6: 0 | F6: 0 | G6: 0 | H6: 0 | K6: 3 | L6: 0 | M6: 0 | N6: 0.005050505051 | P6: 0 | T6: 3 | U6: =TRANSPOSE('Average power consumption'!$C$3:$C$122)*L6 -> 0 | V6: 0 | W6: 0 | X6: 0 | Y6: 0 | Z6: 0 | AA6: 0 | AB6: 0 | AC6: 0 | AD6: 0 | AE6: 0 | AF6: 0 | AG6: 0 | AH6: 0 | AI6: 0 | AJ6: 0 | AK6: 0 | AL6: 0 | AM6: 0 | AN6: 0 | AO6: 0 | AP6: 0 | AQ6: 0 | AR6: 0 | AS6: 0 | AT6: 0 | AU6: 0 | AV6: 0 | AW6: 0 | AX6: 0 | AY6: 0 | AZ6: 0 | BA6: 0 | BB6: 0 | BC6: 0 | BD6: 0 | BE6: 0 | BF6: 0 | BG6: 0 | BH6: 0 | BI6: 0 | BJ6: 0 | BK6: 0 | BL6: 0 | BM6: 0 | BN6: 0 | BO6: 0 | BP6: 0 | BQ6: 0 | BR6: 0 | BS6: 0 | BT6: 0 | BU6: 0 | BV6: 0 | BW6: 0 | BX6: 0 | BY6: 0 | BZ6: 0 | CA6: 0 | CB6: 0 | CC6: 0 | CD6: 0 | CE6: 0 | CF6: 0 | CG6: 0 | CH6: 0 | CI6: 0 | CJ6: 0 | CK6: 0 | CL6: 0 | CM6: 0 | CN6: 0 | CO6: 0 | CP6: 0 | CQ6: 0 | CR6: 0 | CS6: 0 | CT6: 0 | CU6: 0 | CV6: 0 | CW6: 0 | CX6: 0 | CY6: 0 | CZ6: 0 | DA6: 0 | DB6: 0 | DC6: 0 | DD6: 0 | DE6: 0 | DF6: 0 | DG6: 0 | DH6: 0 | DI6: 0 | DJ6: 0 | DK6: 0 | DL6: 0 | DM6: 0 | DN6: 0 | DO6: 0 | DP6: 0 | DQ6: 0 | DR6: 0 | DS6: 0 | DT6: 0 | DU6: 0 | DV6: 0 | DW6: 0 | DX6: 0 | DY6: 0 | DZ6: 0 | EA6: 0 | EB6: 0 | EC6: 0 | ED6: 0 | EE6: 0 | EF6: 0 | EG6: 0 | EH6: 0 | EI6: 0 | EJ6: 0 | EM6: 0 | EN6: 0 | EO6: 0 | EP6: 0 | EQ6: 0 | ER6: 0 | ES6: 0 | ET6: 0 | EU6: 0 | EV6: 0 | EW6: 0 | EX6: 0 | EY6: 0 | EZ6: 0 | FA6: 0 | FB6: 0 | FC6: 0 | FD6: 0 | FE6: 0 | FF6: 0 | FG6: 0 | FH6: 0 | FI6: 0 | FJ6: 0 | FK6: 0 | FL6: 0 | FM6: 0 | FN6: 0 | FO6: 0 | FP6: 0 | FQ6: 0 | FR6: 0 | FS6: 0 | FT6: 0 | FU6: 0 | FV6: 0 | FW6: 0 | FX6: 0 | FY6: 0 | FZ6: 0 | GA6: 0 | GB6: 0 | GC6: 0 | GD6: 0 | GE6: 0 | GF6: 0 | GG6: 0 | GH6: 0 | GI6: 0 | GJ6: 0 | GK6: 0 | GL6: 0 | GM6: 0 | GN6: 0 | GO6: 0 | GP6: 0 | GQ6: 0 | GR6: 0 | GS6: 0 | GT6: 0 | GU6: 0 | GV6: 0 | GW6: 0 | GX6: 0 | GY6: 0 | GZ6: 0 | HA6: 0 | HB6: 0 | HC6: 0 | HD6: 0 | HE6: 0 | HF6: 0 | HG6: 0 | HH6: 0 | HI6: 0 | HJ6: 0 | HK6: 0 | HL6: 0 | HM6: 0 | HN6: 0 | HO6: 0 | HP6: 0 | HQ6: 0 | HR6: 0 | HS6: 0 | HT6: 0 | HU6: 0 | HV6: 0 | HW6: 0 | HX6: 0 | HY6: 0 | HZ6: 0 | IA6: 0 | IB6: 0 | IC6: 0 | ID6: 0 | IE6: 0 | IF6: 0 | IG6: 0 | IH6: 0 | II6: 0 | IJ6: 0 | IK6: 0 | IL6: 0 | IM6: 0 | IN6: 0 | IO6: 0 | IP6: 0 | IQ6: 0 | IR6: 0 | IS6: 0 | IT6: 0 | IU6: 0 | IV6: 0 | IW6: 0 | IX6: 0 | IY6: 0 | IZ6: 0 | JA6: 0 | JB6: 0 | JC6: 0 | JD6: 0 | JE6: 0 | JF6: 0 | JG6: 0 | JH6: 0 | JI6: 0 | JJ6: 0 | JK6: 0 | JL6: 0 | JM6: 0 | JN6: 0 | JO6: 0 | JP6: 0 | JQ6: 0 | JR6: 0 | JS6: 0 | JT6: 0 | JU6: 0 | JV6: 0 | JW6: 0 | JX6: 0 | JY6: 0 | JZ6: 0 | KA6: 0 | KB6: 0 | KC6: 0 | KD6: 0 | KE6: 0 | KF6: 0 | KG6: 0 | KH6: 0 | KI6: 0 | KJ6: 0 | KK6: 0 | KL6: 0 | KM6: 0 | KN6: 0 | KO6: 0 | KP6: 0 | KQ6: 0 | KR6: 0 | KS6: 0 | KT6: 0 | KU6: 0 | KV6: 0 | KW6: 0 | KX6: 0 | KY6: 0 | KZ6: 0 | LA6: 0 | LB6: 0 | LC6: 0 | LD6: 0 | LE6: 0 | LF6: 0 | LG6: 0 | LH6: 0 | LI6: 0 | LJ6: 0 | LK6: 0 | LL6: 0 | LM6: 0 | LN6: 0 | LO6: 0 | LP6: 0 | LQ6: 0 | LR6: 0 | LS6: 0 | LT6: 0 | LU6: 0 | LV6: 0 | LW6: 0 | LX6: 0 | LY6: 0 | LZ6: 0 | MA6: 0 | MB6: 0 | MC6: 0 | MD6: 0 | ME6: 0 | MF6: 0 | MG6: 0 | MH6: 0 | MI6: 0 | MJ6: 0 | MK6: 0 | ML6: 0 | MM6: 0 | MN6: 0 | MO6: 0 | MP6: 0 | MQ6: 0 | MR6: 0 | MS6: 0 | MT6: 0 | MU6: 0 | MV6: 0 | MW6: 0 | MX6: 0 | MY6: 0 | MZ6: 0 | NA6: 0 | NB6: 0 | NC6: 0 | ND6: 0 | NE6: 0 | NF6: 0 | NG6: 0 | NH6: 0 | NI6: 0 | NJ6: 0 | NK6: 0 | NL6: 0 | NM6: 0 | NN6: 0 | NO6: 0 | NP6: 0 | NQ6: 0 | NR6: 0 | NS6: 0 | NT6: 0 | NU6: 0 | NV6: 0 | NW6: 0 | NX6: 0 | NY6: 0 | NZ6: 0 | OA6: 0 | OB6: 0 | OC6: 0 | OD6: 0 | OE6: 0 | OF6: 0 | OG6: 0 | OH6: 0 | OI6: 0 | OJ6: 0 | OK6: 0 | OL6: 0 | OM6: 0 | ON6: 0 | OO6: 0 | OP6: 0 | OQ6: 0 | OR6: 0 | OS6: 0 | OT6: 0 | OU6: 0 | OV6: 0 | OW6: 0 | OX6: 0 | OY6: 0 | OZ6: 0 | PA6: 0 | PB6: 0 | PC6: 0 | PD6: 0 | PE6: 0 | PF6: 0 | PG6: 0 | PH6: 0 | PI6: 0 | PJ6: 0 | PK6: 0 | PL6: 0 | PM6: 0 | PN6: 0 | PO6: 0 | PP6: 0 | PQ6: 0 | PR6: 0 | PS6: 0 | PT6: 0 | PU6: 0 | PV6: 0 | PW6: 0 | PX6: 0 | PY6: 0 | PZ6: 0 | QA6: 0 | QB6: 0 | QC6: 0 | QD6: 0 | QE6: 0 | QF6: 0 | QG6: 0 | QH6: 0 | QI6: 0 | QJ6: 0 | QK6: 0 | QL6: 0 | QM6: 0 | QN6: 0 | QO6: 0 | QP6: 0 | QQ6: 0 | QR6: 0 | QS6: 0 | QT6: 0 | QU6: 0 | QV6: 0 | QW6: 0 | QX6: 0 | QY6: 0 | QZ6: 0 | RA6: 0 | RB6: 0 | RC6: 0 | RD6: 0 | RE6: 0 | RF6: 0 | RG6: 0 | RH6: 0 | RI6: 0 | RJ6: 0 | RK6: 0 | RL6: 0 | RM6: 0 | RN6: 0 | RO6: 0 | RP6: 0 | RQ6: 0 | RR6: 0 | RS6: 0 | RT6: 0 | RU6: 0 | RV6: 0 | RW6: 0 | RX6: 0 | RY6: 0 | RZ6: 0 | SA6: 0 | SB6: 0 | SC6: 0 | SD6: 0 | SE6: 0 | SF6: 0 | SG6: 0 | SH6: 0 | SI6: 0 | SJ6: 0 | SK6: 0 | SL6: 0 | SM6: 0 | SN6: 0 | SO6: 0 | SP6: 0 | SQ6: 0 | SR6: 0 | SS6: 0 | ST6: 0 | SU6: 0 | SV6: 0 | SW6: 0 | SX6: 0 | SY6: 0 | SZ6: 0 | TA6: 0 | TB6: 0 | TC6: 0 | TD6: 0 | TE6: 0 | TF6: 0 | TG6: 0 | TH6: 0 | TI6: 0 | TJ6: 0 | TK6: 0 | TL6: 0 | TM6: 0 | TN6: 0 | TO6: 0 | TP6: 0 | TQ6: 0 | TR6: 0 | TS6: 0 | TT6: 0 | TU6: 0 | TV6: 0 | TW6: 0 | TX6: 0 | TY6: 0 | TZ6: 0 | UA6: 0 | UB6: 0 | UC6: 0 | UD6: 0 | UE6: 0 | UF6: 0 | UG6: 0 | UH6: 0 | UI6: 0 | UJ6: 0 | UK6: 0 | UL6: 0 | UM6: 0 | UN6: 0 | UO6: 0 | UP6: 0 | UQ6: 0 | UR6: 0 | US6: 0 | UT6: 0 | UU6: 0 | UV6: 0 | UW6: 0 | UX6: 0 | UY6: 0 | UZ6: 0 | VA6: 0 | VB6: 0 | VC6: 0 | VD6: 0 | VE6: 0 | VF6: 0 | VG6: 0 | VH6: 0 | VI6: 0 | VJ6: 0 | VK6: 0 | VL6: 0 | VM6: 0 | VN6: 0 | VO6: 0 | VP6: 0 | VQ6: 0 | VR6: 0 | VS6: 0 | VT6: 0 | VU6: 0 | VV6: 0 | VW6: 0 | VX6: 0 | VY6: 0 | VZ6: 0 | WA6: 0 | WB6: 0 | WC6: 0 | WD6: 0 | WE6: 0 | WF6: 0 | WG6: 0 | WH6: 0 | WI6: 0 | WJ6: 0 | WK6: 0 | WL6: 0 | WM6: 0 | WN6: 0 | WO6: 0 | WP6: 0 | WQ6: 0 | WR6: 0 | WS6: 0 | WT6: 0 | WU6: 0 | WV6: 0 | WW6: 0 | WX6: 0 | WY6: 0 | WZ6: 0 | XA6: 0 | XB6: 0 | XC6: 0 | XD6: 0 | XE6: 0 | XF6: 0 | XG6: 0 | XH6: 0 | XI6: 0 | XJ6: 0 | XK6: 0 | XL6: 0 | XM6: 0 | XN6: 0 | XO6: 0 | XP6: 0 | XQ6: 0 | XR6: 0 | XS6: 0 | XT6: 0 | XU6: 0 | XV6: 0 | XW6: 0 | XX6: 0 | XY6: 0 | XZ6: 0 | YA6: 0 | YB6: 0 | YC6: 0 | YD6: 0 | YE6: 0 | YF6: 0 | YG6: 0 | YH6: 0 | YI6: 0 | YJ6: 0 | YK6: 0 | YL6: 0 | YM6: 0 | YN6: 0 | YO6: 0 | YP6: 0 | YQ6: 0 | YR6: 0 | YS6: 0 | YT6: 0 | YU6: 0 | YV6: 0 | YW6: 0 | YX6: 0 | YY6: 0 | YZ6: 0 | ZA6: 0 | ZB6: 0 | ZC6: 0 | ZD6: 0 | ZE6: 0 | ZF6: 0 | ZG6: 0 | ZH6: 0 | ZI6: 0 | ZJ6: 0 | ZK6: 0 | ZL6: 0 | ZM6: 0 | ZN6: 0 | ZO6: 0 | ZP6: 0 | ZQ6: 0 | ZR6: 0 | ZS6: 0 | ZT6: 0 | ZU6: 0 | ZV6: 0 | ZW6: 0 | ZX6: 0 | ZY6: 0 | ZZ6: 0 | AAA6: 0 | AAB6: 0 | AAC6: 0 | AAD6: 0 | AAE6: 0 | AAF6: 0 | AAG6: 0 | AAH6: 0 | AAI6: 0 | AAJ6: 0 | AAK6: 0 | AAL6: 0 | AAM6: 0 | AAN6: 0 | AAO6: 0 | AAP6: 0 | AAQ6: 0 | AAR6: 0 | AAS6: 0 | AAT6: 0 | AAU6: 0 | AAV6: 0 | AAW6: 0 | AAX6: 0 | AAY6: 0 | AAZ6: 0 | ABA6: 0 | ABB6: 0 | ABC6: 0 | ABD6: 0 | ABE6: 0 | ABF6: 0 | ABG6: 0 | ABH6: 0 | ABI6: 0 | ABJ6: 0 | ABK6: 0 | ABL6: 0 | ABM6: 0 | ABN6: 0 | ABO6: 0 | ABP6: 0 | ABQ6: 0 | ABR6: 0 | ABS6: 0 | ABT6: 0 | ABU6: 0 | ABV6: 0 | ABW6: 0 | ABX6: 0 | ABY6: 0 | ABZ6: 0 | ACA6: 0 | ACB6: 0 | ACC6: 0 | ACD6: 0 | ACE6: 0 | ACF6: 0 | ACG6: 0 | ACH6: 0 | ACI6: 0 | ACJ6: 0 | ACK6: 0 | ACL6: 0 | ACM6: 0 | ACN6: 0 | ACO6: 0 | ACP6: 0 | ACQ6: 0 | ACR6: 0 | ACS6: 0 | ACT6: 0 | ACU6: 0 | ACV6: 0 | ACW6: 0 | ACX6: 0 | ACY6: 0 | ACZ6: 0 | ADA6: 0 | ADB6: 0 | ADC6: 0 | ADD6: 0 | ADE6: 0 | ADF6: 0 | ADG6: 0 | ADH6: 0 | ADI6: 0 | ADJ6: 0 | ADK6: 0 | ADL6: 0 | ADM6: 0 | ADN6: 0 | ADO6: 0 | ADP6: 0 | ADQ6: 0 | ADR6: 0 | ADS6: 0 | ADT6: 0 | ADU6: 0 | ADV6: 0 | ADW6: 0 | ADX6: 0 | ADY6: 0 | ADZ6: 0 | AEA6: 0 | AEB6: 0 | AEC6: 0 | AED6: 0 | AEE6: 0 | AEF6: 0 | AEG6: 0 | AEH6: 0 | AEI6: 0 | AEJ6: 0 | AEK6: 0 | AEL6: 0 | AEM6: 0 | AEN6: 0 | AEO6: 0 | AEP6: 0 | AEQ6: 0 | AER6: 0 | AES6: 0 | AET6: 0 | AEU6: 0 | AEV6: 0 | AEW6: 0 | AEX6: 0 | AEY6: 0 | AEZ6: 0 | AFA6: 0 | AFB6: 0 | AFC6: 0 | AFD6: 0 | AFE6: 0 | AFF6: 0 | AFG6: 0 | AFH6: 0 | AFI6: 0 | AFJ6: 0 | AFK6: 0 | AFL6: 0 | AFM6: 0 | AFN6: 0 | AFO6: 0 | AFP6: 0 | AFQ6: 0 | AFR6: 0 | AFS6: 0 | AFT6: 0 | AFU6: 0 | AFV6: 0 | AFW6: 0 | AFX6: 0 | AFY6: 0 | AFZ6: 0 | AGA6: 0 | AGB6: 0 | AGC6: 0 | AGD6: 0 | AGE6: 0 | AGF6: 0 | AGG6: 0 | AGH6: 0 | AGI6: 0 | AGJ6: 0 | AGK6: 0 | AGL6: 0 | AGM6: 0 | AGN6: 0 | AGO6: 0 | AGP6: 0 | AGQ6: 0 | AGR6: 0 | AGS6: 0 | AGT6: 0 | AGU6: 0 | AGV6: 0 | AGW6: 0 | AGX6: 0 | AGY6: 0 | AGZ6: 0 | AHA6: 0 | AHB6: 0 | AHC6: 0 | AHD6: 0 | AHE6: 0 | AHF6: 0 | AHG6: 0 | AHH6: 0 | AHI6: 0 | AHJ6: 0 | AHK6: 0 | AHL6: 0 | AHM6: 0 | AHN6: 0 | AHO6: 0 | AHP6: 0 | AHQ6: 0 | AHR6: 0 | AHS6: 0 | AHT6: 0 | AHU6: 0 | AHV6: 0 | AHW6: 0 | AHX6: 0 | AHY6: 0 | AHZ6: 0 | AIA6: 0 | AIB6: 0 | AIC6: 0 | AID6: 0 | AIE6: 0 | AIF6: 0 | AIG6: 0 | AIH6: 0 | AII6: 0 | AIJ6: 0 | AIK6: 0 | AIL6: 0 | AIM6: 0 | AIN6: 0 | AIO6: 0 | AIP6: 0 | AIQ6: 0 | AIR6: 0 | AIS6: 0 | AIT6: 0 | AIU6: 0 | AIV6: 0 | AIW6: 0 | AIX6: 0 | AIY6: 0 | AIZ6: 0 | AJA6: 0 | AJB6: 0 | AJC6: 0 | AJD6: 0 | AJE6: 0 | AJF6: 0 | AJG6: 0 | AJH6: 0 | AJI6: 0 | AJJ6: 0 | AJK6: 0 | AJL6: 0 | AJM6: 0 | AJN6: 0 | AJO6: 0 | AJP6: 0 | AJQ6: 0 | AJR6: 0 | AJS6: 0 | AJT6: 0 | AJU6: 0 | AJV6: 0 | AJW6: 0 | AJX6: 0 | AJY6: 0 | AJZ6: 0 | AKA6: 0 | AKB6: 0 | AKC6: 0 | AKD6: 0 | AKE6: 0 | AKF6: 0 | AKG6: 0 | AKH6: 0 | AKI6: 0 | AKJ6: 0 | AKK6: 0 | AKL6: 0 | AKM6: 0 | AKN6: 0 | AKO6: 0 | AKP6: 0 | AKQ6: 0 | AKR6: 0 | AKS6: 0 | AKT6: 0 | AKU6: 0 | AKV6: 0 | AKW6: 0 | AKX6: 0 | AKY6: 0 | AKZ6: 0 | ALA6: 0 | ALB6: 0 | ALC6: 0 | ALD6: 0 | ALE6: 0 | ALF6: 0 | ALG6: 0 | ALH6: 0 | ALI6: 0 | ALJ6: 0 | ALK6: 0 | ALL6: 0 | ALM6: 0 | ALN6: 0 | ALO6: 0 | ALP6: 0 | ALQ6: 0 | ALR6: 0 | ALS6: 0 | ALT6: 0 | ALU6: 0 | ALV6: 0 | ALW6: 0 | ALX6: 0 | ALY6: 0 | ALZ6: 0 | AMA6: 0 | AMB6: 0 | AMC6: 0 | AMD6: 0 | AME6: 0 | AMF6: 0 | AMG6: 0 | AMH6: 0 | AMI6: 0 | AMJ6: 0 | AMK6: 0 | AML6: 0 | AMM6: 0 | AMN6: 0 | AMO6: 0 | AMP6: 0 | AMQ6: 0 | AMR6: 0 | AMS6: 0 | AMT6: 0 | AMU6: 0 | AMV6: 0 | AMW6: 0 | AMX6: 0 | AMY6: 0 | AMZ6: 0 | ANA6: 0 | ANB6: 0 | ANC6: 0 | AND6: 0 | ANE6: 0 | ANF6: 0 | ANG6: 0 | ANH6: 0 | ANI6: 0 | ANJ6: 0 | ANK6: 0 | ANL6: 0 | ANM6: 0 | ANN6: 0 | ANO6: 0 | ANP6: 0 | ANQ6: 0 | ANR6: 0 | ANS6: 0 | ANT6: 0 | ANU6: 0 | ANV6: 0 | ANW6: 0 | ANX6: 0 | ANY6: 0 | ANZ6: 0 | AOA6: 0 | AOB6: 0 | AOC6: 0 | AOD6: 0 | AOE6: 0 | AOF6: 0 | AOG6: 0 | AOH6: 0 | AOI6: 0 | AOJ6: 0 | AOK6: 0 | AOL6: 0 | AOM6: 0 | AON6: 0 | AOO6: 0 | AOP6: 0 | AOQ6: 0 | AOR6: 0 | AOS6: 0 | AOT6: 0 | AOU6: 0 | AOV6: 0 | AOW6: 0 | AOX6: 0 | AOY6: 0 | AOZ6: 0 | APA6: 0 | APB6: 0 | APC6: 0 | APD6: 0 | APE6: 0 | APF6: 0 | APG6: 0 | APH6: 0 | API6: 0 | APJ6: 0 | APK6: 0 | APL6: 0 | APM6: 0 | APN6: 0 | APO6: 0 | APP6: 0 | APQ6: 0 | APR6: 0 | APS6: 0 | APT6: 0 | APU6: 0 | APV6: 0 | APW6: 0 | APX6: 0 | APY6: 0 | APZ6: 0 | AQA6: 0 | AQB6: 0 | AQC6: 0 | AQD6: 0 | AQE6: 0 | AQF6: 0 | AQG6: 0 | AQH6: 0 | AQI6: 0 | AQJ6: 0 | AQK6: 0 | AQL6: 0 | AQM6: 0 | AQN6: 0 | AQO6: 0 | AQP6: 0 | AQQ6: 0 | AQR6: 0 | AQS6: 0 | AQT6: 0 | AQU6: 0 | AQV6: 0 | AQW6: 0 | AQX6: 0 | AQY6: 0 | AQZ6: 0 | ARA6: 0 | ARB6: 0 | ARC6: 0 | ARD6: 0 | ARE6: 0 | ARF6: 0 | ARG6: 0 | ARH6: 0 | ARI6: 0 | ARJ6: 0 | ARK6: 0 | ARL6: 0 | ARM6: 0 | ARN6: 0 | ARO6: 0 | ARP6: 0 | ARQ6: 0 | ARR6: 0 | ARS6: 0 | ART6: 0 | ARU6: 0 | ARV6: 0 | ARW6: 0 | ARX6: 0 | ARY6: 0 | ARZ6: 0 | ASA6: 0 | ASB6: 0 | ASC6: 0 | ASD6: 0 | ASE6: 0 | ASF6: 0 | ASG6: 0 | ASH6: 0 | ASI6: 0 | ASJ6: 0 | ASK6: 0 | ASL6: 0 | ASM6: 0 | ASN6: 0 | ASO6: 0 | ASP6: 0 | ASQ6: 0 | ASR6: 0 | ASS6: 0 | AST6: 0 | ASU6: 0 | ASV6: 0 | ASW6: 0 | ASX6: 0 | ASY6: 0 | ASZ6: 0 | ATA6: 0 | ATB6: 0 | ATC6: 0 | ATD6: 0 | ATE6: 0 | ATF6: 0 | ATG6: 0 | ATH6: 0 | ATI6: 0 | ATJ6: 0 | ATK6: 0 | ATL6: 0 | ATM6: 0 | ATN6: 0 | ATO6: 0 | ATP6: 0 | ATQ6: 0 | ATR6: 0 | ATS6: 0 | ATT6: 0 | ATU6: 0 | ATV6: 0 | ATW6: 0 | ATX6: 0 | ATY6: 0 | ATZ6: 0 | AUA6: 0 | AUB6: 0 | AUC6: 0 | AUD6: 0 | AUE6: 0 | AUF6: 0 | AUG6: 0 | AUH6: 0 | AUI6: 0 | AUJ6: 0 | AUK6: 0 | AUL6: 0 | AUM6: 0 | AUN6: 0 | AUO6: 0 | AUP6: 0 | AUQ6: 0 | AUR6: 0 | AUS6: 0 | AUT6: 0 | AUU6: 0 | AUV6: 0 | AUW6: 0 | AUX6: 0 | AUY6: 0 | AUZ6: 0 | AVA6: 0 | AVB6: 0 | AVC6: 0 | AVD6: 0 | AVE6: 0 | AVF6: 0 | AVG6: 0 | AVH6: 0 | AVI6: 0 | AVJ6: 0 | AVK6: 0 | AVL6: 0 | AVM6: 0 | AVN6: 0 | AVO6: 0 | AVP6: 0 | AVQ6: 0 | AVR6: 0 | AVS6: 0 | AVT6: 0 | AVU6: 0 | AVV6: 0 | AVW6: 0 | AVX6: 0 | AVY6: 0 | AVZ6: 0 | AWA6: 0 | AWB6: 0 | AWC6: 0 | AWD6: 0 | AWE6: 0 | AWF6: 0 | AWG6: 0 | AWH6: 0 | AWI6: 0 | AWJ6: 0 | AWK6: 0 | AWL6: 0 | AWM6: 0 | AWN6: 0 | AWO6: 0 | AWP6: 0 | AWQ6: 0 | AWR6: 0 | AWS6: 0 | AWT6: 0 | AWU6: 0 | AWV6: 0 | AWW6: 0 | AWX6: 0 | AWY6: 0 | AWZ6: 0 | AXA6: 0 | AXB6: 0 | AXC6: 0 | AXD6: 0 | AXE6: 0 | AXF6: 0 | AXG6: 0 | AXH6: 0 | AXI6: 0 | AXJ6: 0 | AXK6: 0 | AXL6: 0 | AXM6: 0 | AXN6: 0 | AXO6: 0 | AXP6: 0 | AXQ6: 0 | AXR6: 0 | AXS6: 0 | AXT6: 0 | AXU6: 0 | AXV6: 0 | AXW6: 0 | AXX6: 0 | AXY6: 0 | AXZ6: 0 | AYA6: 0 | AYB6: 0 | AYC6: 0 | AYD6: 0 | AYE6: 0 | AYF6: 0 | AYG6: 0 | AYH6: 0 | AYI6: 0 | AYJ6: 0 | AYK6: 0 | AYL6: 0 | AYM6: 0 | AYN6: 0 | AYO6: 0 | AYP6: 0 | AYQ6: 0 | AYR6: 0 | AYS6: 0 | AYT6: 0 | AYU6: 0 | AYV6: 0 | AYW6: 0 | AYX6: 0 | AYY6: 0 | AYZ6: 0 | AZA6: 0 | AZB6: 0 | AZC6: 0 | AZD6: 0 | AZE6: 0 | AZF6: 0 | AZG6: 0 | AZH6: 0 | AZI6: 0 | AZJ6: 0 | AZK6: 0 | AZL6: 0 | AZM6: 0 | AZN6: 0 | AZO6: 0 | AZP6: 0 | AZQ6: 0 | AZR6: 0 | AZS6: 0 | AZT6: 0 | AZU6: 0 | AZV6: 0 | AZW6: 0 | AZX6: 0 | AZY6: 0 | AZZ6: 0 | BAA6: 0 | BAB6: 0 | BAC6: 0 | BAD6: 0 | BAE6: 0 | BAF6: 0 | BAG6: 0 | BAH6: 0 | BAI6: 0 | BAJ6: 0 | BAK6: 0 | BAL6: 0 | BAM6: 0 | BAN6: 0 | BAO6: 0 | BAP6: 0 | BAQ6: 0 | BAR6: 0 | BAS6: 0 | BAT6: 0 | BAU6: 0 | BAV6: 0 | BAW6: 0 | BAX6: 0 | BAY6: 0 | BAZ6: 0 | BBA6: 0 | BBB6: 0 | BBC6: 0 | BBD6: 0 | BBE6: 0 | BBF6: 0 | BBG6: 0 | BBH6: 0 | BBI6: 0 | BBJ6: 0 | BBK6: 0 | BBL6: 0 | BBM6: 0 | BBN6: 0 | BBO6: 0 | BBP6: 0 | BBQ6: 0 | BBR6: 0 | BBS6: 0 | BBT6: 0 | BBU6: 0 | BBV6: 0 | BBW6: 0 | BBX6: 0 | BBY6: 0 | BBZ6: 0 | BCA6: 0 | BCB6: 0 | BCC6: 0 | BCD6: 0 | BCE6: 0 | BCF6: 0 | BCG6: 0 | BCH6: 0 | BCI6: 0 | BCJ6: 0 | BCK6: 0 | BCL6: 0 | BCM6: 0 | BCN6: 0 | BCO6: 0 | BCP6: 0 | BCQ6: 0 | BCR6: 0 | BCS6: 0 | BCT6: 0 | BCU6: 0 | BCV6: 0 | BCW6: 0 | BCX6: 0 | BCY6: 0 | BCZ6: 0 | BDA6: 0 | BDB6: 0 | BDC6: 0 | BDD6: 0 | BDE6: 0 | BDF6: 0 | BDG6: 0 | BDH6: 0 | BDI6: 0 | BDJ6: 0 | BDK6: 0 | BDL6: 0 | BDM6: 0 | BDN6: 0 | BDO6: 0 | BDP6: 0 | BDQ6: 0 | BDR6: 0 | BDS6: 0 | BDT6: 0 | BDU6: 0 | BDV6: 0 | BDW6: 0 | BDX6: 0 | BDY6: 0 | BDZ6: 0 | BEA6: 0 | BEB6: 0 | BEC6: 0 | BED6: 0 | BEE6: 0 | BEF6: 0 | BEG6: 0 | BEH6: 0 | BEI6: 0 | BEJ6: 0 | BEK6: 0 | BEL6: 0 | BEM6: 0 | BEN6: 0 | BEO6: 0 | BEP6: 0 | BEQ6: 0 | BER6: 0 | BES6: 0 | BET6: 0 | BEU6: 0 | BEV6: 0 | BEW6: 0 | BEX6: 0 | BEY6: 0 | BEZ6: 0 | BFA6: 0 | BFB6: 0 | BFC6: 0 | BFD6: 0 | BFE6: 0 | BFF6: 0 | BFG6: 0 | BFH6: 0 | BFI6: 0 | BFJ6: 0 | BFK6: 0 | BFL6: 0 | BFM6: 0 | BFN6: 0 | BFO6: 0 | BFP6: 0 | BFQ6: 0 | BFR6: 0 | BFS6: 0 | BFT6: 0 | BFU6: 0 | BFV6: 0 | BFW6: 0 | BFX6: 0 | BFY6: 0 | BFZ6: 0 | BGA6: 0 | BGB6: 0 | BGC6: 0 | BGD6: 0 | BGE6: 0 | BGF6: 0 | BGG6: 0 | BGH6: 0 | BGI6: 0 | BGJ6: 0 | BGK6: 0 | BGL6: 0 | BGM6: 0 | BGN6: 0 | BGO6: 0 | BGP6: 0 | BGQ6: 0 | BGR6: 0 | BGS6: 0 | BGT6: 0 | BGU6: 0 | BGV6: 0 | BGW6: 0 | BGX6: 0 | BGY6: 0 | BGZ6: 0 | BHA6: 0 | BHB6: 0 | BHC6: 0 | BHD6: 0 | BHE6: 0 | BHF6: 0 | BHG6: 0 | BHH6: 0 | BHI6: 0 | BHJ6: 0 | BHK6: 0 | BHL6: 0 | BHM6: 0 | BHN6: 0 | BHO6: 0 | BHP6: 0 | BHQ6: 0 | BHR6: 0 | BHS6: 0 | BHT6: 0 | BHU6: 0 | BHV6: 0 | BHW6: 0 | BHX6: 0 | BHY6: 0 | BHZ6: 0 | BIA6: 0 | BIB6: 0 | BIC6: 0 | BID6: 0 | BIE6: 0 | BIF6: 0 | BIG6: 0 | BIH6: 0 | BII6: 0 | BIJ6: 0 | BIK6: 0 | BIL6: 0 | BIM6: 0 | BIN6: 0 | BIO6: 0 | BIP6: 0 | BIQ6: 0 | BIR6: 0 | BIS6: 0 | BIT6: 0 | BIU6: 0 | BIV6: 0 | BIW6: 0 | BIX6: 0 | BIY6: 0 | BIZ6: 0 | BJA6: 0 | BJB6: 0 | BJC6: 0 | BJD6: 0 | BJE6: 0 | BJF6: 0 | BJG6: 0 | BJH6: 0 | BJI6: 0 | BJJ6: 0 | BJK6: 0 | BJL6: 0 | BJM6: 0 | BJN6: 0 | BJO6: 0 | BJP6: 0 | BJQ6: 0 | BJR6: 0 | BJS6: 0 | BJT6: 0 | BJU6: 0 | BJV6: 0 | BJW6: 0 | BJX6: 0 | BJY6: 0 | BJZ6: 0 | BKA6: 0 | BKB6: 0 | BKC6: 0 | BKD6: 0 | BKE6: 0 | BKF6: 0 | BKG6: 0 | BKH6: 0 | BKI6: 0 | BKJ6: 0 | BKK6: 0 | BKL6: 0 | BKM6: 0 | BKN6: 0 | BKO6: 0 | BKP6: 0 | BKQ6: 0 | BKR6: 0 | BKS6: 0 | BKT6: 0 | BKU6: 0 | BKV6: 0 | BKW6: 0 | BKX6: 0 | BKY6: 0 | BKZ6: 0 | BLA6: 0 | BLB6: 0 | BLC6: 0 | BLD6: 0 | BLE6: 0 | BLF6: 0 | BLG6: 0 | BLH6: 0 | BLI6: 0 | BLJ6: 0 | BLK6: 0 | BLL6: 0 | BLM6: 0 | BLN6: 0 | BLO6: 0 | BLP6: 0 | BLQ6: 0 | BLR6: 0 | BLS6: 0 | BLT6: 0 | BLU6: 0 | BLV6: 0 | BLW6: 0 | BLX6: 0 | BLY6: 0 | BLZ6: 0 | BMA6: 0 | BMB6: 0 | BMC6: 0 | BMD6: 0 | BME6: 0 | BMF6: 0 | BMG6: 0 | BMH6: 0 | BMI6: 0 | BMJ6: 0 | BMK6: 0
B7: 03:00:00 | C7: 0 | D7: 0 | E7: 0 | F7: 0.013 | G7: 0.004 | H7: 0 | K7: 4 | L7: 0 | M7: 0 | N7: 0 | P7: 0.005291005291 | T7: 4 | U7: =TRANSPOSE('Average power consumption'!$C$3:$C$122)*L7 -> 0 | V7: 0 | W7: 0 | X7: 0 | Y7: 0 | Z7: 0 | AA7: 0 | AB7: 0 | AC7: 0 | AD7: 0 | AE7: 0 | AF7: 0 | AG7: 0 | AH7: 0 | AI7: 0 | AJ7: 0 | AK7: 0 | AL7: 0 | AM7: 0 | AN7: 0 | AO7: 0 | AP7: 0 | AQ7: 0 | AR7: 0 | AS7: 0 | AT7: 0 | AU7: 0 | AV7: 0 | AW7: 0 | AX7: 0 | AY7: 0 | AZ7: 0 | BA7: 0 | BB7: 0 | BC7: 0 | BD7: 0 | BE7: 0 | BF7: 0 | BG7: 0 | BH7: 0 | BI7: 0 | BJ7: 0 | BK7: 0 | BL7: 0 | BM7: 0 | BN7: 0 | BO7: 0 | BP7: 0 | BQ7: 0 | BR7: 0 | BS7: 0 | BT7: 0 | BU7: 0 | BV7: 0 | BW7: 0 | BX7: 0 | BY7: 0 | BZ7: 0 | CA7: 0 | CB7: 0 | CC7: 0 | CD7: 0 | CE7: 0 | CF7: 0 | CG7: 0 | CH7: 0 | CI7: 0 | CJ7: 0 | CK7: 0 | CL7: 0 | CM7: 0 | CN7: 0 | CO7: 0 | CP7: 0 | CQ7: 0 | CR7: 0 | CS7: 0 | CT7: 0 | CU7: 0 | CV7: 0 | CW7: 0 | CX7: 0 | CY7: 0 | CZ7: 0 | DA7: 0 | DB7: 0 | DC7: 0 | DD7: 0 | DE7: 0 | DF7: 0 | DG7: 0 | DH7: 0 | DI7: 0 | DJ7: 0 | DK7: 0 | DL7: 0 | DM7: 0 | DN7: 0 | DO7: 0 | DP7: 0 | DQ7: 0 | DR7: 0 | DS7: 0 | DT7: 0 | DU7: 0 | DV7: 0 | DW7: 0 | DX7: 0 | DY7: 0 | DZ7: 0 | EA7: 0 | EB7: 0 | EC7: 0 | ED7: 0 | EE7: 0 | EF7: 0 | EG7: 0 | EH7: 0 | EI7: 0 | EJ7: 0 | EM7: 0 | EN7: 0 | EO7: 0 | EP7: 0 | EQ7: 0 | ER7: 0 | ES7: 0 | ET7: 0 | EU7: 0 | EV7: 0 | EW7: 0 | EX7: 0 | EY7: 0 | EZ7: 0 | FA7: 0 | FB7: 0 | FC7: 0 | FD7: 0 | FE7: 0 | FF7: 0 | FG7: 0 | FH7: 0 | FI7: 0 | FJ7: 0 | FK7: 0 | FL7: 0 | FM7: 0 | FN7: 0 | FO7: 0 | FP7: 0 | FQ7: 0 | FR7: 0 | FS7: 0 | FT7: 0 | FU7: 0 | FV7: 0 | FW7: 0 | FX7: 0 | FY7: 0 | FZ7: 0 | GA7: 0 | GB7: 0 | GC7: 0 | GD7: 0 | GE7: 0 | GF7: 0 | GG7: 0 | GH7: 0 | GI7: 0 | GJ7: 0 | GK7: 0 | GL7: 0 | GM7: 0 | GN7: 0 | GO7: 0 | GP7: 0 | GQ7: 0 | GR7: 0 | GS7: 0 | GT7: 0 | GU7: 0 | GV7: 0 | GW7: 0 | GX7: 0 | GY7: 0 | GZ7: 0 | HA7: 0 | HB7: 0 | HC7: 0 | HD7: 0 | HE7: 0 | HF7: 0 | HG7: 0 | HH7: 0 | HI7: 0 | HJ7: 0 | HK7: 0 | HL7: 0 | HM7: 0 | HN7: 0 | HO7: 0 | HP7: 0 | HQ7: 0 | HR7: 0 | HS7: 0 | HT7: 0 | HU7: 0 | HV7: 0 | HW7: 0 | HX7: 0 | HY7: 0 | HZ7: 0 | IA7: 0 | IB7: 0 | IC7: 0 | ID7: 0 | IE7: 0 | IF7: 0 | IG7: 0 | IH7: 0 | II7: 0 | IJ7: 0 | IK7: 0 | IL7: 0 | IM7: 0 | IN7: 0 | IO7: 0 | IP7: 0 | IQ7: 0 | IR7: 0 | IS7: 0 | IT7: 0 | IU7: 0 | IV7: 0 | IW7: 0 | IX7: 0 | IY7: 0 | IZ7: 0 | JA7: 0 | JB7: 0 | JC7: 0 | JD7: 0 | JE7: 0 | JF7: 0 | JG7: 0 | JH7: 0 | JI7: 0 | JJ7: 0 | JK7: 0 | JL7: 0 | JM7: 0 | JN7: 0 | JO7: 0 | JP7: 0 | JQ7: 0 | JR7: 0 | JS7: 0 | JT7: 0 | JU7: 0 | JV7: 0 | JW7: 0 | JX7: 0 | JY7: 0 | JZ7: 0 | KA7: 0 | KB7: 0 | KC7: 0 | KD7: 0 | KE7: 0 | KF7: 0 | KG7: 0 | KH7: 0 | KI7: 0 | KJ7: 0 | KK7: 0 | KL7: 0 | KM7: 0 | KN7: 0 | KO7: 0 | KP7: 0 | KQ7: 0 | KR7: 0 | KS7: 0 | KT7: 0 | KU7: 0 | KV7: 0 | KW7: 0 | KX7: 0 | KY7: 0 | KZ7: 0 | LA7: 0 | LB7: 0 | LC7: 0 | LD7: 0 | LE7: 0 | LF7: 0 | LG7: 0 | LH7: 0 | LI7: 0 | LJ7: 0 | LK7: 0 | LL7: 0 | LM7: 0 | LN7: 0 | LO7: 0 | LP7: 0 | LQ7: 0 | LR7: 0 | LS7: 0 | LT7: 0 | LU7: 0 | LV7: 0 | LW7: 0 | LX7: 0 | LY7: 0 | LZ7: 0 | MA7: 0 | MB7: 0 | MC7: 0 | MD7: 0 | ME7: 0 | MF7: 0 | MG7: 0 | MH7: 0 | MI7: 0 | MJ7: 0 | MK7: 0 | ML7: 0 | MM7: 0 | MN7: 0 | MO7: 0 | MP7: 0 | MQ7: 0 | MR7: 0 | MS7: 0 | MT7: 0 | MU7: 0 | MV7: 0 | MW7: 0 | MX7: 0 | MY7: 0 | MZ7: 0 | NA7: 0 | NB7: 0 | NC7: 0 | ND7: 0 | NE7: 0 | NF7: 0 | NG7: 0 | NH7: 0 | NI7: 0 | NJ7: 0 | NK7: 0 | NL7: 0 | NM7: 0 | NN7: 0 | NO7: 0 | NP7: 0 | NQ7: 0 | NR7: 0 | NS7: 0 | NT7: 0 | NU7: 0 | NV7: 0 | NW7: 0 | NX7: 0 | NY7: 0 | NZ7: 0 | OA7: 0 | OB7: 0 | OC7: 0 | OD7: 0 | OE7: 0 | OF7: 0 | OG7: 0 | OH7: 0 | OI7: 0 | OJ7: 0 | OK7: 0 | OL7: 0 | OM7: 0 | ON7: 0 | OO7: 0 | OP7: 0 | OQ7: 0 | OR7: 0 | OS7: 0 | OT7: 0 | OU7: 0 | OV7: 0 | OW7: 0 | OX7: 0 | OY7: 0 | OZ7: 0 | PA7: 0 | PB7: 0 | PC7: 0 | PD7: 0 | PE7: 0 | PF7: 0 | PG7: 0 | PH7: 0 | PI7: 0 | PJ7: 0 | PK7: 0 | PL7: 0 | PM7: 0 | PN7: 0 | PO7: 0 | PP7: 0 | PQ7: 0 | PR7: 0 | PS7: 0 | PT7: 0 | PU7: 0 | PV7: 0 | PW7: 0 | PX7: 0 | PY7: 0 | PZ7: 0 | QA7: 0 | QB7: 0 | QC7: 0 | QD7: 0 | QE7: 0 | QF7: 0 | QG7: 0 | QH7: 0 | QI7: 0 | QJ7: 0 | QK7: 0 | QL7: 0 | QM7: 0 | QN7: 0 | QO7: 0 | QP7: 0 | QQ7: 0 | QR7: 0 | QS7: 0 | QT7: 0 | QU7: 0 | QV7: 0 | QW7: 0 | QX7: 0 | QY7: 0 | QZ7: 0 | RA7: 0 | RB7: 0 | RC7: 0 | RD7: 0 | RE7: 0 | RF7: 0 | RG7: 0 | RH7: 0 | RI7: 0 | RJ7: 0 | RK7: 0 | RL7: 0 | RM7: 0 | RN7: 0 | RO7: 0 | RP7: 0 | RQ7: 0 | RR7: 0 | RS7: 0 | RT7: 0 | RU7: 0 | RV7: 0 | RW7: 0 | RX7: 0 | RY7: 0 | RZ7: 0 | SA7: 0 | SB7: 0 | SC7: 0 | SD7: 0 | SE7: 0 | SF7: 0 | SG7: 0 | SH7: 0 | SI7: 0 | SJ7: 0 | SK7: 0 | SL7: 0 | SM7: 0 | SN7: 0 | SO7: 0 | SP7: 0 | SQ7: 0 | SR7: 0 | SS7: 0 | ST7: 0 | SU7: 0 | SV7: 0 | SW7: 0 | SX7: 0 | SY7: 0 | SZ7: 0 | TA7: 0 | TB7: 0 | TC7: 0 | TD7: 0 | TE7: 0 | TF7: 0 | TG7: 0 | TH7: 0 | TI7: 0 | TJ7: 0 | TK7: 0 | TL7: 0 | TM7: 0 | TN7: 0 | TO7: 0 | TP7: 0 | TQ7: 0 | TR7: 0 | TS7: 0 | TT7: 0 | TU7: 0 | TV7: 0 | TW7: 0 | TX7: 0 | TY7: 0 | TZ7: 0 | UA7: 0 | UB7: 0 | UC7: 0 | UD7: 0 | UE7: 0 | UF7: 0 | UG7: 0 | UH7: 0 | UI7: 0 | UJ7: 0 | UK7: 0 | UL7: 0 | UM7: 0 | UN7: 0 | UO7: 0 | UP7: 0 | UQ7: 0 | UR7: 0 | US7: 0 | UT7: 0 | UU7: 0 | UV7: 0 | UW7: 0 | UX7: 0 | UY7: 0 | UZ7: 0 | VA7: 0 | VB7: 0 | VC7: 0 | VD7: 0 | VE7: 0 | VF7: 0 | VG7: 0 | VH7: 0 | VI7: 0 | VJ7: 0 | VK7: 0 | VL7: 0 | VM7: 0 | VN7: 0 | VO7: 0 | VP7: 0 | VQ7: 0 | VR7: 0 | VS7: 0 | VT7: 0 | VU7: 0 | VV7: 0 | VW7: 0 | VX7: 0 | VY7: 0 | VZ7: 0 | WA7: 0 | WB7: 0 | WC7: 0 | WD7: 0 | WE7: 0 | WF7: 0 | WG7: 0 | WH7: 0 | WI7: 0 | WJ7: 0 | WK7: 0 | WL7: 0 | WM7: 0 | WN7: 0 | WO7: 0 | WP7: 0 | WQ7: 0 | WR7: 0 | WS7: 0 | WT7: 0 | WU7: 0 | WV7: 0 | WW7: 0 | WX7: 0 | WY7: 0 | WZ7: 0 | XA7: 0 | XB7: 0 | XC7: 0 | XD7: 0 | XE7: 0 | XF7: 0 | XG7: 0 | XH7: 0 | XI7: 0 | XJ7: 0 | XK7: 0 | XL7: 0 | XM7: 0 | XN7: 0 | XO7: 0 | XP7: 0 | XQ7: 0 | XR7: 0 | XS7: 0 | XT7: 0 | XU7: 0 | XV7: 0 | XW7: 0 | XX7: 0 | XY7: 0 | XZ7: 0 | YA7: 0 | YB7: 0 | YC7: 0 | YD7: 0 | YE7: 0 | YF7: 0 | YG7: 0 | YH7: 0 | YI7: 0 | YJ7: 0 | YK7: 0 | YL7: 0 | YM7: 0 | YN7: 0 | YO7: 0 | YP7: 0 | YQ7: 0 | YR7: 0 | YS7: 0 | YT7: 0 | YU7: 0 | YV7: 0 | YW7: 0 | YX7: 0 | YY7: 0 | YZ7: 0 | ZA7: 0 | ZB7: 0 | ZC7: 0 | ZD7: 0 | ZE7: 0 | ZF7: 0 | ZG7: 0 | ZH7: 0 | ZI7: 0 | ZJ7: 0 | ZK7: 0 | ZL7: 0 | ZM7: 0 | ZN7: 0 | ZO7: 0 | ZP7: 0 | ZQ7: 0 | ZR7: 0 | ZS7: 0 | ZT7: 0 | ZU7: 0 | ZV7: 0 | ZW7: 0 | ZX7: 0 | ZY7: 0 | ZZ7: 0 | AAA7: 0 | AAB7: 0 | AAC7: 0 | AAD7: 0 | AAE7: 0 | AAF7: 0 | AAG7: 0 | AAH7: 0 | AAI7: 0 | AAJ7: 0 | AAK7: 0 | AAL7: 0 | AAM7: 0 | AAN7: 0 | AAO7: 0 | AAP7: 0 | AAQ7: 0 | AAR7: 0 | AAS7: 0 | AAT7: 0 | AAU7: 0 | AAV7: 0 | AAW7: 0 | AAX7: 0 | AAY7: 0 | AAZ7: 0 | ABA7: 0 | ABB7: 0 | ABC7: 0 | ABD7: 0 | ABE7: 0 | ABF7: 0 | ABG7: 0 | ABH7: 0 | ABI7: 0 | ABJ7: 0 | ABK7: 0 | ABL7: 0 | ABM7: 0 | ABN7: 0 | ABO7: 0 | ABP7: 0 | ABQ7: 0 | ABR7: 0 | ABS7: 0 | ABT7: 0 | ABU7: 0 | ABV7: 0 | ABW7: 0 | ABX7: 0 | ABY7: 0 | ABZ7: 0 | ACA7: 0 | ACB7: 0 | ACC7: 0 | ACD7: 0 | ACE7: 0 | ACF7: 0 | ACG7: 0 | ACH7: 0 | ACI7: 0 | ACJ7: 0 | ACK7: 0 | ACL7: 0 | ACM7: 0 | ACN7: 0 | ACO7: 0 | ACP7: 0 | ACQ7: 0 | ACR7: 0 | ACS7: 0 | ACT7: 0 | ACU7: 0 | ACV7: 0 | ACW7: 0 | ACX7: 0 | ACY7: 0 | ACZ7: 0 | ADA7: 0 | ADB7: 0 | ADC7: 0 | ADD7: 0 | ADE7: 0 | ADF7: 0 | ADG7: 0 | ADH7: 0 | ADI7: 0 | ADJ7: 0 | ADK7: 0 | ADL7: 0 | ADM7: 0 | ADN7: 0 | ADO7: 0 | ADP7: 0 | ADQ7: 0 | ADR7: 0 | ADS7: 0 | ADT7: 0 | ADU7: 0 | ADV7: 0 | ADW7: 0 | ADX7: 0 | ADY7: 0 | ADZ7: 0 | AEA7: 0 | AEB7: 0 | AEC7: 0 | AED7: 0 | AEE7: 0 | AEF7: 0 | AEG7: 0 | AEH7: 0 | AEI7: 0 | AEJ7: 0 | AEK7: 0 | AEL7: 0 | AEM7: 0 | AEN7: 0 | AEO7: 0 | AEP7: 0 | AEQ7: 0 | AER7: 0 | AES7: 0 | AET7: 0 | AEU7: 0 | AEV7: 0 | AEW7: 0 | AEX7: 0 | AEY7: 0 | AEZ7: 0 | AFA7: 0 | AFB7: 0 | AFC7: 0 | AFD7: 0 | AFE7: 0 | AFF7: 0 | AFG7: 0 | AFH7: 0 | AFI7: 0 | AFJ7: 0 | AFK7: 0 | AFL7: 0 | AFM7: 0 | AFN7: 0 | AFO7: 0 | AFP7: 0 | AFQ7: 0 | AFR7: 0 | AFS7: 0 | AFT7: 0 | AFU7: 0 | AFV7: 0 | AFW7: 0 | AFX7: 0 | AFY7: 0 | AFZ7: 0 | AGA7: 0 | AGB7: 0 | AGC7: 0 | AGD7: 0 | AGE7: 0 | AGF7: 0 | AGG7: 0 | AGH7: 0 | AGI7: 0 | AGJ7: 0 | AGK7: 0 | AGL7: 0 | AGM7: 0 | AGN7: 0 | AGO7: 0 | AGP7: 0 | AGQ7: 0 | AGR7: 0 | AGS7: 0 | AGT7: 0 | AGU7: 0 | AGV7: 0 | AGW7: 0 | AGX7: 0 | AGY7: 0 | AGZ7: 0 | AHA7: 0 | AHB7: 0 | AHC7: 0 | AHD7: 0 | AHE7: 0 | AHF7: 0 | AHG7: 0 | AHH7: 0 | AHI7: 0 | AHJ7: 0 | AHK7: 0 | AHL7: 0 | AHM7: 0 | AHN7: 0 | AHO7: 0 | AHP7: 0 | AHQ7: 0 | AHR7: 0 | AHS7: 0 | AHT7: 0 | AHU7: 0 | AHV7: 0 | AHW7: 0 | AHX7: 0 | AHY7: 0 | AHZ7: 0 | AIA7: 0 | AIB7: 0 | AIC7: 0 | AID7: 0 | AIE7: 0 | AIF7: 0 | AIG7: 0 | AIH7: 0 | AII7: 0 | AIJ7: 0 | AIK7: 0 | AIL7: 0 | AIM7: 0 | AIN7: 0 | AIO7: 0 | AIP7: 0 | AIQ7: 0 | AIR7: 0 | AIS7: 0 | AIT7: 0 | AIU7: 0 | AIV7: 0 | AIW7: 0 | AIX7: 0 | AIY7: 0 | AIZ7: 0 | AJA7: 0 | AJB7: 0 | AJC7: 0 | AJD7: 0 | AJE7: 0 | AJF7: 0 | AJG7: 0 | AJH7: 0 | AJI7: 0 | AJJ7: 0 | AJK7: 0 | AJL7: 0 | AJM7: 0 | AJN7: 0 | AJO7: 0 | AJP7: 0 | AJQ7: 0 | AJR7: 0 | AJS7: 0 | AJT7: 0 | AJU7: 0 | AJV7: 0 | AJW7: 0 | AJX7: 0 | AJY7: 0 | AJZ7: 0 | AKA7: 0 | AKB7: 0 | AKC7: 0 | AKD7: 0 | AKE7: 0 | AKF7: 0 | AKG7: 0 | AKH7: 0 | AKI7: 0 | AKJ7: 0 | AKK7: 0 | AKL7: 0 | AKM7: 0 | AKN7: 0 | AKO7: 0 | AKP7: 0 | AKQ7: 0 | AKR7: 0 | AKS7: 0 | AKT7: 0 | AKU7: 0 | AKV7: 0 | AKW7: 0 | AKX7: 0 | AKY7: 0 | AKZ7: 0 | ALA7: 0 | ALB7: 0 | ALC7: 0 | ALD7: 0 | ALE7: 0 | ALF7: 0 | ALG7: 0 | ALH7: 0 | ALI7: 0 | ALJ7: 0 | ALK7: 0 | ALL7: 0 | ALM7: 0 | ALN7: 0 | ALO7: 0 | ALP7: 0 | ALQ7: 0 | ALR7: 0 | ALS7: 0 | ALT7: 0 | ALU7: 0 | ALV7: 0 | ALW7: 0 | ALX7: 0 | ALY7: 0 | ALZ7: 0 | AMA7: 0 | AMB7: 0 | AMC7: 0 | AMD7: 0 | AME7: 0 | AMF7: 0 | AMG7: 0 | AMH7: 0 | AMI7: 0 | AMJ7: 0 | AMK7: 0 | AML7: 0 | AMM7: 0 | AMN7: 0 | AMO7: 0 | AMP7: 0 | AMQ7: 0 | AMR7: 0 | AMS7: 0 | AMT7: 0 | AMU7: 0 | AMV7: 0 | AMW7: 0 | AMX7: 0 | AMY7: 0 | AMZ7: 0 | ANA7: 0 | ANB7: 0 | ANC7: 0 | AND7: 0 | ANE7: 0 | ANF7: 0 | ANG7: 0 | ANH7: 0 | ANI7: 0 | ANJ7: 0 | ANK7: 0 | ANL7: 0 | ANM7: 0 | ANN7: 0 | ANO7: 0 | ANP7: 0 | ANQ7: 0 | ANR7: 0 | ANS7: 0 | ANT7: 0 | ANU7: 0 | ANV7: 0 | ANW7: 0 | ANX7: 0 | ANY7: 0 | ANZ7: 0 | AOA7: 0 | AOB7: 0 | AOC7: 0 | AOD7: 0 | AOE7: 0 | AOF7: 0 | AOG7: 0 | AOH7: 0 | AOI7: 0 | AOJ7: 0 | AOK7: 0 | AOL7: 0 | AOM7: 0 | AON7: 0 | AOO7: 0 | AOP7: 0 | AOQ7: 0 | AOR7: 0 | AOS7: 0 | AOT7: 0 | AOU7: 0 | AOV7: 0 | AOW7: 0 | AOX7: 0 | AOY7: 0 | AOZ7: 0 | APA7: 0 | APB7: 0 | APC7: 0 | APD7: 0 | APE7: 0 | APF7: 0 | APG7: 0 | APH7: 0 | API7: 0 | APJ7: 0 | APK7: 0 | APL7: 0 | APM7: 0 | APN7: 0 | APO7: 0 | APP7: 0 | APQ7: 0 | APR7: 0 | APS7: 0 | APT7: 0 | APU7: 0 | APV7: 0 | APW7: 0 | APX7: 0 | APY7: 0 | APZ7: 0 | AQA7: 0 | AQB7: 0 | AQC7: 0 | AQD7: 0 | AQE7: 0 | AQF7: 0 | AQG7: 0 | AQH7: 0 | AQI7: 0 | AQJ7: 0 | AQK7: 0 | AQL7: 0 | AQM7: 0 | AQN7: 0 | AQO7: 0 | AQP7: 0 | AQQ7: 0 | AQR7: 0 | AQS7: 0 | AQT7: 0 | AQU7: 0 | AQV7: 0 | AQW7: 0 | AQX7: 0 | AQY7: 0 | AQZ7: 0 | ARA7: 0 | ARB7: 0 | ARC7: 0 | ARD7: 0 | ARE7: 0 | ARF7: 0 | ARG7: 0 | ARH7: 0 | ARI7: 0 | ARJ7: 0 | ARK7: 0 | ARL7: 0 | ARM7: 0 | ARN7: 0 | ARO7: 0 | ARP7: 0 | ARQ7: 0 | ARR7: 0 | ARS7: 0 | ART7: 0 | ARU7: 0 | ARV7: 0 | ARW7: 0 | ARX7: 0 | ARY7: 0 | ARZ7: 0 | ASA7: 0 | ASB7: 0 | ASC7: 0 | ASD7: 0 | ASE7: 0 | ASF7: 0 | ASG7: 0 | ASH7: 0 | ASI7: 0 | ASJ7: 0 | ASK7: 0 | ASL7: 0 | ASM7: 0 | ASN7: 0 | ASO7: 0 | ASP7: 0 | ASQ7: 0 | ASR7: 0 | ASS7: 0 | AST7: 0 | ASU7: 0 | ASV7: 0 | ASW7: 0 | ASX7: 0 | ASY7: 0 | ASZ7: 0 | ATA7: 0 | ATB7: 0 | ATC7: 0 | ATD7: 0 | ATE7: 0 | ATF7: 0 | ATG7: 0 | ATH7: 0 | ATI7: 0 | ATJ7: 0 | ATK7: 0 | ATL7: 0 | ATM7: 0 | ATN7: 0 | ATO7: 0 | ATP7: 0 | ATQ7: 0 | ATR7: 0 | ATS7: 0 | ATT7: 0 | ATU7: 0 | ATV7: 0 | ATW7: 0 | ATX7: 0 | ATY7: 0 | ATZ7: 0 | AUA7: 0 | AUB7: 0 | AUC7: 0 | AUD7: 0 | AUE7: 0 | AUF7: 0 | AUG7: 0 | AUH7: 0 | AUI7: 0 | AUJ7: 0 | AUK7: 0 | AUL7: 0 | AUM7: 0 | AUN7: 0 | AUO7: 0 | AUP7: 0 | AUQ7: 0 | AUR7: 0 | AUS7: 0 | AUT7: 0 | AUU7: 0 | AUV7: 0 | AUW7: 0 | AUX7: 0 | AUY7: 0 | AUZ7: 0 | AVA7: 0 | AVB7: 0 | AVC7: 0 | AVD7: 0 | AVE7: 0 | AVF7: 0 | AVG7: 0 | AVH7: 0 | AVI7: 0 | AVJ7: 0 | AVK7: 0 | AVL7: 0 | AVM7: 0 | AVN7: 0 | AVO7: 0 | AVP7: 0 | AVQ7: 0 | AVR7: 0 | AVS7: 0 | AVT7: 0 | AVU7: 0 | AVV7: 0 | AVW7: 0 | AVX7: 0 | AVY7: 0 | AVZ7: 0 | AWA7: 0 | AWB7: 0 | AWC7: 0 | AWD7: 0 | AWE7: 0 | AWF7: 0 | AWG7: 0 | AWH7: 0 | AWI7: 0 | AWJ7: 0 | AWK7: 0 | AWL7: 0 | AWM7: 0 | AWN7: 0 | AWO7: 0 | AWP7: 0 | AWQ7: 0 | AWR7: 0 | AWS7: 0 | AWT7: 0 | AWU7: 0 | AWV7: 0 | AWW7: 0 | AWX7: 0 | AWY7: 0 | AWZ7: 0 | AXA7: 0 | AXB7: 0 | AXC7: 0 | AXD7: 0 | AXE7: 0 | AXF7: 0 | AXG7: 0 | AXH7: 0 | AXI7: 0 | AXJ7: 0 | AXK7: 0 | AXL7: 0 | AXM7: 0 | AXN7: 0 | AXO7: 0 | AXP7: 0 | AXQ7: 0 | AXR7: 0 | AXS7: 0 | AXT7: 0 | AXU7: 0 | AXV7: 0 | AXW7: 0 | AXX7: 0 | AXY7: 0 | AXZ7: 0 | AYA7: 0 | AYB7: 0 | AYC7: 0 | AYD7: 0 | AYE7: 0 | AYF7: 0 | AYG7: 0 | AYH7: 0 | AYI7: 0 | AYJ7: 0 | AYK7: 0 | AYL7: 0 | AYM7: 0 | AYN7: 0 | AYO7: 0 | AYP7: 0 | AYQ7: 0 | AYR7: 0 | AYS7: 0 | AYT7: 0 | AYU7: 0 | AYV7: 0 | AYW7: 0 | AYX7: 0 | AYY7: 0 | AYZ7: 0 | AZA7: 0 | AZB7: 0 | AZC7: 0 | AZD7: 0 | AZE7: 0 | AZF7: 0 | AZG7: 0 | AZH7: 0 | AZI7: 0 | AZJ7: 0 | AZK7: 0 | AZL7: 0 | AZM7: 0 | AZN7: 0 | AZO7: 0 | AZP7: 0 | AZQ7: 0 | AZR7: 0 | AZS7: 0 | AZT7: 0 | AZU7: 0 | AZV7: 0 | AZW7: 0 | AZX7: 0 | AZY7: 0 | AZZ7: 0 | BAA7: 0 | BAB7: 0 | BAC7: 0 | BAD7: 0 | BAE7: 0 | BAF7: 0 | BAG7: 0 | BAH7: 0 | BAI7: 0 | BAJ7: 0 | BAK7: 0 | BAL7: 0 | BAM7: 0 | BAN7: 0 | BAO7: 0 | BAP7: 0 | BAQ7: 0 | BAR7: 0 | BAS7: 0 | BAT7: 0 | BAU7: 0 | BAV7: 0 | BAW7: 0 | BAX7: 0 | BAY7: 0 | BAZ7: 0 | BBA7: 0 | BBB7: 0 | BBC7: 0 | BBD7: 0 | BBE7: 0 | BBF7: 0 | BBG7: 0 | BBH7: 0 | BBI7: 0 | BBJ7: 0 | BBK7: 0 | BBL7: 0 | BBM7: 0 | BBN7: 0 | BBO7: 0 | BBP7: 0 | BBQ7: 0 | BBR7: 0 | BBS7: 0 | BBT7: 0 | BBU7: 0 | BBV7: 0 | BBW7: 0 | BBX7: 0 | BBY7: 0 | BBZ7: 0 | BCA7: 0 | BCB7: 0 | BCC7: 0 | BCD7: 0 | BCE7: 0 | BCF7: 0 | BCG7: 0 | BCH7: 0 | BCI7: 0 | BCJ7: 0 | BCK7: 0 | BCL7: 0 | BCM7: 0 | BCN7: 0 | BCO7: 0 | BCP7: 0 | BCQ7: 0 | BCR7: 0 | BCS7: 0 | BCT7: 0 | BCU7: 0 | BCV7: 0 | BCW7: 0 | BCX7: 0 | BCY7: 0 | BCZ7: 0 | BDA7: 0 | BDB7: 0 | BDC7: 0 | BDD7: 0 | BDE7: 0 | BDF7: 0 | BDG7: 0 | BDH7: 0 | BDI7: 0 | BDJ7: 0 | BDK7: 0 | BDL7: 0 | BDM7: 0 | BDN7: 0 | BDO7: 0 | BDP7: 0 | BDQ7: 0 | BDR7: 0 | BDS7: 0 | BDT7: 0 | BDU7: 0 | BDV7: 0 | BDW7: 0 | BDX7: 0 | BDY7: 0 | BDZ7: 0 | BEA7: 0 | BEB7: 0 | BEC7: 0 | BED7: 0 | BEE7: 0 | BEF7: 0 | BEG7: 0 | BEH7: 0 | BEI7: 0 | BEJ7: 0 | BEK7: 0 | BEL7: 0 | BEM7: 0 | BEN7: 0 | BEO7: 0 | BEP7: 0 | BEQ7: 0 | BER7: 0 | BES7: 0 | BET7: 0 | BEU7: 0 | BEV7: 0 | BEW7: 0 | BEX7: 0 | BEY7: 0 | BEZ7: 0 | BFA7: 0 | BFB7: 0 | BFC7: 0 | BFD7: 0 | BFE7: 0 | BFF7: 0 | BFG7: 0 | BFH7: 0 | BFI7: 0 | BFJ7: 0 | BFK7: 0 | BFL7: 0 | BFM7: 0 | BFN7: 0 | BFO7: 0 | BFP7: 0 | BFQ7: 0 | BFR7: 0 | BFS7: 0 | BFT7: 0 | BFU7: 0 | BFV7: 0 | BFW7: 0 | BFX7: 0 | BFY7: 0 | BFZ7: 0 | BGA7: 0 | BGB7: 0 | BGC7: 0 | BGD7: 0 | BGE7: 0 | BGF7: 0 | BGG7: 0 | BGH7: 0 | BGI7: 0 | BGJ7: 0 | BGK7: 0 | BGL7: 0 | BGM7: 0 | BGN7: 0 | BGO7: 0 | BGP7: 0 | BGQ7: 0 | BGR7: 0 | BGS7: 0 | BGT7: 0 | BGU7: 0 | BGV7: 0 | BGW7: 0 | BGX7: 0 | BGY7: 0 | BGZ7: 0 | BHA7: 0 | BHB7: 0 | BHC7: 0 | BHD7: 0 | BHE7: 0 | BHF7: 0 | BHG7: 0 | BHH7: 0 | BHI7: 0 | BHJ7: 0 | BHK7: 0 | BHL7: 0 | BHM7: 0 | BHN7: 0 | BHO7: 0 | BHP7: 0 | BHQ7: 0 | BHR7: 0 | BHS7: 0 | BHT7: 0 | BHU7: 0 | BHV7: 0 | BHW7: 0 | BHX7: 0 | BHY7: 0 | BHZ7: 0 | BIA7: 0 | BIB7: 0 | BIC7: 0 | BID7: 0 | BIE7: 0 | BIF7: 0 | BIG7: 0 | BIH7: 0 | BII7: 0 | BIJ7: 0 | BIK7: 0 | BIL7: 0 | BIM7: 0 | BIN7: 0 | BIO7: 0 | BIP7: 0 | BIQ7: 0 | BIR7: 0 | BIS7: 0 | BIT7: 0 | BIU7: 0 | BIV7: 0 | BIW7: 0 | BIX7: 0 | BIY7: 0 | BIZ7: 0 | BJA7: 0 | BJB7: 0 | BJC7: 0 | BJD7: 0 | BJE7: 0 | BJF7: 0 | BJG7: 0 | BJH7: 0 | BJI7: 0 | BJJ7: 0 | BJK7: 0 | BJL7: 0 | BJM7: 0 | BJN7: 0 | BJO7: 0 | BJP7: 0 | BJQ7: 0 | BJR7: 0 | BJS7: 0 | BJT7: 0 | BJU7: 0 | BJV7: 0 | BJW7: 0 | BJX7: 0 | BJY7: 0 | BJZ7: 0 | BKA7: 0 | BKB7: 0 | BKC7: 0 | BKD7: 0 | BKE7: 0 | BKF7: 0 | BKG7: 0 | BKH7: 0 | BKI7: 0 | BKJ7: 0 | BKK7: 0 | BKL7: 0 | BKM7: 0 | BKN7: 0 | BKO7: 0 | BKP7: 0 | BKQ7: 0 | BKR7: 0 | BKS7: 0 | BKT7: 0 | BKU7: 0 | BKV7: 0 | BKW7: 0 | BKX7: 0 | BKY7: 0 | BKZ7: 0 | BLA7: 0 | BLB7: 0 | BLC7: 0 | BLD7: 0 | BLE7: 0 | BLF7: 0 | BLG7: 0 | BLH7: 0 | BLI7: 0 | BLJ7: 0 | BLK7: 0 | BLL7: 0 | BLM7: 0 | BLN7: 0 | BLO7: 0 | BLP7: 0 | BLQ7: 0 | BLR7: 0 | BLS7: 0 | BLT7: 0 | BLU7: 0 | BLV7: 0 | BLW7: 0 | BLX7: 0 | BLY7: 0 | BLZ7: 0 | BMA7: 0 | BMB7: 0 | BMC7: 0 | BMD7: 0 | BME7: 0 | BMF7: 0 | BMG7: 0 | BMH7: 0 | BMI7: 0 | BMJ7: 0 | BMK7: 0
B8: 04:00:00 | C8: 0 | D8: 0 | E8: 0 | F8: 0 | G8: 0 | H8: 0 | K8: 5 | L8: 0 | M8: 0 | N8: 0.005050505051 | P8: 0 | T8: 5 | U8: =TRANSPOSE('Average power consumption'!$C$3:$C$122)*L8 -> 0 | V8: 0 | W8: 0 | X8: 0 | Y8: 0 | Z8: 0 | AA8: 0 | AB8: 0 | AC8: 0 | AD8: 0 | AE8: 0 | AF8: 0 | AG8: 0 | AH8: 0 | AI8: 0 | AJ8: 0 | AK8: 0 | AL8: 0 | AM8: 0 | AN8: 0 | AO8: 0 | AP8: 0 | AQ8: 0 | AR8: 0 | AS8: 0 | AT8: 0 | AU8: 0 | AV8: 0 | AW8: 0 | AX8: 0 | AY8: 0 | AZ8: 0 | BA8: 0 | BB8: 0 | BC8: 0 | BD8: 0 | BE8: 0 | BF8: 0 | BG8: 0 | BH8: 0 | BI8: 0 | BJ8: 0 | BK8: 0 | BL8: 0 | BM8: 0 | BN8: 0 | BO8: 0 | BP8: 0 | BQ8: 0 | BR8: 0 | BS8: 0 | BT8: 0 | BU8: 0 | BV8: 0 | BW8: 0 | BX8: 0 | BY8: 0 | BZ8: 0 | CA8: 0 | CB8: 0 | CC8: 0 | CD8: 0 | CE8: 0 | CF8: 0 | CG8: 0 | CH8: 0 | CI8: 0 | CJ8: 0 | CK8: 0 | CL8: 0 | CM8: 0 | CN8: 0 | CO8: 0 | CP8: 0 | CQ8: 0 | CR8: 0 | CS8: 0 | CT8: 0 | CU8: 0 | CV8: 0 | CW8: 0 | CX8: 0 | CY8: 0 | CZ8: 0 | DA8: 0 | DB8: 0 | DC8: 0 | DD8: 0 | DE8: 0 | DF8: 0 | DG8: 0 | DH8: 0 | DI8: 0 | DJ8: 0 | DK8: 0 | DL8: 0 | DM8: 0 | DN8: 0 | DO8: 0 | DP8: 0 | DQ8: 0 | DR8: 0 | DS8: 0 | DT8: 0 | DU8: 0 | DV8: 0 | DW8: 0 | DX8: 0 | DY8: 0 | DZ8: 0 | EA8: 0 | EB8: 0 | EC8: 0 | ED8: 0 | EE8: 0 | EF8: 0 | EG8: 0 | EH8: 0 | EI8: 0 | EJ8: 0 | EM8: 0 | EN8: 0 | EO8: 0 | EP8: 0 | EQ8: 0 | ER8: 0 | ES8: 0 | ET8: 0 | EU8: 0 | EV8: 0 | EW8: 0 | EX8: 0 | EY8: 0 | EZ8: 0 | FA8: 0 | FB8: 0 | FC8: 0 | FD8: 0 | FE8: 0 | FF8: 0 | FG8: 0 | FH8: 0 | FI8: 0 | FJ8: 0 | FK8: 0 | FL8: 0 | FM8: 0 | FN8: 0 | FO8: 0 | FP8: 0 | FQ8: 0 | FR8: 0 | FS8: 0 | FT8: 0 | FU8: 0 | FV8: 0 | FW8: 0 | FX8: 0 | FY8: 0 | FZ8: 0 | GA8: 0 | GB8: 0 | GC8: 0 | GD8: 0 | GE8: 0 | GF8: 0 | GG8: 0 | GH8: 0 | GI8: 0 | GJ8: 0 | GK8: 0 | GL8: 0 | GM8: 0 | GN8: 0 | GO8: 0 | GP8: 0 | GQ8: 0 | GR8: 0 | GS8: 0 | GT8: 0 | GU8: 0 | GV8: 0 | GW8: 0 | GX8: 0 | GY8: 0 | GZ8: 0 | HA8: 0 | HB8: 0 | HC8: 0 | HD8: 0 | HE8: 0 | HF8: 0 | HG8: 0 | HH8: 0 | HI8: 0 | HJ8: 0 | HK8: 0 | HL8: 0 | HM8: 0 | HN8: 0 | HO8: 0 | HP8: 0 | HQ8: 0 | HR8: 0 | HS8: 0 | HT8: 0 | HU8: 0 | HV8: 0 | HW8: 0 | HX8: 0 | HY8: 0 | HZ8: 0 | IA8: 0 | IB8: 0 | IC8: 0 | ID8: 0 | IE8: 0 | IF8: 0 | IG8: 0 | IH8: 0 | II8: 0 | IJ8: 0 | IK8: 0 | IL8: 0 | IM8: 0 | IN8: 0 | IO8: 0 | IP8: 0 | IQ8: 0 | IR8: 0 | IS8: 0 | IT8: 0 | IU8: 0 | IV8: 0 | IW8: 0 | IX8: 0 | IY8: 0 | IZ8: 0 | JA8: 0 | JB8: 0 | JC8: 0 | JD8: 0 | JE8: 0 | JF8: 0 | JG8: 0 | JH8: 0 | JI8: 0 | JJ8: 0 | JK8: 0 | JL8: 0 | JM8: 0 | JN8: 0 | JO8: 0 | JP8: 0 | JQ8: 0 | JR8: 0 | JS8: 0 | JT8: 0 | JU8: 0 | JV8: 0 | JW8: 0 | JX8: 0 | JY8: 0 | JZ8: 0 | KA8: 0 | KB8: 0 | KC8: 0 | KD8: 0 | KE8: 0 | KF8: 0 | KG8: 0 | KH8: 0 | KI8: 0 | KJ8: 0 | KK8: 0 | KL8: 0 | KM8: 0 | KN8: 0 | KO8: 0 | KP8: 0 | KQ8: 0 | KR8: 0 | KS8: 0 | KT8: 0 | KU8: 0 | KV8: 0 | KW8: 0 | KX8: 0 | KY8: 0 | KZ8: 0 | LA8: 0 | LB8: 0 | LC8: 0 | LD8: 0 | LE8: 0 | LF8: 0 | LG8: 0 | LH8: 0 | LI8: 0 | LJ8: 0 | LK8: 0 | LL8: 0 | LM8: 0 | LN8: 0 | LO8: 0 | LP8: 0 | LQ8: 0 | LR8: 0 | LS8: 0 | LT8: 0 | LU8: 0 | LV8: 0 | LW8: 0 | LX8: 0 | LY8: 0 | LZ8: 0 | MA8: 0 | MB8: 0 | MC8: 0 | MD8: 0 | ME8: 0 | MF8: 0 | MG8: 0 | MH8: 0 | MI8: 0 | MJ8: 0 | MK8: 0 | ML8: 0 | MM8: 0 | MN8: 0 | MO8: 0 | MP8: 0 | MQ8: 0 | MR8: 0 | MS8: 0 | MT8: 0 | MU8: 0 | MV8: 0 | MW8: 0 | MX8: 0 | MY8: 0 | MZ8: 0 | NA8: 0 | NB8: 0 | NC8: 0 | ND8: 0 | NE8: 0 | NF8: 0 | NG8: 0 | NH8: 0 | NI8: 0 | NJ8: 0 | NK8: 0 | NL8: 0 | NM8: 0 | NN8: 0 | NO8: 0 | NP8: 0 | NQ8: 0 | NR8: 0 | NS8: 0 | NT8: 0 | NU8: 0 | NV8: 0 | NW8: 0 | NX8: 0 | NY8: 0 | NZ8: 0 | OA8: 0 | OB8: 0 | OC8: 0 | OD8: 0 | OE8: 0 | OF8: 0 | OG8: 0 | OH8: 0 | OI8: 0 | OJ8: 0 | OK8: 0 | OL8: 0 | OM8: 0 | ON8: 0 | OO8: 0 | OP8: 0 | OQ8: 0 | OR8: 0 | OS8: 0 | OT8: 0 | OU8: 0 | OV8: 0 | OW8: 0 | OX8: 0 | OY8: 0 | OZ8: 0 | PA8: 0 | PB8: 0 | PC8: 0 | PD8: 0 | PE8: 0 | PF8: 0 | PG8: 0 | PH8: 0 | PI8: 0 | PJ8: 0 | PK8: 0 | PL8: 0 | PM8: 0 | PN8: 0 | PO8: 0 | PP8: 0 | PQ8: 0 | PR8: 0 | PS8: 0 | PT8: 0 | PU8: 0 | PV8: 0 | PW8: 0 | PX8: 0 | PY8: 0 | PZ8: 0 | QA8: 0 | QB8: 0 | QC8: 0 | QD8: 0 | QE8: 0 | QF8: 0 | QG8: 0 | QH8: 0 | QI8: 0 | QJ8: 0 | QK8: 0 | QL8: 0 | QM8: 0 | QN8: 0 | QO8: 0 | QP8: 0 | QQ8: 0 | QR8: 0 | QS8: 0 | QT8: 0 | QU8: 0 | QV8: 0 | QW8: 0 | QX8: 0 | QY8: 0 | QZ8: 0 | RA8: 0 | RB8: 0 | RC8: 0 | RD8: 0 | RE8: 0 | RF8: 0 | RG8: 0 | RH8: 0 | RI8: 0 | RJ8: 0 | RK8: 0 | RL8: 0 | RM8: 0 | RN8: 0 | RO8: 0 | RP8: 0 | RQ8: 0 | RR8: 0 | RS8: 0 | RT8: 0 | RU8: 0 | RV8: 0 | RW8: 0 | RX8: 0 | RY8: 0 | RZ8: 0 | SA8: 0 | SB8: 0 | SC8: 0 | SD8: 0 | SE8: 0 | SF8: 0 | SG8: 0 | SH8: 0 | SI8: 0 | SJ8: 0 | SK8: 0 | SL8: 0 | SM8: 0 | SN8: 0 | SO8: 0 | SP8: 0 | SQ8: 0 | SR8: 0 | SS8: 0 | ST8: 0 | SU8: 0 | SV8: 0 | SW8: 0 | SX8: 0 | SY8: 0 | SZ8: 0 | TA8: 0 | TB8: 0 | TC8: 0 | TD8: 0 | TE8: 0 | TF8: 0 | TG8: 0 | TH8: 0 | TI8: 0 | TJ8: 0 | TK8: 0 | TL8: 0 | TM8: 0 | TN8: 0 | TO8: 0 | TP8: 0 | TQ8: 0 | TR8: 0 | TS8: 0 | TT8: 0 | TU8: 0 | TV8: 0 | TW8: 0 | TX8: 0 | TY8: 0 | TZ8: 0 | UA8: 0 | UB8: 0 | UC8: 0 | UD8: 0 | UE8: 0 | UF8: 0 | UG8: 0 | UH8: 0 | UI8: 0 | UJ8: 0 | UK8: 0 | UL8: 0 | UM8: 0 | UN8: 0 | UO8: 0 | UP8: 0 | UQ8: 0 | UR8: 0 | US8: 0 | UT8: 0 | UU8: 0 | UV8: 0 | UW8: 0 | UX8: 0 | UY8: 0 | UZ8: 0 | VA8: 0 | VB8: 0 | VC8: 0 | VD8: 0 | VE8: 0 | VF8: 0 | VG8: 0 | VH8: 0 | VI8: 0 | VJ8: 0 | VK8: 0 | VL8: 0 | VM8: 0 | VN8: 0 | VO8: 0 | VP8: 0 | VQ8: 0 | VR8: 0 | VS8: 0 | VT8: 0 | VU8: 0 | VV8: 0 | VW8: 0 | VX8: 0 | VY8: 0 | VZ8: 0 | WA8: 0 | WB8: 0 | WC8: 0 | WD8: 0 | WE8: 0 | WF8: 0 | WG8: 0 | WH8: 0 | WI8: 0 | WJ8: 0 | WK8: 0 | WL8: 0 | WM8: 0 | WN8: 0 | WO8: 0 | WP8: 0 | WQ8: 0 | WR8: 0 | WS8: 0 | WT8: 0 | WU8: 0 | WV8: 0 | WW8: 0 | WX8: 0 | WY8: 0 | WZ8: 0 | XA8: 0 | XB8: 0 | XC8: 0 | XD8: 0 | XE8: 0 | XF8: 0 | XG8: 0 | XH8: 0 | XI8: 0 | XJ8: 0 | XK8: 0 | XL8: 0 | XM8: 0 | XN8: 0 | XO8: 0 | XP8: 0 | XQ8: 0 | XR8: 0 | XS8: 0 | XT8: 0 | XU8: 0 | XV8: 0 | XW8: 0 | XX8: 0 | XY8: 0 | XZ8: 0 | YA8: 0 | YB8: 0 | YC8: 0 | YD8: 0 | YE8: 0 | YF8: 0 | YG8: 0 | YH8: 0 | YI8: 0 | YJ8: 0 | YK8: 0 | YL8: 0 | YM8: 0 | YN8: 0 | YO8: 0 | YP8: 0 | YQ8: 0 | YR8: 0 | YS8: 0 | YT8: 0 | YU8: 0 | YV8: 0 | YW8: 0 | YX8: 0 | YY8: 0 | YZ8: 0 | ZA8: 0 | ZB8: 0 | ZC8: 0 | ZD8: 0 | ZE8: 0 | ZF8: 0 | ZG8: 0 | ZH8: 0 | ZI8: 0 | ZJ8: 0 | ZK8: 0 | ZL8: 0 | ZM8: 0 | ZN8: 0 | ZO8: 0 | ZP8: 0 | ZQ8: 0 | ZR8: 0 | ZS8: 0 | ZT8: 0 | ZU8: 0 | ZV8: 0 | ZW8: 0 | ZX8: 0 | ZY8: 0 | ZZ8: 0 | AAA8: 0 | AAB8: 0 | AAC8: 0 | AAD8: 0 | AAE8: 0 | AAF8: 0 | AAG8: 0 | AAH8: 0 | AAI8: 0 | AAJ8: 0 | AAK8: 0 | AAL8: 0 | AAM8: 0 | AAN8: 0 | AAO8: 0 | AAP8: 0 | AAQ8: 0 | AAR8: 0 | AAS8: 0 | AAT8: 0 | AAU8: 0 | AAV8: 0 | AAW8: 0 | AAX8: 0 | AAY8: 0 | AAZ8: 0 | ABA8: 0 | ABB8: 0 | ABC8: 0 | ABD8: 0 | ABE8: 0 | ABF8: 0 | ABG8: 0 | ABH8: 0 | ABI8: 0 | ABJ8: 0 | ABK8: 0 | ABL8: 0 | ABM8: 0 | ABN8: 0 | ABO8: 0 | ABP8: 0 | ABQ8: 0 | ABR8: 0 | ABS8: 0 | ABT8: 0 | ABU8: 0 | ABV8: 0 | ABW8: 0 | ABX8: 0 | ABY8: 0 | ABZ8: 0 | ACA8: 0 | ACB8: 0 | ACC8: 0 | ACD8: 0 | ACE8: 0 | ACF8: 0 | ACG8: 0 | ACH8: 0 | ACI8: 0 | ACJ8: 0 | ACK8: 0 | ACL8: 0 | ACM8: 0 | ACN8: 0 | ACO8: 0 | ACP8: 0 | ACQ8: 0 | ACR8: 0 | ACS8: 0 | ACT8: 0 | ACU8: 0 | ACV8: 0 | ACW8: 0 | ACX8: 0 | ACY8: 0 | ACZ8: 0 | ADA8: 0 | ADB8: 0 | ADC8: 0 | ADD8: 0 | ADE8: 0 | ADF8: 0 | ADG8: 0 | ADH8: 0 | ADI8: 0 | ADJ8: 0 | ADK8: 0 | ADL8: 0 | ADM8: 0 | ADN8: 0 | ADO8: 0 | ADP8: 0 | ADQ8: 0 | ADR8: 0 | ADS8: 0 | ADT8: 0 | ADU8: 0 | ADV8: 0 | ADW8: 0 | ADX8: 0 | ADY8: 0 | ADZ8: 0 | AEA8: 0 | AEB8: 0 | AEC8: 0 | AED8: 0 | AEE8: 0 | AEF8: 0 | AEG8: 0 | AEH8: 0 | AEI8: 0 | AEJ8: 0 | AEK8: 0 | AEL8: 0 | AEM8: 0 | AEN8: 0 | AEO8: 0 | AEP8: 0 | AEQ8: 0 | AER8: 0 | AES8: 0 | AET8: 0 | AEU8: 0 | AEV8: 0 | AEW8: 0 | AEX8: 0 | AEY8: 0 | AEZ8: 0 | AFA8: 0 | AFB8: 0 | AFC8: 0 | AFD8: 0 | AFE8: 0 | AFF8: 0 | AFG8: 0 | AFH8: 0 | AFI8: 0 | AFJ8: 0 | AFK8: 0 | AFL8: 0 | AFM8: 0 | AFN8: 0 | AFO8: 0 | AFP8: 0 | AFQ8: 0 | AFR8: 0 | AFS8: 0 | AFT8: 0 | AFU8: 0 | AFV8: 0 | AFW8: 0 | AFX8: 0 | AFY8: 0 | AFZ8: 0 | AGA8: 0 | AGB8: 0 | AGC8: 0 | AGD8: 0 | AGE8: 0 | AGF8: 0 | AGG8: 0 | AGH8: 0 | AGI8: 0 | AGJ8: 0 | AGK8: 0 | AGL8: 0 | AGM8: 0 | AGN8: 0 | AGO8: 0 | AGP8: 0 | AGQ8: 0 | AGR8: 0 | AGS8: 0 | AGT8: 0 | AGU8: 0 | AGV8: 0 | AGW8: 0 | AGX8: 0 | AGY8: 0 | AGZ8: 0 | AHA8: 0 | AHB8: 0 | AHC8: 0 | AHD8: 0 | AHE8: 0 | AHF8: 0 | AHG8: 0 | AHH8: 0 | AHI8: 0 | AHJ8: 0 | AHK8: 0 | AHL8: 0 | AHM8: 0 | AHN8: 0 | AHO8: 0 | AHP8: 0 | AHQ8: 0 | AHR8: 0 | AHS8: 0 | AHT8: 0 | AHU8: 0 | AHV8: 0 | AHW8: 0 | AHX8: 0 | AHY8: 0 | AHZ8: 0 | AIA8: 0 | AIB8: 0 | AIC8: 0 | AID8: 0 | AIE8: 0 | AIF8: 0 | AIG8: 0 | AIH8: 0 | AII8: 0 | AIJ8: 0 | AIK8: 0 | AIL8: 0 | AIM8: 0 | AIN8: 0 | AIO8: 0 | AIP8: 0 | AIQ8: 0 | AIR8: 0 | AIS8: 0 | AIT8: 0 | AIU8: 0 | AIV8: 0 | AIW8: 0 | AIX8: 0 | AIY8: 0 | AIZ8: 0 | AJA8: 0 | AJB8: 0 | AJC8: 0 | AJD8: 0 | AJE8: 0 | AJF8: 0 | AJG8: 0 | AJH8: 0 | AJI8: 0 | AJJ8: 0 | AJK8: 0 | AJL8: 0 | AJM8: 0 | AJN8: 0 | AJO8: 0 | AJP8: 0 | AJQ8: 0 | AJR8: 0 | AJS8: 0 | AJT8: 0 | AJU8: 0 | AJV8: 0 | AJW8: 0 | AJX8: 0 | AJY8: 0 | AJZ8: 0 | AKA8: 0 | AKB8: 0 | AKC8: 0 | AKD8: 0 | AKE8: 0 | AKF8: 0 | AKG8: 0 | AKH8: 0 | AKI8: 0 | AKJ8: 0 | AKK8: 0 | AKL8: 0 | AKM8: 0 | AKN8: 0 | AKO8: 0 | AKP8: 0 | AKQ8: 0 | AKR8: 0 | AKS8: 0 | AKT8: 0 | AKU8: 0 | AKV8: 0 | AKW8: 0 | AKX8: 0 | AKY8: 0 | AKZ8: 0 | ALA8: 0 | ALB8: 0 | ALC8: 0 | ALD8: 0 | ALE8: 0 | ALF8: 0 | ALG8: 0 | ALH8: 0 | ALI8: 0 | ALJ8: 0 | ALK8: 0 | ALL8: 0 | ALM8: 0 | ALN8: 0 | ALO8: 0 | ALP8: 0 | ALQ8: 0 | ALR8: 0 | ALS8: 0 | ALT8: 0 | ALU8: 0 | ALV8: 0 | ALW8: 0 | ALX8: 0 | ALY8: 0 | ALZ8: 0 | AMA8: 0 | AMB8: 0 | AMC8: 0 | AMD8: 0 | AME8: 0 | AMF8: 0 | AMG8: 0 | AMH8: 0 | AMI8: 0 | AMJ8: 0 | AMK8: 0 | AML8: 0 | AMM8: 0 | AMN8: 0 | AMO8: 0 | AMP8: 0 | AMQ8: 0 | AMR8: 0 | AMS8: 0 | AMT8: 0 | AMU8: 0 | AMV8: 0 | AMW8: 0 | AMX8: 0 | AMY8: 0 | AMZ8: 0 | ANA8: 0 | ANB8: 0 | ANC8: 0 | AND8: 0 | ANE8: 0 | ANF8: 0 | ANG8: 0 | ANH8: 0 | ANI8: 0 | ANJ8: 0 | ANK8: 0 | ANL8: 0 | ANM8: 0 | ANN8: 0 | ANO8: 0 | ANP8: 0 | ANQ8: 0 | ANR8: 0 | ANS8: 0 | ANT8: 0 | ANU8: 0 | ANV8: 0 | ANW8: 0 | ANX8: 0 | ANY8: 0 | ANZ8: 0 | AOA8: 0 | AOB8: 0 | AOC8: 0 | AOD8: 0 | AOE8: 0 | AOF8: 0 | AOG8: 0 | AOH8: 0 | AOI8: 0 | AOJ8: 0 | AOK8: 0 | AOL8: 0 | AOM8: 0 | AON8: 0 | AOO8: 0 | AOP8: 0 | AOQ8: 0 | AOR8: 0 | AOS8: 0 | AOT8: 0 | AOU8: 0 | AOV8: 0 | AOW8: 0 | AOX8: 0 | AOY8: 0 | AOZ8: 0 | APA8: 0 | APB8: 0 | APC8: 0 | APD8: 0 | APE8: 0 | APF8: 0 | APG8: 0 | APH8: 0 | API8: 0 | APJ8: 0 | APK8: 0 | APL8: 0 | APM8: 0 | APN8: 0 | APO8: 0 | APP8: 0 | APQ8: 0 | APR8: 0 | APS8: 0 | APT8: 0 | APU8: 0 | APV8: 0 | APW8: 0 | APX8: 0 | APY8: 0 | APZ8: 0 | AQA8: 0 | AQB8: 0 | AQC8: 0 | AQD8: 0 | AQE8: 0 | AQF8: 0 | AQG8: 0 | AQH8: 0 | AQI8: 0 | AQJ8: 0 | AQK8: 0 | AQL8: 0 | AQM8: 0 | AQN8: 0 | AQO8: 0 | AQP8: 0 | AQQ8: 0 | AQR8: 0 | AQS8: 0 | AQT8: 0 | AQU8: 0 | AQV8: 0 | AQW8: 0 | AQX8: 0 | AQY8: 0 | AQZ8: 0 | ARA8: 0 | ARB8: 0 | ARC8: 0 | ARD8: 0 | ARE8: 0 | ARF8: 0 | ARG8: 0 | ARH8: 0 | ARI8: 0 | ARJ8: 0 | ARK8: 0 | ARL8: 0 | ARM8: 0 | ARN8: 0 | ARO8: 0 | ARP8: 0 | ARQ8: 0 | ARR8: 0 | ARS8: 0 | ART8: 0 | ARU8: 0 | ARV8: 0 | ARW8: 0 | ARX8: 0 | ARY8: 0 | ARZ8: 0 | ASA8: 0 | ASB8: 0 | ASC8: 0 | ASD8: 0 | ASE8: 0 | ASF8: 0 | ASG8: 0 | ASH8: 0 | ASI8: 0 | ASJ8: 0 | ASK8: 0 | ASL8: 0 | ASM8: 0 | ASN8: 0 | ASO8: 0 | ASP8: 0 | ASQ8: 0 | ASR8: 0 | ASS8: 0 | AST8: 0 | ASU8: 0 | ASV8: 0 | ASW8: 0 | ASX8: 0 | ASY8: 0 | ASZ8: 0 | ATA8: 0 | ATB8: 0 | ATC8: 0 | ATD8: 0 | ATE8: 0 | ATF8: 0 | ATG8: 0 | ATH8: 0 | ATI8: 0 | ATJ8: 0 | ATK8: 0 | ATL8: 0 | ATM8: 0 | ATN8: 0 | ATO8: 0 | ATP8: 0 | ATQ8: 0 | ATR8: 0 | ATS8: 0 | ATT8: 0 | ATU8: 0 | ATV8: 0 | ATW8: 0 | ATX8: 0 | ATY8: 0 | ATZ8: 0 | AUA8: 0 | AUB8: 0 | AUC8: 0 | AUD8: 0 | AUE8: 0 | AUF8: 0 | AUG8: 0 | AUH8: 0 | AUI8: 0 | AUJ8: 0 | AUK8: 0 | AUL8: 0 | AUM8: 0 | AUN8: 0 | AUO8: 0 | AUP8: 0 | AUQ8: 0 | AUR8: 0 | AUS8: 0 | AUT8: 0 | AUU8: 0 | AUV8: 0 | AUW8: 0 | AUX8: 0 | AUY8: 0 | AUZ8: 0 | AVA8: 0 | AVB8: 0 | AVC8: 0 | AVD8: 0 | AVE8: 0 | AVF8: 0 | AVG8: 0 | AVH8: 0 | AVI8: 0 | AVJ8: 0 | AVK8: 0 | AVL8: 0 | AVM8: 0 | AVN8: 0 | AVO8: 0 | AVP8: 0 | AVQ8: 0 | AVR8: 0 | AVS8: 0 | AVT8: 0 | AVU8: 0 | AVV8: 0 | AVW8: 0 | AVX8: 0 | AVY8: 0 | AVZ8: 0 | AWA8: 0 | AWB8: 0 | AWC8: 0 | AWD8: 0 | AWE8: 0 | AWF8: 0 | AWG8: 0 | AWH8: 0 | AWI8: 0 | AWJ8: 0 | AWK8: 0 | AWL8: 0 | AWM8: 0 | AWN8: 0 | AWO8: 0 | AWP8: 0 | AWQ8: 0 | AWR8: 0 | AWS8: 0 | AWT8: 0 | AWU8: 0 | AWV8: 0 | AWW8: 0 | AWX8: 0 | AWY8: 0 | AWZ8: 0 | AXA8: 0 | AXB8: 0 | AXC8: 0 | AXD8: 0 | AXE8: 0 | AXF8: 0 | AXG8: 0 | AXH8: 0 | AXI8: 0 | AXJ8: 0 | AXK8: 0 | AXL8: 0 | AXM8: 0 | AXN8: 0 | AXO8: 0 | AXP8: 0 | AXQ8: 0 | AXR8: 0 | AXS8: 0 | AXT8: 0 | AXU8: 0 | AXV8: 0 | AXW8: 0 | AXX8: 0 | AXY8: 0 | AXZ8: 0 | AYA8: 0 | AYB8: 0 | AYC8: 0 | AYD8: 0 | AYE8: 0 | AYF8: 0 | AYG8: 0 | AYH8: 0 | AYI8: 0 | AYJ8: 0 | AYK8: 0 | AYL8: 0 | AYM8: 0 | AYN8: 0 | AYO8: 0 | AYP8: 0 | AYQ8: 0 | AYR8: 0 | AYS8: 0 | AYT8: 0 | AYU8: 0 | AYV8: 0 | AYW8: 0 | AYX8: 0 | AYY8: 0 | AYZ8: 0 | AZA8: 0 | AZB8: 0 | AZC8: 0 | AZD8: 0 | AZE8: 0 | AZF8: 0 | AZG8: 0 | AZH8: 0 | AZI8: 0 | AZJ8: 0 | AZK8: 0 | AZL8: 0 | AZM8: 0 | AZN8: 0 | AZO8: 0 | AZP8: 0 | AZQ8: 0 | AZR8: 0 | AZS8: 0 | AZT8: 0 | AZU8: 0 | AZV8: 0 | AZW8: 0 | AZX8: 0 | AZY8: 0 | AZZ8: 0 | BAA8: 0 | BAB8: 0 | BAC8: 0 | BAD8: 0 | BAE8: 0 | BAF8: 0 | BAG8: 0 | BAH8: 0 | BAI8: 0 | BAJ8: 0 | BAK8: 0 | BAL8: 0 | BAM8: 0 | BAN8: 0 | BAO8: 0 | BAP8: 0 | BAQ8: 0 | BAR8: 0 | BAS8: 0 | BAT8: 0 | BAU8: 0 | BAV8: 0 | BAW8: 0 | BAX8: 0 | BAY8: 0 | BAZ8: 0 | BBA8: 0 | BBB8: 0 | BBC8: 0 | BBD8: 0 | BBE8: 0 | BBF8: 0 | BBG8: 0 | BBH8: 0 | BBI8: 0 | BBJ8: 0 | BBK8: 0 | BBL8: 0 | BBM8: 0 | BBN8: 0 | BBO8: 0 | BBP8: 0 | BBQ8: 0 | BBR8: 0 | BBS8: 0 | BBT8: 0 | BBU8: 0 | BBV8: 0 | BBW8: 0 | BBX8: 0 | BBY8: 0 | BBZ8: 0 | BCA8: 0 | BCB8: 0 | BCC8: 0 | BCD8: 0 | BCE8: 0 | BCF8: 0 | BCG8: 0 | BCH8: 0 | BCI8: 0 | BCJ8: 0 | BCK8: 0 | BCL8: 0 | BCM8: 0 | BCN8: 0 | BCO8: 0 | BCP8: 0 | BCQ8: 0 | BCR8: 0 | BCS8: 0 | BCT8: 0 | BCU8: 0 | BCV8: 0 | BCW8: 0 | BCX8: 0 | BCY8: 0 | BCZ8: 0 | BDA8: 0 | BDB8: 0 | BDC8: 0 | BDD8: 0 | BDE8: 0 | BDF8: 0 | BDG8: 0 | BDH8: 0 | BDI8: 0 | BDJ8: 0 | BDK8: 0 | BDL8: 0 | BDM8: 0 | BDN8: 0 | BDO8: 0 | BDP8: 0 | BDQ8: 0 | BDR8: 0 | BDS8: 0 | BDT8: 0 | BDU8: 0 | BDV8: 0 | BDW8: 0 | BDX8: 0 | BDY8: 0 | BDZ8: 0 | BEA8: 0 | BEB8: 0 | BEC8: 0 | BED8: 0 | BEE8: 0 | BEF8: 0 | BEG8: 0 | BEH8: 0 | BEI8: 0 | BEJ8: 0 | BEK8: 0 | BEL8: 0 | BEM8: 0 | BEN8: 0 | BEO8: 0 | BEP8: 0 | BEQ8: 0 | BER8: 0 | BES8: 0 | BET8: 0 | BEU8: 0 | BEV8: 0 | BEW8: 0 | BEX8: 0 | BEY8: 0 | BEZ8: 0 | BFA8: 0 | BFB8: 0 | BFC8: 0 | BFD8: 0 | BFE8: 0 | BFF8: 0 | BFG8: 0 | BFH8: 0 | BFI8: 0 | BFJ8: 0 | BFK8: 0 | BFL8: 0 | BFM8: 0 | BFN8: 0 | BFO8: 0 | BFP8: 0 | BFQ8: 0 | BFR8: 0 | BFS8: 0 | BFT8: 0 | BFU8: 0 | BFV8: 0 | BFW8: 0 | BFX8: 0 | BFY8: 0 | BFZ8: 0 | BGA8: 0 | BGB8: 0 | BGC8: 0 | BGD8: 0 | BGE8: 0 | BGF8: 0 | BGG8: 0 | BGH8: 0 | BGI8: 0 | BGJ8: 0 | BGK8: 0 | BGL8: 0 | BGM8: 0 | BGN8: 0 | BGO8: 0 | BGP8: 0 | BGQ8: 0 | BGR8: 0 | BGS8: 0 | BGT8: 0 | BGU8: 0 | BGV8: 0 | BGW8: 0 | BGX8: 0 | BGY8: 0 | BGZ8: 0 | BHA8: 0 | BHB8: 0 | BHC8: 0 | BHD8: 0 | BHE8: 0 | BHF8: 0 | BHG8: 0 | BHH8: 0 | BHI8: 0 | BHJ8: 0 | BHK8: 0 | BHL8: 0 | BHM8: 0 | BHN8: 0 | BHO8: 0 | BHP8: 0 | BHQ8: 0 | BHR8: 0 | BHS8: 0 | BHT8: 0 | BHU8: 0 | BHV8: 0 | BHW8: 0 | BHX8: 0 | BHY8: 0 | BHZ8: 0 | BIA8: 0 | BIB8: 0 | BIC8: 0 | BID8: 0 | BIE8: 0 | BIF8: 0 | BIG8: 0 | BIH8: 0 | BII8: 0 | BIJ8: 0 | BIK8: 0 | BIL8: 0 | BIM8: 0 | BIN8: 0 | BIO8: 0 | BIP8: 0 | BIQ8: 0 | BIR8: 0 | BIS8: 0 | BIT8: 0 | BIU8: 0 | BIV8: 0 | BIW8: 0 | BIX8: 0 | BIY8: 0 | BIZ8: 0 | BJA8: 0 | BJB8: 0 | BJC8: 0 | BJD8: 0 | BJE8: 0 | BJF8: 0 | BJG8: 0 | BJH8: 0 | BJI8: 0 | BJJ8: 0 | BJK8: 0 | BJL8: 0 | BJM8: 0 | BJN8: 0 | BJO8: 0 | BJP8: 0 | BJQ8: 0 | BJR8: 0 | BJS8: 0 | BJT8: 0 | BJU8: 0 | BJV8: 0 | BJW8: 0 | BJX8: 0 | BJY8: 0 | BJZ8: 0 | BKA8: 0 | BKB8: 0 | BKC8: 0 | BKD8: 0 | BKE8: 0 | BKF8: 0 | BKG8: 0 | BKH8: 0 | BKI8: 0 | BKJ8: 0 | BKK8: 0 | BKL8: 0 | BKM8: 0 | BKN8: 0 | BKO8: 0 | BKP8: 0 | BKQ8: 0 | BKR8: 0 | BKS8: 0 | BKT8: 0 | BKU8: 0 | BKV8: 0 | BKW8: 0 | BKX8: 0 | BKY8: 0 | BKZ8: 0 | BLA8: 0 | BLB8: 0 | BLC8: 0 | BLD8: 0 | BLE8: 0 | BLF8: 0 | BLG8: 0 | BLH8: 0 | BLI8: 0 | BLJ8: 0 | BLK8: 0 | BLL8: 0 | BLM8: 0 | BLN8: 0 | BLO8: 0 | BLP8: 0 | BLQ8: 0 | BLR8: 0 | BLS8: 0 | BLT8: 0 | BLU8: 0 | BLV8: 0 | BLW8: 0 | BLX8: 0 | BLY8: 0 | BLZ8: 0 | BMA8: 0 | BMB8: 0 | BMC8: 0 | BMD8: 0 | BME8: 0 | BMF8: 0 | BMG8: 0 | BMH8: 0 | BMI8: 0 | BMJ8: 0 | BMK8: 0
B9: 05:00:00 | C9: 0 | D9: 0.008 | E9: 0.007 | F9: 0.026 | G9: 0 | H9: 0 | K9: 6 | L9: 5.555555556 | M9: 0 | N9: 0 | P9: 0 | T9: 6 | U9: =TRANSPOSE('Average power consumption'!$C$3:$C$122)*L9 -> 0.2666666667 | V9: 1.644444444 | W9: 10.09444444 | X9: 11.33888889 | Y9: 11.40555556 | Z9: 11.33333333 | AA9: 10.87777778 | AB9: 10.68888889 | AC9: 10.30555556 | AD9: 9.605555556 | AE9: 8.844444444 | AF9: 8.111111111 | AG9: 7.566666667 | AH9: 6.855555556 | AI9: 5.944444444 | AJ9: 5.283333333 | AK9: 4.922222222 | AL9: 4.672222222 | AM9: 4.444444444 | AN9: 4.027777778 | AO9: 4.022222222 | AP9: 3.766666667 | AQ9: 3.483333333 | AR9: 3.255555556 | AS9: 3.255555556 | AT9: 3.211111111 | AU9: 3.016666667 | AV9: 2.888888889 | AW9: 2.877777778 | AX9: 2.638888889 | AY9: 2.294444444 | AZ9: 2.211111111 | BA9: 2.022222222 | BB9: 1.783333333 | BC9: 1.594444444 | BD9: 1.488888889 | BE9: 1.35 | BF9: 1.261111111 | BG9: 1.127777778 | BH9: 0.9944444444 | BI9: 0.9 | BJ9: 0.8888888889 | BK9: 0.8888888889 | BL9: 0.8888888889 | BM9: 0.8611111111 | BN9: 0.9055555556 | BO9: 0.8777777778 | BP9: 0.8111111111 | BQ9: 0.8111111111 | BR9: 0.7166666667 | BS9: 0.7166666667 | BT9: 0.7777777778 | BU9: 0.7166666667 | BV9: 0.6611111111 | BW9: 0.6888888889 | BX9: 0.75 | BY9: 0.7722222222 | BZ9: 0.7555555556 | CA9: 0.7444444444 | CB9: 0.8055555556 | CC9: 0.7833333333 | CD9: 0.8277777778 | CE9: 0.8333333333 | CF9: 0.7944444444 | CG9: 0.8055555556 | CH9: 0.8166666667 | CI9: 0.8166666667 | CJ9: 0.7388888889 | CK9: 0.6666666667 | CL9: 0.6944444444 | CM9: 0.7722222222 | CN9: 0.7444444444 | CO9: 0.7444444444 | CP9: 0.7222222222 | CQ9: 0.7833333333 | CR9: 0.8 | CS9: 0.7722222222 | CT9: 0.7333333333 | CU9: 0.7722222222 | CV9: 0.7277777778 | CW9: 0.6944444444 | CX9: 0.8277777778 | CY9: 0.8888888889 | CZ9: 0.8444444444 | DA9: 0.8166666667 | DB9: 0.7166666667 | DC9: 0.7777777778 | DD9: 0.6777777778 | DE9: 0.6722222222 | DF9: 0.6888888889 | DG9: 0.6166666667 | DH9: 0.6166666667 | DI9: 0.6611111111 | DJ9: 0.6944444444 | DK9: 0.8166666667 | DL9: 0.8777777778 | DM9: 0.8444444444 | DN9: 0.8722222222 | DO9: 0.8833333333 | DP9: 0.85 | DQ9: 0.8611111111 | DR9: 0.8333333333 | DS9: 0.8166666667 | DT9: 0.8 | DU9: 0.8333333333 | DV9: 0.8333333333 | DW9: 0.8444444444 | DX9: 0.8722222222 | DY9: 0.8833333333 | DZ9: 0.85 | EA9: 0.8611111111 | EB9: 0.8333333333 | EC9: 0.8166666667 | ED9: 0.8 | EE9: 0.8333333333 | EF9: 0.8333333333 | EG9: 0.8166666667 | EH9: 0.8 | EI9: 0.8333333333 | EJ9: 0.8333333333 | EM9: 0 | EN9: 0 | EO9: 0 | EP9: 0 | EQ9: 0 | ER9: 0.2666666667 | ES9: 1.644444444 | ET9: 10.09444444 | EU9: 11.33888889 | EV9: 11.40555556 | EW9: 11.33333333 | EX9: 10.87777778 | EY9: 10.68888889 | EZ9: 10.30555556 | FA9: 9.605555556 | FB9: 8.844444444 | FC9: 8.111111111 | FD9: 7.566666667 | FE9: 6.855555556 | FF9: 5.944444444 | FG9: 5.283333333 | FH9: 4.922222222 | FI9: 4.672222222 | FJ9: 4.444444444 | FK9: 4.027777778 | FL9: 4.022222222 | FM9: 3.766666667 | FN9: 3.483333333 | FO9: 3.255555556 | FP9: 3.255555556 | FQ9: 3.211111111 | FR9: 3.016666667 | FS9: 2.888888889 | FT9: 2.877777778 | FU9: 2.638888889 | FV9: 2.294444444 | FW9: 2.211111111 | FX9: 2.022222222 | FY9: 1.783333333 | FZ9: 1.594444444 | GA9: 1.488888889 | GB9: 1.35 | GC9: 1.261111111 | GD9: 1.127777778 | GE9: 0.9944444444 | GF9: 0.9 | GG9: 0.8888888889 | GH9: 0.8888888889 | GI9: 0.8888888889 | GJ9: 0.8611111111 | GK9: 0.9055555556 | GL9: 0.8777777778 | GM9: 0.8111111111 | GN9: 0.8111111111 | GO9: 0.7166666667 | GP9: 0.7166666667 | GQ9: 0.7777777778 | GR9: 0.7166666667 | GS9: 0.6611111111 | GT9: 0.6888888889 | GU9: 0.75 | GV9: 0.7722222222 | GW9: 0.7555555556 | GX9: 0.7444444444 | GY9: 0.8055555556 | GZ9: 0.7833333333 | HA9: 0.8277777778 | HB9: 0.8333333333 | HC9: 0.7944444444 | HD9: 0.8055555556 | HE9: 0.8166666667 | HF9: 0.8166666667 | HG9: 0.7388888889 | HH9: 0.6666666667 | HI9: 0.6944444444 | HJ9: 0.7722222222 | HK9: 0.7444444444 | HL9: 0.7444444444 | HM9: 0.7222222222 | HN9: 0.7833333333 | HO9: 0.8 | HP9: 0.7722222222 | HQ9: 0.7333333333 | HR9: 0.7722222222 | HS9: 0.7277777778 | HT9: 0.6944444444 | HU9: 0.8277777778 | HV9: 0.8888888889 | HW9: 0.8444444444 | HX9: 0.8166666667 | HY9: 0.7166666667 | HZ9: 0.7777777778 | IA9: 0.6777777778 | IB9: 0.6722222222 | IC9: 0.6888888889 | ID9: 0.6166666667 | IE9: 0.6166666667 | IF9: 0.6611111111 | IG9: 0.6944444444 | IH9: 0.8166666667 | II9: 0.8777777778 | IJ9: 0.8444444444 | IK9: 0.8722222222 | IL9: 0.8833333333 | IM9: 0.85 | IN9: 0.8611111111 | IO9: 0.8333333333 | IP9: 0.8166666667 | IQ9: 0.8 | IR9: 0.8333333333 | IS9: 0.8333333333 | IT9: 0.8444444444 | IU9: 0.8722222222 | IV9: 0.8833333333 | IW9: 0.85 | IX9: 0.8611111111 | IY9: 0.8333333333 | IZ9: 0.8166666667 | JA9: 0.8 | JB9: 0.8333333333 | JC9: 0.8333333333 | JD9: 0.8166666667 | JE9: 0.8 | JF9: 0.8333333333 | JG9: 0.8333333333 | JH9: 0 | JI9: 0 | JJ9: 0 | JK9: 0 | JL9: 0 | JM9: 0 | JN9: 0 | JO9: 0 | JP9: 0 | JQ9: 0 | JR9: 0 | JS9: 0 | JT9: 0 | JU9: 0 | JV9: 0 | JW9: 0 | JX9: 0 | JY9: 0 | JZ9: 0 | KA9: 0 | KB9: 0 | KC9: 0 | KD9: 0 | KE9: 0 | KF9: 0 | KG9: 0 | KH9: 0 | KI9: 0 | KJ9: 0 | KK9: 0 | KL9: 0 | KM9: 0 | KN9: 0 | KO9: 0 | KP9: 0 | KQ9: 0 | KR9: 0 | KS9: 0 | KT9: 0 | KU9: 0 | KV9: 0 | KW9: 0 | KX9: 0 | KY9: 0 | KZ9: 0 | LA9: 0 | LB9: 0 | LC9: 0 | LD9: 0 | LE9: 0 | LF9: 0 | LG9: 0 | LH9: 0 | LI9: 0 | LJ9: 0 | LK9: 0 | LL9: 0 | LM9: 0 | LN9: 0 | LO9: 0 | LP9: 0 | LQ9: 0 | LR9: 0 | LS9: 0 | LT9: 0 | LU9: 0 | LV9: 0 | LW9: 0 | LX9: 0 | LY9: 0 | LZ9: 0 | MA9: 0 | MB9: 0 | MC9: 0 | MD9: 0 | ME9: 0 | MF9: 0 | MG9: 0 | MH9: 0 | MI9: 0 | MJ9: 0 | MK9: 0 | ML9: 0 | MM9: 0 | MN9: 0 | MO9: 0 | MP9: 0 | MQ9: 0 | MR9: 0 | MS9: 0 | MT9: 0 | MU9: 0 | MV9: 0 | MW9: 0 | MX9: 0 | MY9: 0 | MZ9: 0 | NA9: 0 | NB9: 0 | NC9: 0 | ND9: 0 | NE9: 0 | NF9: 0 | NG9: 0 | NH9: 0 | NI9: 0 | NJ9: 0 | NK9: 0 | NL9: 0 | NM9: 0 | NN9: 0 | NO9: 0 | NP9: 0 | NQ9: 0 | NR9: 0 | NS9: 0 | NT9: 0 | NU9: 0 | NV9: 0 | NW9: 0 | NX9: 0 | NY9: 0 | NZ9: 0 | OA9: 0 | OB9: 0 | OC9: 0 | OD9: 0 | OE9: 0 | OF9: 0 | OG9: 0 | OH9: 0 | OI9: 0 | OJ9: 0 | OK9: 0 | OL9: 0 | OM9: 0 | ON9: 0 | OO9: 0 | OP9: 0 | OQ9: 0 | OR9: 0 | OS9: 0 | OT9: 0 | OU9: 0 | OV9: 0 | OW9: 0 | OX9: 0 | OY9: 0 | OZ9: 0 | PA9: 0 | PB9: 0 | PC9: 0 | PD9: 0 | PE9: 0 | PF9: 0 | PG9: 0 | PH9: 0 | PI9: 0 | PJ9: 0 | PK9: 0 | PL9: 0 | PM9: 0 | PN9: 0 | PO9: 0 | PP9: 0 | PQ9: 0 | PR9: 0 | PS9: 0 | PT9: 0 | PU9: 0 | PV9: 0 | PW9: 0 | PX9: 0 | PY9: 0 | PZ9: 0 | QA9: 0 | QB9: 0 | QC9: 0 | QD9: 0 | QE9: 0 | QF9: 0 | QG9: 0 | QH9: 0 | QI9: 0 | QJ9: 0 | QK9: 0 | QL9: 0 | QM9: 0 | QN9: 0 | QO9: 0 | QP9: 0 | QQ9: 0 | QR9: 0 | QS9: 0 | QT9: 0 | QU9: 0 | QV9: 0 | QW9: 0 | QX9: 0 | QY9: 0 | QZ9: 0 | RA9: 0 | RB9: 0 | RC9: 0 | RD9: 0 | RE9: 0 | RF9: 0 | RG9: 0 | RH9: 0 | RI9: 0 | RJ9: 0 | RK9: 0 | RL9: 0 | RM9: 0 | RN9: 0 | RO9: 0 | RP9: 0 | RQ9: 0 | RR9: 0 | RS9: 0 | RT9: 0 | RU9: 0 | RV9: 0 | RW9: 0 | RX9: 0 | RY9: 0 | RZ9: 0 | SA9: 0 | SB9: 0 | SC9: 0 | SD9: 0 | SE9: 0 | SF9: 0 | SG9: 0 | SH9: 0 | SI9: 0 | SJ9: 0 | SK9: 0 | SL9: 0 | SM9: 0 | SN9: 0 | SO9: 0 | SP9: 0 | SQ9: 0 | SR9: 0 | SS9: 0 | ST9: 0 | SU9: 0 | SV9: 0 | SW9: 0 | SX9: 0 | SY9: 0 | SZ9: 0 | TA9: 0 | TB9: 0 | TC9: 0 | TD9: 0 | TE9: 0 | TF9: 0 | TG9: 0 | TH9: 0 | TI9: 0 | TJ9: 0 | TK9: 0 | TL9: 0 | TM9: 0 | TN9: 0 | TO9: 0 | TP9: 0 | TQ9: 0 | TR9: 0 | TS9: 0 | TT9: 0 | TU9: 0 | TV9: 0 | TW9: 0 | TX9: 0 | TY9: 0 | TZ9: 0 | UA9: 0 | UB9: 0 | UC9: 0 | UD9: 0 | UE9: 0 | UF9: 0 | UG9: 0 | UH9: 0 | UI9: 0 | UJ9: 0 | UK9: 0 | UL9: 0 | UM9: 0 | UN9: 0 | UO9: 0 | UP9: 0 | UQ9: 0 | UR9: 0 | US9: 0 | UT9: 0 | UU9: 0 | UV9: 0 | UW9: 0 | UX9: 0 | UY9: 0 | UZ9: 0 | VA9: 0 | VB9: 0 | VC9: 0 | VD9: 0 | VE9: 0 | VF9: 0 | VG9: 0 | VH9: 0 | VI9: 0 | VJ9: 0 | VK9: 0 | VL9: 0 | VM9: 0 | VN9: 0 | VO9: 0 | VP9: 0 | VQ9: 0 | VR9: 0 | VS9: 0 | VT9: 0 | VU9: 0 | VV9: 0 | VW9: 0 | VX9: 0 | VY9: 0 | VZ9: 0 | WA9: 0 | WB9: 0 | WC9: 0 | WD9: 0 | WE9: 0 | WF9: 0 | WG9: 0 | WH9: 0 | WI9: 0 | WJ9: 0 | WK9: 0 | WL9: 0 | WM9: 0 | WN9: 0 | WO9: 0 | WP9: 0 | WQ9: 0 | WR9: 0 | WS9: 0 | WT9: 0 | WU9: 0 | WV9: 0 | WW9: 0 | WX9: 0 | WY9: 0 | WZ9: 0 | XA9: 0 | XB9: 0 | XC9: 0 | XD9: 0 | XE9: 0 | XF9: 0 | XG9: 0 | XH9: 0 | XI9: 0 | XJ9: 0 | XK9: 0 | XL9: 0 | XM9: 0 | XN9: 0 | XO9: 0 | XP9: 0 | XQ9: 0 | XR9: 0 | XS9: 0 | XT9: 0 | XU9: 0 | XV9: 0 | XW9: 0 | XX9: 0 | XY9: 0 | XZ9: 0 | YA9: 0 | YB9: 0 | YC9: 0 | YD9: 0 | YE9: 0 | YF9: 0 | YG9: 0 | YH9: 0 | YI9: 0 | YJ9: 0 | YK9: 0 | YL9: 0 | YM9: 0 | YN9: 0 | YO9: 0 | YP9: 0 | YQ9: 0 | YR9: 0 | YS9: 0 | YT9: 0 | YU9: 0 | YV9: 0 | YW9: 0 | YX9: 0 | YY9: 0 | YZ9: 0 | ZA9: 0 | ZB9: 0 | ZC9: 0 | ZD9: 0 | ZE9: 0 | ZF9: 0 | ZG9: 0 | ZH9: 0 | ZI9: 0 | ZJ9: 0 | ZK9: 0 | ZL9: 0 | ZM9: 0 | ZN9: 0 | ZO9: 0 | ZP9: 0 | ZQ9: 0 | ZR9: 0 | ZS9: 0 | ZT9: 0 | ZU9: 0 | ZV9: 0 | ZW9: 0 | ZX9: 0 | ZY9: 0 | ZZ9: 0 | AAA9: 0 | AAB9: 0 | AAC9: 0 | AAD9: 0 | AAE9: 0 | AAF9: 0 | AAG9: 0 | AAH9: 0 | AAI9: 0 | AAJ9: 0 | AAK9: 0 | AAL9: 0 | AAM9: 0 | AAN9: 0 | AAO9: 0 | AAP9: 0 | AAQ9: 0 | AAR9: 0 | AAS9: 0 | AAT9: 0 | AAU9: 0 | AAV9: 0 | AAW9: 0 | AAX9: 0 | AAY9: 0 | AAZ9: 0 | ABA9: 0 | ABB9: 0 | ABC9: 0 | ABD9: 0 | ABE9: 0 | ABF9: 0 | ABG9: 0 | ABH9: 0 | ABI9: 0 | ABJ9: 0 | ABK9: 0 | ABL9: 0 | ABM9: 0 | ABN9: 0 | ABO9: 0 | ABP9: 0 | ABQ9: 0 | ABR9: 0 | ABS9: 0 | ABT9: 0 | ABU9: 0 | ABV9: 0 | ABW9: 0 | ABX9: 0 | ABY9: 0 | ABZ9: 0 | ACA9: 0 | ACB9: 0 | ACC9: 0 | ACD9: 0 | ACE9: 0 | ACF9: 0 | ACG9: 0 | ACH9: 0 | ACI9: 0 | ACJ9: 0 | ACK9: 0 | ACL9: 0 | ACM9: 0 | ACN9: 0 | ACO9: 0 | ACP9: 0 | ACQ9: 0 | ACR9: 0 | ACS9: 0 | ACT9: 0 | ACU9: 0 | ACV9: 0 | ACW9: 0 | ACX9: 0 | ACY9: 0 | ACZ9: 0 | ADA9: 0 | ADB9: 0 | ADC9: 0 | ADD9: 0 | ADE9: 0 | ADF9: 0 | ADG9: 0 | ADH9: 0 | ADI9: 0 | ADJ9: 0 | ADK9: 0 | ADL9: 0 | ADM9: 0 | ADN9: 0 | ADO9: 0 | ADP9: 0 | ADQ9: 0 | ADR9: 0 | ADS9: 0 | ADT9: 0 | ADU9: 0 | ADV9: 0 | ADW9: 0 | ADX9: 0 | ADY9: 0 | ADZ9: 0 | AEA9: 0 | AEB9: 0 | AEC9: 0 | AED9: 0 | AEE9: 0 | AEF9: 0 | AEG9: 0 | AEH9: 0 | AEI9: 0 | AEJ9: 0 | AEK9: 0 | AEL9: 0 | AEM9: 0 | AEN9: 0 | AEO9: 0 | AEP9: 0 | AEQ9: 0 | AER9: 0 | AES9: 0 | AET9: 0 | AEU9: 0 | AEV9: 0 | AEW9: 0 | AEX9: 0 | AEY9: 0 | AEZ9: 0 | AFA9: 0 | AFB9: 0 | AFC9: 0 | AFD9: 0 | AFE9: 0 | AFF9: 0 | AFG9: 0 | AFH9: 0 | AFI9: 0 | AFJ9: 0 | AFK9: 0 | AFL9: 0 | AFM9: 0 | AFN9: 0 | AFO9: 0 | AFP9: 0 | AFQ9: 0 | AFR9: 0 | AFS9: 0 | AFT9: 0 | AFU9: 0 | AFV9: 0 | AFW9: 0 | AFX9: 0 | AFY9: 0 | AFZ9: 0 | AGA9: 0 | AGB9: 0 | AGC9: 0 | AGD9: 0 | AGE9: 0 | AGF9: 0 | AGG9: 0 | AGH9: 0 | AGI9: 0 | AGJ9: 0 | AGK9: 0 | AGL9: 0 | AGM9: 0 | AGN9: 0 | AGO9: 0 | AGP9: 0 | AGQ9: 0 | AGR9: 0 | AGS9: 0 | AGT9: 0 | AGU9: 0 | AGV9: 0 | AGW9: 0 | AGX9: 0 | AGY9: 0 | AGZ9: 0 | AHA9: 0 | AHB9: 0 | AHC9: 0 | AHD9: 0 | AHE9: 0 | AHF9: 0 | AHG9: 0 | AHH9: 0 | AHI9: 0 | AHJ9: 0 | AHK9: 0 | AHL9: 0 | AHM9: 0 | AHN9: 0 | AHO9: 0 | AHP9: 0 | AHQ9: 0 | AHR9: 0 | AHS9: 0 | AHT9: 0 | AHU9: 0 | AHV9: 0 | AHW9: 0 | AHX9: 0 | AHY9: 0 | AHZ9: 0 | AIA9: 0 | AIB9: 0 | AIC9: 0 | AID9: 0 | AIE9: 0 | AIF9: 0 | AIG9: 0 | AIH9: 0 | AII9: 0 | AIJ9: 0 | AIK9: 0 | AIL9: 0 | AIM9: 0 | AIN9: 0 | AIO9: 0 | AIP9: 0 | AIQ9: 0 | AIR9: 0 | AIS9: 0 | AIT9: 0 | AIU9: 0 | AIV9: 0 | AIW9: 0 | AIX9: 0 | AIY9: 0 | AIZ9: 0 | AJA9: 0 | AJB9: 0 | AJC9: 0 | AJD9: 0 | AJE9: 0 | AJF9: 0 | AJG9: 0 | AJH9: 0 | AJI9: 0 | AJJ9: 0 | AJK9: 0 | AJL9: 0 | AJM9: 0 | AJN9: 0 | AJO9: 0 | AJP9: 0 | AJQ9: 0 | AJR9: 0 | AJS9: 0 | AJT9: 0 | AJU9: 0 | AJV9: 0 | AJW9: 0 | AJX9: 0 | AJY9: 0 | AJZ9: 0 | AKA9: 0 | AKB9: 0 | AKC9: 0 | AKD9: 0 | AKE9: 0 | AKF9: 0 | AKG9: 0 | AKH9: 0 | AKI9: 0 | AKJ9: 0 | AKK9: 0 | AKL9: 0 | AKM9: 0 | AKN9: 0 | AKO9: 0 | AKP9: 0 | AKQ9: 0 | AKR9: 0 | AKS9: 0 | AKT9: 0 | AKU9: 0 | AKV9: 0 | AKW9: 0 | AKX9: 0 | AKY9: 0 | AKZ9: 0 | ALA9: 0 | ALB9: 0 | ALC9: 0 | ALD9: 0 | ALE9: 0 | ALF9: 0 | ALG9: 0 | ALH9: 0 | ALI9: 0 | ALJ9: 0 | ALK9: 0 | ALL9: 0 | ALM9: 0 | ALN9: 0 | ALO9: 0 | ALP9: 0 | ALQ9: 0 | ALR9: 0 | ALS9: 0 | ALT9: 0 | ALU9: 0 | ALV9: 0 | ALW9: 0 | ALX9: 0 | ALY9: 0 | ALZ9: 0 | AMA9: 0 | AMB9: 0 | AMC9: 0 | AMD9: 0 | AME9: 0 | AMF9: 0 | AMG9: 0 | AMH9: 0 | AMI9: 0 | AMJ9: 0 | AMK9: 0 | AML9: 0 | AMM9: 0 | AMN9: 0 | AMO9: 0 | AMP9: 0 | AMQ9: 0 | AMR9: 0 | AMS9: 0 | AMT9: 0 | AMU9: 0 | AMV9: 0 | AMW9: 0 | AMX9: 0 | AMY9: 0 | AMZ9: 0 | ANA9: 0 | ANB9: 0 | ANC9: 0 | AND9: 0 | ANE9: 0 | ANF9: 0 | ANG9: 0 | ANH9: 0 | ANI9: 0 | ANJ9: 0 | ANK9: 0 | ANL9: 0 | ANM9: 0 | ANN9: 0 | ANO9: 0 | ANP9: 0 | ANQ9: 0 | ANR9: 0 | ANS9: 0 | ANT9: 0 | ANU9: 0 | ANV9: 0 | ANW9: 0 | ANX9: 0 | ANY9: 0 | ANZ9: 0 | AOA9: 0 | AOB9: 0 | AOC9: 0 | AOD9: 0 | AOE9: 0 | AOF9: 0 | AOG9: 0 | AOH9: 0 | AOI9: 0 | AOJ9: 0 | AOK9: 0 | AOL9: 0 | AOM9: 0 | AON9: 0 | AOO9: 0 | AOP9: 0 | AOQ9: 0 | AOR9: 0 | AOS9: 0 | AOT9: 0 | AOU9: 0 | AOV9: 0 | AOW9: 0 | AOX9: 0 | AOY9: 0 | AOZ9: 0 | APA9: 0 | APB9: 0 | APC9: 0 | APD9: 0 | APE9: 0 | APF9: 0 | APG9: 0 | APH9: 0 | API9: 0 | APJ9: 0 | APK9: 0 | APL9: 0 | APM9: 0 | APN9: 0 | APO9: 0 | APP9: 0 | APQ9: 0 | APR9: 0 | APS9: 0 | APT9: 0 | APU9: 0 | APV9: 0 | APW9: 0 | APX9: 0 | APY9: 0 | APZ9: 0 | AQA9: 0 | AQB9: 0 | AQC9: 0 | AQD9: 0 | AQE9: 0 | AQF9: 0 | AQG9: 0 | AQH9: 0 | AQI9: 0 | AQJ9: 0 | AQK9: 0 | AQL9: 0 | AQM9: 0 | AQN9: 0 | AQO9: 0 | AQP9: 0 | AQQ9: 0 | AQR9: 0 | AQS9: 0 | AQT9: 0 | AQU9: 0 | AQV9: 0 | AQW9: 0 | AQX9: 0 | AQY9: 0 | AQZ9: 0 | ARA9: 0 | ARB9: 0 | ARC9: 0 | ARD9: 0 | ARE9: 0 | ARF9: 0 | ARG9: 0 | ARH9: 0 | ARI9: 0 | ARJ9: 0 | ARK9: 0 | ARL9: 0 | ARM9: 0 | ARN9: 0 | ARO9: 0 | ARP9: 0 | ARQ9: 0 | ARR9: 0 | ARS9: 0 | ART9: 0 | ARU9: 0 | ARV9: 0 | ARW9: 0 | ARX9: 0 | ARY9: 0 | ARZ9: 0 | ASA9: 0 | ASB9: 0 | ASC9: 0 | ASD9: 0 | ASE9: 0 | ASF9: 0 | ASG9: 0 | ASH9: 0 | ASI9: 0 | ASJ9: 0 | ASK9: 0 | ASL9: 0 | ASM9: 0 | ASN9: 0 | ASO9: 0 | ASP9: 0 | ASQ9: 0 | ASR9: 0 | ASS9: 0 | AST9: 0 | ASU9: 0 | ASV9: 0 | ASW9: 0 | ASX9: 0 | ASY9: 0 | ASZ9: 0 | ATA9: 0 | ATB9: 0 | ATC9: 0 | ATD9: 0 | ATE9: 0 | ATF9: 0 | ATG9: 0 | ATH9: 0 | ATI9: 0 | ATJ9: 0 | ATK9: 0 | ATL9: 0 | ATM9: 0 | ATN9: 0 | ATO9: 0 | ATP9: 0 | ATQ9: 0 | ATR9: 0 | ATS9: 0 | ATT9: 0 | ATU9: 0 | ATV9: 0 | ATW9: 0 | ATX9: 0 | ATY9: 0 | ATZ9: 0 | AUA9: 0 | AUB9: 0 | AUC9: 0 | AUD9: 0 | AUE9: 0 | AUF9: 0 | AUG9: 0 | AUH9: 0 | AUI9: 0 | AUJ9: 0 | AUK9: 0 | AUL9: 0 | AUM9: 0 | AUN9: 0 | AUO9: 0 | AUP9: 0 | AUQ9: 0 | AUR9: 0 | AUS9: 0 | AUT9: 0 | AUU9: 0 | AUV9: 0 | AUW9: 0 | AUX9: 0 | AUY9: 0 | AUZ9: 0 | AVA9: 0 | AVB9: 0 | AVC9: 0 | AVD9: 0 | AVE9: 0 | AVF9: 0 | AVG9: 0 | AVH9: 0 | AVI9: 0 | AVJ9: 0 | AVK9: 0 | AVL9: 0 | AVM9: 0 | AVN9: 0 | AVO9: 0 | AVP9: 0 | AVQ9: 0 | AVR9: 0 | AVS9: 0 | AVT9: 0 | AVU9: 0 | AVV9: 0 | AVW9: 0 | AVX9: 0 | AVY9: 0 | AVZ9: 0 | AWA9: 0 | AWB9: 0 | AWC9: 0 | AWD9: 0 | AWE9: 0 | AWF9: 0 | AWG9: 0 | AWH9: 0 | AWI9: 0 | AWJ9: 0 | AWK9: 0 | AWL9: 0 | AWM9: 0 | AWN9: 0 | AWO9: 0 | AWP9: 0 | AWQ9: 0 | AWR9: 0 | AWS9: 0 | AWT9: 0 | AWU9: 0 | AWV9: 0 | AWW9: 0 | AWX9: 0 | AWY9: 0 | AWZ9: 0 | AXA9: 0 | AXB9: 0 | AXC9: 0 | AXD9: 0 | AXE9: 0 | AXF9: 0 | AXG9: 0 | AXH9: 0 | AXI9: 0 | AXJ9: 0 | AXK9: 0 | AXL9: 0 | AXM9: 0 | AXN9: 0 | AXO9: 0 | AXP9: 0 | AXQ9: 0 | AXR9: 0 | AXS9: 0 | AXT9: 0 | AXU9: 0 | AXV9: 0 | AXW9: 0 | AXX9: 0 | AXY9: 0 | AXZ9: 0 | AYA9: 0 | AYB9: 0 | AYC9: 0 | AYD9: 0 | AYE9: 0 | AYF9: 0 | AYG9: 0 | AYH9: 0 | AYI9: 0 | AYJ9: 0 | AYK9: 0 | AYL9: 0 | AYM9: 0 | AYN9: 0 | AYO9: 0 | AYP9: 0 | AYQ9: 0 | AYR9: 0 | AYS9: 0 | AYT9: 0 | AYU9: 0 | AYV9: 0 | AYW9: 0 | AYX9: 0 | AYY9: 0 | AYZ9: 0 | AZA9: 0 | AZB9: 0 | AZC9: 0 | AZD9: 0 | AZE9: 0 | AZF9: 0 | AZG9: 0 | AZH9: 0 | AZI9: 0 | AZJ9: 0 | AZK9: 0 | AZL9: 0 | AZM9: 0 | AZN9: 0 | AZO9: 0 | AZP9: 0 | AZQ9: 0 | AZR9: 0 | AZS9: 0 | AZT9: 0 | AZU9: 0 | AZV9: 0 | AZW9: 0 | AZX9: 0 | AZY9: 0 | AZZ9: 0 | BAA9: 0 | BAB9: 0 | BAC9: 0 | BAD9: 0 | BAE9: 0 | BAF9: 0 | BAG9: 0 | BAH9: 0 | BAI9: 0 | BAJ9: 0 | BAK9: 0 | BAL9: 0 | BAM9: 0 | BAN9: 0 | BAO9: 0 | BAP9: 0 | BAQ9: 0 | BAR9: 0 | BAS9: 0 | BAT9: 0 | BAU9: 0 | BAV9: 0 | BAW9: 0 | BAX9: 0 | BAY9: 0 | BAZ9: 0 | BBA9: 0 | BBB9: 0 | BBC9: 0 | BBD9: 0 | BBE9: 0 | BBF9: 0 | BBG9: 0 | BBH9: 0 | BBI9: 0 | BBJ9: 0 | BBK9: 0 | BBL9: 0 | BBM9: 0 | BBN9: 0 | BBO9: 0 | BBP9: 0 | BBQ9: 0 | BBR9: 0 | BBS9: 0 | BBT9: 0 | BBU9: 0 | BBV9: 0 | BBW9: 0 | BBX9: 0 | BBY9: 0 | BBZ9: 0 | BCA9: 0 | BCB9: 0 | BCC9: 0 | BCD9: 0 | BCE9: 0 | BCF9: 0 | BCG9: 0 | BCH9: 0 | BCI9: 0 | BCJ9: 0 | BCK9: 0 | BCL9: 0 | BCM9: 0 | BCN9: 0 | BCO9: 0 | BCP9: 0 | BCQ9: 0 | BCR9: 0 | BCS9: 0 | BCT9: 0 | BCU9: 0 | BCV9: 0 | BCW9: 0 | BCX9: 0 | BCY9: 0 | BCZ9: 0 | BDA9: 0 | BDB9: 0 | BDC9: 0 | BDD9: 0 | BDE9: 0 | BDF9: 0 | BDG9: 0 | BDH9: 0 | BDI9: 0 | BDJ9: 0 | BDK9: 0 | BDL9: 0 | BDM9: 0 | BDN9: 0 | BDO9: 0 | BDP9: 0 | BDQ9: 0 | BDR9: 0 | BDS9: 0 | BDT9: 0 | BDU9: 0 | BDV9: 0 | BDW9: 0 | BDX9: 0 | BDY9: 0 | BDZ9: 0 | BEA9: 0 | BEB9: 0 | BEC9: 0 | BED9: 0 | BEE9: 0 | BEF9: 0 | BEG9: 0 | BEH9: 0 | BEI9: 0 | BEJ9: 0 | BEK9: 0 | BEL9: 0 | BEM9: 0 | BEN9: 0 | BEO9: 0 | BEP9: 0 | BEQ9: 0 | BER9: 0 | BES9: 0 | BET9: 0 | BEU9: 0 | BEV9: 0 | BEW9: 0 | BEX9: 0 | BEY9: 0 | BEZ9: 0 | BFA9: 0 | BFB9: 0 | BFC9: 0 | BFD9: 0 | BFE9: 0 | BFF9: 0 | BFG9: 0 | BFH9: 0 | BFI9: 0 | BFJ9: 0 | BFK9: 0 | BFL9: 0 | BFM9: 0 | BFN9: 0 | BFO9: 0 | BFP9: 0 | BFQ9: 0 | BFR9: 0 | BFS9: 0 | BFT9: 0 | BFU9: 0 | BFV9: 0 | BFW9: 0 | BFX9: 0 | BFY9: 0 | BFZ9: 0 | BGA9: 0 | BGB9: 0 | BGC9: 0 | BGD9: 0 | BGE9: 0 | BGF9: 0 | BGG9: 0 | BGH9: 0 | BGI9: 0 | BGJ9: 0 | BGK9: 0 | BGL9: 0 | BGM9: 0 | BGN9: 0 | BGO9: 0 | BGP9: 0 | BGQ9: 0 | BGR9: 0 | BGS9: 0 | BGT9: 0 | BGU9: 0 | BGV9: 0 | BGW9: 0 | BGX9: 0 | BGY9: 0 | BGZ9: 0 | BHA9: 0 | BHB9: 0 | BHC9: 0 | BHD9: 0 | BHE9: 0 | BHF9: 0 | BHG9: 0 | BHH9: 0 | BHI9: 0 | BHJ9: 0 | BHK9: 0 | BHL9: 0 | BHM9: 0 | BHN9: 0 | BHO9: 0 | BHP9: 0 | BHQ9: 0 | BHR9: 0 | BHS9: 0 | BHT9: 0 | BHU9: 0 | BHV9: 0 | BHW9: 0 | BHX9: 0 | BHY9: 0 | BHZ9: 0 | BIA9: 0 | BIB9: 0 | BIC9: 0 | BID9: 0 | BIE9: 0 | BIF9: 0 | BIG9: 0 | BIH9: 0 | BII9: 0 | BIJ9: 0 | BIK9: 0 | BIL9: 0 | BIM9: 0 | BIN9: 0 | BIO9: 0 | BIP9: 0 | BIQ9: 0 | BIR9: 0 | BIS9: 0 | BIT9: 0 | BIU9: 0 | BIV9: 0 | BIW9: 0 | BIX9: 0 | BIY9: 0 | BIZ9: 0 | BJA9: 0 | BJB9: 0 | BJC9: 0 | BJD9: 0 | BJE9: 0 | BJF9: 0 | BJG9: 0 | BJH9: 0 | BJI9: 0 | BJJ9: 0 | BJK9: 0 | BJL9: 0 | BJM9: 0 | BJN9: 0 | BJO9: 0 | BJP9: 0 | BJQ9: 0 | BJR9: 0 | BJS9: 0 | BJT9: 0 | BJU9: 0 | BJV9: 0 | BJW9: 0 | BJX9: 0 | BJY9: 0 | BJZ9: 0 | BKA9: 0 | BKB9: 0 | BKC9: 0 | BKD9: 0 | BKE9: 0 | BKF9: 0 | BKG9: 0 | BKH9: 0 | BKI9: 0 | BKJ9: 0 | BKK9: 0 | BKL9: 0 | BKM9: 0 | BKN9: 0 | BKO9: 0 | BKP9: 0 | BKQ9: 0 | BKR9: 0 | BKS9: 0 | BKT9: 0 | BKU9: 0 | BKV9: 0 | BKW9: 0 | BKX9: 0 | BKY9: 0 | BKZ9: 0 | BLA9: 0 | BLB9: 0 | BLC9: 0 | BLD9: 0 | BLE9: 0 | BLF9: 0 | BLG9: 0 | BLH9: 0 | BLI9: 0 | BLJ9: 0 | BLK9: 0 | BLL9: 0 | BLM9: 0 | BLN9: 0 | BLO9: 0 | BLP9: 0 | BLQ9: 0 | BLR9: 0 | BLS9: 0 | BLT9: 0 | BLU9: 0 | BLV9: 0 | BLW9: 0 | BLX9: 0 | BLY9: 0 | BLZ9: 0 | BMA9: 0 | BMB9: 0 | BMC9: 0 | BMD9: 0 | BME9: 0 | BMF9: 0 | BMG9: 0 | BMH9: 0 | BMI9: 0 | BMJ9: 0 | BMK9: 0
B10: 06:00:00 | C10: 0.035 | D10: 0 | E10: 0.013 | F10: 0 | G10: 0.004 | H10: 0 | K10: 7 | L10: 0 | M10: 0 | N10: 0 | P10: 0 | T10: 7 | U10: =TRANSPOSE('Average power consumption'!$C$3:$C$122)*L10 -> 0 | V10: 0 | W10: 0 | X10: 0 | Y10: 0 | Z10: 0 | AA10: 0 | AB10: 0 | AC10: 0 | AD10: 0 | AE10: 0 | AF10: 0 | AG10: 0 | AH10: 0 | AI10: 0 | AJ10: 0 | AK10: 0 | AL10: 0 | AM10: 0 | AN10: 0 | AO10: 0 | AP10: 0 | AQ10: 0 | AR10: 0 | AS10: 0 | AT10: 0 | AU10: 0 | AV10: 0 | AW10: 0 | AX10: 0 | AY10: 0 | AZ10: 0 | BA10: 0 | BB10: 0 | BC10: 0 | BD10: 0 | BE10: 0 | BF10: 0 | BG10: 0 | BH10: 0 | BI10: 0 | BJ10: 0 | BK10: 0 | BL10: 0 | BM10: 0 | BN10: 0 | BO10: 0 | BP10: 0 | BQ10: 0 | BR10: 0 | BS10: 0 | BT10: 0 | BU10: 0 | BV10: 0 | BW10: 0 | BX10: 0 | BY10: 0 | BZ10: 0 | CA10: 0 | CB10: 0 | CC10: 0 | CD10: 0 | CE10: 0 | CF10: 0 | CG10: 0 | CH10: 0 | CI10: 0 | CJ10: 0 | CK10: 0 | CL10: 0 | CM10: 0 | CN10: 0 | CO10: 0 | CP10: 0 | CQ10: 0 | CR10: 0 | CS10: 0 | CT10: 0 | CU10: 0 | CV10: 0 | CW10: 0 | CX10: 0 | CY10: 0 | CZ10: 0 | DA10: 0 | DB10: 0 | DC10: 0 | DD10: 0 | DE10: 0 | DF10: 0 | DG10: 0 | DH10: 0 | DI10: 0 | DJ10: 0 | DK10: 0 | DL10: 0 | DM10: 0 | DN10: 0 | DO10: 0 | DP10: 0 | DQ10: 0 | DR10: 0 | DS10: 0 | DT10: 0 | DU10: 0 | DV10: 0 | DW10: 0 | DX10: 0 | DY10: 0 | DZ10: 0 | EA10: 0 | EB10: 0 | EC10: 0 | ED10: 0 | EE10: 0 | EF10: 0 | EG10: 0 | EH10: 0 | EI10: 0 | EJ10: 0 | EM10: 0 | EN10: 0 | EO10: 0 | EP10: 0 | EQ10: 0 | ER10: 0 | ES10: 0 | ET10: 0 | EU10: 0 | EV10: 0 | EW10: 0 | EX10: 0 | EY10: 0 | EZ10: 0 | FA10: 0 | FB10: 0 | FC10: 0 | FD10: 0 | FE10: 0 | FF10: 0 | FG10: 0 | FH10: 0 | FI10: 0 | FJ10: 0 | FK10: 0 | FL10: 0 | FM10: 0 | FN10: 0 | FO10: 0 | FP10: 0 | FQ10: 0 | FR10: 0 | FS10: 0 | FT10: 0 | FU10: 0 | FV10: 0 | FW10: 0 | FX10: 0 | FY10: 0 | FZ10: 0 | GA10: 0 | GB10: 0 | GC10: 0 | GD10: 0 | GE10: 0 | GF10: 0 | GG10: 0 | GH10: 0 | GI10: 0 | GJ10: 0 | GK10: 0 | GL10: 0 | GM10: 0 | GN10: 0 | GO10: 0 | GP10: 0 | GQ10: 0 | GR10: 0 | GS10: 0 | GT10: 0 | GU10: 0 | GV10: 0 | GW10: 0 | GX10: 0 | GY10: 0 | GZ10: 0 | HA10: 0 | HB10: 0 | HC10: 0 | HD10: 0 | HE10: 0 | HF10: 0 | HG10: 0 | HH10: 0 | HI10: 0 | HJ10: 0 | HK10: 0 | HL10: 0 | HM10: 0 | HN10: 0 | HO10: 0 | HP10: 0 | HQ10: 0 | HR10: 0 | HS10: 0 | HT10: 0 | HU10: 0 | HV10: 0 | HW10: 0 | HX10: 0 | HY10: 0 | HZ10: 0 | IA10: 0 | IB10: 0 | IC10: 0 | ID10: 0 | IE10: 0 | IF10: 0 | IG10: 0 | IH10: 0 | II10: 0 | IJ10: 0 | IK10: 0 | IL10: 0 | IM10: 0 | IN10: 0 | IO10: 0 | IP10: 0 | IQ10: 0 | IR10: 0 | IS10: 0 | IT10: 0 | IU10: 0 | IV10: 0 | IW10: 0 | IX10: 0 | IY10: 0 | IZ10: 0 | JA10: 0 | JB10: 0 | JC10: 0 | JD10: 0 | JE10: 0 | JF10: 0 | JG10: 0 | JH10: 0 | JI10: 0 | JJ10: 0 | JK10: 0 | JL10: 0 | JM10: 0 | JN10: 0 | JO10: 0 | JP10: 0 | JQ10: 0 | JR10: 0 | JS10: 0 | JT10: 0 | JU10: 0 | JV10: 0 | JW10: 0 | JX10: 0 | JY10: 0 | JZ10: 0 | KA10: 0 | KB10: 0 | KC10: 0 | KD10: 0 | KE10: 0 | KF10: 0 | KG10: 0 | KH10: 0 | KI10: 0 | KJ10: 0 | KK10: 0 | KL10: 0 | KM10: 0 | KN10: 0 | KO10: 0 | KP10: 0 | KQ10: 0 | KR10: 0 | KS10: 0 | KT10: 0 | KU10: 0 | KV10: 0 | KW10: 0 | KX10: 0 | KY10: 0 | KZ10: 0 | LA10: 0 | LB10: 0 | LC10: 0 | LD10: 0 | LE10: 0 | LF10: 0 | LG10: 0 | LH10: 0 | LI10: 0 | LJ10: 0 | LK10: 0 | LL10: 0 | LM10: 0 | LN10: 0 | LO10: 0 | LP10: 0 | LQ10: 0 | LR10: 0 | LS10: 0 | LT10: 0 | LU10: 0 | LV10: 0 | LW10: 0 | LX10: 0 | LY10: 0 | LZ10: 0 | MA10: 0 | MB10: 0 | MC10: 0 | MD10: 0 | ME10: 0 | MF10: 0 | MG10: 0 | MH10: 0 | MI10: 0 | MJ10: 0 | MK10: 0 | ML10: 0 | MM10: 0 | MN10: 0 | MO10: 0 | MP10: 0 | MQ10: 0 | MR10: 0 | MS10: 0 | MT10: 0 | MU10: 0 | MV10: 0 | MW10: 0 | MX10: 0 | MY10: 0 | MZ10: 0 | NA10: 0 | NB10: 0 | NC10: 0 | ND10: 0 | NE10: 0 | NF10: 0 | NG10: 0 | NH10: 0 | NI10: 0 | NJ10: 0 | NK10: 0 | NL10: 0 | NM10: 0 | NN10: 0 | NO10: 0 | NP10: 0 | NQ10: 0 | NR10: 0 | NS10: 0 | NT10: 0 | NU10: 0 | NV10: 0 | NW10: 0 | NX10: 0 | NY10: 0 | NZ10: 0 | OA10: 0 | OB10: 0 | OC10: 0 | OD10: 0 | OE10: 0 | OF10: 0 | OG10: 0 | OH10: 0 | OI10: 0 | OJ10: 0 | OK10: 0 | OL10: 0 | OM10: 0 | ON10: 0 | OO10: 0 | OP10: 0 | OQ10: 0 | OR10: 0 | OS10: 0 | OT10: 0 | OU10: 0 | OV10: 0 | OW10: 0 | OX10: 0 | OY10: 0 | OZ10: 0 | PA10: 0 | PB10: 0 | PC10: 0 | PD10: 0 | PE10: 0 | PF10: 0 | PG10: 0 | PH10: 0 | PI10: 0 | PJ10: 0 | PK10: 0 | PL10: 0 | PM10: 0 | PN10: 0 | PO10: 0 | PP10: 0 | PQ10: 0 | PR10: 0 | PS10: 0 | PT10: 0 | PU10: 0 | PV10: 0 | PW10: 0 | PX10: 0 | PY10: 0 | PZ10: 0 | QA10: 0 | QB10: 0 | QC10: 0 | QD10: 0 | QE10: 0 | QF10: 0 | QG10: 0 | QH10: 0 | QI10: 0 | QJ10: 0 | QK10: 0 | QL10: 0 | QM10: 0 | QN10: 0 | QO10: 0 | QP10: 0 | QQ10: 0 | QR10: 0 | QS10: 0 | QT10: 0 | QU10: 0 | QV10: 0 | QW10: 0 | QX10: 0 | QY10: 0 | QZ10: 0 | RA10: 0 | RB10: 0 | RC10: 0 | RD10: 0 | RE10: 0 | RF10: 0 | RG10: 0 | RH10: 0 | RI10: 0 | RJ10: 0 | RK10: 0 | RL10: 0 | RM10: 0 | RN10: 0 | RO10: 0 | RP10: 0 | RQ10: 0 | RR10: 0 | RS10: 0 | RT10: 0 | RU10: 0 | RV10: 0 | RW10: 0 | RX10: 0 | RY10: 0 | RZ10: 0 | SA10: 0 | SB10: 0 | SC10: 0 | SD10: 0 | SE10: 0 | SF10: 0 | SG10: 0 | SH10: 0 | SI10: 0 | SJ10: 0 | SK10: 0 | SL10: 0 | SM10: 0 | SN10: 0 | SO10: 0 | SP10: 0 | SQ10: 0 | SR10: 0 | SS10: 0 | ST10: 0 | SU10: 0 | SV10: 0 | SW10: 0 | SX10: 0 | SY10: 0 | SZ10: 0 | TA10: 0 | TB10: 0 | TC10: 0 | TD10: 0 | TE10: 0 | TF10: 0 | TG10: 0 | TH10: 0 | TI10: 0 | TJ10: 0 | TK10: 0 | TL10: 0 | TM10: 0 | TN10: 0 | TO10: 0 | TP10: 0 | TQ10: 0 | TR10: 0 | TS10: 0 | TT10: 0 | TU10: 0 | TV10: 0 | TW10: 0 | TX10: 0 | TY10: 0 | TZ10: 0 | UA10: 0 | UB10: 0 | UC10: 0 | UD10: 0 | UE10: 0 | UF10: 0 | UG10: 0 | UH10: 0 | UI10: 0 | UJ10: 0 | UK10: 0 | UL10: 0 | UM10: 0 | UN10: 0 | UO10: 0 | UP10: 0 | UQ10: 0 | UR10: 0 | US10: 0 | UT10: 0 | UU10: 0 | UV10: 0 | UW10: 0 | UX10: 0 | UY10: 0 | UZ10: 0 | VA10: 0 | VB10: 0 | VC10: 0 | VD10: 0 | VE10: 0 | VF10: 0 | VG10: 0 | VH10: 0 | VI10: 0 | VJ10: 0 | VK10: 0 | VL10: 0 | VM10: 0 | VN10: 0 | VO10: 0 | VP10: 0 | VQ10: 0 | VR10: 0 | VS10: 0 | VT10: 0 | VU10: 0 | VV10: 0 | VW10: 0 | VX10: 0 | VY10: 0 | VZ10: 0 | WA10: 0 | WB10: 0 | WC10: 0 | WD10: 0 | WE10: 0 | WF10: 0 | WG10: 0 | WH10: 0 | WI10: 0 | WJ10: 0 | WK10: 0 | WL10: 0 | WM10: 0 | WN10: 0 | WO10: 0 | WP10: 0 | WQ10: 0 | WR10: 0 | WS10: 0 | WT10: 0 | WU10: 0 | WV10: 0 | WW10: 0 | WX10: 0 | WY10: 0 | WZ10: 0 | XA10: 0 | XB10: 0 | XC10: 0 | XD10: 0 | XE10: 0 | XF10: 0 | XG10: 0 | XH10: 0 | XI10: 0 | XJ10: 0 | XK10: 0 | XL10: 0 | XM10: 0 | XN10: 0 | XO10: 0 | XP10: 0 | XQ10: 0 | XR10: 0 | XS10: 0 | XT10: 0 | XU10: 0 | XV10: 0 | XW10: 0 | XX10: 0 | XY10: 0 | XZ10: 0 | YA10: 0 | YB10: 0 | YC10: 0 | YD10: 0 | YE10: 0 | YF10: 0 | YG10: 0 | YH10: 0 | YI10: 0 | YJ10: 0 | YK10: 0 | YL10: 0 | YM10: 0 | YN10: 0 | YO10: 0 | YP10: 0 | YQ10: 0 | YR10: 0 | YS10: 0 | YT10: 0 | YU10: 0 | YV10: 0 | YW10: 0 | YX10: 0 | YY10: 0 | YZ10: 0 | ZA10: 0 | ZB10: 0 | ZC10: 0 | ZD10: 0 | ZE10: 0 | ZF10: 0 | ZG10: 0 | ZH10: 0 | ZI10: 0 | ZJ10: 0 | ZK10: 0 | ZL10: 0 | ZM10: 0 | ZN10: 0 | ZO10: 0 | ZP10: 0 | ZQ10: 0 | ZR10: 0 | ZS10: 0 | ZT10: 0 | ZU10: 0 | ZV10: 0 | ZW10: 0 | ZX10: 0 | ZY10: 0 | ZZ10: 0 | AAA10: 0 | AAB10: 0 | AAC10: 0 | AAD10: 0 | AAE10: 0 | AAF10: 0 | AAG10: 0 | AAH10: 0 | AAI10: 0 | AAJ10: 0 | AAK10: 0 | AAL10: 0 | AAM10: 0 | AAN10: 0 | AAO10: 0 | AAP10: 0 | AAQ10: 0 | AAR10: 0 | AAS10: 0 | AAT10: 0 | AAU10: 0 | AAV10: 0 | AAW10: 0 | AAX10: 0 | AAY10: 0 | AAZ10: 0 | ABA10: 0 | ABB10: 0 | ABC10: 0 | ABD10: 0 | ABE10: 0 | ABF10: 0 | ABG10: 0 | ABH10: 0 | ABI10: 0 | ABJ10: 0 | ABK10: 0 | ABL10: 0 | ABM10: 0 | ABN10: 0 | ABO10: 0 | ABP10: 0 | ABQ10: 0 | ABR10: 0 | ABS10: 0 | ABT10: 0 | ABU10: 0 | ABV10: 0 | ABW10: 0 | ABX10: 0 | ABY10: 0 | ABZ10: 0 | ACA10: 0 | ACB10: 0 | ACC10: 0 | ACD10: 0 | ACE10: 0 | ACF10: 0 | ACG10: 0 | ACH10: 0 | ACI10: 0 | ACJ10: 0 | ACK10: 0 | ACL10: 0 | ACM10: 0 | ACN10: 0 | ACO10: 0 | ACP10: 0 | ACQ10: 0 | ACR10: 0 | ACS10: 0 | ACT10: 0 | ACU10: 0 | ACV10: 0 | ACW10: 0 | ACX10: 0 | ACY10: 0 | ACZ10: 0 | ADA10: 0 | ADB10: 0 | ADC10: 0 | ADD10: 0 | ADE10: 0 | ADF10: 0 | ADG10: 0 | ADH10: 0 | ADI10: 0 | ADJ10: 0 | ADK10: 0 | ADL10: 0 | ADM10: 0 | ADN10: 0 | ADO10: 0 | ADP10: 0 | ADQ10: 0 | ADR10: 0 | ADS10: 0 | ADT10: 0 | ADU10: 0 | ADV10: 0 | ADW10: 0 | ADX10: 0 | ADY10: 0 | ADZ10: 0 | AEA10: 0 | AEB10: 0 | AEC10: 0 | AED10: 0 | AEE10: 0 | AEF10: 0 | AEG10: 0 | AEH10: 0 | AEI10: 0 | AEJ10: 0 | AEK10: 0 | AEL10: 0 | AEM10: 0 | AEN10: 0 | AEO10: 0 | AEP10: 0 | AEQ10: 0 | AER10: 0 | AES10: 0 | AET10: 0 | AEU10: 0 | AEV10: 0 | AEW10: 0 | AEX10: 0 | AEY10: 0 | AEZ10: 0 | AFA10: 0 | AFB10: 0 | AFC10: 0 | AFD10: 0 | AFE10: 0 | AFF10: 0 | AFG10: 0 | AFH10: 0 | AFI10: 0 | AFJ10: 0 | AFK10: 0 | AFL10: 0 | AFM10: 0 | AFN10: 0 | AFO10: 0 | AFP10: 0 | AFQ10: 0 | AFR10: 0 | AFS10: 0 | AFT10: 0 | AFU10: 0 | AFV10: 0 | AFW10: 0 | AFX10: 0 | AFY10: 0 | AFZ10: 0 | AGA10: 0 | AGB10: 0 | AGC10: 0 | AGD10: 0 | AGE10: 0 | AGF10: 0 | AGG10: 0 | AGH10: 0 | AGI10: 0 | AGJ10: 0 | AGK10: 0 | AGL10: 0 | AGM10: 0 | AGN10: 0 | AGO10: 0 | AGP10: 0 | AGQ10: 0 | AGR10: 0 | AGS10: 0 | AGT10: 0 | AGU10: 0 | AGV10: 0 | AGW10: 0 | AGX10: 0 | AGY10: 0 | AGZ10: 0 | AHA10: 0 | AHB10: 0 | AHC10: 0 | AHD10: 0 | AHE10: 0 | AHF10: 0 | AHG10: 0 | AHH10: 0 | AHI10: 0 | AHJ10: 0 | AHK10: 0 | AHL10: 0 | AHM10: 0 | AHN10: 0 | AHO10: 0 | AHP10: 0 | AHQ10: 0 | AHR10: 0 | AHS10: 0 | AHT10: 0 | AHU10: 0 | AHV10: 0 | AHW10: 0 | AHX10: 0 | AHY10: 0 | AHZ10: 0 | AIA10: 0 | AIB10: 0 | AIC10: 0 | AID10: 0 | AIE10: 0 | AIF10: 0 | AIG10: 0 | AIH10: 0 | AII10: 0 | AIJ10: 0 | AIK10: 0 | AIL10: 0 | AIM10: 0 | AIN10: 0 | AIO10: 0 | AIP10: 0 | AIQ10: 0 | AIR10: 0 | AIS10: 0 | AIT10: 0 | AIU10: 0 | AIV10: 0 | AIW10: 0 | AIX10: 0 | AIY10: 0 | AIZ10: 0 | AJA10: 0 | AJB10: 0 | AJC10: 0 | AJD10: 0 | AJE10: 0 | AJF10: 0 | AJG10: 0 | AJH10: 0 | AJI10: 0 | AJJ10: 0 | AJK10: 0 | AJL10: 0 | AJM10: 0 | AJN10: 0 | AJO10: 0 | AJP10: 0 | AJQ10: 0 | AJR10: 0 | AJS10: 0 | AJT10: 0 | AJU10: 0 | AJV10: 0 | AJW10: 0 | AJX10: 0 | AJY10: 0 | AJZ10: 0 | AKA10: 0 | AKB10: 0 | AKC10: 0 | AKD10: 0 | AKE10: 0 | AKF10: 0 | AKG10: 0 | AKH10: 0 | AKI10: 0 | AKJ10: 0 | AKK10: 0 | AKL10: 0 | AKM10: 0 | AKN10: 0 | AKO10: 0 | AKP10: 0 | AKQ10: 0 | AKR10: 0 | AKS10: 0 | AKT10: 0 | AKU10: 0 | AKV10: 0 | AKW10: 0 | AKX10: 0 | AKY10: 0 | AKZ10: 0 | ALA10: 0 | ALB10: 0 | ALC10: 0 | ALD10: 0 | ALE10: 0 | ALF10: 0 | ALG10: 0 | ALH10: 0 | ALI10: 0 | ALJ10: 0 | ALK10: 0 | ALL10: 0 | ALM10: 0 | ALN10: 0 | ALO10: 0 | ALP10: 0 | ALQ10: 0 | ALR10: 0 | ALS10: 0 | ALT10: 0 | ALU10: 0 | ALV10: 0 | ALW10: 0 | ALX10: 0 | ALY10: 0 | ALZ10: 0 | AMA10: 0 | AMB10: 0 | AMC10: 0 | AMD10: 0 | AME10: 0 | AMF10: 0 | AMG10: 0 | AMH10: 0 | AMI10: 0 | AMJ10: 0 | AMK10: 0 | AML10: 0 | AMM10: 0 | AMN10: 0 | AMO10: 0 | AMP10: 0 | AMQ10: 0 | AMR10: 0 | AMS10: 0 | AMT10: 0 | AMU10: 0 | AMV10: 0 | AMW10: 0 | AMX10: 0 | AMY10: 0 | AMZ10: 0 | ANA10: 0 | ANB10: 0 | ANC10: 0 | AND10: 0 | ANE10: 0 | ANF10: 0 | ANG10: 0 | ANH10: 0 | ANI10: 0 | ANJ10: 0 | ANK10: 0 | ANL10: 0 | ANM10: 0 | ANN10: 0 | ANO10: 0 | ANP10: 0 | ANQ10: 0 | ANR10: 0 | ANS10: 0 | ANT10: 0 | ANU10: 0 | ANV10: 0 | ANW10: 0 | ANX10: 0 | ANY10: 0 | ANZ10: 0 | AOA10: 0 | AOB10: 0 | AOC10: 0 | AOD10: 0 | AOE10: 0 | AOF10: 0 | AOG10: 0 | AOH10: 0 | AOI10: 0 | AOJ10: 0 | AOK10: 0 | AOL10: 0 | AOM10: 0 | AON10: 0 | AOO10: 0 | AOP10: 0 | AOQ10: 0 | AOR10: 0 | AOS10: 0 | AOT10: 0 | AOU10: 0 | AOV10: 0 | AOW10: 0 | AOX10: 0 | AOY10: 0 | AOZ10: 0 | APA10: 0 | APB10: 0 | APC10: 0 | APD10: 0 | APE10: 0 | APF10: 0 | APG10: 0 | APH10: 0 | API10: 0 | APJ10: 0 | APK10: 0 | APL10: 0 | APM10: 0 | APN10: 0 | APO10: 0 | APP10: 0 | APQ10: 0 | APR10: 0 | APS10: 0 | APT10: 0 | APU10: 0 | APV10: 0 | APW10: 0 | APX10: 0 | APY10: 0 | APZ10: 0 | AQA10: 0 | AQB10: 0 | AQC10: 0 | AQD10: 0 | AQE10: 0 | AQF10: 0 | AQG10: 0 | AQH10: 0 | AQI10: 0 | AQJ10: 0 | AQK10: 0 | AQL10: 0 | AQM10: 0 | AQN10: 0 | AQO10: 0 | AQP10: 0 | AQQ10: 0 | AQR10: 0 | AQS10: 0 | AQT10: 0 | AQU10: 0 | AQV10: 0 | AQW10: 0 | AQX10: 0 | AQY10: 0 | AQZ10: 0 | ARA10: 0 | ARB10: 0 | ARC10: 0 | ARD10: 0 | ARE10: 0 | ARF10: 0 | ARG10: 0 | ARH10: 0 | ARI10: 0 | ARJ10: 0 | ARK10: 0 | ARL10: 0 | ARM10: 0 | ARN10: 0 | ARO10: 0 | ARP10: 0 | ARQ10: 0 | ARR10: 0 | ARS10: 0 | ART10: 0 | ARU10: 0 | ARV10: 0 | ARW10: 0 | ARX10: 0 | ARY10: 0 | ARZ10: 0 | ASA10: 0 | ASB10: 0 | ASC10: 0 | ASD10: 0 | ASE10: 0 | ASF10: 0 | ASG10: 0 | ASH10: 0 | ASI10: 0 | ASJ10: 0 | ASK10: 0 | ASL10: 0 | ASM10: 0 | ASN10: 0 | ASO10: 0 | ASP10: 0 | ASQ10: 0 | ASR10: 0 | ASS10: 0 | AST10: 0 | ASU10: 0 | ASV10: 0 | ASW10: 0 | ASX10: 0 | ASY10: 0 | ASZ10: 0 | ATA10: 0 | ATB10: 0 | ATC10: 0 | ATD10: 0 | ATE10: 0 | ATF10: 0 | ATG10: 0 | ATH10: 0 | ATI10: 0 | ATJ10: 0 | ATK10: 0 | ATL10: 0 | ATM10: 0 | ATN10: 0 | ATO10: 0 | ATP10: 0 | ATQ10: 0 | ATR10: 0 | ATS10: 0 | ATT10: 0 | ATU10: 0 | ATV10: 0 | ATW10: 0 | ATX10: 0 | ATY10: 0 | ATZ10: 0 | AUA10: 0 | AUB10: 0 | AUC10: 0 | AUD10: 0 | AUE10: 0 | AUF10: 0 | AUG10: 0 | AUH10: 0 | AUI10: 0 | AUJ10: 0 | AUK10: 0 | AUL10: 0 | AUM10: 0 | AUN10: 0 | AUO10: 0 | AUP10: 0 | AUQ10: 0 | AUR10: 0 | AUS10: 0 | AUT10: 0 | AUU10: 0 | AUV10: 0 | AUW10: 0 | AUX10: 0 | AUY10: 0 | AUZ10: 0 | AVA10: 0 | AVB10: 0 | AVC10: 0 | AVD10: 0 | AVE10: 0 | AVF10: 0 | AVG10: 0 | AVH10: 0 | AVI10: 0 | AVJ10: 0 | AVK10: 0 | AVL10: 0 | AVM10: 0 | AVN10: 0 | AVO10: 0 | AVP10: 0 | AVQ10: 0 | AVR10: 0 | AVS10: 0 | AVT10: 0 | AVU10: 0 | AVV10: 0 | AVW10: 0 | AVX10: 0 | AVY10: 0 | AVZ10: 0 | AWA10: 0 | AWB10: 0 | AWC10: 0 | AWD10: 0 | AWE10: 0 | AWF10: 0 | AWG10: 0 | AWH10: 0 | AWI10: 0 | AWJ10: 0 | AWK10: 0 | AWL10: 0 | AWM10: 0 | AWN10: 0 | AWO10: 0 | AWP10: 0 | AWQ10: 0 | AWR10: 0 | AWS10: 0 | AWT10: 0 | AWU10: 0 | AWV10: 0 | AWW10: 0 | AWX10: 0 | AWY10: 0 | AWZ10: 0 | AXA10: 0 | AXB10: 0 | AXC10: 0 | AXD10: 0 | AXE10: 0 | AXF10: 0 | AXG10: 0 | AXH10: 0 | AXI10: 0 | AXJ10: 0 | AXK10: 0 | AXL10: 0 | AXM10: 0 | AXN10: 0 | AXO10: 0 | AXP10: 0 | AXQ10: 0 | AXR10: 0 | AXS10: 0 | AXT10: 0 | AXU10: 0 | AXV10: 0 | AXW10: 0 | AXX10: 0 | AXY10: 0 | AXZ10: 0 | AYA10: 0 | AYB10: 0 | AYC10: 0 | AYD10: 0 | AYE10: 0 | AYF10: 0 | AYG10: 0 | AYH10: 0 | AYI10: 0 | AYJ10: 0 | AYK10: 0 | AYL10: 0 | AYM10: 0 | AYN10: 0 | AYO10: 0 | AYP10: 0 | AYQ10: 0 | AYR10: 0 | AYS10: 0 | AYT10: 0 | AYU10: 0 | AYV10: 0 | AYW10: 0 | AYX10: 0 | AYY10: 0 | AYZ10: 0 | AZA10: 0 | AZB10: 0 | AZC10: 0 | AZD10: 0 | AZE10: 0 | AZF10: 0 | AZG10: 0 | AZH10: 0 | AZI10: 0 | AZJ10: 0 | AZK10: 0 | AZL10: 0 | AZM10: 0 | AZN10: 0 | AZO10: 0 | AZP10: 0 | AZQ10: 0 | AZR10: 0 | AZS10: 0 | AZT10: 0 | AZU10: 0 | AZV10: 0 | AZW10: 0 | AZX10: 0 | AZY10: 0 | AZZ10: 0 | BAA10: 0 | BAB10: 0 | BAC10: 0 | BAD10: 0 | BAE10: 0 | BAF10: 0 | BAG10: 0 | BAH10: 0 | BAI10: 0 | BAJ10: 0 | BAK10: 0 | BAL10: 0 | BAM10: 0 | BAN10: 0 | BAO10: 0 | BAP10: 0 | BAQ10: 0 | BAR10: 0 | BAS10: 0 | BAT10: 0 | BAU10: 0 | BAV10: 0 | BAW10: 0 | BAX10: 0 | BAY10: 0 | BAZ10: 0 | BBA10: 0 | BBB10: 0 | BBC10: 0 | BBD10: 0 | BBE10: 0 | BBF10: 0 | BBG10: 0 | BBH10: 0 | BBI10: 0 | BBJ10: 0 | BBK10: 0 | BBL10: 0 | BBM10: 0 | BBN10: 0 | BBO10: 0 | BBP10: 0 | BBQ10: 0 | BBR10: 0 | BBS10: 0 | BBT10: 0 | BBU10: 0 | BBV10: 0 | BBW10: 0 | BBX10: 0 | BBY10: 0 | BBZ10: 0 | BCA10: 0 | BCB10: 0 | BCC10: 0 | BCD10: 0 | BCE10: 0 | BCF10: 0 | BCG10: 0 | BCH10: 0 | BCI10: 0 | BCJ10: 0 | BCK10: 0 | BCL10: 0 | BCM10: 0 | BCN10: 0 | BCO10: 0 | BCP10: 0 | BCQ10: 0 | BCR10: 0 | BCS10: 0 | BCT10: 0 | BCU10: 0 | BCV10: 0 | BCW10: 0 | BCX10: 0 | BCY10: 0 | BCZ10: 0 | BDA10: 0 | BDB10: 0 | BDC10: 0 | BDD10: 0 | BDE10: 0 | BDF10: 0 | BDG10: 0 | BDH10: 0 | BDI10: 0 | BDJ10: 0 | BDK10: 0 | BDL10: 0 | BDM10: 0 | BDN10: 0 | BDO10: 0 | BDP10: 0 | BDQ10: 0 | BDR10: 0 | BDS10: 0 | BDT10: 0 | BDU10: 0 | BDV10: 0 | BDW10: 0 | BDX10: 0 | BDY10: 0 | BDZ10: 0 | BEA10: 0 | BEB10: 0 | BEC10: 0 | BED10: 0 | BEE10: 0 | BEF10: 0 | BEG10: 0 | BEH10: 0 | BEI10: 0 | BEJ10: 0 | BEK10: 0 | BEL10: 0 | BEM10: 0 | BEN10: 0 | BEO10: 0 | BEP10: 0 | BEQ10: 0 | BER10: 0 | BES10: 0 | BET10: 0 | BEU10: 0 | BEV10: 0 | BEW10: 0 | BEX10: 0 | BEY10: 0 | BEZ10: 0 | BFA10: 0 | BFB10: 0 | BFC10: 0 | BFD10: 0 | BFE10: 0 | BFF10: 0 | BFG10: 0 | BFH10: 0 | BFI10: 0 | BFJ10: 0 | BFK10: 0 | BFL10: 0 | BFM10: 0 | BFN10: 0 | BFO10: 0 | BFP10: 0 | BFQ10: 0 | BFR10: 0 | BFS10: 0 | BFT10: 0 | BFU10: 0 | BFV10: 0 | BFW10: 0 | BFX10: 0 | BFY10: 0 | BFZ10: 0 | BGA10: 0 | BGB10: 0 | BGC10: 0 | BGD10: 0 | BGE10: 0 | BGF10: 0 | BGG10: 0 | BGH10: 0 | BGI10: 0 | BGJ10: 0 | BGK10: 0 | BGL10: 0 | BGM10: 0 | BGN10: 0 | BGO10: 0 | BGP10: 0 | BGQ10: 0 | BGR10: 0 | BGS10: 0 | BGT10: 0 | BGU10: 0 | BGV10: 0 | BGW10: 0 | BGX10: 0 | BGY10: 0 | BGZ10: 0 | BHA10: 0 | BHB10: 0 | BHC10: 0 | BHD10: 0 | BHE10: 0 | BHF10: 0 | BHG10: 0 | BHH10: 0 | BHI10: 0 | BHJ10: 0 | BHK10: 0 | BHL10: 0 | BHM10: 0 | BHN10: 0 | BHO10: 0 | BHP10: 0 | BHQ10: 0 | BHR10: 0 | BHS10: 0 | BHT10: 0 | BHU10: 0 | BHV10: 0 | BHW10: 0 | BHX10: 0 | BHY10: 0 | BHZ10: 0 | BIA10: 0 | BIB10: 0 | BIC10: 0 | BID10: 0 | BIE10: 0 | BIF10: 0 | BIG10: 0 | BIH10: 0 | BII10: 0 | BIJ10: 0 | BIK10: 0 | BIL10: 0 | BIM10: 0 | BIN10: 0 | BIO10: 0 | BIP10: 0 | BIQ10: 0 | BIR10: 0 | BIS10: 0 | BIT10: 0 | BIU10: 0 | BIV10: 0 | BIW10: 0 | BIX10: 0 | BIY10: 0 | BIZ10: 0 | BJA10: 0 | BJB10: 0 | BJC10: 0 | BJD10: 0 | BJE10: 0 | BJF10: 0 | BJG10: 0 | BJH10: 0 | BJI10: 0 | BJJ10: 0 | BJK10: 0 | BJL10: 0 | BJM10: 0 | BJN10: 0 | BJO10: 0 | BJP10: 0 | BJQ10: 0 | BJR10: 0 | BJS10: 0 | BJT10: 0 | BJU10: 0 | BJV10: 0 | BJW10: 0 | BJX10: 0 | BJY10: 0 | BJZ10: 0 | BKA10: 0 | BKB10: 0 | BKC10: 0 | BKD10: 0 | BKE10: 0 | BKF10: 0 | BKG10: 0 | BKH10: 0 | BKI10: 0 | BKJ10: 0 | BKK10: 0 | BKL10: 0 | BKM10: 0 | BKN10: 0 | BKO10: 0 | BKP10: 0 | BKQ10: 0 | BKR10: 0 | BKS10: 0 | BKT10: 0 | BKU10: 0 | BKV10: 0 | BKW10: 0 | BKX10: 0 | BKY10: 0 | BKZ10: 0 | BLA10: 0 | BLB10: 0 | BLC10: 0 | BLD10: 0 | BLE10: 0 | BLF10: 0 | BLG10: 0 | BLH10: 0 | BLI10: 0 | BLJ10: 0 | BLK10: 0 | BLL10: 0 | BLM10: 0 | BLN10: 0 | BLO10: 0 | BLP10: 0 | BLQ10: 0 | BLR10: 0 | BLS10: 0 | BLT10: 0 | BLU10: 0 | BLV10: 0 | BLW10: 0 | BLX10: 0 | BLY10: 0 | BLZ10: 0 | BMA10: 0 | BMB10: 0 | BMC10: 0 | BMD10: 0 | BME10: 0 | BMF10: 0 | BMG10: 0 | BMH10: 0 | BMI10: 0 | BMJ10: 0 | BMK10: 0
B11: 07:00:00 | C11: 0.06 | D11: 0.031 | E11: 0.026 | F11: 0 | G11: 0.021 | H11: 0 | K11: 8 | L11: 0 | M11: 0 | N11: 0 | P11: 0 | T11: 8 | U11: =TRANSPOSE('Average power consumption'!$C$3:$C$122)*L11 -> 0 | V11: 0 | W11: 0 | X11: 0 | Y11: 0 | Z11: 0 | AA11: 0 | AB11: 0 | AC11: 0 | AD11: 0 | AE11: 0 | AF11: 0 | AG11: 0 | AH11: 0 | AI11: 0 | AJ11: 0 | AK11: 0 | AL11: 0 | AM11: 0 | AN11: 0 | AO11: 0 | AP11: 0 | AQ11: 0 | AR11: 0 | AS11: 0 | AT11: 0 | AU11: 0 | AV11: 0 | AW11: 0 | AX11: 0 | AY11: 0 | AZ11: 0 | BA11: 0 | BB11: 0 | BC11: 0 | BD11: 0 | BE11: 0 | BF11: 0 | BG11: 0 | BH11: 0 | BI11: 0 | BJ11: 0 | BK11: 0 | BL11: 0 | BM11: 0 | BN11: 0 | BO11: 0 | BP11: 0 | BQ11: 0 | BR11: 0 | BS11: 0 | BT11: 0 | BU11: 0 | BV11: 0 | BW11: 0 | BX11: 0 | BY11: 0 | BZ11: 0 | CA11: 0 | CB11: 0 | CC11: 0 | CD11: 0 | CE11: 0 | CF11: 0 | CG11: 0 | CH11: 0 | CI11: 0 | CJ11: 0 | CK11: 0 | CL11: 0 | CM11: 0 | CN11: 0 | CO11: 0 | CP11: 0 | CQ11: 0 | CR11: 0 | CS11: 0 | CT11: 0 | CU11: 0 | CV11: 0 | CW11: 0 | CX11: 0 | CY11: 0 | CZ11: 0 | DA11: 0 | DB11: 0 | DC11: 0 | DD11: 0 | DE11: 0 | DF11: 0 | DG11: 0 | DH11: 0 | DI11: 0 | DJ11: 0 | DK11: 0 | DL11: 0 | DM11: 0 | DN11: 0 | DO11: 0 | DP11: 0 | DQ11: 0 | DR11: 0 | DS11: 0 | DT11: 0 | DU11: 0 | DV11: 0 | DW11: 0 | DX11: 0 | DY11: 0 | DZ11: 0 | EA11: 0 | EB11: 0 | EC11: 0 | ED11: 0 | EE11: 0 | EF11: 0 | EG11: 0 | EH11: 0 | EI11: 0 | EJ11: 0 | EM11: 0 | EN11: 0 | EO11: 0 | EP11: 0 | EQ11: 0 | ER11: 0 | ES11: 0 | ET11: 0 | EU11: 0 | EV11: 0 | EW11: 0 | EX11: 0 | EY11: 0 | EZ11: 0 | FA11: 0 | FB11: 0 | FC11: 0 | FD11: 0 | FE11: 0 | FF11: 0 | FG11: 0 | FH11: 0 | FI11: 0 | FJ11: 0 | FK11: 0 | FL11: 0 | FM11: 0 | FN11: 0 | FO11: 0 | FP11: 0 | FQ11: 0 | FR11: 0 | FS11: 0 | FT11: 0 | FU11: 0 | FV11: 0 | FW11: 0 | FX11: 0 | FY11: 0 | FZ11: 0 | GA11: 0 | GB11: 0 | GC11: 0 | GD11: 0 | GE11: 0 | GF11: 0 | GG11: 0 | GH11: 0 | GI11: 0 | GJ11: 0 | GK11: 0 | GL11: 0 | GM11: 0 | GN11: 0 | GO11: 0 | GP11: 0 | GQ11: 0 | GR11: 0 | GS11: 0 | GT11: 0 | GU11: 0 | GV11: 0 | GW11: 0 | GX11: 0 | GY11: 0 | GZ11: 0 | HA11: 0 | HB11: 0 | HC11: 0 | HD11: 0 | HE11: 0 | HF11: 0 | HG11: 0 | HH11: 0 | HI11: 0 | HJ11: 0 | HK11: 0 | HL11: 0 | HM11: 0 | HN11: 0 | HO11: 0 | HP11: 0 | HQ11: 0 | HR11: 0 | HS11: 0 | HT11: 0 | HU11: 0 | HV11: 0 | HW11: 0 | HX11: 0 | HY11: 0 | HZ11: 0 | IA11: 0 | IB11: 0 | IC11: 0 | ID11: 0 | IE11: 0 | IF11: 0 | IG11: 0 | IH11: 0 | II11: 0 | IJ11: 0 | IK11: 0 | IL11: 0 | IM11: 0 | IN11: 0 | IO11: 0 | IP11: 0 | IQ11: 0 | IR11: 0 | IS11: 0 | IT11: 0 | IU11: 0 | IV11: 0 | IW11: 0 | IX11: 0 | IY11: 0 | IZ11: 0 | JA11: 0 | JB11: 0 | JC11: 0 | JD11: 0 | JE11: 0 | JF11: 0 | JG11: 0 | JH11: 0 | JI11: 0 | JJ11: 0 | JK11: 0 | JL11: 0 | JM11: 0 | JN11: 0 | JO11: 0 | JP11: 0 | JQ11: 0 | JR11: 0 | JS11: 0 | JT11: 0 | JU11: 0 | JV11: 0 | JW11: 0 | JX11: 0 | JY11: 0 | JZ11: 0 | KA11: 0 | KB11: 0 | KC11: 0 | KD11: 0 | KE11: 0 | KF11: 0 | KG11: 0 | KH11: 0 | KI11: 0 | KJ11: 0 | KK11: 0 | KL11: 0 | KM11: 0 | KN11: 0 | KO11: 0 | KP11: 0 | KQ11: 0 | KR11: 0 | KS11: 0 | KT11: 0 | KU11: 0 | KV11: 0 | KW11: 0 | KX11: 0 | KY11: 0 | KZ11: 0 | LA11: 0 | LB11: 0 | LC11: 0 | LD11: 0 | LE11: 0 | LF11: 0 | LG11: 0 | LH11: 0 | LI11: 0 | LJ11: 0 | LK11: 0 | LL11: 0 | LM11: 0 | LN11: 0 | LO11: 0 | LP11: 0 | LQ11: 0 | LR11: 0 | LS11: 0 | LT11: 0 | LU11: 0 | LV11: 0 | LW11: 0 | LX11: 0 | LY11: 0 | LZ11: 0 | MA11: 0 | MB11: 0 | MC11: 0 | MD11: 0 | ME11: 0 | MF11: 0 | MG11: 0 | MH11: 0 | MI11: 0 | MJ11: 0 | MK11: 0 | ML11: 0 | MM11: 0 | MN11: 0 | MO11: 0 | MP11: 0 | MQ11: 0 | MR11: 0 | MS11: 0 | MT11: 0 | MU11: 0 | MV11: 0 | MW11: 0 | MX11: 0 | MY11: 0 | MZ11: 0 | NA11: 0 | NB11: 0 | NC11: 0 | ND11: 0 | NE11: 0 | NF11: 0 | NG11: 0 | NH11: 0 | NI11: 0 | NJ11: 0 | NK11: 0 | NL11: 0 | NM11: 0 | NN11: 0 | NO11: 0 | NP11: 0 | NQ11: 0 | NR11: 0 | NS11: 0 | NT11: 0 | NU11: 0 | NV11: 0 | NW11: 0 | NX11: 0 | NY11: 0 | NZ11: 0 | OA11: 0 | OB11: 0 | OC11: 0 | OD11: 0 | OE11: 0 | OF11: 0 | OG11: 0 | OH11: 0 | OI11: 0 | OJ11: 0 | OK11: 0 | OL11: 0 | OM11: 0 | ON11: 0 | OO11: 0 | OP11: 0 | OQ11: 0 | OR11: 0 | OS11: 0 | OT11: 0 | OU11: 0 | OV11: 0 | OW11: 0 | OX11: 0 | OY11: 0 | OZ11: 0 | PA11: 0 | PB11: 0 | PC11: 0 | PD11: 0 | PE11: 0 | PF11: 0 | PG11: 0 | PH11: 0 | PI11: 0 | PJ11: 0 | PK11: 0 | PL11: 0 | PM11: 0 | PN11: 0 | PO11: 0 | PP11: 0 | PQ11: 0 | PR11: 0 | PS11: 0 | PT11: 0 | PU11: 0 | PV11: 0 | PW11: 0 | PX11: 0 | PY11: 0 | PZ11: 0 | QA11: 0 | QB11: 0 | QC11: 0 | QD11: 0 | QE11: 0 | QF11: 0 | QG11: 0 | QH11: 0 | QI11: 0 | QJ11: 0 | QK11: 0 | QL11: 0 | QM11: 0 | QN11: 0 | QO11: 0 | QP11: 0 | QQ11: 0 | QR11: 0 | QS11: 0 | QT11: 0 | QU11: 0 | QV11: 0 | QW11: 0 | QX11: 0 | QY11: 0 | QZ11: 0 | RA11: 0 | RB11: 0 | RC11: 0 | RD11: 0 | RE11: 0 | RF11: 0 | RG11: 0 | RH11: 0 | RI11: 0 | RJ11: 0 | RK11: 0 | RL11: 0 | RM11: 0 | RN11: 0 | RO11: 0 | RP11: 0 | RQ11: 0 | RR11: 0 | RS11: 0 | RT11: 0 | RU11: 0 | RV11: 0 | RW11: 0 | RX11: 0 | RY11: 0 | RZ11: 0 | SA11: 0 | SB11: 0 | SC11: 0 | SD11: 0 | SE11: 0 | SF11: 0 | SG11: 0 | SH11: 0 | SI11: 0 | SJ11: 0 | SK11: 0 | SL11: 0 | SM11: 0 | SN11: 0 | SO11: 0 | SP11: 0 | SQ11: 0 | SR11: 0 | SS11: 0 | ST11: 0 | SU11: 0 | SV11: 0 | SW11: 0 | SX11: 0 | SY11: 0 | SZ11: 0 | TA11: 0 | TB11: 0 | TC11: 0 | TD11: 0 | TE11: 0 | TF11: 0 | TG11: 0 | TH11: 0 | TI11: 0 | TJ11: 0 | TK11: 0 | TL11: 0 | TM11: 0 | TN11: 0 | TO11: 0 | TP11: 0 | TQ11: 0 | TR11: 0 | TS11: 0 | TT11: 0 | TU11: 0 | TV11: 0 | TW11: 0 | TX11: 0 | TY11: 0 | TZ11: 0 | UA11: 0 | UB11: 0 | UC11: 0 | UD11: 0 | UE11: 0 | UF11: 0 | UG11: 0 | UH11: 0 | UI11: 0 | UJ11: 0 | UK11: 0 | UL11: 0 | UM11: 0 | UN11: 0 | UO11: 0 | UP11: 0 | UQ11: 0 | UR11: 0 | US11: 0 | UT11: 0 | UU11: 0 | UV11: 0 | UW11: 0 | UX11: 0 | UY11: 0 | UZ11: 0 | VA11: 0 | VB11: 0 | VC11: 0 | VD11: 0 | VE11: 0 | VF11: 0 | VG11: 0 | VH11: 0 | VI11: 0 | VJ11: 0 | VK11: 0 | VL11: 0 | VM11: 0 | VN11: 0 | VO11: 0 | VP11: 0 | VQ11: 0 | VR11: 0 | VS11: 0 | VT11: 0 | VU11: 0 | VV11: 0 | VW11: 0 | VX11: 0 | VY11: 0 | VZ11: 0 | WA11: 0 | WB11: 0 | WC11: 0 | WD11: 0 | WE11: 0 | WF11: 0 | WG11: 0 | WH11: 0 | WI11: 0 | WJ11: 0 | WK11: 0 | WL11: 0 | WM11: 0 | WN11: 0 | WO11: 0 | WP11: 0 | WQ11: 0 | WR11: 0 | WS11: 0 | WT11: 0 | WU11: 0 | WV11: 0 | WW11: 0 | WX11: 0 | WY11: 0 | WZ11: 0 | XA11: 0 | XB11: 0 | XC11: 0 | XD11: 0 | XE11: 0 | XF11: 0 | XG11: 0 | XH11: 0 | XI11: 0 | XJ11: 0 | XK11: 0 | XL11: 0 | XM11: 0 | XN11: 0 | XO11: 0 | XP11: 0 | XQ11: 0 | XR11: 0 | XS11: 0 | XT11: 0 | XU11: 0 | XV11: 0 | XW11: 0 | XX11: 0 | XY11: 0 | XZ11: 0 | YA11: 0 | YB11: 0 | YC11: 0 | YD11: 0 | YE11: 0 | YF11: 0 | YG11: 0 | YH11: 0 | YI11: 0 | YJ11: 0 | YK11: 0 | YL11: 0 | YM11: 0 | YN11: 0 | YO11: 0 | YP11: 0 | YQ11: 0 | YR11: 0 | YS11: 0 | YT11: 0 | YU11: 0 | YV11: 0 | YW11: 0 | YX11: 0 | YY11: 0 | YZ11: 0 | ZA11: 0 | ZB11: 0 | ZC11: 0 | ZD11: 0 | ZE11: 0 | ZF11: 0 | ZG11: 0 | ZH11: 0 | ZI11: 0 | ZJ11: 0 | ZK11: 0 | ZL11: 0 | ZM11: 0 | ZN11: 0 | ZO11: 0 | ZP11: 0 | ZQ11: 0 | ZR11: 0 | ZS11: 0 | ZT11: 0 | ZU11: 0 | ZV11: 0 | ZW11: 0 | ZX11: 0 | ZY11: 0 | ZZ11: 0 | AAA11: 0 | AAB11: 0 | AAC11: 0 | AAD11: 0 | AAE11: 0 | AAF11: 0 | AAG11: 0 | AAH11: 0 | AAI11: 0 | AAJ11: 0 | AAK11: 0 | AAL11: 0 | AAM11: 0 | AAN11: 0 | AAO11: 0 | AAP11: 0 | AAQ11: 0 | AAR11: 0 | AAS11: 0 | AAT11: 0 | AAU11: 0 | AAV11: 0 | AAW11: 0 | AAX11: 0 | AAY11: 0 | AAZ11: 0 | ABA11: 0 | ABB11: 0 | ABC11: 0 | ABD11: 0 | ABE11: 0 | ABF11: 0 | ABG11: 0 | ABH11: 0 | ABI11: 0 | ABJ11: 0 | ABK11: 0 | ABL11: 0 | ABM11: 0 | ABN11: 0 | ABO11: 0 | ABP11: 0 | ABQ11: 0 | ABR11: 0 | ABS11: 0 | ABT11: 0 | ABU11: 0 | ABV11: 0 | ABW11: 0 | ABX11: 0 | ABY11: 0 | ABZ11: 0 | ACA11: 0 | ACB11: 0 | ACC11: 0 | ACD11: 0 | ACE11: 0 | ACF11: 0 | ACG11: 0 | ACH11: 0 | ACI11: 0 | ACJ11: 0 | ACK11: 0 | ACL11: 0 | ACM11: 0 | ACN11: 0 | ACO11: 0 | ACP11: 0 | ACQ11: 0 | ACR11: 0 | ACS11: 0 | ACT11: 0 | ACU11: 0 | ACV11: 0 | ACW11: 0 | ACX11: 0 | ACY11: 0 | ACZ11: 0 | ADA11: 0 | ADB11: 0 | ADC11: 0 | ADD11: 0 | ADE11: 0 | ADF11: 0 | ADG11: 0 | ADH11: 0 | ADI11: 0 | ADJ11: 0 | ADK11: 0 | ADL11: 0 | ADM11: 0 | ADN11: 0 | ADO11: 0 | ADP11: 0 | ADQ11: 0 | ADR11: 0 | ADS11: 0 | ADT11: 0 | ADU11: 0 | ADV11: 0 | ADW11: 0 | ADX11: 0 | ADY11: 0 | ADZ11: 0 | AEA11: 0 | AEB11: 0 | AEC11: 0 | AED11: 0 | AEE11: 0 | AEF11: 0 | AEG11: 0 | AEH11: 0 | AEI11: 0 | AEJ11: 0 | AEK11: 0 | AEL11: 0 | AEM11: 0 | AEN11: 0 | AEO11: 0 | AEP11: 0 | AEQ11: 0 | AER11: 0 | AES11: 0 | AET11: 0 | AEU11: 0 | AEV11: 0 | AEW11: 0 | AEX11: 0 | AEY11: 0 | AEZ11: 0 | AFA11: 0 | AFB11: 0 | AFC11: 0 | AFD11: 0 | AFE11: 0 | AFF11: 0 | AFG11: 0 | AFH11: 0 | AFI11: 0 | AFJ11: 0 | AFK11: 0 | AFL11: 0 | AFM11: 0 | AFN11: 0 | AFO11: 0 | AFP11: 0 | AFQ11: 0 | AFR11: 0 | AFS11: 0 | AFT11: 0 | AFU11: 0 | AFV11: 0 | AFW11: 0 | AFX11: 0 | AFY11: 0 | AFZ11: 0 | AGA11: 0 | AGB11: 0 | AGC11: 0 | AGD11: 0 | AGE11: 0 | AGF11: 0 | AGG11: 0 | AGH11: 0 | AGI11: 0 | AGJ11: 0 | AGK11: 0 | AGL11: 0 | AGM11: 0 | AGN11: 0 | AGO11: 0 | AGP11: 0 | AGQ11: 0 | AGR11: 0 | AGS11: 0 | AGT11: 0 | AGU11: 0 | AGV11: 0 | AGW11: 0 | AGX11: 0 | AGY11: 0 | AGZ11: 0 | AHA11: 0 | AHB11: 0 | AHC11: 0 | AHD11: 0 | AHE11: 0 | AHF11: 0 | AHG11: 0 | AHH11: 0 | AHI11: 0 | AHJ11: 0 | AHK11: 0 | AHL11: 0 | AHM11: 0 | AHN11: 0 | AHO11: 0 | AHP11: 0 | AHQ11: 0 | AHR11: 0 | AHS11: 0 | AHT11: 0 | AHU11: 0 | AHV11: 0 | AHW11: 0 | AHX11: 0 | AHY11: 0 | AHZ11: 0 | AIA11: 0 | AIB11: 0 | AIC11: 0 | AID11: 0 | AIE11: 0 | AIF11: 0 | AIG11: 0 | AIH11: 0 | AII11: 0 | AIJ11: 0 | AIK11: 0 | AIL11: 0 | AIM11: 0 | AIN11: 0 | AIO11: 0 | AIP11: 0 | AIQ11: 0 | AIR11: 0 | AIS11: 0 | AIT11: 0 | AIU11: 0 | AIV11: 0 | AIW11: 0 | AIX11: 0 | AIY11: 0 | AIZ11: 0 | AJA11: 0 | AJB11: 0 | AJC11: 0 | AJD11: 0 | AJE11: 0 | AJF11: 0 | AJG11: 0 | AJH11: 0 | AJI11: 0 | AJJ11: 0 | AJK11: 0 | AJL11: 0 | AJM11: 0 | AJN11: 0 | AJO11: 0 | AJP11: 0 | AJQ11: 0 | AJR11: 0 | AJS11: 0 | AJT11: 0 | AJU11: 0 | AJV11: 0 | AJW11: 0 | AJX11: 0 | AJY11: 0 | AJZ11: 0 | AKA11: 0 | AKB11: 0 | AKC11: 0 | AKD11: 0 | AKE11: 0 | AKF11: 0 | AKG11: 0 | AKH11: 0 | AKI11: 0 | AKJ11: 0 | AKK11: 0 | AKL11: 0 | AKM11: 0 | AKN11: 0 | AKO11: 0 | AKP11: 0 | AKQ11: 0 | AKR11: 0 | AKS11: 0 | AKT11: 0 | AKU11: 0 | AKV11: 0 | AKW11: 0 | AKX11: 0 | AKY11: 0 | AKZ11: 0 | ALA11: 0 | ALB11: 0 | ALC11: 0 | ALD11: 0 | ALE11: 0 | ALF11: 0 | ALG11: 0 | ALH11: 0 | ALI11: 0 | ALJ11: 0 | ALK11: 0 | ALL11: 0 | ALM11: 0 | ALN11: 0 | ALO11: 0 | ALP11: 0 | ALQ11: 0 | ALR11: 0 | ALS11: 0 | ALT11: 0 | ALU11: 0 | ALV11: 0 | ALW11: 0 | ALX11: 0 | ALY11: 0 | ALZ11: 0 | AMA11: 0 | AMB11: 0 | AMC11: 0 | AMD11: 0 | AME11: 0 | AMF11: 0 | AMG11: 0 | AMH11: 0 | AMI11: 0 | AMJ11: 0 | AMK11: 0 | AML11: 0 | AMM11: 0 | AMN11: 0 | AMO11: 0 | AMP11: 0 | AMQ11: 0 | AMR11: 0 | AMS11: 0 | AMT11: 0 | AMU11: 0 | AMV11: 0 | AMW11: 0 | AMX11: 0 | AMY11: 0 | AMZ11: 0 | ANA11: 0 | ANB11: 0 | ANC11: 0 | AND11: 0 | ANE11: 0 | ANF11: 0 | ANG11: 0 | ANH11: 0 | ANI11: 0 | ANJ11: 0 | ANK11: 0 | ANL11: 0 | ANM11: 0 | ANN11: 0 | ANO11: 0 | ANP11: 0 | ANQ11: 0 | ANR11: 0 | ANS11: 0 | ANT11: 0 | ANU11: 0 | ANV11: 0 | ANW11: 0 | ANX11: 0 | ANY11: 0 | ANZ11: 0 | AOA11: 0 | AOB11: 0 | AOC11: 0 | AOD11: 0 | AOE11: 0 | AOF11: 0 | AOG11: 0 | AOH11: 0 | AOI11: 0 | AOJ11: 0 | AOK11: 0 | AOL11: 0 | AOM11: 0 | AON11: 0 | AOO11: 0 | AOP11: 0 | AOQ11: 0 | AOR11: 0 | AOS11: 0 | AOT11: 0 | AOU11: 0 | AOV11: 0 | AOW11: 0 | AOX11: 0 | AOY11: 0 | AOZ11: 0 | APA11: 0 | APB11: 0 | APC11: 0 | APD11: 0 | APE11: 0 | APF11: 0 | APG11: 0 | APH11: 0 | API11: 0 | APJ11: 0 | APK11: 0 | APL11: 0 | APM11: 0 | APN11: 0 | APO11: 0 | APP11: 0 | APQ11: 0 | APR11: 0 | APS11: 0 | APT11: 0 | APU11: 0 | APV11: 0 | APW11: 0 | APX11: 0 | APY11: 0 | APZ11: 0 | AQA11: 0 | AQB11: 0 | AQC11: 0 | AQD11: 0 | AQE11: 0 | AQF11: 0 | AQG11: 0 | AQH11: 0 | AQI11: 0 | AQJ11: 0 | AQK11: 0 | AQL11: 0 | AQM11: 0 | AQN11: 0 | AQO11: 0 | AQP11: 0 | AQQ11: 0 | AQR11: 0 | AQS11: 0 | AQT11: 0 | AQU11: 0 | AQV11: 0 | AQW11: 0 | AQX11: 0 | AQY11: 0 | AQZ11: 0 | ARA11: 0 | ARB11: 0 | ARC11: 0 | ARD11: 0 | ARE11: 0 | ARF11: 0 | ARG11: 0 | ARH11: 0 | ARI11: 0 | ARJ11: 0 | ARK11: 0 | ARL11: 0 | ARM11: 0 | ARN11: 0 | ARO11: 0 | ARP11: 0 | ARQ11: 0 | ARR11: 0 | ARS11: 0 | ART11: 0 | ARU11: 0 | ARV11: 0 | ARW11: 0 | ARX11: 0 | ARY11: 0 | ARZ11: 0 | ASA11: 0 | ASB11: 0 | ASC11: 0 | ASD11: 0 | ASE11: 0 | ASF11: 0 | ASG11: 0 | ASH11: 0 | ASI11: 0 | ASJ11: 0 | ASK11: 0 | ASL11: 0 | ASM11: 0 | ASN11: 0 | ASO11: 0 | ASP11: 0 | ASQ11: 0 | ASR11: 0 | ASS11: 0 | AST11: 0 | ASU11: 0 | ASV11: 0 | ASW11: 0 | ASX11: 0 | ASY11: 0 | ASZ11: 0 | ATA11: 0 | ATB11: 0 | ATC11: 0 | ATD11: 0 | ATE11: 0 | ATF11: 0 | ATG11: 0 | ATH11: 0 | ATI11: 0 | ATJ11: 0 | ATK11: 0 | ATL11: 0 | ATM11: 0 | ATN11: 0 | ATO11: 0 | ATP11: 0 | ATQ11: 0 | ATR11: 0 | ATS11: 0 | ATT11: 0 | ATU11: 0 | ATV11: 0 | ATW11: 0 | ATX11: 0 | ATY11: 0 | ATZ11: 0 | AUA11: 0 | AUB11: 0 | AUC11: 0 | AUD11: 0 | AUE11: 0 | AUF11: 0 | AUG11: 0 | AUH11: 0 | AUI11: 0 | AUJ11: 0 | AUK11: 0 | AUL11: 0 | AUM11: 0 | AUN11: 0 | AUO11: 0 | AUP11: 0 | AUQ11: 0 | AUR11: 0 | AUS11: 0 | AUT11: 0 | AUU11: 0 | AUV11: 0 | AUW11: 0 | AUX11: 0 | AUY11: 0 | AUZ11: 0 | AVA11: 0 | AVB11: 0 | AVC11: 0 | AVD11: 0 | AVE11: 0 | AVF11: 0 | AVG11: 0 | AVH11: 0 | AVI11: 0 | AVJ11: 0 | AVK11: 0 | AVL11: 0 | AVM11: 0 | AVN11: 0 | AVO11: 0 | AVP11: 0 | AVQ11: 0 | AVR11: 0 | AVS11: 0 | AVT11: 0 | AVU11: 0 | AVV11: 0 | AVW11: 0 | AVX11: 0 | AVY11: 0 | AVZ11: 0 | AWA11: 0 | AWB11: 0 | AWC11: 0 | AWD11: 0 | AWE11: 0 | AWF11: 0 | AWG11: 0 | AWH11: 0 | AWI11: 0 | AWJ11: 0 | AWK11: 0 | AWL11: 0 | AWM11: 0 | AWN11: 0 | AWO11: 0 | AWP11: 0 | AWQ11: 0 | AWR11: 0 | AWS11: 0 | AWT11: 0 | AWU11: 0 | AWV11: 0 | AWW11: 0 | AWX11: 0 | AWY11: 0 | AWZ11: 0 | AXA11: 0 | AXB11: 0 | AXC11: 0 | AXD11: 0 | AXE11: 0 | AXF11: 0 | AXG11: 0 | AXH11: 0 | AXI11: 0 | AXJ11: 0 | AXK11: 0 | AXL11: 0 | AXM11: 0 | AXN11: 0 | AXO11: 0 | AXP11: 0 | AXQ11: 0 | AXR11: 0 | AXS11: 0 | AXT11: 0 | AXU11: 0 | AXV11: 0 | AXW11: 0 | AXX11: 0 | AXY11: 0 | AXZ11: 0 | AYA11: 0 | AYB11: 0 | AYC11: 0 | AYD11: 0 | AYE11: 0 | AYF11: 0 | AYG11: 0 | AYH11: 0 | AYI11: 0 | AYJ11: 0 | AYK11: 0 | AYL11: 0 | AYM11: 0 | AYN11: 0 | AYO11: 0 | AYP11: 0 | AYQ11: 0 | AYR11: 0 | AYS11: 0 | AYT11: 0 | AYU11: 0 | AYV11: 0 | AYW11: 0 | AYX11: 0 | AYY11: 0 | AYZ11: 0 | AZA11: 0 | AZB11: 0 | AZC11: 0 | AZD11: 0 | AZE11: 0 | AZF11: 0 | AZG11: 0 | AZH11: 0 | AZI11: 0 | AZJ11: 0 | AZK11: 0 | AZL11: 0 | AZM11: 0 | AZN11: 0 | AZO11: 0 | AZP11: 0 | AZQ11: 0 | AZR11: 0 | AZS11: 0 | AZT11: 0 | AZU11: 0 | AZV11: 0 | AZW11: 0 | AZX11: 0 | AZY11: 0 | AZZ11: 0 | BAA11: 0 | BAB11: 0 | BAC11: 0 | BAD11: 0 | BAE11: 0 | BAF11: 0 | BAG11: 0 | BAH11: 0 | BAI11: 0 | BAJ11: 0 | BAK11: 0 | BAL11: 0 | BAM11: 0 | BAN11: 0 | BAO11: 0 | BAP11: 0 | BAQ11: 0 | BAR11: 0 | BAS11: 0 | BAT11: 0 | BAU11: 0 | BAV11: 0 | BAW11: 0 | BAX11: 0 | BAY11: 0 | BAZ11: 0 | BBA11: 0 | BBB11: 0 | BBC11: 0 | BBD11: 0 | BBE11: 0 | BBF11: 0 | BBG11: 0 | BBH11: 0 | BBI11: 0 | BBJ11: 0 | BBK11: 0 | BBL11: 0 | BBM11: 0 | BBN11: 0 | BBO11: 0 | BBP11: 0 | BBQ11: 0 | BBR11: 0 | BBS11: 0 | BBT11: 0 | BBU11: 0 | BBV11: 0 | BBW11: 0 | BBX11: 0 | BBY11: 0 | BBZ11: 0 | BCA11: 0 | BCB11: 0 | BCC11: 0 | BCD11: 0 | BCE11: 0 | BCF11: 0 | BCG11: 0 | BCH11: 0 | BCI11: 0 | BCJ11: 0 | BCK11: 0 | BCL11: 0 | BCM11: 0 | BCN11: 0 | BCO11: 0 | BCP11: 0 | BCQ11: 0 | BCR11: 0 | BCS11: 0 | BCT11: 0 | BCU11: 0 | BCV11: 0 | BCW11: 0 | BCX11: 0 | BCY11: 0 | BCZ11: 0 | BDA11: 0 | BDB11: 0 | BDC11: 0 | BDD11: 0 | BDE11: 0 | BDF11: 0 | BDG11: 0 | BDH11: 0 | BDI11: 0 | BDJ11: 0 | BDK11: 0 | BDL11: 0 | BDM11: 0 | BDN11: 0 | BDO11: 0 | BDP11: 0 | BDQ11: 0 | BDR11: 0 | BDS11: 0 | BDT11: 0 | BDU11: 0 | BDV11: 0 | BDW11: 0 | BDX11: 0 | BDY11: 0 | BDZ11: 0 | BEA11: 0 | BEB11: 0 | BEC11: 0 | BED11: 0 | BEE11: 0 | BEF11: 0 | BEG11: 0 | BEH11: 0 | BEI11: 0 | BEJ11: 0 | BEK11: 0 | BEL11: 0 | BEM11: 0 | BEN11: 0 | BEO11: 0 | BEP11: 0 | BEQ11: 0 | BER11: 0 | BES11: 0 | BET11: 0 | BEU11: 0 | BEV11: 0 | BEW11: 0 | BEX11: 0 | BEY11: 0 | BEZ11: 0 | BFA11: 0 | BFB11: 0 | BFC11: 0 | BFD11: 0 | BFE11: 0 | BFF11: 0 | BFG11: 0 | BFH11: 0 | BFI11: 0 | BFJ11: 0 | BFK11: 0 | BFL11: 0 | BFM11: 0 | BFN11: 0 | BFO11: 0 | BFP11: 0 | BFQ11: 0 | BFR11: 0 | BFS11: 0 | BFT11: 0 | BFU11: 0 | BFV11: 0 | BFW11: 0 | BFX11: 0 | BFY11: 0 | BFZ11: 0 | BGA11: 0 | BGB11: 0 | BGC11: 0 | BGD11: 0 | BGE11: 0 | BGF11: 0 | BGG11: 0 | BGH11: 0 | BGI11: 0 | BGJ11: 0 | BGK11: 0 | BGL11: 0 | BGM11: 0 | BGN11: 0 | BGO11: 0 | BGP11: 0 | BGQ11: 0 | BGR11: 0 | BGS11: 0 | BGT11: 0 | BGU11: 0 | BGV11: 0 | BGW11: 0 | BGX11: 0 | BGY11: 0 | BGZ11: 0 | BHA11: 0 | BHB11: 0 | BHC11: 0 | BHD11: 0 | BHE11: 0 | BHF11: 0 | BHG11: 0 | BHH11: 0 | BHI11: 0 | BHJ11: 0 | BHK11: 0 | BHL11: 0 | BHM11: 0 | BHN11: 0 | BHO11: 0 | BHP11: 0 | BHQ11: 0 | BHR11: 0 | BHS11: 0 | BHT11: 0 | BHU11: 0 | BHV11: 0 | BHW11: 0 | BHX11: 0 | BHY11: 0 | BHZ11: 0 | BIA11: 0 | BIB11: 0 | BIC11: 0 | BID11: 0 | BIE11: 0 | BIF11: 0 | BIG11: 0 | BIH11: 0 | BII11: 0 | BIJ11: 0 | BIK11: 0 | BIL11: 0 | BIM11: 0 | BIN11: 0 | BIO11: 0 | BIP11: 0 | BIQ11: 0 | BIR11: 0 | BIS11: 0 | BIT11: 0 | BIU11: 0 | BIV11: 0 | BIW11: 0 | BIX11: 0 | BIY11: 0 | BIZ11: 0 | BJA11: 0 | BJB11: 0 | BJC11: 0 | BJD11: 0 | BJE11: 0 | BJF11: 0 | BJG11: 0 | BJH11: 0 | BJI11: 0 | BJJ11: 0 | BJK11: 0 | BJL11: 0 | BJM11: 0 | BJN11: 0 | BJO11: 0 | BJP11: 0 | BJQ11: 0 | BJR11: 0 | BJS11: 0 | BJT11: 0 | BJU11: 0 | BJV11: 0 | BJW11: 0 | BJX11: 0 | BJY11: 0 | BJZ11: 0 | BKA11: 0 | BKB11: 0 | BKC11: 0 | BKD11: 0 | BKE11: 0 | BKF11: 0 | BKG11: 0 | BKH11: 0 | BKI11: 0 | BKJ11: 0 | BKK11: 0 | BKL11: 0 | BKM11: 0 | BKN11: 0 | BKO11: 0 | BKP11: 0 | BKQ11: 0 | BKR11: 0 | BKS11: 0 | BKT11: 0 | BKU11: 0 | BKV11: 0 | BKW11: 0 | BKX11: 0 | BKY11: 0 | BKZ11: 0 | BLA11: 0 | BLB11: 0 | BLC11: 0 | BLD11: 0 | BLE11: 0 | BLF11: 0 | BLG11: 0 | BLH11: 0 | BLI11: 0 | BLJ11: 0 | BLK11: 0 | BLL11: 0 | BLM11: 0 | BLN11: 0 | BLO11: 0 | BLP11: 0 | BLQ11: 0 | BLR11: 0 | BLS11: 0 | BLT11: 0 | BLU11: 0 | BLV11: 0 | BLW11: 0 | BLX11: 0 | BLY11: 0 | BLZ11: 0 | BMA11: 0 | BMB11: 0 | BMC11: 0 | BMD11: 0 | BME11: 0 | BMF11: 0 | BMG11: 0 | BMH11: 0 | BMI11: 0 | BMJ11: 0 | BMK11: 0
B12: 08:00:00 | C12: 0.039 | D12: 0.046 | E12: 0.007 | F12: 0 | G12: 0.03 | H12: 0.019 | K12: 9 | L12: 0 | M12: 0 | N12: 0 | P12: 0 | T12: 9 | U12: =TRANSPOSE('Average power consumption'!$C$3:$C$122)*L12 -> 0 | V12: 0 | W12: 0 | X12: 0 | Y12: 0 | Z12: 0 | AA12: 0 | AB12: 0 | AC12: 0 | AD12: 0 | AE12: 0 | AF12: 0 | AG12: 0 | AH12: 0 | AI12: 0 | AJ12: 0 | AK12: 0 | AL12: 0 | AM12: 0 | AN12: 0 | AO12: 0 | AP12: 0 | AQ12: 0 | AR12: 0 | AS12: 0 | AT12: 0 | AU12: 0 | AV12: 0 | AW12: 0 | AX12: 0 | AY12: 0 | AZ12: 0 | BA12: 0 | BB12: 0 | BC12: 0 | BD12: 0 | BE12: 0 | BF12: 0 | BG12: 0 | BH12: 0 | BI12: 0 | BJ12: 0 | BK12: 0 | BL12: 0 | BM12: 0 | BN12: 0 | BO12: 0 | BP12: 0 | BQ12: 0 | BR12: 0 | BS12: 0 | BT12: 0 | BU12: 0 | BV12: 0 | BW12: 0 | BX12: 0 | BY12: 0 | BZ12: 0 | CA12: 0 | CB12: 0 | CC12: 0 | CD12: 0 | CE12: 0 | CF12: 0 | CG12: 0 | CH12: 0 | CI12: 0 | CJ12: 0 | CK12: 0 | CL12: 0 | CM12: 0 | CN12: 0 | CO12: 0 | CP12: 0 | CQ12: 0 | CR12: 0 | CS12: 0 | CT12: 0 | CU12: 0 | CV12: 0 | CW12: 0 | CX12: 0 | CY12: 0 | CZ12: 0 | DA12: 0 | DB12: 0 | DC12: 0 | DD12: 0 | DE12: 0 | DF12: 0 | DG12: 0 | DH12: 0 | DI12: 0 | DJ12: 0 | DK12: 0 | DL12: 0 | DM12: 0 | DN12: 0 | DO12: 0 | DP12: 0 | DQ12: 0 | DR12: 0 | DS12: 0 | DT12: 0 | DU12: 0 | DV12: 0 | DW12: 0 | DX12: 0 | DY12: 0 | DZ12: 0 | EA12: 0 | EB12: 0 | EC12: 0 | ED12: 0 | EE12: 0 | EF12: 0 | EG12: 0 | EH12: 0 | EI12: 0 | EJ12: 0 | EM12: 0 | EN12: 0 | EO12: 0 | EP12: 0 | EQ12: 0 | ER12: 0 | ES12: 0 | ET12: 0 | EU12: 0 | EV12: 0 | EW12: 0 | EX12: 0 | EY12: 0 | EZ12: 0 | FA12: 0 | FB12: 0 | FC12: 0 | FD12: 0 | FE12: 0 | FF12: 0 | FG12: 0 | FH12: 0 | FI12: 0 | FJ12: 0 | FK12: 0 | FL12: 0 | FM12: 0 | FN12: 0 | FO12: 0 | FP12: 0 | FQ12: 0 | FR12: 0 | FS12: 0 | FT12: 0 | FU12: 0 | FV12: 0 | FW12: 0 | FX12: 0 | FY12: 0 | FZ12: 0 | GA12: 0 | GB12: 0 | GC12: 0 | GD12: 0 | GE12: 0 | GF12: 0 | GG12: 0 | GH12: 0 | GI12: 0 | GJ12: 0 | GK12: 0 | GL12: 0 | GM12: 0 | GN12: 0 | GO12: 0 | GP12: 0 | GQ12: 0 | GR12: 0 | GS12: 0 | GT12: 0 | GU12: 0 | GV12: 0 | GW12: 0 | GX12: 0 | GY12: 0 | GZ12: 0 | HA12: 0 | HB12: 0 | HC12: 0 | HD12: 0 | HE12: 0 | HF12: 0 | HG12: 0 | HH12: 0 | HI12: 0 | HJ12: 0 | HK12: 0 | HL12: 0 | HM12: 0 | HN12: 0 | HO12: 0 | HP12: 0 | HQ12: 0 | HR12: 0 | HS12: 0 | HT12: 0 | HU12: 0 | HV12: 0 | HW12: 0 | HX12: 0 | HY12: 0 | HZ12: 0 | IA12: 0 | IB12: 0 | IC12: 0 | ID12: 0 | IE12: 0 | IF12: 0 | IG12: 0 | IH12: 0 | II12: 0 | IJ12: 0 | IK12: 0 | IL12: 0 | IM12: 0 | IN12: 0 | IO12: 0 | IP12: 0 | IQ12: 0 | IR12: 0 | IS12: 0 | IT12: 0 | IU12: 0 | IV12: 0 | IW12: 0 | IX12: 0 | IY12: 0 | IZ12: 0 | JA12: 0 | JB12: 0 | JC12: 0 | JD12: 0 | JE12: 0 | JF12: 0 | JG12: 0 | JH12: 0 | JI12: 0 | JJ12: 0 | JK12: 0 | JL12: 0 | JM12: 0 | JN12: 0 | JO12: 0 | JP12: 0 | JQ12: 0 | JR12: 0 | JS12: 0 | JT12: 0 | JU12: 0 | JV12: 0 | JW12: 0 | JX12: 0 | JY12: 0 | JZ12: 0 | KA12: 0 | KB12: 0 | KC12: 0 | KD12: 0 | KE12: 0 | KF12: 0 | KG12: 0 | KH12: 0 | KI12: 0 | KJ12: 0 | KK12: 0 | KL12: 0 | KM12: 0 | KN12: 0 | KO12: 0 | KP12: 0 | KQ12: 0 | KR12: 0 | KS12: 0 | KT12: 0 | KU12: 0 | KV12: 0 | KW12: 0 | KX12: 0 | KY12: 0 | KZ12: 0 | LA12: 0 | LB12: 0 | LC12: 0 | LD12: 0 | LE12: 0 | LF12: 0 | LG12: 0 | LH12: 0 | LI12: 0 | LJ12: 0 | LK12: 0 | LL12: 0 | LM12: 0 | LN12: 0 | LO12: 0 | LP12: 0 | LQ12: 0 | LR12: 0 | LS12: 0 | LT12: 0 | LU12: 0 | LV12: 0 | LW12: 0 | LX12: 0 | LY12: 0 | LZ12: 0 | MA12: 0 | MB12: 0 | MC12: 0 | MD12: 0 | ME12: 0 | MF12: 0 | MG12: 0 | MH12: 0 | MI12: 0 | MJ12: 0 | MK12: 0 | ML12: 0 | MM12: 0 | MN12: 0 | MO12: 0 | MP12: 0 | MQ12: 0 | MR12: 0 | MS12: 0 | MT12: 0 | MU12: 0 | MV12: 0 | MW12: 0 | MX12: 0 | MY12: 0 | MZ12: 0 | NA12: 0 | NB12: 0 | NC12: 0 | ND12: 0 | NE12: 0 | NF12: 0 | NG12: 0 | NH12: 0 | NI12: 0 | NJ12: 0 | NK12: 0 | NL12: 0 | NM12: 0 | NN12: 0 | NO12: 0 | NP12: 0 | NQ12: 0 | NR12: 0 | NS12: 0 | NT12: 0 | NU12: 0 | NV12: 0 | NW12: 0 | NX12: 0 | NY12: 0 | NZ12: 0 | OA12: 0 | OB12: 0 | OC12: 0 | OD12: 0 | OE12: 0 | OF12: 0 | OG12: 0 | OH12: 0 | OI12: 0 | OJ12: 0 | OK12: 0 | OL12: 0 | OM12: 0 | ON12: 0 | OO12: 0 | OP12: 0 | OQ12: 0 | OR12: 0 | OS12: 0 | OT12: 0 | OU12: 0 | OV12: 0 | OW12: 0 | OX12: 0 | OY12: 0 | OZ12: 0 | PA12: 0 | PB12: 0 | PC12: 0 | PD12: 0 | PE12: 0 | PF12: 0 | PG12: 0 | PH12: 0 | PI12: 0 | PJ12: 0 | PK12: 0 | PL12: 0 | PM12: 0 | PN12: 0 | PO12: 0 | PP12: 0 | PQ12: 0 | PR12: 0 | PS12: 0 | PT12: 0 | PU12: 0 | PV12: 0 | PW12: 0 | PX12: 0 | PY12: 0 | PZ12: 0 | QA12: 0 | QB12: 0 | QC12: 0 | QD12: 0 | QE12: 0 | QF12: 0 | QG12: 0 | QH12: 0 | QI12: 0 | QJ12: 0 | QK12: 0 | QL12: 0 | QM12: 0 | QN12: 0 | QO12: 0 | QP12: 0 | QQ12: 0 | QR12: 0 | QS12: 0 | QT12: 0 | QU12: 0 | QV12: 0 | QW12: 0 | QX12: 0 | QY12: 0 | QZ12: 0 | RA12: 0 | RB12: 0 | RC12: 0 | RD12: 0 | RE12: 0 | RF12: 0 | RG12: 0 | RH12: 0 | RI12: 0 | RJ12: 0 | RK12: 0 | RL12: 0 | RM12: 0 | RN12: 0 | RO12: 0 | RP12: 0 | RQ12: 0 | RR12: 0 | RS12: 0 | RT12: 0 | RU12: 0 | RV12: 0 | RW12: 0 | RX12: 0 | RY12: 0 | RZ12: 0 | SA12: 0 | SB12: 0 | SC12: 0 | SD12: 0 | SE12: 0 | SF12: 0 | SG12: 0 | SH12: 0 | SI12: 0 | SJ12: 0 | SK12: 0 | SL12: 0 | SM12: 0 | SN12: 0 | SO12: 0 | SP12: 0 | SQ12: 0 | SR12: 0 | SS12: 0 | ST12: 0 | SU12: 0 | SV12: 0 | SW12: 0 | SX12: 0 | SY12: 0 | SZ12: 0 | TA12: 0 | TB12: 0 | TC12: 0 | TD12: 0 | TE12: 0 | TF12: 0 | TG12: 0 | TH12: 0 | TI12: 0 | TJ12: 0 | TK12: 0 | TL12: 0 | TM12: 0 | TN12: 0 | TO12: 0 | TP12: 0 | TQ12: 0 | TR12: 0 | TS12: 0 | TT12: 0 | TU12: 0 | TV12: 0 | TW12: 0 | TX12: 0 | TY12: 0 | TZ12: 0 | UA12: 0 | UB12: 0 | UC12: 0 | UD12: 0 | UE12: 0 | UF12: 0 | UG12: 0 | UH12: 0 | UI12: 0 | UJ12: 0 | UK12: 0 | UL12: 0 | UM12: 0 | UN12: 0 | UO12: 0 | UP12: 0 | UQ12: 0 | UR12: 0 | US12: 0 | UT12: 0 | UU12: 0 | UV12: 0 | UW12: 0 | UX12: 0 | UY12: 0 | UZ12: 0 | VA12: 0 | VB12: 0 | VC12: 0 | VD12: 0 | VE12: 0 | VF12: 0 | VG12: 0 | VH12: 0 | VI12: 0 | VJ12: 0 | VK12: 0 | VL12: 0 | VM12: 0 | VN12: 0 | VO12: 0 | VP12: 0 | VQ12: 0 | VR12: 0 | VS12: 0 | VT12: 0 | VU12: 0 | VV12: 0 | VW12: 0 | VX12: 0 | VY12: 0 | VZ12: 0 | WA12: 0 | WB12: 0 | WC12: 0 | WD12: 0 | WE12: 0 | WF12: 0 | WG12: 0 | WH12: 0 | WI12: 0 | WJ12: 0 | WK12: 0 | WL12: 0 | WM12: 0 | WN12: 0 | WO12: 0 | WP12: 0 | WQ12: 0 | WR12: 0 | WS12: 0 | WT12: 0 | WU12: 0 | WV12: 0 | WW12: 0 | WX12: 0 | WY12: 0 | WZ12: 0 | XA12: 0 | XB12: 0 | XC12: 0 | XD12: 0 | XE12: 0 | XF12: 0 | XG12: 0 | XH12: 0 | XI12: 0 | XJ12: 0 | XK12: 0 | XL12: 0 | XM12: 0 | XN12: 0 | XO12: 0 | XP12: 0 | XQ12: 0 | XR12: 0 | XS12: 0 | XT12: 0 | XU12: 0 | XV12: 0 | XW12: 0 | XX12: 0 | XY12: 0 | XZ12: 0 | YA12: 0 | YB12: 0 | YC12: 0 | YD12: 0 | YE12: 0 | YF12: 0 | YG12: 0 | YH12: 0 | YI12: 0 | YJ12: 0 | YK12: 0 | YL12: 0 | YM12: 0 | YN12: 0 | YO12: 0 | YP12: 0 | YQ12: 0 | YR12: 0 | YS12: 0 | YT12: 0 | YU12: 0 | YV12: 0 | YW12: 0 | YX12: 0 | YY12: 0 | YZ12: 0 | ZA12: 0 | ZB12: 0 | ZC12: 0 | ZD12: 0 | ZE12: 0 | ZF12: 0 | ZG12: 0 | ZH12: 0 | ZI12: 0 | ZJ12: 0 | ZK12: 0 | ZL12: 0 | ZM12: 0 | ZN12: 0 | ZO12: 0 | ZP12: 0 | ZQ12: 0 | ZR12: 0 | ZS12: 0 | ZT12: 0 | ZU12: 0 | ZV12: 0 | ZW12: 0 | ZX12: 0 | ZY12: 0 | ZZ12: 0 | AAA12: 0 | AAB12: 0 | AAC12: 0 | AAD12: 0 | AAE12: 0 | AAF12: 0 | AAG12: 0 | AAH12: 0 | AAI12: 0 | AAJ12: 0 | AAK12: 0 | AAL12: 0 | AAM12: 0 | AAN12: 0 | AAO12: 0 | AAP12: 0 | AAQ12: 0 | AAR12: 0 | AAS12: 0 | AAT12: 0 | AAU12: 0 | AAV12: 0 | AAW12: 0 | AAX12: 0 | AAY12: 0 | AAZ12: 0 | ABA12: 0 | ABB12: 0 | ABC12: 0 | ABD12: 0 | ABE12: 0 | ABF12: 0 | ABG12: 0 | ABH12: 0 | ABI12: 0 | ABJ12: 0 | ABK12: 0 | ABL12: 0 | ABM12: 0 | ABN12: 0 | ABO12: 0 | ABP12: 0 | ABQ12: 0 | ABR12: 0 | ABS12: 0 | ABT12: 0 | ABU12: 0 | ABV12: 0 | ABW12: 0 | ABX12: 0 | ABY12: 0 | ABZ12: 0 | ACA12: 0 | ACB12: 0 | ACC12: 0 | ACD12: 0 | ACE12: 0 | ACF12: 0 | ACG12: 0 | ACH12: 0 | ACI12: 0 | ACJ12: 0 | ACK12: 0 | ACL12: 0 | ACM12: 0 | ACN12: 0 | ACO12: 0 | ACP12: 0 | ACQ12: 0 | ACR12: 0 | ACS12: 0 | ACT12: 0 | ACU12: 0 | ACV12: 0 | ACW12: 0 | ACX12: 0 | ACY12: 0 | ACZ12: 0 | ADA12: 0 | ADB12: 0 | ADC12: 0 | ADD12: 0 | ADE12: 0 | ADF12: 0 | ADG12: 0 | ADH12: 0 | ADI12: 0 | ADJ12: 0 | ADK12: 0 | ADL12: 0 | ADM12: 0 | ADN12: 0 | ADO12: 0 | ADP12: 0 | ADQ12: 0 | ADR12: 0 | ADS12: 0 | ADT12: 0 | ADU12: 0 | ADV12: 0 | ADW12: 0 | ADX12: 0 | ADY12: 0 | ADZ12: 0 | AEA12: 0 | AEB12: 0 | AEC12: 0 | AED12: 0 | AEE12: 0 | AEF12: 0 | AEG12: 0 | AEH12: 0 | AEI12: 0 | AEJ12: 0 | AEK12: 0 | AEL12: 0 | AEM12: 0 | AEN12: 0 | AEO12: 0 | AEP12: 0 | AEQ12: 0 | AER12: 0 | AES12: 0 | AET12: 0 | AEU12: 0 | AEV12: 0 | AEW12: 0 | AEX12: 0 | AEY12: 0 | AEZ12: 0 | AFA12: 0 | AFB12: 0 | AFC12: 0 | AFD12: 0 | AFE12: 0 | AFF12: 0 | AFG12: 0 | AFH12: 0 | AFI12: 0 | AFJ12: 0 | AFK12: 0 | AFL12: 0 | AFM12: 0 | AFN12: 0 | AFO12: 0 | AFP12: 0 | AFQ12: 0 | AFR12: 0 | AFS12: 0 | AFT12: 0 | AFU12: 0 | AFV12: 0 | AFW12: 0 | AFX12: 0 | AFY12: 0 | AFZ12: 0 | AGA12: 0 | AGB12: 0 | AGC12: 0 | AGD12: 0 | AGE12: 0 | AGF12: 0 | AGG12: 0 | AGH12: 0 | AGI12: 0 | AGJ12: 0 | AGK12: 0 | AGL12: 0 | AGM12: 0 | AGN12: 0 | AGO12: 0 | AGP12: 0 | AGQ12: 0 | AGR12: 0 | AGS12: 0 | AGT12: 0 | AGU12: 0 | AGV12: 0 | AGW12: 0 | AGX12: 0 | AGY12: 0 | AGZ12: 0 | AHA12: 0 | AHB12: 0 | AHC12: 0 | AHD12: 0 | AHE12: 0 | AHF12: 0 | AHG12: 0 | AHH12: 0 | AHI12: 0 | AHJ12: 0 | AHK12: 0 | AHL12: 0 | AHM12: 0 | AHN12: 0 | AHO12: 0 | AHP12: 0 | AHQ12: 0 | AHR12: 0 | AHS12: 0 | AHT12: 0 | AHU12: 0 | AHV12: 0 | AHW12: 0 | AHX12: 0 | AHY12: 0 | AHZ12: 0 | AIA12: 0 | AIB12: 0 | AIC12: 0 | AID12: 0 | AIE12: 0 | AIF12: 0 | AIG12: 0 | AIH12: 0 | AII12: 0 | AIJ12: 0 | AIK12: 0 | AIL12: 0 | AIM12: 0 | AIN12: 0 | AIO12: 0 | AIP12: 0 | AIQ12: 0 | AIR12: 0 | AIS12: 0 | AIT12: 0 | AIU12: 0 | AIV12: 0 | AIW12: 0 | AIX12: 0 | AIY12: 0 | AIZ12: 0 | AJA12: 0 | AJB12: 0 | AJC12: 0 | AJD12: 0 | AJE12: 0 | AJF12: 0 | AJG12: 0 | AJH12: 0 | AJI12: 0 | AJJ12: 0 | AJK12: 0 | AJL12: 0 | AJM12: 0 | AJN12: 0 | AJO12: 0 | AJP12: 0 | AJQ12: 0 | AJR12: 0 | AJS12: 0 | AJT12: 0 | AJU12: 0 | AJV12: 0 | AJW12: 0 | AJX12: 0 | AJY12: 0 | AJZ12: 0 | AKA12: 0 | AKB12: 0 | AKC12: 0 | AKD12: 0 | AKE12: 0 | AKF12: 0 | AKG12: 0 | AKH12: 0 | AKI12: 0 | AKJ12: 0 | AKK12: 0 | AKL12: 0 | AKM12: 0 | AKN12: 0 | AKO12: 0 | AKP12: 0 | AKQ12: 0 | AKR12: 0 | AKS12: 0 | AKT12: 0 | AKU12: 0 | AKV12: 0 | AKW12: 0 | AKX12: 0 | AKY12: 0 | AKZ12: 0 | ALA12: 0 | ALB12: 0 | ALC12: 0 | ALD12: 0 | ALE12: 0 | ALF12: 0 | ALG12: 0 | ALH12: 0 | ALI12: 0 | ALJ12: 0 | ALK12: 0 | ALL12: 0 | ALM12: 0 | ALN12: 0 | ALO12: 0 | ALP12: 0 | ALQ12: 0 | ALR12: 0 | ALS12: 0 | ALT12: 0 | ALU12: 0 | ALV12: 0 | ALW12: 0 | ALX12: 0 | ALY12: 0 | ALZ12: 0 | AMA12: 0 | AMB12: 0 | AMC12: 0 | AMD12: 0 | AME12: 0 | AMF12: 0 | AMG12: 0 | AMH12: 0 | AMI12: 0 | AMJ12: 0 | AMK12: 0 | AML12: 0 | AMM12: 0 | AMN12: 0 | AMO12: 0 | AMP12: 0 | AMQ12: 0 | AMR12: 0 | AMS12: 0 | AMT12: 0 | AMU12: 0 | AMV12: 0 | AMW12: 0 | AMX12: 0 | AMY12: 0 | AMZ12: 0 | ANA12: 0 | ANB12: 0 | ANC12: 0 | AND12: 0 | ANE12: 0 | ANF12: 0 | ANG12: 0 | ANH12: 0 | ANI12: 0 | ANJ12: 0 | ANK12: 0 | ANL12: 0 | ANM12: 0 | ANN12: 0 | ANO12: 0 | ANP12: 0 | ANQ12: 0 | ANR12: 0 | ANS12: 0 | ANT12: 0 | ANU12: 0 | ANV12: 0 | ANW12: 0 | ANX12: 0 | ANY12: 0 | ANZ12: 0 | AOA12: 0 | AOB12: 0 | AOC12: 0 | AOD12: 0 | AOE12: 0 | AOF12: 0 | AOG12: 0 | AOH12: 0 | AOI12: 0 | AOJ12: 0 | AOK12: 0 | AOL12: 0 | AOM12: 0 | AON12: 0 | AOO12: 0 | AOP12: 0 | AOQ12: 0 | AOR12: 0 | AOS12: 0 | AOT12: 0 | AOU12: 0 | AOV12: 0 | AOW12: 0 | AOX12: 0 | AOY12: 0 | AOZ12: 0 | APA12: 0 | APB12: 0 | APC12: 0 | APD12: 0 | APE12: 0 | APF12: 0 | APG12: 0 | APH12: 0 | API12: 0 | APJ12: 0 | APK12: 0 | APL12: 0 | APM12: 0 | APN12: 0 | APO12: 0 | APP12: 0 | APQ12: 0 | APR12: 0 | APS12: 0 | APT12: 0 | APU12: 0 | APV12: 0 | APW12: 0 | APX12: 0 | APY12: 0 | APZ12: 0 | AQA12: 0 | AQB12: 0 | AQC12: 0 | AQD12: 0 | AQE12: 0 | AQF12: 0 | AQG12: 0 | AQH12: 0 | AQI12: 0 | AQJ12: 0 | AQK12: 0 | AQL12: 0 | AQM12: 0 | AQN12: 0 | AQO12: 0 | AQP12: 0 | AQQ12: 0 | AQR12: 0 | AQS12: 0 | AQT12: 0 | AQU12: 0 | AQV12: 0 | AQW12: 0 | AQX12: 0 | AQY12: 0 | AQZ12: 0 | ARA12: 0 | ARB12: 0 | ARC12: 0 | ARD12: 0 | ARE12: 0 | ARF12: 0 | ARG12: 0 | ARH12: 0 | ARI12: 0 | ARJ12: 0 | ARK12: 0 | ARL12: 0 | ARM12: 0 | ARN12: 0 | ARO12: 0 | ARP12: 0 | ARQ12: 0 | ARR12: 0 | ARS12: 0 | ART12: 0 | ARU12: 0 | ARV12: 0 | ARW12: 0 | ARX12: 0 | ARY12: 0 | ARZ12: 0 | ASA12: 0 | ASB12: 0 | ASC12: 0 | ASD12: 0 | ASE12: 0 | ASF12: 0 | ASG12: 0 | ASH12: 0 | ASI12: 0 | ASJ12: 0 | ASK12: 0 | ASL12: 0 | ASM12: 0 | ASN12: 0 | ASO12: 0 | ASP12: 0 | ASQ12: 0 | ASR12: 0 | ASS12: 0 | AST12: 0 | ASU12: 0 | ASV12: 0 | ASW12: 0 | ASX12: 0 | ASY12: 0 | ASZ12: 0 | ATA12: 0 | ATB12: 0 | ATC12: 0 | ATD12: 0 | ATE12: 0 | ATF12: 0 | ATG12: 0 | ATH12: 0 | ATI12: 0 | ATJ12: 0 | ATK12: 0 | ATL12: 0 | ATM12: 0 | ATN12: 0 | ATO12: 0 | ATP12: 0 | ATQ12: 0 | ATR12: 0 | ATS12: 0 | ATT12: 0 | ATU12: 0 | ATV12: 0 | ATW12: 0 | ATX12: 0 | ATY12: 0 | ATZ12: 0 | AUA12: 0 | AUB12: 0 | AUC12: 0 | AUD12: 0 | AUE12: 0 | AUF12: 0 | AUG12: 0 | AUH12: 0 | AUI12: 0 | AUJ12: 0 | AUK12: 0 | AUL12: 0 | AUM12: 0 | AUN12: 0 | AUO12: 0 | AUP12: 0 | AUQ12: 0 | AUR12: 0 | AUS12: 0 | AUT12: 0 | AUU12: 0 | AUV12: 0 | AUW12: 0 | AUX12: 0 | AUY12: 0 | AUZ12: 0 | AVA12: 0 | AVB12: 0 | AVC12: 0 | AVD12: 0 | AVE12: 0 | AVF12: 0 | AVG12: 0 | AVH12: 0 | AVI12: 0 | AVJ12: 0 | AVK12: 0 | AVL12: 0 | AVM12: 0 | AVN12: 0 | AVO12: 0 | AVP12: 0 | AVQ12: 0 | AVR12: 0 | AVS12: 0 | AVT12: 0 | AVU12: 0 | AVV12: 0 | AVW12: 0 | AVX12: 0 | AVY12: 0 | AVZ12: 0 | AWA12: 0 | AWB12: 0 | AWC12: 0 | AWD12: 0 | AWE12: 0 | AWF12: 0 | AWG12: 0 | AWH12: 0 | AWI12: 0 | AWJ12: 0 | AWK12: 0 | AWL12: 0 | AWM12: 0 | AWN12: 0 | AWO12: 0 | AWP12: 0 | AWQ12: 0 | AWR12: 0 | AWS12: 0 | AWT12: 0 | AWU12: 0 | AWV12: 0 | AWW12: 0 | AWX12: 0 | AWY12: 0 | AWZ12: 0 | AXA12: 0 | AXB12: 0 | AXC12: 0 | AXD12: 0 | AXE12: 0 | AXF12: 0 | AXG12: 0 | AXH12: 0 | AXI12: 0 | AXJ12: 0 | AXK12: 0 | AXL12: 0 | AXM12: 0 | AXN12: 0 | AXO12: 0 | AXP12: 0 | AXQ12: 0 | AXR12: 0 | AXS12: 0 | AXT12: 0 | AXU12: 0 | AXV12: 0 | AXW12: 0 | AXX12: 0 | AXY12: 0 | AXZ12: 0 | AYA12: 0 | AYB12: 0 | AYC12: 0 | AYD12: 0 | AYE12: 0 | AYF12: 0 | AYG12: 0 | AYH12: 0 | AYI12: 0 | AYJ12: 0 | AYK12: 0 | AYL12: 0 | AYM12: 0 | AYN12: 0 | AYO12: 0 | AYP12: 0 | AYQ12: 0 | AYR12: 0 | AYS12: 0 | AYT12: 0 | AYU12: 0 | AYV12: 0 | AYW12: 0 | AYX12: 0 | AYY12: 0 | AYZ12: 0 | AZA12: 0 | AZB12: 0 | AZC12: 0 | AZD12: 0 | AZE12: 0 | AZF12: 0 | AZG12: 0 | AZH12: 0 | AZI12: 0 | AZJ12: 0 | AZK12: 0 | AZL12: 0 | AZM12: 0 | AZN12: 0 | AZO12: 0 | AZP12: 0 | AZQ12: 0 | AZR12: 0 | AZS12: 0 | AZT12: 0 | AZU12: 0 | AZV12: 0 | AZW12: 0 | AZX12: 0 | AZY12: 0 | AZZ12: 0 | BAA12: 0 | BAB12: 0 | BAC12: 0 | BAD12: 0 | BAE12: 0 | BAF12: 0 | BAG12: 0 | BAH12: 0 | BAI12: 0 | BAJ12: 0 | BAK12: 0 | BAL12: 0 | BAM12: 0 | BAN12: 0 | BAO12: 0 | BAP12: 0 | BAQ12: 0 | BAR12: 0 | BAS12: 0 | BAT12: 0 | BAU12: 0 | BAV12: 0 | BAW12: 0 | BAX12: 0 | BAY12: 0 | BAZ12: 0 | BBA12: 0 | BBB12: 0 | BBC12: 0 | BBD12: 0 | BBE12: 0 | BBF12: 0 | BBG12: 0 | BBH12: 0 | BBI12: 0 | BBJ12: 0 | BBK12: 0 | BBL12: 0 | BBM12: 0 | BBN12: 0 | BBO12: 0 | BBP12: 0 | BBQ12: 0 | BBR12: 0 | BBS12: 0 | BBT12: 0 | BBU12: 0 | BBV12: 0 | BBW12: 0 | BBX12: 0 | BBY12: 0 | BBZ12: 0 | BCA12: 0 | BCB12: 0 | BCC12: 0 | BCD12: 0 | BCE12: 0 | BCF12: 0 | BCG12: 0 | BCH12: 0 | BCI12: 0 | BCJ12: 0 | BCK12: 0 | BCL12: 0 | BCM12: 0 | BCN12: 0 | BCO12: 0 | BCP12: 0 | BCQ12: 0 | BCR12: 0 | BCS12: 0 | BCT12: 0 | BCU12: 0 | BCV12: 0 | BCW12: 0 | BCX12: 0 | BCY12: 0 | BCZ12: 0 | BDA12: 0 | BDB12: 0 | BDC12: 0 | BDD12: 0 | BDE12: 0 | BDF12: 0 | BDG12: 0 | BDH12: 0 | BDI12: 0 | BDJ12: 0 | BDK12: 0 | BDL12: 0 | BDM12: 0 | BDN12: 0 | BDO12: 0 | BDP12: 0 | BDQ12: 0 | BDR12: 0 | BDS12: 0 | BDT12: 0 | BDU12: 0 | BDV12: 0 | BDW12: 0 | BDX12: 0 | BDY12: 0 | BDZ12: 0 | BEA12: 0 | BEB12: 0 | BEC12: 0 | BED12: 0 | BEE12: 0 | BEF12: 0 | BEG12: 0 | BEH12: 0 | BEI12: 0 | BEJ12: 0 | BEK12: 0 | BEL12: 0 | BEM12: 0 | BEN12: 0 | BEO12: 0 | BEP12: 0 | BEQ12: 0 | BER12: 0 | BES12: 0 | BET12: 0 | BEU12: 0 | BEV12: 0 | BEW12: 0 | BEX12: 0 | BEY12: 0 | BEZ12: 0 | BFA12: 0 | BFB12: 0 | BFC12: 0 | BFD12: 0 | BFE12: 0 | BFF12: 0 | BFG12: 0 | BFH12: 0 | BFI12: 0 | BFJ12: 0 | BFK12: 0 | BFL12: 0 | BFM12: 0 | BFN12: 0 | BFO12: 0 | BFP12: 0 | BFQ12: 0 | BFR12: 0 | BFS12: 0 | BFT12: 0 | BFU12: 0 | BFV12: 0 | BFW12: 0 | BFX12: 0 | BFY12: 0 | BFZ12: 0 | BGA12: 0 | BGB12: 0 | BGC12: 0 | BGD12: 0 | BGE12: 0 | BGF12: 0 | BGG12: 0 | BGH12: 0 | BGI12: 0 | BGJ12: 0 | BGK12: 0 | BGL12: 0 | BGM12: 0 | BGN12: 0 | BGO12: 0 | BGP12: 0 | BGQ12: 0 | BGR12: 0 | BGS12: 0 | BGT12: 0 | BGU12: 0 | BGV12: 0 | BGW12: 0 | BGX12: 0 | BGY12: 0 | BGZ12: 0 | BHA12: 0 | BHB12: 0 | BHC12: 0 | BHD12: 0 | BHE12: 0 | BHF12: 0 | BHG12: 0 | BHH12: 0 | BHI12: 0 | BHJ12: 0 | BHK12: 0 | BHL12: 0 | BHM12: 0 | BHN12: 0 | BHO12: 0 | BHP12: 0 | BHQ12: 0 | BHR12: 0 | BHS12: 0 | BHT12: 0 | BHU12: 0 | BHV12: 0 | BHW12: 0 | BHX12: 0 | BHY12: 0 | BHZ12: 0 | BIA12: 0 | BIB12: 0 | BIC12: 0 | BID12: 0 | BIE12: 0 | BIF12: 0 | BIG12: 0 | BIH12: 0 | BII12: 0 | BIJ12: 0 | BIK12: 0 | BIL12: 0 | BIM12: 0 | BIN12: 0 | BIO12: 0 | BIP12: 0 | BIQ12: 0 | BIR12: 0 | BIS12: 0 | BIT12: 0 | BIU12: 0 | BIV12: 0 | BIW12: 0 | BIX12: 0 | BIY12: 0 | BIZ12: 0 | BJA12: 0 | BJB12: 0 | BJC12: 0 | BJD12: 0 | BJE12: 0 | BJF12: 0 | BJG12: 0 | BJH12: 0 | BJI12: 0 | BJJ12: 0 | BJK12: 0 | BJL12: 0 | BJM12: 0 | BJN12: 0 | BJO12: 0 | BJP12: 0 | BJQ12: 0 | BJR12: 0 | BJS12: 0 | BJT12: 0 | BJU12: 0 | BJV12: 0 | BJW12: 0 | BJX12: 0 | BJY12: 0 | BJZ12: 0 | BKA12: 0 | BKB12: 0 | BKC12: 0 | BKD12: 0 | BKE12: 0 | BKF12: 0 | BKG12: 0 | BKH12: 0 | BKI12: 0 | BKJ12: 0 | BKK12: 0 | BKL12: 0 | BKM12: 0 | BKN12: 0 | BKO12: 0 | BKP12: 0 | BKQ12: 0 | BKR12: 0 | BKS12: 0 | BKT12: 0 | BKU12: 0 | BKV12: 0 | BKW12: 0 | BKX12: 0 | BKY12: 0 | BKZ12: 0 | BLA12: 0 | BLB12: 0 | BLC12: 0 | BLD12: 0 | BLE12: 0 | BLF12: 0 | BLG12: 0 | BLH12: 0 | BLI12: 0 | BLJ12: 0 | BLK12: 0 | BLL12: 0 | BLM12: 0 | BLN12: 0 | BLO12: 0 | BLP12: 0 | BLQ12: 0 | BLR12: 0 | BLS12: 0 | BLT12: 0 | BLU12: 0 | BLV12: 0 | BLW12: 0 | BLX12: 0 | BLY12: 0 | BLZ12: 0 | BMA12: 0 | BMB12: 0 | BMC12: 0 | BMD12: 0 | BME12: 0 | BMF12: 0 | BMG12: 0 | BMH12: 0 | BMI12: 0 | BMJ12: 0 | BMK12: 0
B13: 09:00:00 | C13: 0.039 | D13: 0.046 | E13: 0.033 | F13: 0 | G13: 0.026 | H13: 0.019 | K13: 10 | L13: 0 | M13: 0 | N13: 0 | P13: 0 | T13: 10 | U13: =TRANSPOSE('Average power consumption'!$C$3:$C$122)*L13 -> 0 | V13: 0 | W13: 0 | X13: 0 | Y13: 0 | Z13: 0 | AA13: 0 | AB13: 0 | AC13: 0 | AD13: 0 | AE13: 0 | AF13: 0 | AG13: 0 | AH13: 0 | AI13: 0 | AJ13: 0 | AK13: 0 | AL13: 0 | AM13: 0 | AN13: 0 | AO13: 0 | AP13: 0 | AQ13: 0 | AR13: 0 | AS13: 0 | AT13: 0 | AU13: 0 | AV13: 0 | AW13: 0 | AX13: 0 | AY13: 0 | AZ13: 0 | BA13: 0 | BB13: 0 | BC13: 0 | BD13: 0 | BE13: 0 | BF13: 0 | BG13: 0 | BH13: 0 | BI13: 0 | BJ13: 0 | BK13: 0 | BL13: 0 | BM13: 0 | BN13: 0 | BO13: 0 | BP13: 0 | BQ13: 0 | BR13: 0 | BS13: 0 | BT13: 0 | BU13: 0 | BV13: 0 | BW13: 0 | BX13: 0 | BY13: 0 | BZ13: 0 | CA13: 0 | CB13: 0 | CC13: 0 | CD13: 0 | CE13: 0 | CF13: 0 | CG13: 0 | CH13: 0 | CI13: 0 | CJ13: 0 | CK13: 0 | CL13: 0 | CM13: 0 | CN13: 0 | CO13: 0 | CP13: 0 | CQ13: 0 | CR13: 0 | CS13: 0 | CT13: 0 | CU13: 0 | CV13: 0 | CW13: 0 | CX13: 0 | CY13: 0 | CZ13: 0 | DA13: 0 | DB13: 0 | DC13: 0 | DD13: 0 | DE13: 0 | DF13: 0 | DG13: 0 | DH13: 0 | DI13: 0 | DJ13: 0 | DK13: 0 | DL13: 0 | DM13: 0 | DN13: 0 | DO13: 0 | DP13: 0 | DQ13: 0 | DR13: 0 | DS13: 0 | DT13: 0 | DU13: 0 | DV13: 0 | DW13: 0 | DX13: 0 | DY13: 0 | DZ13: 0 | EA13: 0 | EB13: 0 | EC13: 0 | ED13: 0 | EE13: 0 | EF13: 0 | EG13: 0 | EH13: 0 | EI13: 0 | EJ13: 0 | EM13: 0 | EN13: 0 | EO13: 0 | EP13: 0 | EQ13: 0 | ER13: 0 | ES13: 0 | ET13: 0 | EU13: 0 | EV13: 0 | EW13: 0 | EX13: 0 | EY13: 0 | EZ13: 0 | FA13: 0 | FB13: 0 | FC13: 0 | FD13: 0 | FE13: 0 | FF13: 0 | FG13: 0 | FH13: 0 | FI13: 0 | FJ13: 0 | FK13: 0 | FL13: 0 | FM13: 0 | FN13: 0 | FO13: 0 | FP13: 0 | FQ13: 0 | FR13: 0 | FS13: 0 | FT13: 0 | FU13: 0 | FV13: 0 | FW13: 0 | FX13: 0 | FY13: 0 | FZ13: 0 | GA13: 0 | GB13: 0 | GC13: 0 | GD13: 0 | GE13: 0 | GF13: 0 | GG13: 0 | GH13: 0 | GI13: 0 | GJ13: 0 | GK13: 0 | GL13: 0 | GM13: 0 | GN13: 0 | GO13: 0 | GP13: 0 | GQ13: 0 | GR13: 0 | GS13: 0 | GT13: 0 | GU13: 0 | GV13: 0 | GW13: 0 | GX13: 0 | GY13: 0 | GZ13: 0 | HA13: 0 | HB13: 0 | HC13: 0 | HD13: 0 | HE13: 0 | HF13: 0 | HG13: 0 | HH13: 0 | HI13: 0 | HJ13: 0 | HK13: 0 | HL13: 0 | HM13: 0 | HN13: 0 | HO13: 0 | HP13: 0 | HQ13: 0 | HR13: 0 | HS13: 0 | HT13: 0 | HU13: 0 | HV13: 0 | HW13: 0 | HX13: 0 | HY13: 0 | HZ13: 0 | IA13: 0 | IB13: 0 | IC13: 0 | ID13: 0 | IE13: 0 | IF13: 0 | IG13: 0 | IH13: 0 | II13: 0 | IJ13: 0 | IK13: 0 | IL13: 0 | IM13: 0 | IN13: 0 | IO13: 0 | IP13: 0 | IQ13: 0 | IR13: 0 | IS13: 0 | IT13: 0 | IU13: 0 | IV13: 0 | IW13: 0 | IX13: 0 | IY13: 0 | IZ13: 0 | JA13: 0 | JB13: 0 | JC13: 0 | JD13: 0 | JE13: 0 | JF13: 0 | JG13: 0 | JH13: 0 | JI13: 0 | JJ13: 0 | JK13: 0 | JL13: 0 | JM13: 0 | JN13: 0 | JO13: 0 | JP13: 0 | JQ13: 0 | JR13: 0 | JS13: 0 | JT13: 0 | JU13: 0 | JV13: 0 | JW13: 0 | JX13: 0 | JY13: 0 | JZ13: 0 | KA13: 0 | KB13: 0 | KC13: 0 | KD13: 0 | KE13: 0 | KF13: 0 | KG13: 0 | KH13: 0 | KI13: 0 | KJ13: 0 | KK13: 0 | KL13: 0 | KM13: 0 | KN13: 0 | KO13: 0 | KP13: 0 | KQ13: 0 | KR13: 0 | KS13: 0 | KT13: 0 | KU13: 0 | KV13: 0 | KW13: 0 | KX13: 0 | KY13: 0 | KZ13: 0 | LA13: 0 | LB13: 0 | LC13: 0 | LD13: 0 | LE13: 0 | LF13: 0 | LG13: 0 | LH13: 0 | LI13: 0 | LJ13: 0 | LK13: 0 | LL13: 0 | LM13: 0 | LN13: 0 | LO13: 0 | LP13: 0 | LQ13: 0 | LR13: 0 | LS13: 0 | LT13: 0 | LU13: 0 | LV13: 0 | LW13: 0 | LX13: 0 | LY13: 0 | LZ13: 0 | MA13: 0 | MB13: 0 | MC13: 0 | MD13: 0 | ME13: 0 | MF13: 0 | MG13: 0 | MH13: 0 | MI13: 0 | MJ13: 0 | MK13: 0 | ML13: 0 | MM13: 0 | MN13: 0 | MO13: 0 | MP13: 0 | MQ13: 0 | MR13: 0 | MS13: 0 | MT13: 0 | MU13: 0 | MV13: 0 | MW13: 0 | MX13: 0 | MY13: 0 | MZ13: 0 | NA13: 0 | NB13: 0 | NC13: 0 | ND13: 0 | NE13: 0 | NF13: 0 | NG13: 0 | NH13: 0 | NI13: 0 | NJ13: 0 | NK13: 0 | NL13: 0 | NM13: 0 | NN13: 0 | NO13: 0 | NP13: 0 | NQ13: 0 | NR13: 0 | NS13: 0 | NT13: 0 | NU13: 0 | NV13: 0 | NW13: 0 | NX13: 0 | NY13: 0 | NZ13: 0 | OA13: 0 | OB13: 0 | OC13: 0 | OD13: 0 | OE13: 0 | OF13: 0 | OG13: 0 | OH13: 0 | OI13: 0 | OJ13: 0 | OK13: 0 | OL13: 0 | OM13: 0 | ON13: 0 | OO13: 0 | OP13: 0 | OQ13: 0 | OR13: 0 | OS13: 0 | OT13: 0 | OU13: 0 | OV13: 0 | OW13: 0 | OX13: 0 | OY13: 0 | OZ13: 0 | PA13: 0 | PB13: 0 | PC13: 0 | PD13: 0 | PE13: 0 | PF13: 0 | PG13: 0 | PH13: 0 | PI13: 0 | PJ13: 0 | PK13: 0 | PL13: 0 | PM13: 0 | PN13: 0 | PO13: 0 | PP13: 0 | PQ13: 0 | PR13: 0 | PS13: 0 | PT13: 0 | PU13: 0 | PV13: 0 | PW13: 0 | PX13: 0 | PY13: 0 | PZ13: 0 | QA13: 0 | QB13: 0 | QC13: 0 | QD13: 0 | QE13: 0 | QF13: 0 | QG13: 0 | QH13: 0 | QI13: 0 | QJ13: 0 | QK13: 0 | QL13: 0 | QM13: 0 | QN13: 0 | QO13: 0 | QP13: 0 | QQ13: 0 | QR13: 0 | QS13: 0 | QT13: 0 | QU13: 0 | QV13: 0 | QW13: 0 | QX13: 0 | QY13: 0 | QZ13: 0 | RA13: 0 | RB13: 0 | RC13: 0 | RD13: 0 | RE13: 0 | RF13: 0 | RG13: 0 | RH13: 0 | RI13: 0 | RJ13: 0 | RK13: 0 | RL13: 0 | RM13: 0 | RN13: 0 | RO13: 0 | RP13: 0 | RQ13: 0 | RR13: 0 | RS13: 0 | RT13: 0 | RU13: 0 | RV13: 0 | RW13: 0 | RX13: 0 | RY13: 0 | RZ13: 0 | SA13: 0 | SB13: 0 | SC13: 0 | SD13: 0 | SE13: 0 | SF13: 0 | SG13: 0 | SH13: 0 | SI13: 0 | SJ13: 0 | SK13: 0 | SL13: 0 | SM13: 0 | SN13: 0 | SO13: 0 | SP13: 0 | SQ13: 0 | SR13: 0 | SS13: 0 | ST13: 0 | SU13: 0 | SV13: 0 | SW13: 0 | SX13: 0 | SY13: 0 | SZ13: 0 | TA13: 0 | TB13: 0 | TC13: 0 | TD13: 0 | TE13: 0 | TF13: 0 | TG13: 0 | TH13: 0 | TI13: 0 | TJ13: 0 | TK13: 0 | TL13: 0 | TM13: 0 | TN13: 0 | TO13: 0 | TP13: 0 | TQ13: 0 | TR13: 0 | TS13: 0 | TT13: 0 | TU13: 0 | TV13: 0 | TW13: 0 | TX13: 0 | TY13: 0 | TZ13: 0 | UA13: 0 | UB13: 0 | UC13: 0 | UD13: 0 | UE13: 0 | UF13: 0 | UG13: 0 | UH13: 0 | UI13: 0 | UJ13: 0 | UK13: 0 | UL13: 0 | UM13: 0 | UN13: 0 | UO13: 0 | UP13: 0 | UQ13: 0 | UR13: 0 | US13: 0 | UT13: 0 | UU13: 0 | UV13: 0 | UW13: 0 | UX13: 0 | UY13: 0 | UZ13: 0 | VA13: 0 | VB13: 0 | VC13: 0 | VD13: 0 | VE13: 0 | VF13: 0 | VG13: 0 | VH13: 0 | VI13: 0 | VJ13: 0 | VK13: 0 | VL13: 0 | VM13: 0 | VN13: 0 | VO13: 0 | VP13: 0 | VQ13: 0 | VR13: 0 | VS13: 0 | VT13: 0 | VU13: 0 | VV13: 0 | VW13: 0 | VX13: 0 | VY13: 0 | VZ13: 0 | WA13: 0 | WB13: 0 | WC13: 0 | WD13: 0 | WE13: 0 | WF13: 0 | WG13: 0 | WH13: 0 | WI13: 0 | WJ13: 0 | WK13: 0 | WL13: 0 | WM13: 0 | WN13: 0 | WO13: 0 | WP13: 0 | WQ13: 0 | WR13: 0 | WS13: 0 | WT13: 0 | WU13: 0 | WV13: 0 | WW13: 0 | WX13: 0 | WY13: 0 | WZ13: 0 | XA13: 0 | XB13: 0 | XC13: 0 | XD13: 0 | XE13: 0 | XF13: 0 | XG13: 0 | XH13: 0 | XI13: 0 | XJ13: 0 | XK13: 0 | XL13: 0 | XM13: 0 | XN13: 0 | XO13: 0 | XP13: 0 | XQ13: 0 | XR13: 0 | XS13: 0 | XT13: 0 | XU13: 0 | XV13: 0 | XW13: 0 | XX13: 0 | XY13: 0 | XZ13: 0 | YA13: 0 | YB13: 0 | YC13: 0 | YD13: 0 | YE13: 0 | YF13: 0 | YG13: 0 | YH13: 0 | YI13: 0 | YJ13: 0 | YK13: 0 | YL13: 0 | YM13: 0 | YN13: 0 | YO13: 0 | YP13: 0 | YQ13: 0 | YR13: 0 | YS13: 0 | YT13: 0 | YU13: 0 | YV13: 0 | YW13: 0 | YX13: 0 | YY13: 0 | YZ13: 0 | ZA13: 0 | ZB13: 0 | ZC13: 0 | ZD13: 0 | ZE13: 0 | ZF13: 0 | ZG13: 0 | ZH13: 0 | ZI13: 0 | ZJ13: 0 | ZK13: 0 | ZL13: 0 | ZM13: 0 | ZN13: 0 | ZO13: 0 | ZP13: 0 | ZQ13: 0 | ZR13: 0 | ZS13: 0 | ZT13: 0 | ZU13: 0 | ZV13: 0 | ZW13: 0 | ZX13: 0 | ZY13: 0 | ZZ13: 0 | AAA13: 0 | AAB13: 0 | AAC13: 0 | AAD13: 0 | AAE13: 0 | AAF13: 0 | AAG13: 0 | AAH13: 0 | AAI13: 0 | AAJ13: 0 | AAK13: 0 | AAL13: 0 | AAM13: 0 | AAN13: 0 | AAO13: 0 | AAP13: 0 | AAQ13: 0 | AAR13: 0 | AAS13: 0 | AAT13: 0 | AAU13: 0 | AAV13: 0 | AAW13: 0 | AAX13: 0 | AAY13: 0 | AAZ13: 0 | ABA13: 0 | ABB13: 0 | ABC13: 0 | ABD13: 0 | ABE13: 0 | ABF13: 0 | ABG13: 0 | ABH13: 0 | ABI13: 0 | ABJ13: 0 | ABK13: 0 | ABL13: 0 | ABM13: 0 | ABN13: 0 | ABO13: 0 | ABP13: 0 | ABQ13: 0 | ABR13: 0 | ABS13: 0 | ABT13: 0 | ABU13: 0 | ABV13: 0 | ABW13: 0 | ABX13: 0 | ABY13: 0 | ABZ13: 0 | ACA13: 0 | ACB13: 0 | ACC13: 0 | ACD13: 0 | ACE13: 0 | ACF13: 0 | ACG13: 0 | ACH13: 0 | ACI13: 0 | ACJ13: 0 | ACK13: 0 | ACL13: 0 | ACM13: 0 | ACN13: 0 | ACO13: 0 | ACP13: 0 | ACQ13: 0 | ACR13: 0 | ACS13: 0 | ACT13: 0 | ACU13: 0 | ACV13: 0 | ACW13: 0 | ACX13: 0 | ACY13: 0 | ACZ13: 0 | ADA13: 0 | ADB13: 0 | ADC13: 0 | ADD13: 0 | ADE13: 0 | ADF13: 0 | ADG13: 0 | ADH13: 0 | ADI13: 0 | ADJ13: 0 | ADK13: 0 | ADL13: 0 | ADM13: 0 | ADN13: 0 | ADO13: 0 | ADP13: 0 | ADQ13: 0 | ADR13: 0 | ADS13: 0 | ADT13: 0 | ADU13: 0 | ADV13: 0 | ADW13: 0 | ADX13: 0 | ADY13: 0 | ADZ13: 0 | AEA13: 0 | AEB13: 0 | AEC13: 0 | AED13: 0 | AEE13: 0 | AEF13: 0 | AEG13: 0 | AEH13: 0 | AEI13: 0 | AEJ13: 0 | AEK13: 0 | AEL13: 0 | AEM13: 0 | AEN13: 0 | AEO13: 0 | AEP13: 0 | AEQ13: 0 | AER13: 0 | AES13: 0 | AET13: 0 | AEU13: 0 | AEV13: 0 | AEW13: 0 | AEX13: 0 | AEY13: 0 | AEZ13: 0 | AFA13: 0 | AFB13: 0 | AFC13: 0 | AFD13: 0 | AFE13: 0 | AFF13: 0 | AFG13: 0 | AFH13: 0 | AFI13: 0 | AFJ13: 0 | AFK13: 0 | AFL13: 0 | AFM13: 0 | AFN13: 0 | AFO13: 0 | AFP13: 0 | AFQ13: 0 | AFR13: 0 | AFS13: 0 | AFT13: 0 | AFU13: 0 | AFV13: 0 | AFW13: 0 | AFX13: 0 | AFY13: 0 | AFZ13: 0 | AGA13: 0 | AGB13: 0 | AGC13: 0 | AGD13: 0 | AGE13: 0 | AGF13: 0 | AGG13: 0 | AGH13: 0 | AGI13: 0 | AGJ13: 0 | AGK13: 0 | AGL13: 0 | AGM13: 0 | AGN13: 0 | AGO13: 0 | AGP13: 0 | AGQ13: 0 | AGR13: 0 | AGS13: 0 | AGT13: 0 | AGU13: 0 | AGV13: 0 | AGW13: 0 | AGX13: 0 | AGY13: 0 | AGZ13: 0 | AHA13: 0 | AHB13: 0 | AHC13: 0 | AHD13: 0 | AHE13: 0 | AHF13: 0 | AHG13: 0 | AHH13: 0 | AHI13: 0 | AHJ13: 0 | AHK13: 0 | AHL13: 0 | AHM13: 0 | AHN13: 0 | AHO13: 0 | AHP13: 0 | AHQ13: 0 | AHR13: 0 | AHS13: 0 | AHT13: 0 | AHU13: 0 | AHV13: 0 | AHW13: 0 | AHX13: 0 | AHY13: 0 | AHZ13: 0 | AIA13: 0 | AIB13: 0 | AIC13: 0 | AID13: 0 | AIE13: 0 | AIF13: 0 | AIG13: 0 | AIH13: 0 | AII13: 0 | AIJ13: 0 | AIK13: 0 | AIL13: 0 | AIM13: 0 | AIN13: 0 | AIO13: 0 | AIP13: 0 | AIQ13: 0 | AIR13: 0 | AIS13: 0 | AIT13: 0 | AIU13: 0 | AIV13: 0 | AIW13: 0 | AIX13: 0 | AIY13: 0 | AIZ13: 0 | AJA13: 0 | AJB13: 0 | AJC13: 0 | AJD13: 0 | AJE13: 0 | AJF13: 0 | AJG13: 0 | AJH13: 0 | AJI13: 0 | AJJ13: 0 | AJK13: 0 | AJL13: 0 | AJM13: 0 | AJN13: 0 | AJO13: 0 | AJP13: 0 | AJQ13: 0 | AJR13: 0 | AJS13: 0 | AJT13: 0 | AJU13: 0 | AJV13: 0 | AJW13: 0 | AJX13: 0 | AJY13: 0 | AJZ13: 0 | AKA13: 0 | AKB13: 0 | AKC13: 0 | AKD13: 0 | AKE13: 0 | AKF13: 0 | AKG13: 0 | AKH13: 0 | AKI13: 0 | AKJ13: 0 | AKK13: 0 | AKL13: 0 | AKM13: 0 | AKN13: 0 | AKO13: 0 | AKP13: 0 | AKQ13: 0 | AKR13: 0 | AKS13: 0 | AKT13: 0 | AKU13: 0 | AKV13: 0 | AKW13: 0 | AKX13: 0 | AKY13: 0 | AKZ13: 0 | ALA13: 0 | ALB13: 0 | ALC13: 0 | ALD13: 0 | ALE13: 0 | ALF13: 0 | ALG13: 0 | ALH13: 0 | ALI13: 0 | ALJ13: 0 | ALK13: 0 | ALL13: 0 | ALM13: 0 | ALN13: 0 | ALO13: 0 | ALP13: 0 | ALQ13: 0 | ALR13: 0 | ALS13: 0 | ALT13: 0 | ALU13: 0 | ALV13: 0 | ALW13: 0 | ALX13: 0 | ALY13: 0 | ALZ13: 0 | AMA13: 0 | AMB13: 0 | AMC13: 0 | AMD13: 0 | AME13: 0 | AMF13: 0 | AMG13: 0 | AMH13: 0 | AMI13: 0 | AMJ13: 0 | AMK13: 0 | AML13: 0 | AMM13: 0 | AMN13: 0 | AMO13: 0 | AMP13: 0 | AMQ13: 0 | AMR13: 0 | AMS13: 0 | AMT13: 0 | AMU13: 0 | AMV13: 0 | AMW13: 0 | AMX13: 0 | AMY13: 0 | AMZ13: 0 | ANA13: 0 | ANB13: 0 | ANC13: 0 | AND13: 0 | ANE13: 0 | ANF13: 0 | ANG13: 0 | ANH13: 0 | ANI13: 0 | ANJ13: 0 | ANK13: 0 | ANL13: 0 | ANM13: 0 | ANN13: 0 | ANO13: 0 | ANP13: 0 | ANQ13: 0 | ANR13: 0 | ANS13: 0 | ANT13: 0 | ANU13: 0 | ANV13: 0 | ANW13: 0 | ANX13: 0 | ANY13: 0 | ANZ13: 0 | AOA13: 0 | AOB13: 0 | AOC13: 0 | AOD13: 0 | AOE13: 0 | AOF13: 0 | AOG13: 0 | AOH13: 0 | AOI13: 0 | AOJ13: 0 | AOK13: 0 | AOL13: 0 | AOM13: 0 | AON13: 0 | AOO13: 0 | AOP13: 0 | AOQ13: 0 | AOR13: 0 | AOS13: 0 | AOT13: 0 | AOU13: 0 | AOV13: 0 | AOW13: 0 | AOX13: 0 | AOY13: 0 | AOZ13: 0 | APA13: 0 | APB13: 0 | APC13: 0 | APD13: 0 | APE13: 0 | APF13: 0 | APG13: 0 | APH13: 0 | API13: 0 | APJ13: 0 | APK13: 0 | APL13: 0 | APM13: 0 | APN13: 0 | APO13: 0 | APP13: 0 | APQ13: 0 | APR13: 0 | APS13: 0 | APT13: 0 | APU13: 0 | APV13: 0 | APW13: 0 | APX13: 0 | APY13: 0 | APZ13: 0 | AQA13: 0 | AQB13: 0 | AQC13: 0 | AQD13: 0 | AQE13: 0 | AQF13: 0 | AQG13: 0 | AQH13: 0 | AQI13: 0 | AQJ13: 0 | AQK13: 0 | AQL13: 0 | AQM13: 0 | AQN13: 0 | AQO13: 0 | AQP13: 0 | AQQ13: 0 | AQR13: 0 | AQS13: 0 | AQT13: 0 | AQU13: 0 | AQV13: 0 | AQW13: 0 | AQX13: 0 | AQY13: 0 | AQZ13: 0 | ARA13: 0 | ARB13: 0 | ARC13: 0 | ARD13: 0 | ARE13: 0 | ARF13: 0 | ARG13: 0 | ARH13: 0 | ARI13: 0 | ARJ13: 0 | ARK13: 0 | ARL13: 0 | ARM13: 0 | ARN13: 0 | ARO13: 0 | ARP13: 0 | ARQ13: 0 | ARR13: 0 | ARS13: 0 | ART13: 0 | ARU13: 0 | ARV13: 0 | ARW13: 0 | ARX13: 0 | ARY13: 0 | ARZ13: 0 | ASA13: 0 | ASB13: 0 | ASC13: 0 | ASD13: 0 | ASE13: 0 | ASF13: 0 | ASG13: 0 | ASH13: 0 | ASI13: 0 | ASJ13: 0 | ASK13: 0 | ASL13: 0 | ASM13: 0 | ASN13: 0 | ASO13: 0 | ASP13: 0 | ASQ13: 0 | ASR13: 0 | ASS13: 0 | AST13: 0 | ASU13: 0 | ASV13: 0 | ASW13: 0 | ASX13: 0 | ASY13: 0 | ASZ13: 0 | ATA13: 0 | ATB13: 0 | ATC13: 0 | ATD13: 0 | ATE13: 0 | ATF13: 0 | ATG13: 0 | ATH13: 0 | ATI13: 0 | ATJ13: 0 | ATK13: 0 | ATL13: 0 | ATM13: 0 | ATN13: 0 | ATO13: 0 | ATP13: 0 | ATQ13: 0 | ATR13: 0 | ATS13: 0 | ATT13: 0 | ATU13: 0 | ATV13: 0 | ATW13: 0 | ATX13: 0 | ATY13: 0 | ATZ13: 0 | AUA13: 0 | AUB13: 0 | AUC13: 0 | AUD13: 0 | AUE13: 0 | AUF13: 0 | AUG13: 0 | AUH13: 0 | AUI13: 0 | AUJ13: 0 | AUK13: 0 | AUL13: 0 | AUM13: 0 | AUN13: 0 | AUO13: 0 | AUP13: 0 | AUQ13: 0 | AUR13: 0 | AUS13: 0 | AUT13: 0 | AUU13: 0 | AUV13: 0 | AUW13: 0 | AUX13: 0 | AUY13: 0 | AUZ13: 0 | AVA13: 0 | AVB13: 0 | AVC13: 0 | AVD13: 0 | AVE13: 0 | AVF13: 0 | AVG13: 0 | AVH13: 0 | AVI13: 0 | AVJ13: 0 | AVK13: 0 | AVL13: 0 | AVM13: 0 | AVN13: 0 | AVO13: 0 | AVP13: 0 | AVQ13: 0 | AVR13: 0 | AVS13: 0 | AVT13: 0 | AVU13: 0 | AVV13: 0 | AVW13: 0 | AVX13: 0 | AVY13: 0 | AVZ13: 0 | AWA13: 0 | AWB13: 0 | AWC13: 0 | AWD13: 0 | AWE13: 0 | AWF13: 0 | AWG13: 0 | AWH13: 0 | AWI13: 0 | AWJ13: 0 | AWK13: 0 | AWL13: 0 | AWM13: 0 | AWN13: 0 | AWO13: 0 | AWP13: 0 | AWQ13: 0 | AWR13: 0 | AWS13: 0 | AWT13: 0 | AWU13: 0 | AWV13: 0 | AWW13: 0 | AWX13: 0 | AWY13: 0 | AWZ13: 0 | AXA13: 0 | AXB13: 0 | AXC13: 0 | AXD13: 0 | AXE13: 0 | AXF13: 0 | AXG13: 0 | AXH13: 0 | AXI13: 0 | AXJ13: 0 | AXK13: 0 | AXL13: 0 | AXM13: 0 | AXN13: 0 | AXO13: 0 | AXP13: 0 | AXQ13: 0 | AXR13: 0 | AXS13: 0 | AXT13: 0 | AXU13: 0 | AXV13: 0 | AXW13: 0 | AXX13: 0 | AXY13: 0 | AXZ13: 0 | AYA13: 0 | AYB13: 0 | AYC13: 0 | AYD13: 0 | AYE13: 0 | AYF13: 0 | AYG13: 0 | AYH13: 0 | AYI13: 0 | AYJ13: 0 | AYK13: 0 | AYL13: 0 | AYM13: 0 | AYN13: 0 | AYO13: 0 | AYP13: 0 | AYQ13: 0 | AYR13: 0 | AYS13: 0 | AYT13: 0 | AYU13: 0 | AYV13: 0 | AYW13: 0 | AYX13: 0 | AYY13: 0 | AYZ13: 0 | AZA13: 0 | AZB13: 0 | AZC13: 0 | AZD13: 0 | AZE13: 0 | AZF13: 0 | AZG13: 0 | AZH13: 0 | AZI13: 0 | AZJ13: 0 | AZK13: 0 | AZL13: 0 | AZM13: 0 | AZN13: 0 | AZO13: 0 | AZP13: 0 | AZQ13: 0 | AZR13: 0 | AZS13: 0 | AZT13: 0 | AZU13: 0 | AZV13: 0 | AZW13: 0 | AZX13: 0 | AZY13: 0 | AZZ13: 0 | BAA13: 0 | BAB13: 0 | BAC13: 0 | BAD13: 0 | BAE13: 0 | BAF13: 0 | BAG13: 0 | BAH13: 0 | BAI13: 0 | BAJ13: 0 | BAK13: 0 | BAL13: 0 | BAM13: 0 | BAN13: 0 | BAO13: 0 | BAP13: 0 | BAQ13: 0 | BAR13: 0 | BAS13: 0 | BAT13: 0 | BAU13: 0 | BAV13: 0 | BAW13: 0 | BAX13: 0 | BAY13: 0 | BAZ13: 0 | BBA13: 0 | BBB13: 0 | BBC13: 0 | BBD13: 0 | BBE13: 0 | BBF13: 0 | BBG13: 0 | BBH13: 0 | BBI13: 0 | BBJ13: 0 | BBK13: 0 | BBL13: 0 | BBM13: 0 | BBN13: 0 | BBO13: 0 | BBP13: 0 | BBQ13: 0 | BBR13: 0 | BBS13: 0 | BBT13: 0 | BBU13: 0 | BBV13: 0 | BBW13: 0 | BBX13: 0 | BBY13: 0 | BBZ13: 0 | BCA13: 0 | BCB13: 0 | BCC13: 0 | BCD13: 0 | BCE13: 0 | BCF13: 0 | BCG13: 0 | BCH13: 0 | BCI13: 0 | BCJ13: 0 | BCK13: 0 | BCL13: 0 | BCM13: 0 | BCN13: 0 | BCO13: 0 | BCP13: 0 | BCQ13: 0 | BCR13: 0 | BCS13: 0 | BCT13: 0 | BCU13: 0 | BCV13: 0 | BCW13: 0 | BCX13: 0 | BCY13: 0 | BCZ13: 0 | BDA13: 0 | BDB13: 0 | BDC13: 0 | BDD13: 0 | BDE13: 0 | BDF13: 0 | BDG13: 0 | BDH13: 0 | BDI13: 0 | BDJ13: 0 | BDK13: 0 | BDL13: 0 | BDM13: 0 | BDN13: 0 | BDO13: 0 | BDP13: 0 | BDQ13: 0 | BDR13: 0 | BDS13: 0 | BDT13: 0 | BDU13: 0 | BDV13: 0 | BDW13: 0 | BDX13: 0 | BDY13: 0 | BDZ13: 0 | BEA13: 0 | BEB13: 0 | BEC13: 0 | BED13: 0 | BEE13: 0 | BEF13: 0 | BEG13: 0 | BEH13: 0 | BEI13: 0 | BEJ13: 0 | BEK13: 0 | BEL13: 0 | BEM13: 0 | BEN13: 0 | BEO13: 0 | BEP13: 0 | BEQ13: 0 | BER13: 0 | BES13: 0 | BET13: 0 | BEU13: 0 | BEV13: 0 | BEW13: 0 | BEX13: 0 | BEY13: 0 | BEZ13: 0 | BFA13: 0 | BFB13: 0 | BFC13: 0 | BFD13: 0 | BFE13: 0 | BFF13: 0 | BFG13: 0 | BFH13: 0 | BFI13: 0 | BFJ13: 0 | BFK13: 0 | BFL13: 0 | BFM13: 0 | BFN13: 0 | BFO13: 0 | BFP13: 0 | BFQ13: 0 | BFR13: 0 | BFS13: 0 | BFT13: 0 | BFU13: 0 | BFV13: 0 | BFW13: 0 | BFX13: 0 | BFY13: 0 | BFZ13: 0 | BGA13: 0 | BGB13: 0 | BGC13: 0 | BGD13: 0 | BGE13: 0 | BGF13: 0 | BGG13: 0 | BGH13: 0 | BGI13: 0 | BGJ13: 0 | BGK13: 0 | BGL13: 0 | BGM13: 0 | BGN13: 0 | BGO13: 0 | BGP13: 0 | BGQ13: 0 | BGR13: 0 | BGS13: 0 | BGT13: 0 | BGU13: 0 | BGV13: 0 | BGW13: 0 | BGX13: 0 | BGY13: 0 | BGZ13: 0 | BHA13: 0 | BHB13: 0 | BHC13: 0 | BHD13: 0 | BHE13: 0 | BHF13: 0 | BHG13: 0 | BHH13: 0 | BHI13: 0 | BHJ13: 0 | BHK13: 0 | BHL13: 0 | BHM13: 0 | BHN13: 0 | BHO13: 0 | BHP13: 0 | BHQ13: 0 | BHR13: 0 | BHS13: 0 | BHT13: 0 | BHU13: 0 | BHV13: 0 | BHW13: 0 | BHX13: 0 | BHY13: 0 | BHZ13: 0 | BIA13: 0 | BIB13: 0 | BIC13: 0 | BID13: 0 | BIE13: 0 | BIF13: 0 | BIG13: 0 | BIH13: 0 | BII13: 0 | BIJ13: 0 | BIK13: 0 | BIL13: 0 | BIM13: 0 | BIN13: 0 | BIO13: 0 | BIP13: 0 | BIQ13: 0 | BIR13: 0 | BIS13: 0 | BIT13: 0 | BIU13: 0 | BIV13: 0 | BIW13: 0 | BIX13: 0 | BIY13: 0 | BIZ13: 0 | BJA13: 0 | BJB13: 0 | BJC13: 0 | BJD13: 0 | BJE13: 0 | BJF13: 0 | BJG13: 0 | BJH13: 0 | BJI13: 0 | BJJ13: 0 | BJK13: 0 | BJL13: 0 | BJM13: 0 | BJN13: 0 | BJO13: 0 | BJP13: 0 | BJQ13: 0 | BJR13: 0 | BJS13: 0 | BJT13: 0 | BJU13: 0 | BJV13: 0 | BJW13: 0 | BJX13: 0 | BJY13: 0 | BJZ13: 0 | BKA13: 0 | BKB13: 0 | BKC13: 0 | BKD13: 0 | BKE13: 0 | BKF13: 0 | BKG13: 0 | BKH13: 0 | BKI13: 0 | BKJ13: 0 | BKK13: 0 | BKL13: 0 | BKM13: 0 | BKN13: 0 | BKO13: 0 | BKP13: 0 | BKQ13: 0 | BKR13: 0 | BKS13: 0 | BKT13: 0 | BKU13: 0 | BKV13: 0 | BKW13: 0 | BKX13: 0 | BKY13: 0 | BKZ13: 0 | BLA13: 0 | BLB13: 0 | BLC13: 0 | BLD13: 0 | BLE13: 0 | BLF13: 0 | BLG13: 0 | BLH13: 0 | BLI13: 0 | BLJ13: 0 | BLK13: 0 | BLL13: 0 | BLM13: 0 | BLN13: 0 | BLO13: 0 | BLP13: 0 | BLQ13: 0 | BLR13: 0 | BLS13: 0 | BLT13: 0 | BLU13: 0 | BLV13: 0 | BLW13: 0 | BLX13: 0 | BLY13: 0 | BLZ13: 0 | BMA13: 0 | BMB13: 0 | BMC13: 0 | BMD13: 0 | BME13: 0 | BMF13: 0 | BMG13: 0 | BMH13: 0 | BMI13: 0 | BMJ13: 0 | BMK13: 0
